Workbook

Sheet Indice
B8: INTRODUCCIÓN
B9: A los fines de facilitar la tarea profesional, le entregamos sin cargo esta planilla de Excel® para retenciones de ganancias de cuarta categoría [RG (AFIP) 4003-E]. Con ella, usted podrá efectuar la liquidación de las retenciones mensuales del impuesto a las ganancias de los empleados en relación de dependencia.
B12: IMPORTANTE
B13: La presente planilla contempla los valores de las deducciones personales publicados en el sitio oficial de AFIP
B14: En cuanto a la liquidación de las retenciones, ciertos aspectos se encuentran sin reglamentar por la autoridad de aplicación. Por ello, al momento de su utilización, se sugiere consultar si hemos puesto a su disposición una nueva versión de la presente planilla en www.errepar.com
B17: RECOMENDACIONES DE USO
B18: La planilla consta de varias hojas de Datos (Ingresos, Deducciones generales, Deducciones personales, Pagos a cuenta, etc.) donde el usuario podrá volcar la información.
B19: Deben ingresarse en Datos, todos los datos en forma manual.
B20: En la hoja Liquidación se realizan los cálculos. Se encuentra totalmente automatizada por lo que se recomienda no modificar las fórmulas.
B21: En la solapa Tablas se detallan las tablas y deducciones vigentes. Se sugiere verificar los valores vigentes. El usuario puede modificar los importes si es necesario.
B23: ACLARACIONES
B24: La planilla tiene un carácter general y orientativo y cada profesional puede adecuarla a su necesidad particular, ya que la planilla no contempla todos los casos posibles (como ser liquidación final, SAC proporcional, etc.), sino que constituye, simplemente, un ejemplo. Resaltamos, por ende, que cada usuario es responsable por su utilización.
B27: Atento a ello, remarcamos que la planilla no reemplaza ni desautoriza el criterio profesional, así como tampoco lo dispuesto por la normativa vigente, los programas de liquidación diseñados al respecto,ni los aplicativos que pudieran resultar de utilización obligatoria.
B29: En consideración de lo antes expuesto, deseamos manifestar que la Editorial no se responsabiliza por ningún tipo de daño o perjuicio que el uso de esta planilla, o la imposibilidad de su utilización, pudiera ocasionar tanto a nivel profesional, al usuario y/o a los terceros ante quienes se presente, como en su equipamiento informático (hardware/software).
B32: * Microsoft Excel es un programa registrado por Microsoft Corporation. La presente planilla de Excel es independiente y no se encuentra afiliada con Microsoft Corporation, ni ha sido autorizada, sponsoreada, o de cualquier otra forma aprobada por Microsoft Corporation.
Q36: Versión 2021.07
Q37: Actualizada a abril 2022

Sheet Datos
B3: CONFIGURACIÓN DE LA PLANILLA
B9: Criterio del SAC Mensual | F9: Remuneración promedio mensual
B11: DATOS DEL EMPLEADOR Y DEL TRABAJADOR
B13: PERÍODO FISCAL: | F13: 2021
B15: DATOS DEL TRABAJADOR
B16: Nombres:
B17: Apellido:
B18: Legajo:
B19: CUIL:
B20: Dato adicional (optativo):
B21: Zona geográfica | F21: Todo el país (excepto zona patagónica)
B22: Transporte de larga distancia | F22: No desarrolla la actividad
B24: DATOS DEL AGENTE DE RETENCIÓN
B25: CUIT:
B26: Denominación legal:
B29: FORMULARIO LIQUIDACIÓN DEL IMPUESTO A LAS GANANCIAS
B30: Apellido y nombres del firmante:
B31: Cargo:
B32: Fecha (desde): | F32: 2017-01-01
B33: Fecha (hasta): | F33: 31/12/2017
B34: Lugar de extensión del certificado:
B35: Fecha de extensión del certificado: | F35: 2019-12-31

Sheet Ingresos
B5: INGRESOS BRUTOS PAGADOS POR EL AGENTE DE RETENCIÓN
P6: Tratamiento en el impuesto | U6: Formulario 1357
B7: Concepto ($) | C7: enero | D7: febrero | E7: marzo | F7: abril | G7: mayo | H7: junio | I7: julio | J7: agosto | K7: septiembre | L7: octubre | M7: noviembre | N7: diciembre | P7: G/E/NG | Q7: Prorrateo | R7: Remunerativo | S7: Base del SAC | T7: Base del promedio | Y7: Remuneración bruta gravada
B8: Sueldo bruto | P8: Gravado | Q8: No | R8: Sí | S8: Sí | T8: Sí | U8: Remuneración bruta gravada | Y8: Retribuciones no habituales gravadas
B9: Horas extras (días inhábiles) | P9: Gravado | Q9: No | R9: Sí | S9: Sí | T9: Sí | U9: Horas extras remuneración gravada | Y9: SAC primera cuota gravado
B10: Plus horas extras (días inhábiles) | P10: Exento | Q10: No | R10: Sí | S10: No | T10: Sí | U10: Horas extras remuneración exenta | Y10: SAC segunda cuota gravado
B11: Horas extras (días hábiles) | P11: Gravado | Q11: No | R11: Sí | S11: Sí | T11: Sí | U11: Horas extras remuneración gravada | Y11: Horas extras remuneración gravada
B12: SAC gravado | P12: Gravado | Q12: Sí | R12: Sí | S12: No | T12: No | U12: SAC | Y12: Movilidad y viáticos remuneración gravada
B13: SAC no gravado o exento | P13: Exento | Q13: No | R13: Sí | S13: No | T13: No | U13: SAC | Y13: Material didáctico personal docente remuneración gravada
B14: Plus Vacacional | P14: Gravado | Q14: Sí | R14: Sí | S14: Sí | T14: Sí | U14: Remuneración bruta gravada | Y14: Remuneración no alcanzada o exenta
B15: Plus Feriado | P15: Gravado | Q15: No | R15: Sí | S15: Sí | T15: Sí | U15: Remuneración bruta gravada | Y15: Remuneración exenta ley 27549
B16: Movilidad y viáticos (gravado) | P16: Gravado | Q16: No | R16: Sí | S16: No | T16: Sí | U16: Movilidad y viáticos remuneración gravada | Y16: Retribuciones no habituales exentas
B17: Movilidad y viáticos (exento) | P17: Exento | Q17: No | R17: Sí | S17: No | T17: Sí | U17: Movilidad y viáticos remuneración exenta | Y17: Bonos de productividad gravados
B18: Compensación de gastos por teletrabajo | P18: Exento | Q18: No | R18: Sí | S18: Sí | T18: Sí | U18: Compensación gastos teletrabajo exentos | Y18: Bonos de productividad exentos
B19: Bono por productividad (gravado) | P19: Gravado | Q19: No | R19: Sí | S19: Sí | T19: Sí | U19: Bonos de productividad gravados | Y19: Fallos de caja gravados
A20: =IF(SUM(C20:N20)>Tablas!$O$34*0.4,1,IF(AND(Tablas!$N$42>300000,SUM(C20:N20)<>0),1,0)) -> 0 | B20: Bono por productividad (exento) | P20: Exento | Q20: No | R20: Sí | S20: Sí | T20: Sí | U20: Bonos de productividad exentos | Y20: Fallos de caja exentos
B21: Fallo de caja (gravado) | P21: Gravado | Q21: No | R21: Sí | S21: Sí | T21: Sí | U21: Fallos de caja gravados | Y21: Conceptos de similar naturaleza gravados
A22: =IF(SUM(C22:N22)>Tablas!$O$34*0.4,1,IF(AND(Tablas!$N$42>300000,SUM(C22:N22)<>0),1,0)) -> 0 | B22: Fallo de caja (exento) | P22: Exento | Q22: No | R22: Sí | S22: Sí | T22: Sí | U22: Fallos de caja exentos | Y22: Conceptos de similar naturaleza exentos
B23: Suplementos particulares por actividad militar | P23: Exento | Q23: No | R23: Sí | S23: Sí | T23: Sí | U23: Remuneración no alcanzada o exenta | Y23: Suplementos particulares artículo 57 de la Ley 19.101 exentos
B24: Cursos o seminarios de capacitación | P24: Exento | Q24: No | R24: Sí | S24: Sí | T24: Sí | U24: Remuneración no alcanzada o exenta | Y24: Compensación gastos teletrabajo exentos
B25: Reintegro de gastos de guardería y/o jardín materno-infantil | P25: Exento | Q25: No | R25: Sí | S25: Sí | T25: Sí | U25: Remuneración no alcanzada o exenta | Y25: Horas extras remuneración exenta
B26: Provisión de herramientas educativas (gravado) | P26: Gravado | Q26: No | R26: Sí | S26: Sí | T26: Sí | U26: Remuneración bruta gravada | Y26: Movilidad y viáticos remuneración exenta
B27: Cursos o seminarios de capacitación para hijos/as y hijastros/as (gravado) | P27: Gravado | Q27: No | R27: Sí | S27: Sí | T27: Sí | U27: Remuneración bruta gravada | Y27: Material didáctico personal docente remuneración exenta
A28: =IF(SUM(C28:N28)>Tablas!$O$34*0.4,1,0) -> 0 | B28: Cursos o seminarios de capacitación para hijos/as y hijastros/as (exento) | P28: Exento | Q28: No | R28: Sí | S28: Sí | T28: Sí | U28: Conceptos de similar naturaleza exentos | Y28: SAC primera cuota - No alcanzado o exento
B29: Licencias varias | P29: Gravado | Q29: No | R29: Sí | S29: Sí | T29: Sí | U29: Remuneración bruta gravada | Y29: SAC segunda cuota - No alcanzado o exento
B30: Benef. Soc. (no rem.) | P30: Gravado | Q30: No | R30: No | S30: No | T30: Sí | U30: Remuneración bruta gravada | Y30: Ajustes períodos anteriores - Remuneración gravada
B31: Indemnización art. 245 | P31: No gravado | Q31: No | R31: No | S31: No | T31: Sí | U31: Remuneración no alcanzada o exenta | Y31: Ajustes períodos anteriores - Remuneración exenta / no alcanzada
B32: Preaviso | P32: Gravado | Q32: No | R32: Sí | S32: No | T32: Sí | U32: Remuneración bruta gravada
B33: SAC s/preaviso | P33: Gravado | Q33: No | R33: No | S33: No | T33: Sí | U33: Remuneración bruta gravada
B34: Vacaciones no gozadas | P34: Gravado | Q34: No | R34: No | S34: No | T34: Sí | U34: Remuneración bruta gravada
B35: SAC s/vacaciones no gozadas | P35: Gravado | Q35: No | R35: No | S35: No | T35: Sí | U35: Remuneración bruta gravada
B36: Integración mes de despido | P36: Gravado | Q36: No | R36: No | S36: No | T36: Sí | U36: Remuneración bruta gravada
B37: SAC s/integración mes de despido | P37: Gravado | Q37: No | R37: No | S37: No | T37: Sí | U37: Remuneración bruta gravada
B38: Gratificación por cese | P38: No gravado | Q38: No | R38: No | S38: No | T38: Sí | U38: Remuneración no alcanzada o exenta
B39: Total | C39: =SUM(C8:C38) -> 0 | D39: 0 | E39: 0 | F39: 0 | G39: 0 | H39: 0 | I39: 0 | J39: 0 | K39: 0 | L39: 0 | M39: 0 | N39: 0
B40: SAC neto estimado (automático) | C40: =Auxiliares!D197 -> 0 | D40: =Auxiliares!E197 -> 0 | E40: =Auxiliares!F197 -> 0 | F40: =Auxiliares!G197 -> 0 | G40: =Auxiliares!H197 -> 0 | H40: =Auxiliares!I197 -> 0 | I40: =Auxiliares!J197 -> 0 | J40: =Auxiliares!K197 -> 0 | K40: =Auxiliares!L197 -> 0 | L40: =Auxiliares!M197 -> 0 | M40: =Auxiliares!N197 -> 0 | N40: =Auxiliares!O197 -> 0
B41: SAC neto estimado (manual)
B42: Horas extras netas (automático) | C42: =+Auxiliares!D227 -> 0 | D42: =+Auxiliares!E227 -> 0 | E42: =+Auxiliares!F227 -> 0 | F42: =+Auxiliares!G227 -> 0 | G42: =+Auxiliares!H227 -> 0 | H42: =+Auxiliares!I227 -> 0 | I42: =+Auxiliares!J227 -> 0 | J42: =+Auxiliares!K227 -> 0 | K42: =+Auxiliares!L227 -> 0 | L42: =+Auxiliares!M227 -> 0 | M42: =+Auxiliares!N227 -> 0 | N42: =+Auxiliares!O227 -> 0
B43: Horas extras netas (para art. 90)
B45: PLURIEMPLEO | P45: Tratamiento en el impuesto | U45: Formulario 1357
B46: Concepto | C46: enero | D46: febrero | E46: marzo | F46: abril | G46: mayo | H46: junio | I46: julio | J46: agosto | K46: septiembre | L46: octubre | M46: noviembre | N46: diciembre | P46: G/E/NG | Q46: Prorrateo | R46: Remunerativo | S46: Base del SAC | T46: Base del promedio
B47: Sueldo bruto | P47: Gravado | Q47: No | R47: Sí | S47: Sí | T47: Sí | U47: Remuneración bruta gravada | Y47: Remuneración bruta gravada
B48: Horas extras (días inhábiles) | P48: Gravado | Q48: No | R48: Sí | S48: Sí | T48: Sí | U48: Horas extras remuneración gravada | Y48: Retribuciones no habituales gravadas
B49: Plus horas extras (días inhábiles) | P49: Exento | Q49: No | R49: Sí | S49: Sí | T49: Sí | U49: Horas extras remuneración exenta | Y49: SAC primera cuota gravado
B50: Horas extras (días hábiles) | P50: Gravado | Q50: Sí | R50: Sí | S50: Sí | T50: Sí | U50: Horas extras remuneración gravada | Y50: SAC segunda cuota gravado
B51: SAC gravado | P51: Gravado | Q51: Sí | R51: Sí | S51: No | T51: No | U51: SAC | Y51: Horas extras remuneración gravada
B52: SAC no gravado o exento | P52: Exento | Q52: No | R52: Sí | S52: No | T52: No | U52: SAC | Y52: Movilidad y viáticos remuneración gravada
B53: Plus Vacacional | P53: Gravado | Q53: Sí | R53: Sí | S53: Sí | T53: Sí | U53: Remuneración bruta gravada | Y53: Material didáctico personal docente remuneración gravada
B54: Plus Feriado | P54: Gravado | Q54: No | R54: Sí | S54: Sí | T54: Sí | U54: Remuneración bruta gravada | Y54: Remuneración no alcanzada o exenta
B55: Movilidad y viáticos (gravado) | P55: Gravado | Q55: No | R55: Sí | S55: No | T55: Sí | U55: Movilidad y viáticos remuneración gravada | Y55: Remuneración exenta ley 27549
B56: Movilidad y viáticos (exento) | P56: Exento | Q56: No | R56: Sí | S56: No | T56: Sí | U56: Movilidad y viáticos remuneración exenta | Y56: Retribuciones no habituales exentas
B57: Compensación de gastos por teletrabajo | P57: Exento | Q57: No | R57: Sí | S57: Sí | T57: Sí | U57: Compensación gastos teletrabajo exentos | Y57: Bonos de productividad gravados
B58: Bono por productividad (gravado) | P58: Gravado | Q58: No | R58: Sí | S58: Sí | T58: Sí | U58: Bonos de productividad gravados | Y58: Bonos de productividad exentos
A59: =IF(SUM(C59:N59)>Tablas!$O$34*0.4,1,IF(AND(Tablas!$N$42>300000,SUM(C59:N59)<>0),1,0)) -> 0 | B59: Bono por productividad (exento) | P59: Exento | Q59: No | R59: Sí | S59: Sí | T59: Sí | U59: Bonos de productividad exentos | Y59: Fallos de caja gravados
B60: Fallo de caja (gravado) | P60: Gravado | Q60: No | R60: Sí | S60: Sí | T60: Sí | U60: Fallos de caja gravados | Y60: Fallos de caja exentos
A61: =IF(SUM(C61:N61)>Tablas!$O$34*0.4,1,IF(AND(Tablas!$N$42>300000,SUM(C61:N61)<>0),1,0)) -> 0 | B61: Fallo de caja (exento) | P61: Exento | Q61: No | R61: Sí | S61: Sí | T61: Sí | U61: Fallos de caja exentos | Y61: Conceptos de similar naturaleza gravados
B62: Suplementos particulares por actividad militar | P62: Exento | Q62: No | R62: Sí | S62: Sí | T62: Sí | U62: Suplementos particulares artículo 57 de la Ley 19.101 exentos | Y62: Conceptos de similar naturaleza exentos
B63: Cursos o seminarios de capacitación | P63: Exento | Q63: No | R63: Sí | S63: Sí | T63: Sí | U63: Remuneración no alcanzada o exenta | Y63: Suplementos particulares artículo 57 de la Ley 19.101 exentos
B64: Reintegro de gastos de guardería y/o jardín materno-infantil | P64: Exento | Q64: No | R64: Sí | S64: Sí | T64: Sí | U64: Remuneración no alcanzada o exenta | Y64: Compensación gastos teletrabajo exentos
B65: Provisión de herramientas educativas (gravado) | P65: Gravado | Q65: No | R65: Sí | S65: Sí | T65: Sí | U65: Remuneración bruta gravada | Y65: Horas extras remuneración exenta
B66: Cursos o seminarios de capacitación para hijos/as y hijastros/as (gravado) | P66: Gravado | Q66: No | R66: Sí | S66: Sí | T66: Sí | U66: Remuneración bruta gravada | Y66: Movilidad y viáticos remuneración exenta
A67: =IF(SUM(C67:N67)>Tablas!$O$34*0.4,1,0) -> 0 | B67: Cursos o seminarios de capacitación para hijos/as y hijastros/as (exento) | P67: Exento | Q67: No | R67: Sí | S67: Sí | T67: Sí | U67: Conceptos de similar naturaleza exentos | Y67: Material didáctico personal docente remuneración exenta
B68: Licencias varias | P68: Gravado | Q68: No | R68: Sí | S68: Sí | T68: Sí | U68: Remuneración bruta gravada | Y68: SAC primera cuota - No alcanzado o exento
B69: Benef. Soc. (no rem.) | P69: Gravado | Q69: No | R69: No | S69: No | T69: Sí | U69: Remuneración bruta gravada | Y69: SAC segunda cuota - No alcanzado o exento
B70: Indemnización art. 245 | P70: No gravado | Q70: No | R70: No | S70: No | T70: Sí | U70: Remuneración no alcanzada o exenta | Y70: Ajustes períodos anteriores - Remuneración gravada
B71: Preaviso | P71: Gravado | Q71: No | R71: Sí | S71: No | T71: Sí | U71: Remuneración bruta gravada | Y71: Ajustes períodos anteriores - Remuneración exenta / no alcanzada
B72: SAC s/preaviso | P72: Gravado | Q72: No | R72: No | S72: No | T72: Sí | U72: Remuneración bruta gravada
B73: Vacaciones no gozadas | P73: Gravado | Q73: No | R73: No | S73: No | T73: Sí | U73: Remuneración bruta gravada
B74: SAC s/vacaciones no gozadas | P74: Gravado | Q74: No | R74: No | S74: No | T74: Sí | U74: Remuneración bruta gravada
B75: Integración mes de despido | P75: Gravado | Q75: No | R75: No | S75: No | T75: Sí | U75: Remuneración bruta gravada
B76: SAC s/integración mes de despido | P76: Gravado | Q76: No | R76: No | S76: No | T76: Sí | U76: Remuneración bruta gravada
B77: Gratificación por cese | P77: No gravado | Q77: No | R77: No | S77: No | T77: Sí | U77: Remuneración no alcanzada o exenta
B78: Total | C78: =SUM(C47:C77) -> 0 | D78: =SUM(D47:D77) -> 0 | E78: 0 | F78: 0 | G78: 0 | H78: 0 | I78: 0 | J78: 0 | K78: 0 | L78: 0 | M78: 0 | N78: 0
B79: SAC neto estimado (automático) | C79: =Auxiliares!D202 -> 0 | D79: =Auxiliares!E202 -> 0 | E79: =Auxiliares!F202 -> 0 | F79: =Auxiliares!G202 -> 0 | G79: =Auxiliares!H202 -> 0 | H79: =IF(Tablas!H44="<150000",0,Auxiliares!I202) -> 0 | I79: =IF(Tablas!I44="<150000",0,Auxiliares!J202) -> 0 | J79: =IF(Tablas!J44="<150000",0,Auxiliares!K202) -> 0 | K79: =IF(Tablas!K44="<150000",0,Auxiliares!L202) -> 0 | L79: =IF(Tablas!L44="<150000",0,Auxiliares!M202) -> 0 | M79: =IF(Tablas!M44="<150000",0,Auxiliares!N202) -> 0 | N79: =IF(Tablas!N44="<150000",0,Auxiliares!O202) -> 0
B80: SAC neto estimado (manual)
B81: Horas extras netas (automático) | C81: =+Auxiliares!D235 -> 0 | D81: =+Auxiliares!E235 -> 0 | E81: =+Auxiliares!F235 -> 0 | F81: =+Auxiliares!G235 -> 0 | G81: =+Auxiliares!H235 -> 0 | H81: =+Auxiliares!I235 -> 0 | I81: =+Auxiliares!J235 -> 0 | J81: =+Auxiliares!K235 -> 0 | K81: =+Auxiliares!L235 -> 0 | L81: =+Auxiliares!M235 -> 0 | M81: =+Auxiliares!N235 -> 0 | N81: =+Auxiliares!O235 -> 0
B82: Horas extras netas (para art. 90)

Sheet Ajustes
B3: ="AJUSTE A LA LIQUIDACIÓN DE JUNIO, PERCIBIDAS EN "&IF(Check!B1="","EN EL MISMO MES","JULIO 2021") -> AJUSTE A LA LIQUIDACIÓN DE JUNIO, PERCIBIDAS EN EN EL MISMO MES
B4: ="Importes percibidos de Enero a "&IF(Check!B1="","MAYO 2021","JUNIO 2021") -> Importes percibidos de Enero a MAYO 2021
B5: A los efectos de la liquidación del mes de junio, complete los importes que, luego de la entrada en vigencia de la RG (AFIP) 5008, son considerados exentos
B8: Compensación de gastos por teletrabajo
B9: Retenciones a la seguridad social, computadas como deducibles | C9: 0
B10: ="Exento a partir de "&IF(Check!$B$1="","JUNIO 2021","JULIO 2021")&", computado como gravado en liquidaciones anterior" -> Exento a partir de JUNIO 2021, computado como gravado en liquidaciones anterior | C10: 0
B12: Bono por productividad
B13: Retenciones a la seguridad social, computadas como deducibles | C13: 0 | D13: =IF(IF(Check!$B$1="",Tablas!$I$42,Tablas!$H$42)>300000,"El importe exento no puede ser mayor a 0, debido a que el promedio de remuneraciones es mayor a $ 300.000",IF(C14>Tablas!$O$34*0.4,"El importe exento no puede ser mayor a "&Tablas!$O$34*0.4&" (40% de la GNI)","")) -> 
B14: ="Exento a partir de "&IF(Check!$B$1="","JUNIO 2021","JULIO 2021")&", computado como gravado en liquidaciones anterior" -> Exento a partir de JUNIO 2021, computado como gravado en liquidaciones anterior | C14: 0
B16: Fallo de caja
B17: Retenciones a la seguridad social, computadas como deducibles | C17: 0 | D17: =IF(IF(Check!$B$1="",Tablas!$I$42,Tablas!$H$42)>300000,"El importe exento no puede ser mayor a 0, debido a que el promedio de remuneraciones es mayor a $ 300.000",IF(C18>Tablas!$O$34*0.4,"El importe exento no puede ser mayor a "&Tablas!$O$34*0.4&" (40% de la GNI)","")) -> 
B18: ="Exento a partir de "&IF(Check!$B$1="","JUNIO 2021","JULIO 2021")&", computado como gravado en liquidaciones anterior" -> Exento a partir de JUNIO 2021, computado como gravado en liquidaciones anterior | C18: 0
B20: Suplementos particulares por actividad militar
B21: Retenciones a la seguridad social, computadas como deducibles | C21: 0
B22: ="Exento a partir de "&IF(Check!$B$1="","JUNIO 2021","JULIO 2021")&", computado como gravado en liquidaciones anterior" -> Exento a partir de JUNIO 2021, computado como gravado en liquidaciones anterior | C22: 0
B24: Cursos o seminarios de capacitación
B25: Retenciones a la seguridad social, computadas como deducibles | C25: 0
B26: ="Exento a partir de "&IF(Check!$B$1="","JUNIO 2021","JULIO 2021")&", computado como gravado en liquidaciones anterior" -> Exento a partir de JUNIO 2021, computado como gravado en liquidaciones anterior | C26: 0
B28: Reintegro de gastos de guardería y/o jardín materno-infantil
B29: Retenciones a la seguridad social, computadas como deducibles | C29: 0
B30: ="Exento a partir de "&IF(Check!$B$1="","JUNIO 2021","JULIO 2021")&", computado como gravado en liquidaciones anterior" -> Exento a partir de JUNIO 2021, computado como gravado en liquidaciones anterior | C30: 0
B32: Provisión de herramientas educativas (gravado)
B33: Retenciones a la seguridad social, computadas como deducibles | C33: 0
B34: ="Exento a partir de "&IF(Check!$B$1="","JUNIO 2021","JULIO 2021")&", computado como gravado en liquidaciones anterior" -> Exento a partir de JUNIO 2021, computado como gravado en liquidaciones anterior | C34: 0
B36: Cursos o seminarios de capacitación para hijos/as y hijastros/as
B37: Retenciones a la seguridad social, computadas como deducibles | C37: 0
B38: ="Exento a partir de "&IF(Check!$B$1="","JUNIO 2021","JULIO 2021")&", computado como gravado en liquidaciones anterior" -> Exento a partir de JUNIO 2021, computado como gravado en liquidaciones anterior | C38: 0 | D38: =IF(C38>Tablas!O34*0.4,"El importe exento no puede ser mayor a "&Tablas!$O$34*0.4&" (40% de la GNI)","") -> 
B40: Total de ajustes
B41: Retenciones a la seguridad social, computadas como deducibles | C41: 0
B42: ="Exento a partir de "&IF(Check!$B$1="","JUNIO 2021","JULIO 2021")&", computado como gravado en liquidaciones anterior" -> Exento a partir de JUNIO 2021, computado como gravado en liquidaciones anterior | C42: 0

Sheet AjustesSep
B3: ="AJUSTE A LA LIQUIDACIÓN DE SEPTIEMBRE, PERCIBIDAS EN "&IF(Check!B1="","EN EL MISMO MES","OCTUBRE 2021") -> AJUSTE A LA LIQUIDACIÓN DE SEPTIEMBRE, PERCIBIDAS EN EN EL MISMO MES
B5: Antes de la modificación de la RG 5076 (devengado a septiembre)
B7: Retenido - devuelto | C7: 0
B9: Después de la modificación de la RG 5076 (devengado a septiembre)
B11: A retener | C11: =+IF(Check!$B$1="",Liquidacion!N156,Liquidacion!O156) -> 0
B13: A devolver | C13: =+C7-C11 -> 0

Sheet DedGrales
B3: DEDUCCIONES GENERALES
C11: Concepto | D11: Enero | E11: Febrero | F11: Marzo | G11: Abril | H11: Mayo | I11: Junio | J11: Julio | K11: Agosto | L11: Septiembre | M11: Octubre | N11: Noviembre | O11: Diciembre
C12: Jubilación
C13: Ley 19032
C14: Obra social
C15: Sindicato
C18: Ded. al SAC Prorrateado
C20: Pluriempleo
C22: Concepto | D22: Enero | E22: Febrero | F22: Marzo | G22: Abril | H22: Mayo | I22: Junio | J22: Julio | K22: Agosto | L22: Septiembre | M22: Octubre | N22: Noviembre | O22: Diciembre
C23: Jubilación
C24: Ley 19032
C25: Obra social
C26: Sindicato
C29: Ded. al SAC Prorrateado
C34: Concepto | D34: Enero | E34: Febrero | F34: Marzo | G34: Abril | H34: Mayo | I34: Junio | J34: Julio | K34: Agosto | L34: Septiembre | M34: Octubre | N34: Noviembre | O34: Diciembre
C35: Importe
C36: Total acumulado | D36: =+D35 -> 0 | E36: =+D36+E35 -> 0 | F36: =+E36+F35 -> 0 | G36: 0 | H36: 0 | I36: 0 | J36: 0 | K36: 0 | L36: 0 | M36: 0 | N36: 0 | O36: 0
C37: Mes en que se informa | D37: 1 | E37: 2 | F37: 3 | G37: 4 | H37: 5 | I37: 6 | J37: 7 | K37: 8 | L37: 9 | M37: 10 | N37: 11 | O37: 12
C42: Concepto | D42: Enero | E42: Febrero | F42: Marzo | G42: Abril | H42: Mayo | I42: Junio | J42: Julio | K42: Agosto | L42: Septiembre | M42: Octubre | N42: Noviembre | O42: Diciembre
C43: Importe
C44: Total acumulado | D44: =+D43 -> 0 | E44: =+D44+E43 -> 0 | F44: =+E44+F43 -> 0 | G44: 0 | H44: 0 | I44: 0 | J44: 0 | K44: 0 | L44: 0 | M44: 0 | N44: 0 | O44: 0
C45: Mes en que se informa | D45: 1 | E45: 2 | F45: 3 | G45: 4 | H45: 5 | I45: 6 | J45: 7 | K45: 8 | L45: 9 | M45: 10 | N45: 11 | O45: 12
C50: Concepto | D50: Enero | E50: Febrero | F50: Marzo | G50: Abril | H50: Mayo | I50: Junio | J50: Julio | K50: Agosto | L50: Septiembre | M50: Octubre | N50: Noviembre | O50: Diciembre
C51: Importe
C52: Total acumulado | D52: =+D51 -> 0 | E52: =+D52+E51 -> 0 | F52: =+E52+F51 -> 0 | G52: 0 | H52: 0 | I52: 0 | J52: 0 | K52: 0 | L52: 0 | M52: 0 | N52: 0 | O52: 0
C53: Mes en que se informa | D53: 1 | E53: 2 | F53: 3 | G53: 4 | H53: 5 | I53: 6 | J53: 7 | K53: 8 | L53: 9 | M53: 10 | N53: 11 | O53: 12
C58: Concepto | D58: Enero | E58: Febrero | F58: Marzo | G58: Abril | H58: Mayo | I58: Junio | J58: Julio | K58: Agosto | L58: Septiembre | M58: Octubre | N58: Noviembre | O58: Diciembre
C59: Importe
C60: Total acumulado | D60: =+D59 -> 0 | E60: =+D60+E59 -> 0 | F60: =+E60+F59 -> 0 | G60: 0 | H60: 0 | I60: 0 | J60: 0 | K60: 0 | L60: 0 | M60: 0 | N60: 0 | O60: 0
C61: Mes en que se informa | D61: 1 | E61: 2 | F61: 3 | G61: 4 | H61: 5 | I61: 6 | J61: 7 | K61: 8 | L61: 9 | M61: 10 | N61: 11 | O61: 12
C67: Concepto | D67: Enero | E67: Febrero | F67: Marzo | G67: Abril | H67: Mayo | I67: Junio | J67: Julio | K67: Agosto | L67: Septiembre | M67: Octubre | N67: Noviembre | O67: Diciembre
C68: Importe
C69: Total acumulado | D69: =+D68 -> 0 | E69: =+D69+E68 -> 0 | F69: =+E69+F68 -> 0 | G69: 0 | H69: 0 | I69: 0 | J69: 0 | K69: 0 | L69: 0 | M69: 0 | N69: 0 | O69: 0
C70: Mes en que se informa | D70: 1 | E70: 2 | F70: 3 | G70: 4 | H70: 5 | I70: 6 | J70: 7 | K70: 8 | L70: 9 | M70: 10 | N70: 11 | O70: 12
C76: Concepto | D76: Enero | E76: Febrero | F76: Marzo | G76: Abril | H76: Mayo | I76: Junio | J76: Julio | K76: Agosto | L76: Septiembre | M76: Octubre | N76: Noviembre | O76: Diciembre
C77: Importe
C78: Total acumulado | D78: =+D77 -> 0 | E78: =+E77+DedGrales!$D78 -> 0 | F78: =+DedGrales!$E78+F77 -> 0 | G78: =+DedGrales!$F78+G77 -> 0 | H78: =+DedGrales!$G78+H77 -> 0 | I78: =+DedGrales!$H78+I77 -> 0 | J78: =+DedGrales!$I78+J77 -> 0 | K78: =+DedGrales!$J78+K77 -> 0 | L78: =+DedGrales!$K78+L77 -> 0 | M78: =+DedGrales!$L78+M77 -> 0 | N78: =+DedGrales!$M78+N77 -> 0 | O78: =+DedGrales!$N78+O77 -> 0
C79: Mes en que se informa | D79: 1 | E79: 2 | F79: 3 | G79: 4 | H79: 5 | I79: 6 | J79: 7 | K79: 8 | L79: 9 | M79: 10 | N79: 11 | O79: 12
C85: Cantidad de sepelios | D85: 1 | E85: 1
C87: Concepto | D87: Enero | E87: Febrero | F87: Marzo | G87: Abril | H87: Mayo | I87: Junio | J87: Julio | K87: Agosto | L87: Septiembre | M87: Octubre | N87: Noviembre | O87: Diciembre
C88: Importe
C89: Total acumulado | D89: =+D88 -> 0 | E89: =+D89+E88 -> 0 | F89: =+E89+F88 -> 0 | G89: =+F89+G88 -> 0 | H89: 0 | I89: 0 | J89: 0 | K89: 0 | L89: 0 | M89: 0 | N89: 0 | O89: 0
C90: Mes en que se informa | D90: 1 | E90: 2 | F90: 3 | G90: 4 | H90: 5 | I90: 6 | J90: 7 | K90: 8 | L90: 9 | M90: 10 | N90: 11 | O90: 12
C95: Concepto | D95: Enero | E95: Febrero | F95: Marzo | G95: Abril | H95: Mayo | I95: Junio | J95: Julio | K95: Agosto | L95: Septiembre | M95: Octubre | N95: Noviembre | O95: Diciembre
C96: Importe
C97: Total acumulado | D97: =+D96 -> 0 | E97: =+D97+E96 -> 0 | F97: 0 | G97: 0 | H97: 0 | I97: 0 | J97: 0 | K97: 0 | L97: 0 | M97: 0 | N97: 0 | O97: 0
C98: Mes en que se informa | D98: 1 | E98: 2 | F98: 3 | G98: 4 | H98: 5 | I98: 6 | J98: 7 | K98: 8 | L98: 9 | M98: 10 | N98: 11 | O98: 12
C104: Concepto | D104: Enero | E104: Febrero | F104: Marzo | G104: Abril | H104: Mayo | I104: Junio | J104: Julio | K104: Agosto | L104: Septiembre | M104: Octubre | N104: Noviembre | O104: Diciembre
C105: Importe
C106: Total acumulado | D106: =+D105 -> 0 | E106: =+D106+E105 -> 0 | F106: =+E106+F105 -> 0 | G106: 0 | H106: 0 | I106: 0 | J106: 0 | K106: 0 | L106: 0 | M106: 0 | N106: 0 | O106: 0
C107: Mes en que se informa | D107: 1 | E107: 2 | F107: 3 | G107: 4 | H107: 5 | I107: 6 | J107: 7 | K107: 8 | L107: 9 | M107: 10 | N107: 11 | O107: 12
C113: Concepto | D113: Enero | E113: Febrero | F113: Marzo | G113: Abril | H113: Mayo | I113: Junio | J113: Julio | K113: Agosto | L113: Septiembre | M113: Octubre | N113: Noviembre | O113: Diciembre
C114: Importe
C115: Total acumulado | D115: =+D114 -> 0 | E115: =+D115+E114 -> 0 | F115: 0 | G115: 0 | H115: 0 | I115: 0 | J115: 0 | K115: 0 | L115: 0 | M115: 0 | N115: 0 | O115: 0
C116: Mes en que se informa | D116: 1 | E116: 2 | F116: 3 | G116: 4 | H116: 5 | I116: 6 | J116: 7 | K116: 8 | L116: 9 | M116: 10 | N116: 11 | O116: 12
C122: Concepto | D122: Enero | E122: Febrero | F122: Marzo | G122: Abril | H122: Mayo | I122: Junio | J122: Julio | K122: Agosto | L122: Septiembre | M122: Octubre | N122: Noviembre | O122: Diciembre
C123: Importe
C124: Total acumulado | D124: =+D123 -> 0 | E124: =+D124+E123 -> 0 | F124: =+E124+F123 -> 0 | G124: 0 | H124: 0 | I124: 0 | J124: 0 | K124: 0 | L124: 0 | M124: 0 | N124: 0 | O124: 0
C125: Mes en que se informa | D125: 1 | E125: 2 | F125: 3 | G125: 4 | H125: 5 | I125: 6 | J125: 7 | K125: 8 | L125: 9 | M125: 10 | N125: 11 | O125: 12
C130: Concepto | D130: Enero | E130: Febrero | F130: Marzo | G130: Abril | H130: Mayo | I130: Junio | J130: Julio | K130: Agosto | L130: Septiembre | M130: Octubre | N130: Noviembre | O130: Diciembre
C131: Importe
C132: Total acumulado | D132: =+D131 -> 0 | E132: =+D132+E131 -> 0 | F132: 0 | G132: 0 | H132: 0 | I132: 0 | J132: 0 | K132: 0 | L132: 0 | M132: 0 | N132: 0 | O132: 0
C133: Mes en que se informa | D133: 1 | E133: 2 | F133: 3 | G133: 4 | H133: 5 | I133: 6 | J133: 7 | K133: 8 | L133: 9 | M133: 10 | N133: 11 | O133: 12
C138: Concepto | D138: Enero | E138: Febrero | F138: Marzo | G138: Abril | H138: Mayo | I138: Junio | J138: Julio | K138: Agosto | L138: Septiembre | M138: Octubre | N138: Noviembre | O138: Diciembre
C139: Importe
C140: Total acumulado | D140: =+D139 -> 0 | E140: =+D140+E139 -> 0 | F140: =+E140+F139 -> 0 | G140: =+F140+G139 -> 0 | H140: =+G140+H139 -> 0 | I140: =+H140+I139 -> 0 | J140: =+I140+J139 -> 0 | K140: =+J140+K139 -> 0 | L140: =+K140+L139 -> 0 | M140: =+L140+M139 -> 0 | N140: =+M140+N139 -> 0 | O140: =+N140+O139 -> 0
C141: Mes en que se informa | D141: 1 | E141: 2 | F141: 3 | G141: 4 | H141: 5 | I141: 6 | J141: 7 | K141: 8 | L141: 9 | M141: 10 | N141: 11 | O141: 12
C147: Concepto | D147: Enero | E147: Febrero | F147: Marzo | G147: Abril | H147: Mayo | I147: Junio | J147: Julio | K147: Agosto | L147: Septiembre | M147: Octubre | N147: Noviembre | O147: Diciembre
C148: Importe
C149: Total acumulado | D149: =+D148 -> 0 | E149: =+D149+E148 -> 0 | F149: =+E149+F148 -> 0 | G149: =+F149+G148 -> 0 | H149: =+G149+H148 -> 0 | I149: =+H149+I148 -> 0 | J149: =+I149+J148 -> 0 | K149: =+J149+K148 -> 0 | L149: =+K149+L148 -> 0 | M149: =+L149+M148 -> 0 | N149: =+M149+N148 -> 0 | O149: =+N149+O148 -> 0
C150: Mes en que se informa | D150: 1 | E150: 2 | F150: 3 | G150: 4 | H150: 5 | I150: 6 | J150: 7 | K150: 8 | L150: 9 | M150: 10 | N150: 11 | O150: 12
C157: Concepto | D157: Enero | E157: Febrero | F157: Marzo | G157: Abril | H157: Mayo | I157: Junio | J157: Julio | K157: Agosto | L157: Septiembre | M157: Octubre | N157: Noviembre | O157: Diciembre
C158: Importe
C159: Total acumulado | D159: =+D158 -> 0 | E159: =+D159+E158 -> 0 | F159: =+E159+F158 -> 0 | G159: =+F159+G158 -> 0 | H159: =+G159+H158 -> 0 | I159: =+H159+I158 -> 0 | J159: =+I159+J158 -> 0 | K159: =+J159+K158 -> 0 | L159: =+K159+L158 -> 0 | M159: =+L159+M158 -> 0 | N159: =+M159+N158 -> 0 | O159: =+N159+O158 -> 0
C160: Mes en que se informa | D160: 1 | E160: 2 | F160: 3 | G160: 4 | H160: 5 | I160: 6 | J160: 7 | K160: 8 | L160: 9 | M160: 10 | N160: 11 | O160: 12
C167: Concepto | D167: Enero | E167: Febrero | F167: Marzo | G167: Abril | H167: Mayo | I167: Junio | J167: Julio | K167: Agosto | L167: Septiembre | M167: Octubre | N167: Noviembre | O167: Diciembre
C168: Importe
C169: Total acumulado | D169: =+D168 -> 0 | E169: =+D169+E168 -> 0 | F169: =+E169+F168 -> 0 | G169: =+F169+G168 -> 0 | H169: =+G169+H168 -> 0 | I169: =+H169+I168 -> 0 | J169: =+I169+J168 -> 0 | K169: =+J169+K168 -> 0 | L169: =+K169+L168 -> 0 | M169: =+L169+M168 -> 0 | N169: =+M169+N168 -> 0 | O169: =+N169+O168 -> 0
C170: Mes en que se informa | D170: 1 | E170: 2 | F170: 3 | G170: 4 | H170: 5 | I170: 6 | J170: 7 | K170: 8 | L170: 9 | M170: 10 | N170: 11 | O170: 12
C176: Concepto | D176: Enero | E176: Febrero | F176: Marzo | G176: Abril | H176: Mayo | I176: Junio | J176: Julio | K176: Agosto | L176: Septiembre | M176: Octubre | N176: Noviembre | O176: Diciembre
C177: Importe
C178: Total acumulado | D178: =+D177 -> 0 | E178: =+D178+E177 -> 0 | F178: =+E178+F177 -> 0 | G178: =+F178+G177 -> 0 | H178: =+G178+H177 -> 0 | I178: =+H178+I177 -> 0 | J178: =+I178+J177 -> 0 | K178: =+J178+K177 -> 0 | L178: =+K178+L177 -> 0 | M178: =+L178+M177 -> 0 | N178: =+M178+N177 -> 0 | O178: =+N178+O177 -> 0
C179: Mes en que se informa | D179: 1 | E179: 2 | F179: 3 | G179: 4 | H179: 5 | I179: 6 | J179: 7 | K179: 8 | L179: 9 | M179: 10 | N179: 11 | O179: 12
C185: Concepto | D185: Enero | E185: Febrero | F185: Marzo | G185: Abril | H185: Mayo | I185: Junio | J185: Julio | K185: Agosto | L185: Septiembre | M185: Octubre | N185: Noviembre | O185: Diciembre
C186: Importe
C187: Total acumulado | D187: =+D186 -> 0 | E187: =+D187+E186 -> 0 | F187: =+E187+F186 -> 0 | G187: =+F187+G186 -> 0 | H187: =+G187+H186 -> 0 | I187: =+H187+I186 -> 0 | J187: =+I187+J186 -> 0 | K187: =+J187+K186 -> 0 | L187: =+K187+L186 -> 0 | M187: =+L187+M186 -> 0 | N187: =+M187+N186 -> 0 | O187: =+N187+O186 -> 0
C188: Mes en que se informa | D188: 1 | E188: 2 | F188: 3 | G188: 4 | H188: 5 | I188: 6 | J188: 7 | K188: 8 | L188: 9 | M188: 10 | N188: 11 | O188: 12
C193: Concepto | D193: Enero | E193: Febrero | F193: Marzo | G193: Abril | H193: Mayo | I193: Junio | J193: Julio | K193: Agosto | L193: Septiembre | M193: Octubre | N193: Noviembre | O193: Diciembre
C194: Importe
C195: Total acumulado | D195: =+D194 -> 0 | E195: =+D195+E194 -> 0 | F195: =+E195+F194 -> 0 | G195: =+F195+G194 -> 0 | H195: =+G195+H194 -> 0 | I195: =+H195+I194 -> 0 | J195: =+I195+J194 -> 0 | K195: =+J195+K194 -> 0 | L195: =+K195+L194 -> 0 | M195: =+L195+M194 -> 0 | N195: =+M195+N194 -> 0 | O195: =+N195+O194 -> 0
C196: Mes en que se informa | D196: 1 | E196: 2 | F196: 3 | G196: 4 | H196: 5 | I196: 6 | J196: 7 | K196: 8 | L196: 9 | M196: 10 | N196: 11 | O196: 12

Sheet Check
A1: Último día del mes
A2: Seguro de vida
A3: Gastos de sepelio
A4: Crédito hipotecario
A5: PCP
A6: Cuota médico asistencial
A7: Donaciones
A8: Retenciones automáticas | B8: Ok
A9: Aportes a fondos de jubilaciones
A10: Alquiler de casa habitación
A11: Viáticos
A12: Descuentos obligatorios
A13: SGR
A14: Cajas complementarias de previsión
A15: Honorarios por asistencia sanitaria, médica
A16: Viajantes
A17: 35% de límite anual
A18: Planes de seguro de retiro privado
A19: Gastos de indumentaria
A20: Viáticos (larga distancia)
A21: Seguros mixtos
A22: Fondo común de inversión
A23: Criterio SAC | B23: 0

Sheet DedPersonales
B3: DEDUCCIONES PERSONALES
B5: Cónyuge/Unión convivencial/Conviviente
B6: ="Sean residentes en el país, estén a cargo del contribuyente y no tengan en el año ingresos netos superiores a pesos "&Tablas!O34&", cualquiera sea su origen y estén o no sujetas al impuesto" -> Sean residentes en el país, estén a cargo del contribuyente y no tengan en el año ingresos netos superiores a pesos 167678,4, cualquiera sea su origen y estén o no sujetas al impuesto
C7: Nombre y apellido | D7: CUIL | E7: Mes de alta | F7: Mes de baja | G7: Mes en que se informa
K8: =IF(AND(E8="",F8="",G8=""),"",IF(AND(OR(E8<>"",F8<>""),G8=""),"Recuerde completar el campo 'Mes en que se informa' para computar las deducciones","")) -> 
B10: Hijos
B11: ="Hijo, hija, hijastro o hijastra menor de dieciocho (18) años o incapacitado para el trabajo; residentes en el país, estén a cargo del contribuyente y no tengan en el año ingresos netos superiores a "&Tablas!O34&", cualquiera sea su origen y estén o no sujetas al impuesto" -> Hijo, hija, hijastro o hijastra menor de dieciocho (18) años o incapacitado para el trabajo; residentes en el país, estén a cargo del contribuyente y no tengan en el año ingresos netos superiores a 167678,4, cualquiera sea su origen y estén o no sujetas al impuesto
J12: Cambio de imputación
C13: Nombre y apellido | D13: CUIL | E13: Causal | F13: Mes de alta | G13: Mes de baja | H13: Mes en que se informa | I13: Porcentaje de imputación | J13: Porcentaje de imputación (cambio) | K13: Mes de cambio | AA13: 1 | AB13: 2 | AC13: 3 | AD13: 4 | AE13: =+AD13+1 -> 5 | AF13: =+AE13+1 -> 6 | AG13: 7 | AH13: 8 | AI13: 9 | AJ13: 10 | AK13: 11 | AL13: =+AK13+1 -> 12
A14: =IF(AND(Tabla1[[#This Row],[Causal]]="Incapacitado para el trabajo",Tabla1[[#This Row],[Mes en que se informa]]<6),1,0) -> 0 | I14: 1 | L14: =IF(U14=1,"",IF(AND(S14=0,T14=1),"Ingrese porcentaje de imputación y mes de cambio, de corresponder el cambio de la RG 4286",IF(AND(S14=0,T14=0),"",IF(S14=1,"Ingrese Mes de alta y mes que se informa")))) ->  | S14: =IF(AND(Tabla1[[#This Row],[Mes de alta]]<>"",Tabla1[[#This Row],[Mes en que se informa]]<>""),0,1) -> 1 | T14: =IF(AND(Tabla1[[#This Row],[Porcentaje de imputación (cambio)]]<>"",Tabla1[[#This Row],[Mes de cambio]]<>""),0,1) -> 1 | U14: =IF(OR(Tabla1[[#This Row],[Mes de alta]]<>"",Tabla1[[#This Row],[Mes de baja]]<>"",Tabla1[[#This Row],[Mes en que se informa]]<>"",Tabla1[[#This Row],[Porcentaje de imputación (cambio)]]<>"",Tabla1[[#This Row],[Mes de cambio]]<>""),0,1) -> 1
A15: =IF(AND(Tabla1[[#This Row],[Causal]]="Incapacitado para el trabajo",Tabla1[[#This Row],[Mes en que se informa]]<6),1,0) -> 0 | I15: 1 | L15: =IF(U15=1,"",IF(AND(S15=0,T15=1),"Ingrese porcentaje de imputación y mes de cambio, de corresponder",IF(AND(S15=0,T15=0),"",IF(S15=1,"Ingrese Mes de alta y mes que se informa")))) ->  | S15: =IF(OR(Tabla1[[#This Row],[Mes de alta]]<>"",Tabla1[[#This Row],[Mes en que se informa]]<>""),0,1) -> 1 | T15: =IF(AND(Tabla1[[#This Row],[Porcentaje de imputación (cambio)]]<>"",Tabla1[[#This Row],[Mes de cambio]]<>""),0,1) -> 1 | U15: =IF(OR(Tabla1[[#This Row],[Mes de alta]]<>"",Tabla1[[#This Row],[Mes de baja]]<>"",Tabla1[[#This Row],[Mes en que se informa]]<>"",Tabla1[[#This Row],[Porcentaje de imputación (cambio)]]<>"",Tabla1[[#This Row],[Mes de cambio]]<>""),0,1) -> 1
A16: =IF(AND(Tabla1[[#This Row],[Causal]]="Incapacitado para el trabajo",Tabla1[[#This Row],[Mes en que se informa]]<6),1,0) -> 0 | I16: 1 | S16: =IF(OR(Tabla1[[#This Row],[Mes de alta]]<>"",Tabla1[[#This Row],[Mes en que se informa]]<>""),0,1) -> 1 | T16: =IF(AND(Tabla1[[#This Row],[Porcentaje de imputación (cambio)]]<>"",Tabla1[[#This Row],[Mes de cambio]]<>""),0,1) -> 1 | U16: =IF(OR(Tabla1[[#This Row],[Mes de alta]]<>"",Tabla1[[#This Row],[Mes de baja]]<>"",Tabla1[[#This Row],[Mes en que se informa]]<>"",Tabla1[[#This Row],[Porcentaje de imputación (cambio)]]<>"",Tabla1[[#This Row],[Mes de cambio]]<>""),0,1) -> 1
A17: =IF(AND(Tabla1[[#This Row],[Causal]]="Incapacitado para el trabajo",Tabla1[[#This Row],[Mes en que se informa]]<6),1,0) -> 0 | I17: 1 | S17: =IF(OR(Tabla1[[#This Row],[Mes de alta]]<>"",Tabla1[[#This Row],[Mes en que se informa]]<>""),0,1) -> 1 | T17: =IF(AND(Tabla1[[#This Row],[Porcentaje de imputación (cambio)]]<>"",Tabla1[[#This Row],[Mes de cambio]]<>""),0,1) -> 1 | U17: =IF(OR(Tabla1[[#This Row],[Mes de alta]]<>"",Tabla1[[#This Row],[Mes de baja]]<>"",Tabla1[[#This Row],[Mes en que se informa]]<>"",Tabla1[[#This Row],[Porcentaje de imputación (cambio)]]<>"",Tabla1[[#This Row],[Mes de cambio]]<>""),0,1) -> 1
A18: =IF(AND(Tabla1[[#This Row],[Causal]]="Incapacitado para el trabajo",Tabla1[[#This Row],[Mes en que se informa]]<6),1,0) -> 0 | I18: 1 | S18: =IF(OR(Tabla1[[#This Row],[Mes de alta]]<>"",Tabla1[[#This Row],[Mes en que se informa]]<>""),0,1) -> 1 | T18: =IF(AND(Tabla1[[#This Row],[Porcentaje de imputación (cambio)]]<>"",Tabla1[[#This Row],[Mes de cambio]]<>""),0,1) -> 1 | U18: =IF(OR(Tabla1[[#This Row],[Mes de alta]]<>"",Tabla1[[#This Row],[Mes de baja]]<>"",Tabla1[[#This Row],[Mes en que se informa]]<>"",Tabla1[[#This Row],[Porcentaje de imputación (cambio)]]<>"",Tabla1[[#This Row],[Mes de cambio]]<>""),0,1) -> 1
A19: =IF(AND(Tabla1[[#This Row],[Causal]]="Incapacitado para el trabajo",Tabla1[[#This Row],[Mes en que se informa]]<6),1,0) -> 0 | I19: 1 | S19: =IF(OR(Tabla1[[#This Row],[Mes de alta]]<>"",Tabla1[[#This Row],[Mes en que se informa]]<>""),0,1) -> 1 | T19: =IF(AND(Tabla1[[#This Row],[Porcentaje de imputación (cambio)]]<>"",Tabla1[[#This Row],[Mes de cambio]]<>""),0,1) -> 1 | U19: =IF(OR(Tabla1[[#This Row],[Mes de alta]]<>"",Tabla1[[#This Row],[Mes de baja]]<>"",Tabla1[[#This Row],[Mes en que se informa]]<>"",Tabla1[[#This Row],[Porcentaje de imputación (cambio)]]<>"",Tabla1[[#This Row],[Mes de cambio]]<>""),0,1) -> 1
A20: =IF(AND(Tabla1[[#This Row],[Causal]]="Incapacitado para el trabajo",Tabla1[[#This Row],[Mes en que se informa]]<6),1,0) -> 0 | I20: 1 | S20: =IF(OR(Tabla1[[#This Row],[Mes de alta]]<>"",Tabla1[[#This Row],[Mes en que se informa]]<>""),0,1) -> 1 | T20: =IF(AND(Tabla1[[#This Row],[Porcentaje de imputación (cambio)]]<>"",Tabla1[[#This Row],[Mes de cambio]]<>""),0,1) -> 1 | U20: =IF(OR(Tabla1[[#This Row],[Mes de alta]]<>"",Tabla1[[#This Row],[Mes de baja]]<>"",Tabla1[[#This Row],[Mes en que se informa]]<>"",Tabla1[[#This Row],[Porcentaje de imputación (cambio)]]<>"",Tabla1[[#This Row],[Mes de cambio]]<>""),0,1) -> 1
A21: =IF(AND(Tabla1[[#This Row],[Causal]]="Incapacitado para el trabajo",Tabla1[[#This Row],[Mes en que se informa]]<6),1,0) -> 0 | I21: 1 | S21: =IF(OR(Tabla1[[#This Row],[Mes de alta]]<>"",Tabla1[[#This Row],[Mes en que se informa]]<>""),0,1) -> 1 | T21: =IF(AND(Tabla1[[#This Row],[Porcentaje de imputación (cambio)]]<>"",Tabla1[[#This Row],[Mes de cambio]]<>""),0,1) -> 1 | U21: =IF(OR(Tabla1[[#This Row],[Mes de alta]]<>"",Tabla1[[#This Row],[Mes de baja]]<>"",Tabla1[[#This Row],[Mes en que se informa]]<>"",Tabla1[[#This Row],[Porcentaje de imputación (cambio)]]<>"",Tabla1[[#This Row],[Mes de cambio]]<>""),0,1) -> 1
A22: =IF(AND(Tabla1[[#This Row],[Causal]]="Incapacitado para el trabajo",Tabla1[[#This Row],[Mes en que se informa]]<6),1,0) -> 0 | I22: 1 | S22: =IF(OR(Tabla1[[#This Row],[Mes de alta]]<>"",Tabla1[[#This Row],[Mes en que se informa]]<>""),0,1) -> 1 | T22: =IF(AND(Tabla1[[#This Row],[Porcentaje de imputación (cambio)]]<>"",Tabla1[[#This Row],[Mes de cambio]]<>""),0,1) -> 1 | U22: =IF(OR(Tabla1[[#This Row],[Mes de alta]]<>"",Tabla1[[#This Row],[Mes de baja]]<>"",Tabla1[[#This Row],[Mes en que se informa]]<>"",Tabla1[[#This Row],[Porcentaje de imputación (cambio)]]<>"",Tabla1[[#This Row],[Mes de cambio]]<>""),0,1) -> 1
A23: =IF(AND(Tabla1[[#This Row],[Causal]]="Incapacitado para el trabajo",Tabla1[[#This Row],[Mes en que se informa]]<6),1,0) -> 0 | I23: 1 | S23: =IF(OR(Tabla1[[#This Row],[Mes de alta]]<>"",Tabla1[[#This Row],[Mes en que se informa]]<>""),0,1) -> 1 | T23: =IF(AND(Tabla1[[#This Row],[Porcentaje de imputación (cambio)]]<>"",Tabla1[[#This Row],[Mes de cambio]]<>""),0,1) -> 1 | U23: =IF(OR(Tabla1[[#This Row],[Mes de alta]]<>"",Tabla1[[#This Row],[Mes de baja]]<>"",Tabla1[[#This Row],[Mes en que se informa]]<>"",Tabla1[[#This Row],[Porcentaje de imputación (cambio)]]<>"",Tabla1[[#This Row],[Mes de cambio]]<>""),0,1) -> 1
A24: =IF(AND(Tabla1[[#This Row],[Causal]]="Incapacitado para el trabajo",Tabla1[[#This Row],[Mes en que se informa]]<6),1,0) -> 0 | I24: 1 | S24: =IF(OR(Tabla1[[#This Row],[Mes de alta]]<>"",Tabla1[[#This Row],[Mes en que se informa]]<>""),0,1) -> 1 | T24: =IF(AND(Tabla1[[#This Row],[Porcentaje de imputación (cambio)]]<>"",Tabla1[[#This Row],[Mes de cambio]]<>""),0,1) -> 1 | U24: =IF(OR(Tabla1[[#This Row],[Mes de alta]]<>"",Tabla1[[#This Row],[Mes de baja]]<>"",Tabla1[[#This Row],[Mes en que se informa]]<>"",Tabla1[[#This Row],[Porcentaje de imputación (cambio)]]<>"",Tabla1[[#This Row],[Mes de cambio]]<>""),0,1) -> 1
A25: =IF(AND(Tabla1[[#This Row],[Causal]]="Incapacitado para el trabajo",Tabla1[[#This Row],[Mes en que se informa]]<6),1,0) -> 0 | I25: 1 | S25: =IF(OR(Tabla1[[#This Row],[Mes de alta]]<>"",Tabla1[[#This Row],[Mes en que se informa]]<>""),0,1) -> 1 | T25: =IF(AND(Tabla1[[#This Row],[Porcentaje de imputación (cambio)]]<>"",Tabla1[[#This Row],[Mes de cambio]]<>""),0,1) -> 1 | U25: =IF(OR(Tabla1[[#This Row],[Mes de alta]]<>"",Tabla1[[#This Row],[Mes de baja]]<>"",Tabla1[[#This Row],[Mes en que se informa]]<>"",Tabla1[[#This Row],[Porcentaje de imputación (cambio)]]<>"",Tabla1[[#This Row],[Mes de cambio]]<>""),0,1) -> 1
A26: =IF(AND(Tabla1[[#This Row],[Causal]]="Incapacitado para el trabajo",Tabla1[[#This Row],[Mes en que se informa]]<6),1,0) -> 0 | I26: 1 | S26: =IF(OR(Tabla1[[#This Row],[Mes de alta]]<>"",Tabla1[[#This Row],[Mes en que se informa]]<>""),0,1) -> 1 | T26: =IF(AND(Tabla1[[#This Row],[Porcentaje de imputación (cambio)]]<>"",Tabla1[[#This Row],[Mes de cambio]]<>""),0,1) -> 1 | U26: =IF(OR(Tabla1[[#This Row],[Mes de alta]]<>"",Tabla1[[#This Row],[Mes de baja]]<>"",Tabla1[[#This Row],[Mes en que se informa]]<>"",Tabla1[[#This Row],[Porcentaje de imputación (cambio)]]<>"",Tabla1[[#This Row],[Mes de cambio]]<>""),0,1) -> 1
A27: =IF(AND(Tabla1[[#This Row],[Causal]]="Incapacitado para el trabajo",Tabla1[[#This Row],[Mes en que se informa]]<6),1,0) -> 0 | I27: 1 | S27: =IF(OR(Tabla1[[#This Row],[Mes de alta]]<>"",Tabla1[[#This Row],[Mes en que se informa]]<>""),0,1) -> 1 | T27: =IF(AND(Tabla1[[#This Row],[Porcentaje de imputación (cambio)]]<>"",Tabla1[[#This Row],[Mes de cambio]]<>""),0,1) -> 1 | U27: =IF(OR(Tabla1[[#This Row],[Mes de alta]]<>"",Tabla1[[#This Row],[Mes de baja]]<>"",Tabla1[[#This Row],[Mes en que se informa]]<>"",Tabla1[[#This Row],[Porcentaje de imputación (cambio)]]<>"",Tabla1[[#This Row],[Mes de cambio]]<>""),0,1) -> 1
A28: =IF(AND(Tabla1[[#This Row],[Causal]]="Incapacitado para el trabajo",Tabla1[[#This Row],[Mes en que se informa]]<6),1,0) -> 0 | I28: 1 | S28: =IF(OR(Tabla1[[#This Row],[Mes de alta]]<>"",Tabla1[[#This Row],[Mes en que se informa]]<>""),0,1) -> 1 | T28: =IF(AND(Tabla1[[#This Row],[Porcentaje de imputación (cambio)]]<>"",Tabla1[[#This Row],[Mes de cambio]]<>""),0,1) -> 1 | U28: =IF(OR(Tabla1[[#This Row],[Mes de alta]]<>"",Tabla1[[#This Row],[Mes de baja]]<>"",Tabla1[[#This Row],[Mes en que se informa]]<>"",Tabla1[[#This Row],[Porcentaje de imputación (cambio)]]<>"",Tabla1[[#This Row],[Mes de cambio]]<>""),0,1) -> 1
A29: =IF(AND(Tabla1[[#This Row],[Causal]]="Incapacitado para el trabajo",Tabla1[[#This Row],[Mes en que se informa]]<6),1,0) -> 0 | I29: 1 | S29: =IF(OR(Tabla1[[#This Row],[Mes de alta]]<>"",Tabla1[[#This Row],[Mes en que se informa]]<>""),0,1) -> 1 | T29: =IF(AND(Tabla1[[#This Row],[Porcentaje de imputación (cambio)]]<>"",Tabla1[[#This Row],[Mes de cambio]]<>""),0,1) -> 1 | U29: =IF(OR(Tabla1[[#This Row],[Mes de alta]]<>"",Tabla1[[#This Row],[Mes de baja]]<>"",Tabla1[[#This Row],[Mes en que se informa]]<>"",Tabla1[[#This Row],[Porcentaje de imputación (cambio)]]<>"",Tabla1[[#This Row],[Mes de cambio]]<>""),0,1) -> 1

Sheet PagosACuenta
B4: PERCEPCIONES EFECTUADAS POR LA DIRECCIÓN GENERAL DE ADUANAS, IMPUESTO SOBRE LOS CRÉDITOS Y DÉBITOS BANCARIOS Y PERCEPCIONES DE LA RG 3819
B6: Concepto | C6: enero | D6: febrero | E6: marzo | F6: abril | G6: mayo | H6: junio | I6: julio | J6: agosto | K6: septiembre | L6: octubre | M6: noviembre | N6: diciembre | O6: anual
B7: Importe
B8: Acumulado | C8: =+C7 -> 0 | D8: =+D7+C8 -> 0 | E8: =+E7+D8 -> 0 | F8: 0 | G8: 0 | H8: 0 | I8: 0 | J8: 0 | K8: 0 | L8: 0 | M8: 0 | N8: 0 | O8: 0
B10: IMPUESTO SOBRE LOS CRÉDITOS Y DÉBITOS BANCARIOS
B12: Concepto | C12: enero | D12: febrero | E12: marzo | F12: abril | G12: mayo | H12: junio | I12: julio | J12: agosto | K12: septiembre | L12: octubre | M12: noviembre | N12: diciembre | O12: anual
B13: Importe
B14: Acumulado | C14: =+C13 -> 0 | D14: =+D13+C14 -> 0 | E14: =+E13+D14 -> 0 | F14: =+F13+E14 -> 0 | G14: =+G13+F14 -> 0 | H14: =+H13+G14 -> 0 | I14: =+I13+H14 -> 0 | J14: =+J13+I14 -> 0 | K14: =+K13+J14 -> 0 | L14: =+L13+K14 -> 0 | M14: =+M13+L14 -> 0 | N14: =+N13+M14 -> 0 | O14: =+O13+N14 -> 0
B16: PAGOS A CUENTA - PERCEPCIONES / RETENCIONES ADUANERAS
B18: Concepto | C18: enero | D18: febrero | E18: marzo | F18: abril | G18: mayo | H18: junio | I18: julio | J18: agosto | K18: septiembre | L18: octubre | M18: noviembre | N18: diciembre | O18: anual
B19: Importe
B20: Acumulado | C20: =+C19 -> 0 | D20: =+D19+C20 -> 0 | E20: =+E19+D20 -> 0 | F20: =+F19+E20 -> 0 | G20: =+G19+F20 -> 0 | H20: =+H19+G20 -> 0 | I20: =+I19+H20 -> 0 | J20: =+J19+I20 -> 0 | K20: =+K19+J20 -> 0 | L20: =+L19+K20 -> 0 | M20: =+M19+L20 -> 0 | N20: =+N19+M20 -> 0 | O20: =+O19+N20 -> 0
B22: PAGOS A CUENTA - RG (AFIP) 3819/2015 - CANCELACIONES EN EFECTIVO
B24: Concepto | C24: enero | D24: febrero | E24: marzo | F24: abril | G24: mayo | H24: junio | I24: julio | J24: agosto | K24: septiembre | L24: octubre | M24: noviembre | N24: diciembre | O24: anual
B25: Importe
B26: Acumulado | C26: =+C25 -> 0 | D26: =+D25+C26 -> 0 | E26: =+E25+D26 -> 0 | F26: =+F25+E26 -> 0 | G26: =+G25+F26 -> 0 | H26: =+H25+G26 -> 0 | I26: =+I25+H26 -> 0 | J26: =+J25+I26 -> 0 | K26: =+K25+J26 -> 0 | L26: =+L25+K26 -> 0 | M26: =+M25+L26 -> 0 | N26: =+N25+M26 -> 0 | O26: =+O25+N26 -> 0
B28: PAGOS A CUENTA - BONO LEY 27.424
B30: Concepto | C30: enero | D30: febrero | E30: marzo | F30: abril | G30: mayo | H30: junio | I30: julio | J30: agosto | K30: septiembre | L30: octubre | M30: noviembre | N30: diciembre | O30: anual
B31: Importe
B32: Acumulado | C32: =+C31 -> 0 | D32: =+D31+C32 -> 0 | E32: =+E31+D32 -> 0 | F32: =+F31+E32 -> 0 | G32: =+G31+F32 -> 0 | H32: =+H31+G32 -> 0 | I32: =+I31+H32 -> 0 | J32: =+J31+I32 -> 0 | K32: =+K31+J32 -> 0 | L32: =+L31+K32 -> 0 | M32: =+M31+L32 -> 0 | N32: =+N31+M32 -> 0 | O32: =+O31+N32 -> 0
B34: PAGOS A CUENTA - RG 4815 [LEY 27.541 ART. 35 INCISO A)]
B36: Concepto | C36: enero | D36: febrero | E36: marzo | F36: abril | G36: mayo | H36: junio | I36: julio | J36: agosto | K36: septiembre | L36: octubre | M36: noviembre | N36: diciembre | O36: anual
B37: Importe
B38: Acumulado | C38: =+C37 -> 0 | D38: =+D37+C38 -> 0 | E38: =+E37+D38 -> 0 | F38: =+F37+E38 -> 0 | G38: =+G37+F38 -> 0 | H38: =+H37+G38 -> 0 | I38: =+I37+H38 -> 0 | J38: =+J37+I38 -> 0 | K38: =+K37+J38 -> 0 | L38: =+L37+K38 -> 0 | M38: =+M37+L38 -> 0 | N38: =+N37+M38 -> 0 | O38: =+O37+N38 -> 0
B40: PAGOS A CUENTA - RG 4815 [LEY 27.541 ART. 35 INCISO B)]
B42: Concepto | C42: enero | D42: febrero | E42: marzo | F42: abril | G42: mayo | H42: junio | I42: julio | J42: agosto | K42: septiembre | L42: octubre | M42: noviembre | N42: diciembre | O42: anual
B43: Importe
B44: Acumulado | C44: =+C43 -> 0 | D44: =+D43+C44 -> 0 | E44: =+E43+D44 -> 0 | F44: =+F43+E44 -> 0 | G44: =+G43+F44 -> 0 | H44: =+H43+G44 -> 0 | I44: =+I43+H44 -> 0 | J44: =+J43+I44 -> 0 | K44: =+K43+J44 -> 0 | L44: =+L43+K44 -> 0 | M44: =+M43+L44 -> 0 | N44: =+N43+M44 -> 0 | O44: =+O43+N44 -> 0
B46: PAGOS A CUENTA - RG 4815 [LEY 27.541 ART. 35 INCISO C)]
B48: Concepto | C48: enero | D48: febrero | E48: marzo | F48: abril | G48: mayo | H48: junio | I48: julio | J48: agosto | K48: septiembre | L48: octubre | M48: noviembre | N48: diciembre | O48: anual
B49: Importe
B50: Acumulado | C50: =+C49 -> 0 | D50: =+D49+C50 -> 0 | E50: =+E49+D50 -> 0 | F50: =+F49+E50 -> 0 | G50: =+G49+F50 -> 0 | H50: =+H49+G50 -> 0 | I50: =+I49+H50 -> 0 | J50: =+J49+I50 -> 0 | K50: =+K49+J50 -> 0 | L50: =+L49+K50 -> 0 | M50: =+M49+L50 -> 0 | N50: =+N49+M50 -> 0 | O50: =+O49+N50 -> 0
B52: PAGOS A CUENTA - RG 4815 [LEY 27.541 ART. 35 INCISO D)]
B54: Concepto | C54: enero | D54: febrero | E54: marzo | F54: abril | G54: mayo | H54: junio | I54: julio | J54: agosto | K54: septiembre | L54: octubre | M54: noviembre | N54: diciembre | O54: anual
B55: Importe
B56: Acumulado | C56: =+C55 -> 0 | D56: =+D55+C56 -> 0 | E56: =+E55+D56 -> 0 | F56: =+F55+E56 -> 0 | G56: =+G55+F56 -> 0 | H56: =+H55+G56 -> 0 | I56: =+I55+H56 -> 0 | J56: =+J55+I56 -> 0 | K56: =+K55+J56 -> 0 | L56: =+L55+K56 -> 0 | M56: =+M55+L56 -> 0 | N56: =+N55+M56 -> 0 | O56: =+O55+N56 -> 0
B58: PAGOS A CUENTA - RG 4815 [LEY 27.541 ART. 35 INCISO E)]
B60: Concepto | C60: enero | D60: febrero | E60: marzo | F60: abril | G60: mayo | H60: junio | I60: julio | J60: agosto | K60: septiembre | L60: octubre | M60: noviembre | N60: diciembre | O60: anual
B61: Importe
B62: Acumulado | C62: =+C61 -> 0 | D62: =+D61+C62 -> 0 | E62: =+E61+D62 -> 0 | F62: =+F61+E62 -> 0 | G62: =+G61+F62 -> 0 | H62: =+H61+G62 -> 0 | I62: =+I61+H62 -> 0 | J62: =+J61+I62 -> 0 | K62: =+K61+J62 -> 0 | L62: =+L61+K62 -> 0 | M62: =+M61+L62 -> 0 | N62: =+N61+M62 -> 0 | O62: =+O61+N62 -> 0
B64: PAGOS A CUENTA - IMPUESTO SOBRE CRÉDITOS Y DÉBITOS - SOBRE MOVIMIENTOS DE FONDOS PROPIOS O DE TERCEROS
B66: Concepto | C66: enero | D66: febrero | E66: marzo | F66: abril | G66: mayo | H66: junio | I66: julio | J66: agosto | K66: septiembre | L66: octubre | M66: noviembre | N66: diciembre | O66: anual
B67: Importe
B68: Acumulado | C68: =+C67 -> 0 | D68: =+D67+C68 -> 0 | E68: =+E67+D68 -> 0 | F68: =+F67+E68 -> 0 | G68: =+G67+F68 -> 0 | H68: =+H67+G68 -> 0 | I68: =+I67+H68 -> 0 | J68: =+J67+I68 -> 0 | K68: =+K67+J68 -> 0 | L68: =+L67+K68 -> 0 | M68: =+M67+L68 -> 0 | N68: =+N67+M68 -> 0 | O68: =+O67+N68 -> 0
B70: PAGOS A CUENTA - RESOLUCIÓN GENERAL (AFIP) 3819/2015 - CANCELACIONES EN EFECTIVO -SERVICIOS DE TRANSPORTE TERRESTRE, AÉREO Y POR VÍA ACUÁTICA DE PASAJEROS CON DESTINO FUERA DEL PAÍS
B72: Concepto | C72: enero | D72: febrero | E72: marzo | F72: abril | G72: mayo | H72: junio | I72: julio | J72: agosto | K72: septiembre | L72: octubre | M72: noviembre | N72: diciembre | O72: anual
B73: Importe
B74: Acumulado | C74: =+C73 -> 0 | D74: =+D73+C74 -> 0 | E74: =+E73+D74 -> 0 | F74: =+F73+E74 -> 0 | G74: =+G73+F74 -> 0 | H74: =+H73+G74 -> 0 | I74: =+I73+H74 -> 0 | J74: =+J73+I74 -> 0 | K74: =+K73+J74 -> 0 | L74: =+L73+K74 -> 0 | M74: =+M73+L74 -> 0 | N74: =+N73+M74 -> 0 | O74: =+O73+N74 -> 0
B76: IMPORTE EFECTIVAMENTE RETENIDO/DEVUELTO (MENSUAL)
B78: Concepto | C78: enero | D78: febrero | E78: marzo | F78: abril | G78: mayo | H78: junio | I78: julio | J78: agosto | K78: septiembre | L78: octubre | M78: noviembre | N78: diciembre | O78: anual
B79: Retenciones
B80: Devoluciones
B81: Acumulado | C81: =+C79-C80 -> 0 | D81: =+D79-D80+C81 -> 0 | E81: =+E79-E80+D81 -> 0 | F81: 0 | G81: 0 | H81: 0 | I81: 0 | J81: 0 | K81: 0 | L81: 0 | M81: 0 | N81: 0 | O81: 0

Sheet Devolucion
B3: DEVOLUCIÓN
B5: ANTES DE LA MODIFICACIÓN | F5: DESPUÉS DE LA MODIFICACIÓN
B7: Ganancia bruta | D7: =+IF(Check!$B$1="",Liquidacion!K87+Liquidacion!J152,Liquidacion!L87+Liquidacion!J152) -> 0 | F7: Ganancia bruta | G7: =+D7 -> 0
F9: Ajustes de gravado a exento | G9: =-Ajustes!C42+Ajustes!C41 -> 0
B11: Deducciones generales | D11: =+IF(Check!$B$1="",Liquidacion!K130,Liquidacion!L130) -> 0 | F11: Deducciones generales | G11: =+IF(Check!$B$1="",Liquidacion!K130,Liquidacion!L130) -> 0
B13: Ganancia neta | D13: =+IF(Check!$B$1="",+Liquidacion!K133-Liquidacion!K102,+Liquidacion!L133-Liquidacion!L102) -> 0 | F13: Ganancia neta | G13: =+IF(Check!$B$1="",+Liquidacion!K133,+Liquidacion!L133) -> 0
B15: Deducciones personales | F15: Deducciones personales (después de la modificación)
C17: GNI | D17: =+IF(Check!$B$1="",Liquidacion!K139,Liquidacion!L139) -> 83839.2 | F17: GNI | G17: =+IF(Check!$B$1="",Liquidacion!K139,Liquidacion!L139) -> 83839.2
C18: DEDUCCIÓN ESPECIAL | D18: =+IF(Check!$B$1="",Liquidacion!K140,Liquidacion!L140) -> 402428.17 | F18: DEDUCCIÓN ESPECIAL | G18: =+IF(Check!$B$1="",Liquidacion!K140+Liquidacion!K141+Liquidacion!K142,Liquidacion!L140+Liquidacion!L141+Liquidacion!L142) -> 402428.17
C19: CÓNYUGE | D19: =+IF(Check!$B$1="",Liquidacion!K143,Liquidacion!L143) -> 0 | F19: CÓNYUGE | G19: =+IF(Check!$B$1="",Liquidacion!K143,Liquidacion!L143) -> 0
C20: HIJOS | D20: =+IF(Check!$B$1="",SUMIF(Auxiliares!D250:I265,1,Auxiliares!D250:I265),SUMIF(Auxiliares!D250:J265,1,Auxiliares!D250:J265))*Tablas!C37 -> 0 | F20: HIJOS | G20: =+IF(Check!$B$1="",(SUMIF(Auxiliares!D250:I265,1,Auxiliares!D250:I265)+SUMIF(Auxiliares!D328:I343,1,Auxiliares!D328:I343)*2)*Tablas!C37,(SUMIF(Auxiliares!D250:J265,1,Auxiliares!D250:J265)+SUMIF(Auxiliares!D328:J343,1,Auxiliares!D328:J343)*2)*Tablas!C37) -> 0
B22: Ganancia neta sujeta a impuesto | D22: =IF(+D13-SUM(D17:D20)<0,0,+D13-SUM(D17:D20)) -> 0 | F22: Ganancia neta sujeta a impuesto | G22: =IF(+G13-SUM(G17:G20)<0,0,+G13-SUM(G17:G20)) -> 0
B24: Impuesto determinado | D24: =+IF(Check!$B$1="",impuestoDeterminado(D22,SUM(Auxiliares!$D$227:I227,Auxiliares!$D$235:I235,Auxiliares!$D$241:I241),6),impuestoDeterminado(D22,SUM(Auxiliares!$D$227:J227,Auxiliares!$D$235:J235,Auxiliares!$D$241:J241),7)) -> 0 | F24: Impuesto determinado | G24: =+IF(Check!$B$1="",impuestoDeterminado(G22,SUM(Auxiliares!$D$227:I227,Auxiliares!$D$235:I235,Auxiliares!$D$241:I241),6),impuestoDeterminado(G22,SUM(Auxiliares!$D$227:J227,Auxiliares!$D$235:J235,Auxiliares!$D$241:J241),7)) -> 0
F26: Diferencia de la liquidación | G26: =IF(G24=0,G30,+D24-G24) -> 0
F28: Importe a devolver (en 5 cuotas) | G28: =IF(G34<=0,0,IF(G26<=0,0,IF(G30>=G26,G26/5,IF(G30<G26,G30/5,0)))) -> 0
F30: Importe retenido | G30: =+IF(Check!$B$1="",SUM(Liquidacion!F156:J156),SUM(Liquidacion!F156:K156)) -> 0
F32: Importe devuelto | G32: =+IF(Check!$B$1="",SUM(Liquidacion!F157:J157),SUM(Liquidacion!F157:K157)) -> 0
F34: Diferencia entre lo retenido y lo devuelto (antes de la modificación) | G34: =+G30-G32 -> 0
G36: =IF(G34<=0,0) -> 0 | H36: Si es menor a 0; no se devuelve
G38: =IF(G26=0,0) -> 0 | H38: Si la diferencia es 0 o negativa; no se devuelve
G40: =IF(G30>G26,G26/5) -> FALSE | H40: Si retenido > a Diferencia de la liquidacion -> diferencia /5
G42: =+IF(G30<G26,G30/5) -> FALSE | H42: Si retenido < a diferencia -> renido / 5

Sheet Auxiliares
C3: No
C5: Mes | D5: 2017-01-01 | E5: 2017-02-01 | F5: 2017-03-01 | G5: 2017-04-01 | H5: 2017-05-01 | I5: 2017-06-01 | J5: 2017-07-01 | K5: 2017-08-01 | L5: 2017-09-01 | M5: 2017-10-01 | N5: 2017-11-01 | O5: 2017-12-01
C7: Concepto | D7: 2017-01-01 | E7: 2017-02-01 | F7: 2017-03-01 | G7: 2017-04-01 | H7: 2017-05-01 | I7: 2017-06-01 | J7: 2017-07-01 | K7: 2017-08-01 | L7: 2017-09-01 | M7: 2017-10-01 | N7: 2017-11-01 | O7: 2017-12-01 | P7: Anual
C8: Gravado - SAC
C9: Sueldo Rem. (no prorrateo) | D9: =SUMIFS(Ingresos!C$8:C$38,Ingresos!$P$8:$P$38,"Gravado",Ingresos!$R$8:$R$38,"Sí",Ingresos!$Q$8:$Q$38,"No")+SUMIFS(Ingresos!C$47:C$77,Ingresos!$P$47:$P$77,"Gravado",Ingresos!$R$47:$R$77,"Sí",Ingresos!$Q$47:$Q$77,"No") -> 0 | E9: =SUMIFS(Ingresos!D$8:D$38,Ingresos!$P$8:$P$38,"Gravado",Ingresos!$R$8:$R$38,"Sí",Ingresos!$Q$8:$Q$38,"No")+SUMIFS(Ingresos!D$47:D$77,Ingresos!$P$47:$P$77,"Gravado",Ingresos!$R$47:$R$77,"Sí",Ingresos!$Q$47:$Q$77,"No") -> 0 | F9: =SUMIFS(Ingresos!E$8:E$38,Ingresos!$P$8:$P$38,"Gravado",Ingresos!$R$8:$R$38,"Sí",Ingresos!$Q$8:$Q$38,"No")+SUMIFS(Ingresos!E$47:E$77,Ingresos!$P$47:$P$77,"Gravado",Ingresos!$R$47:$R$77,"Sí",Ingresos!$Q$47:$Q$77,"No") -> 0 | G9: =SUMIFS(Ingresos!F$8:F$38,Ingresos!$P$8:$P$38,"Gravado",Ingresos!$R$8:$R$38,"Sí",Ingresos!$Q$8:$Q$38,"No")+SUMIFS(Ingresos!F$47:F$77,Ingresos!$P$47:$P$77,"Gravado",Ingresos!$R$47:$R$77,"Sí",Ingresos!$Q$47:$Q$77,"No") -> 0 | H9: =SUMIFS(Ingresos!G$8:G$38,Ingresos!$P$8:$P$38,"Gravado",Ingresos!$R$8:$R$38,"Sí",Ingresos!$Q$8:$Q$38,"No")+SUMIFS(Ingresos!G$47:G$77,Ingresos!$P$47:$P$77,"Gravado",Ingresos!$R$47:$R$77,"Sí",Ingresos!$Q$47:$Q$77,"No") -> 0 | I9: =SUMIFS(Ingresos!H$8:H$38,Ingresos!$P$8:$P$38,"Gravado",Ingresos!$R$8:$R$38,"Sí",Ingresos!$Q$8:$Q$38,"No")+SUMIFS(Ingresos!H$47:H$77,Ingresos!$P$47:$P$77,"Gravado",Ingresos!$R$47:$R$77,"Sí",Ingresos!$Q$47:$Q$77,"No") -> 0 | J9: =SUMIFS(Ingresos!I$8:I$38,Ingresos!$P$8:$P$38,"Gravado",Ingresos!$R$8:$R$38,"Sí",Ingresos!$Q$8:$Q$38,"No")+SUMIFS(Ingresos!I$47:I$77,Ingresos!$P$47:$P$77,"Gravado",Ingresos!$R$47:$R$77,"Sí",Ingresos!$Q$47:$Q$77,"No") -> 0 | K9: =SUMIFS(Ingresos!J$8:J$38,Ingresos!$P$8:$P$38,"Gravado",Ingresos!$R$8:$R$38,"Sí",Ingresos!$Q$8:$Q$38,"No")+SUMIFS(Ingresos!J$47:J$77,Ingresos!$P$47:$P$77,"Gravado",Ingresos!$R$47:$R$77,"Sí",Ingresos!$Q$47:$Q$77,"No") -> 0 | L9: =SUMIFS(Ingresos!K$8:K$38,Ingresos!$P$8:$P$38,"Gravado",Ingresos!$R$8:$R$38,"Sí",Ingresos!$Q$8:$Q$38,"No")+SUMIFS(Ingresos!K$47:K$77,Ingresos!$P$47:$P$77,"Gravado",Ingresos!$R$47:$R$77,"Sí",Ingresos!$Q$47:$Q$77,"No") -> 0 | M9: =SUMIFS(Ingresos!L$8:L$38,Ingresos!$P$8:$P$38,"Gravado",Ingresos!$R$8:$R$38,"Sí",Ingresos!$Q$8:$Q$38,"No")+SUMIFS(Ingresos!L$47:L$77,Ingresos!$P$47:$P$77,"Gravado",Ingresos!$R$47:$R$77,"Sí",Ingresos!$Q$47:$Q$77,"No") -> 0 | N9: =SUMIFS(Ingresos!M$8:M$38,Ingresos!$P$8:$P$38,"Gravado",Ingresos!$R$8:$R$38,"Sí",Ingresos!$Q$8:$Q$38,"No")+SUMIFS(Ingresos!M$47:M$77,Ingresos!$P$47:$P$77,"Gravado",Ingresos!$R$47:$R$77,"Sí",Ingresos!$Q$47:$Q$77,"No") -> 0 | O9: =SUMIFS(Ingresos!N$8:N$38,Ingresos!$P$8:$P$38,"Gravado",Ingresos!$R$8:$R$38,"Sí",Ingresos!$Q$8:$Q$38,"No")+SUMIFS(Ingresos!N$47:N$77,Ingresos!$P$47:$P$77,"Gravado",Ingresos!$R$47:$R$77,"Sí",Ingresos!$Q$47:$Q$77,"No") -> 0 | P9: =SUM(D9:O9) -> 0
C10: Sueldo Rem. (prorrateo) | D10: =SUMIFS(Ingresos!C$8:C$38,Ingresos!$P$8:$P$38,"Gravado",Ingresos!$R$8:$R$38,"Sí",Ingresos!$Q$8:$Q$38,"Sí")+SUMIFS(Ingresos!C$47:C$77,Ingresos!$P$47:$P$77,"Gravado",Ingresos!$R$47:$R$77,"Sí",Ingresos!$Q$47:$Q$77,"Sí")-Ingresos!C12-Ingresos!C51 -> 0 | E10: =SUMIFS(Ingresos!D$8:D$38,Ingresos!$P$8:$P$38,"Gravado",Ingresos!$R$8:$R$38,"Sí",Ingresos!$Q$8:$Q$38,"Sí")+SUMIFS(Ingresos!D$47:D$77,Ingresos!$P$47:$P$77,"Gravado",Ingresos!$R$47:$R$77,"Sí",Ingresos!$Q$47:$Q$77,"Sí")-Ingresos!D12-Ingresos!D51 -> 0 | F10: =SUMIFS(Ingresos!E$8:E$38,Ingresos!$P$8:$P$38,"Gravado",Ingresos!$R$8:$R$38,"Sí",Ingresos!$Q$8:$Q$38,"Sí")+SUMIFS(Ingresos!E$47:E$77,Ingresos!$P$47:$P$77,"Gravado",Ingresos!$R$47:$R$77,"Sí",Ingresos!$Q$47:$Q$77,"Sí")-Ingresos!E12-Ingresos!E51 -> 0 | G10: =SUMIFS(Ingresos!F$8:F$38,Ingresos!$P$8:$P$38,"Gravado",Ingresos!$R$8:$R$38,"Sí",Ingresos!$Q$8:$Q$38,"Sí")+SUMIFS(Ingresos!F$47:F$77,Ingresos!$P$47:$P$77,"Gravado",Ingresos!$R$47:$R$77,"Sí",Ingresos!$Q$47:$Q$77,"Sí")-Ingresos!F12-Ingresos!F51 -> 0 | H10: =SUMIFS(Ingresos!G$8:G$38,Ingresos!$P$8:$P$38,"Gravado",Ingresos!$R$8:$R$38,"Sí",Ingresos!$Q$8:$Q$38,"Sí")+SUMIFS(Ingresos!G$47:G$77,Ingresos!$P$47:$P$77,"Gravado",Ingresos!$R$47:$R$77,"Sí",Ingresos!$Q$47:$Q$77,"Sí")-Ingresos!G12-Ingresos!G51 -> 0 | I10: =SUMIFS(Ingresos!H$8:H$38,Ingresos!$P$8:$P$38,"Gravado",Ingresos!$R$8:$R$38,"Sí",Ingresos!$Q$8:$Q$38,"Sí")+SUMIFS(Ingresos!H$47:H$77,Ingresos!$P$47:$P$77,"Gravado",Ingresos!$R$47:$R$77,"Sí",Ingresos!$Q$47:$Q$77,"Sí")-Ingresos!H12-Ingresos!H51 -> 0 | J10: =SUMIFS(Ingresos!I$8:I$38,Ingresos!$P$8:$P$38,"Gravado",Ingresos!$R$8:$R$38,"Sí",Ingresos!$Q$8:$Q$38,"Sí")+SUMIFS(Ingresos!I$47:I$77,Ingresos!$P$47:$P$77,"Gravado",Ingresos!$R$47:$R$77,"Sí",Ingresos!$Q$47:$Q$77,"Sí")-Ingresos!I12-Ingresos!I51 -> 0 | K10: =SUMIFS(Ingresos!J$8:J$38,Ingresos!$P$8:$P$38,"Gravado",Ingresos!$R$8:$R$38,"Sí",Ingresos!$Q$8:$Q$38,"Sí")+SUMIFS(Ingresos!J$47:J$77,Ingresos!$P$47:$P$77,"Gravado",Ingresos!$R$47:$R$77,"Sí",Ingresos!$Q$47:$Q$77,"Sí")-Ingresos!J12-Ingresos!J51 -> 0 | L10: =SUMIFS(Ingresos!K$8:K$38,Ingresos!$P$8:$P$38,"Gravado",Ingresos!$R$8:$R$38,"Sí",Ingresos!$Q$8:$Q$38,"Sí")+SUMIFS(Ingresos!K$47:K$77,Ingresos!$P$47:$P$77,"Gravado",Ingresos!$R$47:$R$77,"Sí",Ingresos!$Q$47:$Q$77,"Sí")-Ingresos!K12-Ingresos!K51 -> 0 | M10: =SUMIFS(Ingresos!L$8:L$38,Ingresos!$P$8:$P$38,"Gravado",Ingresos!$R$8:$R$38,"Sí",Ingresos!$Q$8:$Q$38,"Sí")+SUMIFS(Ingresos!L$47:L$77,Ingresos!$P$47:$P$77,"Gravado",Ingresos!$R$47:$R$77,"Sí",Ingresos!$Q$47:$Q$77,"Sí")-Ingresos!L12-Ingresos!L51 -> 0 | N10: =SUMIFS(Ingresos!M$8:M$38,Ingresos!$P$8:$P$38,"Gravado",Ingresos!$R$8:$R$38,"Sí",Ingresos!$Q$8:$Q$38,"Sí")+SUMIFS(Ingresos!M$47:M$77,Ingresos!$P$47:$P$77,"Gravado",Ingresos!$R$47:$R$77,"Sí",Ingresos!$Q$47:$Q$77,"Sí")-Ingresos!M12-Ingresos!M51 -> 0 | O10: =SUMIFS(Ingresos!N$8:N$38,Ingresos!$P$8:$P$38,"Gravado",Ingresos!$R$8:$R$38,"Sí",Ingresos!$Q$8:$Q$38,"Sí")+SUMIFS(Ingresos!N$47:N$77,Ingresos!$P$47:$P$77,"Gravado",Ingresos!$R$47:$R$77,"Sí",Ingresos!$Q$47:$Q$77,"Sí")-Ingresos!N12-Ingresos!N51 -> 0 | P10: =SUM(D10:O10) -> 0
C11: Sueldo no Rem. (no prorrateo) | D11: =SUMIFS(Ingresos!C$8:C$38,Ingresos!$P$8:$P$38,"Gravado",Ingresos!$R$8:$R$38,"No",Ingresos!$Q$8:$Q$38,"No")+SUMIFS(Ingresos!C$47:C$77,Ingresos!$P$47:$P$77,"Gravado",Ingresos!$R$47:$R$77,"No",Ingresos!$Q$47:$Q$77,"No") -> 0 | E11: =SUMIFS(Ingresos!D$8:D$38,Ingresos!$P$8:$P$38,"Gravado",Ingresos!$R$8:$R$38,"No",Ingresos!$Q$8:$Q$38,"No")+SUMIFS(Ingresos!D$47:D$77,Ingresos!$P$47:$P$77,"Gravado",Ingresos!$R$47:$R$77,"No",Ingresos!$Q$47:$Q$77,"No") -> 0 | F11: =SUMIFS(Ingresos!E$8:E$38,Ingresos!$P$8:$P$38,"Gravado",Ingresos!$R$8:$R$38,"No",Ingresos!$Q$8:$Q$38,"No")+SUMIFS(Ingresos!E$47:E$77,Ingresos!$P$47:$P$77,"Gravado",Ingresos!$R$47:$R$77,"No",Ingresos!$Q$47:$Q$77,"No") -> 0 | G11: =SUMIFS(Ingresos!F$8:F$38,Ingresos!$P$8:$P$38,"Gravado",Ingresos!$R$8:$R$38,"No",Ingresos!$Q$8:$Q$38,"No")+SUMIFS(Ingresos!F$47:F$77,Ingresos!$P$47:$P$77,"Gravado",Ingresos!$R$47:$R$77,"No",Ingresos!$Q$47:$Q$77,"No") -> 0 | H11: =SUMIFS(Ingresos!G$8:G$38,Ingresos!$P$8:$P$38,"Gravado",Ingresos!$R$8:$R$38,"No",Ingresos!$Q$8:$Q$38,"No")+SUMIFS(Ingresos!G$47:G$77,Ingresos!$P$47:$P$77,"Gravado",Ingresos!$R$47:$R$77,"No",Ingresos!$Q$47:$Q$77,"No") -> 0 | I11: =SUMIFS(Ingresos!H$8:H$38,Ingresos!$P$8:$P$38,"Gravado",Ingresos!$R$8:$R$38,"No",Ingresos!$Q$8:$Q$38,"No")+SUMIFS(Ingresos!H$47:H$77,Ingresos!$P$47:$P$77,"Gravado",Ingresos!$R$47:$R$77,"No",Ingresos!$Q$47:$Q$77,"No") -> 0 | J11: =SUMIFS(Ingresos!I$8:I$38,Ingresos!$P$8:$P$38,"Gravado",Ingresos!$R$8:$R$38,"No",Ingresos!$Q$8:$Q$38,"No")+SUMIFS(Ingresos!I$47:I$77,Ingresos!$P$47:$P$77,"Gravado",Ingresos!$R$47:$R$77,"No",Ingresos!$Q$47:$Q$77,"No") -> 0 | K11: =SUMIFS(Ingresos!J$8:J$38,Ingresos!$P$8:$P$38,"Gravado",Ingresos!$R$8:$R$38,"No",Ingresos!$Q$8:$Q$38,"No")+SUMIFS(Ingresos!J$47:J$77,Ingresos!$P$47:$P$77,"Gravado",Ingresos!$R$47:$R$77,"No",Ingresos!$Q$47:$Q$77,"No") -> 0 | L11: =SUMIFS(Ingresos!K$8:K$38,Ingresos!$P$8:$P$38,"Gravado",Ingresos!$R$8:$R$38,"No",Ingresos!$Q$8:$Q$38,"No")+SUMIFS(Ingresos!K$47:K$77,Ingresos!$P$47:$P$77,"Gravado",Ingresos!$R$47:$R$77,"No",Ingresos!$Q$47:$Q$77,"No") -> 0 | M11: =SUMIFS(Ingresos!L$8:L$38,Ingresos!$P$8:$P$38,"Gravado",Ingresos!$R$8:$R$38,"No",Ingresos!$Q$8:$Q$38,"No")+SUMIFS(Ingresos!L$47:L$77,Ingresos!$P$47:$P$77,"Gravado",Ingresos!$R$47:$R$77,"No",Ingresos!$Q$47:$Q$77,"No") -> 0 | N11: =SUMIFS(Ingresos!M$8:M$38,Ingresos!$P$8:$P$38,"Gravado",Ingresos!$R$8:$R$38,"No",Ingresos!$Q$8:$Q$38,"No")+SUMIFS(Ingresos!M$47:M$77,Ingresos!$P$47:$P$77,"Gravado",Ingresos!$R$47:$R$77,"No",Ingresos!$Q$47:$Q$77,"No") -> 0 | O11: =SUMIFS(Ingresos!N$8:N$38,Ingresos!$P$8:$P$38,"Gravado",Ingresos!$R$8:$R$38,"No",Ingresos!$Q$8:$Q$38,"No")+SUMIFS(Ingresos!N$47:N$77,Ingresos!$P$47:$P$77,"Gravado",Ingresos!$R$47:$R$77,"No",Ingresos!$Q$47:$Q$77,"No") -> 0 | P11: 0
C12: Sueldo no Rem. (prorrateo) | D12: =SUMIFS(Ingresos!C$8:C$38,Ingresos!$P$8:$P$38,"Gravado",Ingresos!$R$8:$R$38,"No",Ingresos!$Q$8:$Q$38,"Sí")+SUMIFS(Ingresos!C$47:C$77,Ingresos!$P$47:$P$77,"Gravado",Ingresos!$R$47:$R$77,"No",Ingresos!$Q$47:$Q$77,"Sí") -> 0 | E12: =SUMIFS(Ingresos!D$8:D$38,Ingresos!$P$8:$P$38,"Gravado",Ingresos!$R$8:$R$38,"No",Ingresos!$Q$8:$Q$38,"Sí")+SUMIFS(Ingresos!D$47:D$77,Ingresos!$P$47:$P$77,"Gravado",Ingresos!$R$47:$R$77,"No",Ingresos!$Q$47:$Q$77,"Sí") -> 0 | F12: =SUMIFS(Ingresos!E$8:E$38,Ingresos!$P$8:$P$38,"Gravado",Ingresos!$R$8:$R$38,"No",Ingresos!$Q$8:$Q$38,"Sí")+SUMIFS(Ingresos!E$47:E$77,Ingresos!$P$47:$P$77,"Gravado",Ingresos!$R$47:$R$77,"No",Ingresos!$Q$47:$Q$77,"Sí") -> 0 | G12: =SUMIFS(Ingresos!F$8:F$38,Ingresos!$P$8:$P$38,"Gravado",Ingresos!$R$8:$R$38,"No",Ingresos!$Q$8:$Q$38,"Sí")+SUMIFS(Ingresos!F$47:F$77,Ingresos!$P$47:$P$77,"Gravado",Ingresos!$R$47:$R$77,"No",Ingresos!$Q$47:$Q$77,"Sí") -> 0 | H12: =SUMIFS(Ingresos!G$8:G$38,Ingresos!$P$8:$P$38,"Gravado",Ingresos!$R$8:$R$38,"No",Ingresos!$Q$8:$Q$38,"Sí")+SUMIFS(Ingresos!G$47:G$77,Ingresos!$P$47:$P$77,"Gravado",Ingresos!$R$47:$R$77,"No",Ingresos!$Q$47:$Q$77,"Sí") -> 0 | I12: =SUMIFS(Ingresos!H$8:H$38,Ingresos!$P$8:$P$38,"Gravado",Ingresos!$R$8:$R$38,"No",Ingresos!$Q$8:$Q$38,"Sí")+SUMIFS(Ingresos!H$47:H$77,Ingresos!$P$47:$P$77,"Gravado",Ingresos!$R$47:$R$77,"No",Ingresos!$Q$47:$Q$77,"Sí") -> 0 | J12: =SUMIFS(Ingresos!I$8:I$38,Ingresos!$P$8:$P$38,"Gravado",Ingresos!$R$8:$R$38,"No",Ingresos!$Q$8:$Q$38,"Sí")+SUMIFS(Ingresos!I$47:I$77,Ingresos!$P$47:$P$77,"Gravado",Ingresos!$R$47:$R$77,"No",Ingresos!$Q$47:$Q$77,"Sí") -> 0 | K12: =SUMIFS(Ingresos!J$8:J$38,Ingresos!$P$8:$P$38,"Gravado",Ingresos!$R$8:$R$38,"No",Ingresos!$Q$8:$Q$38,"Sí")+SUMIFS(Ingresos!J$47:J$77,Ingresos!$P$47:$P$77,"Gravado",Ingresos!$R$47:$R$77,"No",Ingresos!$Q$47:$Q$77,"Sí") -> 0 | L12: =SUMIFS(Ingresos!K$8:K$38,Ingresos!$P$8:$P$38,"Gravado",Ingresos!$R$8:$R$38,"No",Ingresos!$Q$8:$Q$38,"Sí")+SUMIFS(Ingresos!K$47:K$77,Ingresos!$P$47:$P$77,"Gravado",Ingresos!$R$47:$R$77,"No",Ingresos!$Q$47:$Q$77,"Sí") -> 0 | M12: =SUMIFS(Ingresos!L$8:L$38,Ingresos!$P$8:$P$38,"Gravado",Ingresos!$R$8:$R$38,"No",Ingresos!$Q$8:$Q$38,"Sí")+SUMIFS(Ingresos!L$47:L$77,Ingresos!$P$47:$P$77,"Gravado",Ingresos!$R$47:$R$77,"No",Ingresos!$Q$47:$Q$77,"Sí") -> 0 | N12: =SUMIFS(Ingresos!M$8:M$38,Ingresos!$P$8:$P$38,"Gravado",Ingresos!$R$8:$R$38,"No",Ingresos!$Q$8:$Q$38,"Sí")+SUMIFS(Ingresos!M$47:M$77,Ingresos!$P$47:$P$77,"Gravado",Ingresos!$R$47:$R$77,"No",Ingresos!$Q$47:$Q$77,"Sí") -> 0 | O12: =SUMIFS(Ingresos!N$8:N$38,Ingresos!$P$8:$P$38,"Gravado",Ingresos!$R$8:$R$38,"No",Ingresos!$Q$8:$Q$38,"Sí")+SUMIFS(Ingresos!N$47:N$77,Ingresos!$P$47:$P$77,"Gravado",Ingresos!$R$47:$R$77,"No",Ingresos!$Q$47:$Q$77,"Sí") -> 0 | P12: 0
C13: Gravado total
C15: No gravado
C16: Sueldo Rem. (no prorrateo) | D16: =SUMIFS(Ingresos!C$8:C$38,Ingresos!$P$8:$P$38,"No gravado",Ingresos!$R$8:$R$38,"Sí",Ingresos!$Q$8:$Q$38,"No")+SUMIFS(Ingresos!C$47:C$77,Ingresos!$P$47:$P$77,"No gravado",Ingresos!$R$47:$R$77,"Sí",Ingresos!$Q$47:$Q$77,"No") -> 0 | E16: =SUMIFS(Ingresos!D$8:D$38,Ingresos!$P$8:$P$38,"No gravado",Ingresos!$R$8:$R$38,"Sí",Ingresos!$Q$8:$Q$38,"No") -> 0 | F16: =SUMIFS(Ingresos!E$8:E$38,Ingresos!$P$8:$P$38,"No gravado",Ingresos!$R$8:$R$38,"Sí",Ingresos!$Q$8:$Q$38,"No") -> 0 | G16: =SUMIFS(Ingresos!F$8:F$38,Ingresos!$P$8:$P$38,"No gravado",Ingresos!$R$8:$R$38,"Sí",Ingresos!$Q$8:$Q$38,"No") -> 0 | H16: =SUMIFS(Ingresos!G$8:G$38,Ingresos!$P$8:$P$38,"No gravado",Ingresos!$R$8:$R$38,"Sí",Ingresos!$Q$8:$Q$38,"No") -> 0 | I16: =SUMIFS(Ingresos!H$8:H$38,Ingresos!$P$8:$P$38,"No gravado",Ingresos!$R$8:$R$38,"Sí",Ingresos!$Q$8:$Q$38,"No") -> 0 | J16: =SUMIFS(Ingresos!I$8:I$38,Ingresos!$P$8:$P$38,"No gravado",Ingresos!$R$8:$R$38,"Sí",Ingresos!$Q$8:$Q$38,"No") -> 0 | K16: =SUMIFS(Ingresos!J$8:J$38,Ingresos!$P$8:$P$38,"No gravado",Ingresos!$R$8:$R$38,"Sí",Ingresos!$Q$8:$Q$38,"No") -> 0 | L16: =SUMIFS(Ingresos!K$8:K$38,Ingresos!$P$8:$P$38,"No gravado",Ingresos!$R$8:$R$38,"Sí",Ingresos!$Q$8:$Q$38,"No") -> 0 | M16: =SUMIFS(Ingresos!L$8:L$38,Ingresos!$P$8:$P$38,"No gravado",Ingresos!$R$8:$R$38,"Sí",Ingresos!$Q$8:$Q$38,"No") -> 0 | N16: =SUMIFS(Ingresos!M$8:M$38,Ingresos!$P$8:$P$38,"No gravado",Ingresos!$R$8:$R$38,"Sí",Ingresos!$Q$8:$Q$38,"No") -> 0 | O16: =SUMIFS(Ingresos!N$8:N$38,Ingresos!$P$8:$P$38,"No gravado",Ingresos!$R$8:$R$38,"Sí",Ingresos!$Q$8:$Q$38,"No") -> 0 | P16: =SUM(D16:O16) -> 0
C17: Sueldo Rem. (prorrateo) | D17: =SUMIFS(Ingresos!C$8:C$38,Ingresos!$P$8:$P$38,"No gravado",Ingresos!$R$8:$R$38,"Sí",Ingresos!$Q$8:$Q$38,"Sí")+SUMIFS(Ingresos!C$47:C$77,Ingresos!$P$47:$P$77,"No gravado",Ingresos!$R$47:$R$77,"Sí",Ingresos!$Q$47:$Q$77,"Sí") -> 0 | E17: =SUMIFS(Ingresos!D$8:D$38,Ingresos!$P$8:$P$38,"No gravado",Ingresos!$R$8:$R$38,"Sí",Ingresos!$Q$8:$Q$38,"Sí")+SUMIFS(Ingresos!D$47:D$77,Ingresos!$P$47:$P$77,"No gravado",Ingresos!$R$47:$R$77,"Sí",Ingresos!$Q$47:$Q$77,"Sí") -> 0 | F17: =SUMIFS(Ingresos!E$8:E$38,Ingresos!$P$8:$P$38,"No gravado",Ingresos!$R$8:$R$38,"Sí",Ingresos!$Q$8:$Q$38,"Sí")+SUMIFS(Ingresos!E$47:E$77,Ingresos!$P$47:$P$77,"No gravado",Ingresos!$R$47:$R$77,"Sí",Ingresos!$Q$47:$Q$77,"Sí") -> 0 | G17: =SUMIFS(Ingresos!F$8:F$38,Ingresos!$P$8:$P$38,"No gravado",Ingresos!$R$8:$R$38,"Sí",Ingresos!$Q$8:$Q$38,"Sí")+SUMIFS(Ingresos!F$47:F$77,Ingresos!$P$47:$P$77,"No gravado",Ingresos!$R$47:$R$77,"Sí",Ingresos!$Q$47:$Q$77,"Sí") -> 0 | H17: =SUMIFS(Ingresos!G$8:G$38,Ingresos!$P$8:$P$38,"No gravado",Ingresos!$R$8:$R$38,"Sí",Ingresos!$Q$8:$Q$38,"Sí")+SUMIFS(Ingresos!G$47:G$77,Ingresos!$P$47:$P$77,"No gravado",Ingresos!$R$47:$R$77,"Sí",Ingresos!$Q$47:$Q$77,"Sí") -> 0 | I17: =SUMIFS(Ingresos!H$8:H$38,Ingresos!$P$8:$P$38,"No gravado",Ingresos!$R$8:$R$38,"Sí",Ingresos!$Q$8:$Q$38,"Sí")+SUMIFS(Ingresos!H$47:H$77,Ingresos!$P$47:$P$77,"No gravado",Ingresos!$R$47:$R$77,"Sí",Ingresos!$Q$47:$Q$77,"Sí") -> 0 | J17: =SUMIFS(Ingresos!I$8:I$38,Ingresos!$P$8:$P$38,"No gravado",Ingresos!$R$8:$R$38,"Sí",Ingresos!$Q$8:$Q$38,"Sí")+SUMIFS(Ingresos!I$47:I$77,Ingresos!$P$47:$P$77,"No gravado",Ingresos!$R$47:$R$77,"Sí",Ingresos!$Q$47:$Q$77,"Sí") -> 0 | K17: =SUMIFS(Ingresos!J$8:J$38,Ingresos!$P$8:$P$38,"No gravado",Ingresos!$R$8:$R$38,"Sí",Ingresos!$Q$8:$Q$38,"Sí")+SUMIFS(Ingresos!J$47:J$77,Ingresos!$P$47:$P$77,"No gravado",Ingresos!$R$47:$R$77,"Sí",Ingresos!$Q$47:$Q$77,"Sí") -> 0 | L17: =SUMIFS(Ingresos!K$8:K$38,Ingresos!$P$8:$P$38,"No gravado",Ingresos!$R$8:$R$38,"Sí",Ingresos!$Q$8:$Q$38,"Sí")+SUMIFS(Ingresos!K$47:K$77,Ingresos!$P$47:$P$77,"No gravado",Ingresos!$R$47:$R$77,"Sí",Ingresos!$Q$47:$Q$77,"Sí") -> 0 | M17: =SUMIFS(Ingresos!L$8:L$38,Ingresos!$P$8:$P$38,"No gravado",Ingresos!$R$8:$R$38,"Sí",Ingresos!$Q$8:$Q$38,"Sí")+SUMIFS(Ingresos!L$47:L$77,Ingresos!$P$47:$P$77,"No gravado",Ingresos!$R$47:$R$77,"Sí",Ingresos!$Q$47:$Q$77,"Sí") -> 0 | N17: =SUMIFS(Ingresos!M$8:M$38,Ingresos!$P$8:$P$38,"No gravado",Ingresos!$R$8:$R$38,"Sí",Ingresos!$Q$8:$Q$38,"Sí")+SUMIFS(Ingresos!M$47:M$77,Ingresos!$P$47:$P$77,"No gravado",Ingresos!$R$47:$R$77,"Sí",Ingresos!$Q$47:$Q$77,"Sí") -> 0 | O17: =SUMIFS(Ingresos!N$8:N$38,Ingresos!$P$8:$P$38,"No gravado",Ingresos!$R$8:$R$38,"Sí",Ingresos!$Q$8:$Q$38,"Sí")+SUMIFS(Ingresos!N$47:N$77,Ingresos!$P$47:$P$77,"No gravado",Ingresos!$R$47:$R$77,"Sí",Ingresos!$Q$47:$Q$77,"Sí") -> 0 | P17: 0
C18: Sueldo no Rem. (no prorrateo) | D18: =SUMIFS(Ingresos!C$8:C$38,Ingresos!$P$8:$P$38,"No gravado",Ingresos!$R$8:$R$38,"No",Ingresos!$Q$8:$Q$38,"No")+SUMIFS(Ingresos!C$47:C$77,Ingresos!$P$47:$P$77,"No gravado",Ingresos!$R$47:$R$77,"No",Ingresos!$Q$47:$Q$77,"No") -> 0 | E18: =SUMIFS(Ingresos!D$8:D$38,Ingresos!$P$8:$P$38,"No gravado",Ingresos!$R$8:$R$38,"No",Ingresos!$Q$8:$Q$38,"No")+SUMIFS(Ingresos!D$47:D$77,Ingresos!$P$47:$P$77,"No gravado",Ingresos!$R$47:$R$77,"No",Ingresos!$Q$47:$Q$77,"No") -> 0 | F18: =SUMIFS(Ingresos!E$8:E$38,Ingresos!$P$8:$P$38,"No gravado",Ingresos!$R$8:$R$38,"No",Ingresos!$Q$8:$Q$38,"No")+SUMIFS(Ingresos!E$47:E$77,Ingresos!$P$47:$P$77,"No gravado",Ingresos!$R$47:$R$77,"No",Ingresos!$Q$47:$Q$77,"No") -> 0 | G18: =SUMIFS(Ingresos!F$8:F$38,Ingresos!$P$8:$P$38,"No gravado",Ingresos!$R$8:$R$38,"No",Ingresos!$Q$8:$Q$38,"No")+SUMIFS(Ingresos!F$47:F$77,Ingresos!$P$47:$P$77,"No gravado",Ingresos!$R$47:$R$77,"No",Ingresos!$Q$47:$Q$77,"No") -> 0 | H18: =SUMIFS(Ingresos!G$8:G$38,Ingresos!$P$8:$P$38,"No gravado",Ingresos!$R$8:$R$38,"No",Ingresos!$Q$8:$Q$38,"No")+SUMIFS(Ingresos!G$47:G$77,Ingresos!$P$47:$P$77,"No gravado",Ingresos!$R$47:$R$77,"No",Ingresos!$Q$47:$Q$77,"No") -> 0 | I18: =SUMIFS(Ingresos!H$8:H$38,Ingresos!$P$8:$P$38,"No gravado",Ingresos!$R$8:$R$38,"No",Ingresos!$Q$8:$Q$38,"No")+SUMIFS(Ingresos!H$47:H$77,Ingresos!$P$47:$P$77,"No gravado",Ingresos!$R$47:$R$77,"No",Ingresos!$Q$47:$Q$77,"No") -> 0 | J18: =SUMIFS(Ingresos!I$8:I$38,Ingresos!$P$8:$P$38,"No gravado",Ingresos!$R$8:$R$38,"No",Ingresos!$Q$8:$Q$38,"No")+SUMIFS(Ingresos!I$47:I$77,Ingresos!$P$47:$P$77,"No gravado",Ingresos!$R$47:$R$77,"No",Ingresos!$Q$47:$Q$77,"No") -> 0 | K18: =SUMIFS(Ingresos!J$8:J$38,Ingresos!$P$8:$P$38,"No gravado",Ingresos!$R$8:$R$38,"No",Ingresos!$Q$8:$Q$38,"No")+SUMIFS(Ingresos!J$47:J$77,Ingresos!$P$47:$P$77,"No gravado",Ingresos!$R$47:$R$77,"No",Ingresos!$Q$47:$Q$77,"No") -> 0 | L18: =SUMIFS(Ingresos!K$8:K$38,Ingresos!$P$8:$P$38,"No gravado",Ingresos!$R$8:$R$38,"No",Ingresos!$Q$8:$Q$38,"No")+SUMIFS(Ingresos!K$47:K$77,Ingresos!$P$47:$P$77,"No gravado",Ingresos!$R$47:$R$77,"No",Ingresos!$Q$47:$Q$77,"No") -> 0 | M18: =SUMIFS(Ingresos!L$8:L$38,Ingresos!$P$8:$P$38,"No gravado",Ingresos!$R$8:$R$38,"No",Ingresos!$Q$8:$Q$38,"No")+SUMIFS(Ingresos!L$47:L$77,Ingresos!$P$47:$P$77,"No gravado",Ingresos!$R$47:$R$77,"No",Ingresos!$Q$47:$Q$77,"No") -> 0 | N18: =SUMIFS(Ingresos!M$8:M$38,Ingresos!$P$8:$P$38,"No gravado",Ingresos!$R$8:$R$38,"No",Ingresos!$Q$8:$Q$38,"No")+SUMIFS(Ingresos!M$47:M$77,Ingresos!$P$47:$P$77,"No gravado",Ingresos!$R$47:$R$77,"No",Ingresos!$Q$47:$Q$77,"No") -> 0 | O18: =SUMIFS(Ingresos!N$8:N$38,Ingresos!$P$8:$P$38,"No gravado",Ingresos!$R$8:$R$38,"No",Ingresos!$Q$8:$Q$38,"No")+SUMIFS(Ingresos!N$47:N$77,Ingresos!$P$47:$P$77,"No gravado",Ingresos!$R$47:$R$77,"No",Ingresos!$Q$47:$Q$77,"No") -> 0 | P18: 0
C19: Sueldo no Rem. (prorrateo) | D19: =SUMIFS(Ingresos!C$8:C$38,Ingresos!$P$8:$P$38,"No gravado",Ingresos!$R$8:$R$38,"No",Ingresos!$Q$8:$Q$38,"Sí")+SUMIFS(Ingresos!C$47:C$77,Ingresos!$P$47:$P$77,"No gravado",Ingresos!$R$47:$R$77,"No",Ingresos!$Q$47:$Q$77,"Sí") -> 0 | E19: =SUMIFS(Ingresos!D$8:D$38,Ingresos!$P$8:$P$38,"No gravado",Ingresos!$R$8:$R$38,"No",Ingresos!$Q$8:$Q$38,"Sí")+SUMIFS(Ingresos!D$47:D$77,Ingresos!$P$47:$P$77,"No gravado",Ingresos!$R$47:$R$77,"No",Ingresos!$Q$47:$Q$77,"Sí") -> 0 | F19: =SUMIFS(Ingresos!E$8:E$38,Ingresos!$P$8:$P$38,"No gravado",Ingresos!$R$8:$R$38,"No",Ingresos!$Q$8:$Q$38,"Sí")+SUMIFS(Ingresos!E$47:E$77,Ingresos!$P$47:$P$77,"No gravado",Ingresos!$R$47:$R$77,"No",Ingresos!$Q$47:$Q$77,"Sí") -> 0 | G19: =SUMIFS(Ingresos!F$8:F$38,Ingresos!$P$8:$P$38,"No gravado",Ingresos!$R$8:$R$38,"No",Ingresos!$Q$8:$Q$38,"Sí")+SUMIFS(Ingresos!F$47:F$77,Ingresos!$P$47:$P$77,"No gravado",Ingresos!$R$47:$R$77,"No",Ingresos!$Q$47:$Q$77,"Sí") -> 0 | H19: =SUMIFS(Ingresos!G$8:G$38,Ingresos!$P$8:$P$38,"No gravado",Ingresos!$R$8:$R$38,"No",Ingresos!$Q$8:$Q$38,"Sí")+SUMIFS(Ingresos!G$47:G$77,Ingresos!$P$47:$P$77,"No gravado",Ingresos!$R$47:$R$77,"No",Ingresos!$Q$47:$Q$77,"Sí") -> 0 | I19: =SUMIFS(Ingresos!H$8:H$38,Ingresos!$P$8:$P$38,"No gravado",Ingresos!$R$8:$R$38,"No",Ingresos!$Q$8:$Q$38,"Sí")+SUMIFS(Ingresos!H$47:H$77,Ingresos!$P$47:$P$77,"No gravado",Ingresos!$R$47:$R$77,"No",Ingresos!$Q$47:$Q$77,"Sí") -> 0 | J19: =SUMIFS(Ingresos!I$8:I$38,Ingresos!$P$8:$P$38,"No gravado",Ingresos!$R$8:$R$38,"No",Ingresos!$Q$8:$Q$38,"Sí")+SUMIFS(Ingresos!I$47:I$77,Ingresos!$P$47:$P$77,"No gravado",Ingresos!$R$47:$R$77,"No",Ingresos!$Q$47:$Q$77,"Sí") -> 0 | K19: =SUMIFS(Ingresos!J$8:J$38,Ingresos!$P$8:$P$38,"No gravado",Ingresos!$R$8:$R$38,"No",Ingresos!$Q$8:$Q$38,"Sí")+SUMIFS(Ingresos!J$47:J$77,Ingresos!$P$47:$P$77,"No gravado",Ingresos!$R$47:$R$77,"No",Ingresos!$Q$47:$Q$77,"Sí") -> 0 | L19: =SUMIFS(Ingresos!K$8:K$38,Ingresos!$P$8:$P$38,"No gravado",Ingresos!$R$8:$R$38,"No",Ingresos!$Q$8:$Q$38,"Sí")+SUMIFS(Ingresos!K$47:K$77,Ingresos!$P$47:$P$77,"No gravado",Ingresos!$R$47:$R$77,"No",Ingresos!$Q$47:$Q$77,"Sí") -> 0 | M19: =SUMIFS(Ingresos!L$8:L$38,Ingresos!$P$8:$P$38,"No gravado",Ingresos!$R$8:$R$38,"No",Ingresos!$Q$8:$Q$38,"Sí")+SUMIFS(Ingresos!L$47:L$77,Ingresos!$P$47:$P$77,"No gravado",Ingresos!$R$47:$R$77,"No",Ingresos!$Q$47:$Q$77,"Sí") -> 0 | N19: =SUMIFS(Ingresos!M$8:M$38,Ingresos!$P$8:$P$38,"No gravado",Ingresos!$R$8:$R$38,"No",Ingresos!$Q$8:$Q$38,"Sí")+SUMIFS(Ingresos!M$47:M$77,Ingresos!$P$47:$P$77,"No gravado",Ingresos!$R$47:$R$77,"No",Ingresos!$Q$47:$Q$77,"Sí") -> 0 | O19: =SUMIFS(Ingresos!N$8:N$38,Ingresos!$P$8:$P$38,"No gravado",Ingresos!$R$8:$R$38,"No",Ingresos!$Q$8:$Q$38,"Sí")+SUMIFS(Ingresos!N$47:N$77,Ingresos!$P$47:$P$77,"No gravado",Ingresos!$R$47:$R$77,"No",Ingresos!$Q$47:$Q$77,"Sí") -> 0 | P19: 0
C20: No gravado total
C22: Exento
C23: Sueldo Rem. (no prorrateo) | D23: =SUMIFS(Ingresos!C$8:C$38,Ingresos!$P$8:$P$38,"Exento",Ingresos!$R$8:$R$38,"Sí",Ingresos!$Q$8:$Q$38,"No")+SUMIFS(Ingresos!C$47:C$77,Ingresos!$P$47:$P$77,"Exento",Ingresos!$R$47:$R$77,"Sí",Ingresos!$Q$47:$Q$77,"No") -> 0 | E23: =SUMIFS(Ingresos!D$8:D$38,Ingresos!$P$8:$P$38,"Exento",Ingresos!$R$8:$R$38,"Sí",Ingresos!$Q$8:$Q$38,"No")+SUMIFS(Ingresos!D$47:D$77,Ingresos!$P$47:$P$77,"Exento",Ingresos!$R$47:$R$77,"Sí",Ingresos!$Q$47:$Q$77,"No") -> 0 | F23: =SUMIFS(Ingresos!E$8:E$38,Ingresos!$P$8:$P$38,"Exento",Ingresos!$R$8:$R$38,"Sí",Ingresos!$Q$8:$Q$38,"No")+SUMIFS(Ingresos!E$47:E$77,Ingresos!$P$47:$P$77,"Exento",Ingresos!$R$47:$R$77,"Sí",Ingresos!$Q$47:$Q$77,"No") -> 0 | G23: =SUMIFS(Ingresos!F$8:F$38,Ingresos!$P$8:$P$38,"Exento",Ingresos!$R$8:$R$38,"Sí",Ingresos!$Q$8:$Q$38,"No")+SUMIFS(Ingresos!F$47:F$77,Ingresos!$P$47:$P$77,"Exento",Ingresos!$R$47:$R$77,"Sí",Ingresos!$Q$47:$Q$77,"No") -> 0 | H23: =SUMIFS(Ingresos!G$8:G$38,Ingresos!$P$8:$P$38,"Exento",Ingresos!$R$8:$R$38,"Sí",Ingresos!$Q$8:$Q$38,"No")+SUMIFS(Ingresos!G$47:G$77,Ingresos!$P$47:$P$77,"Exento",Ingresos!$R$47:$R$77,"Sí",Ingresos!$Q$47:$Q$77,"No") -> 0 | I23: =SUMIFS(Ingresos!H$8:H$38,Ingresos!$P$8:$P$38,"Exento",Ingresos!$R$8:$R$38,"Sí",Ingresos!$Q$8:$Q$38,"No")+SUMIFS(Ingresos!H$47:H$77,Ingresos!$P$47:$P$77,"Exento",Ingresos!$R$47:$R$77,"Sí",Ingresos!$Q$47:$Q$77,"No") -> 0 | J23: =SUMIFS(Ingresos!I$8:I$38,Ingresos!$P$8:$P$38,"Exento",Ingresos!$R$8:$R$38,"Sí",Ingresos!$Q$8:$Q$38,"No")+SUMIFS(Ingresos!I$47:I$77,Ingresos!$P$47:$P$77,"Exento",Ingresos!$R$47:$R$77,"Sí",Ingresos!$Q$47:$Q$77,"No") -> 0 | K23: =SUMIFS(Ingresos!J$8:J$38,Ingresos!$P$8:$P$38,"Exento",Ingresos!$R$8:$R$38,"Sí",Ingresos!$Q$8:$Q$38,"No")+SUMIFS(Ingresos!J$47:J$77,Ingresos!$P$47:$P$77,"Exento",Ingresos!$R$47:$R$77,"Sí",Ingresos!$Q$47:$Q$77,"No") -> 0 | L23: =SUMIFS(Ingresos!K$8:K$38,Ingresos!$P$8:$P$38,"Exento",Ingresos!$R$8:$R$38,"Sí",Ingresos!$Q$8:$Q$38,"No")+SUMIFS(Ingresos!K$47:K$77,Ingresos!$P$47:$P$77,"Exento",Ingresos!$R$47:$R$77,"Sí",Ingresos!$Q$47:$Q$77,"No") -> 0 | M23: =SUMIFS(Ingresos!L$8:L$38,Ingresos!$P$8:$P$38,"Exento",Ingresos!$R$8:$R$38,"Sí",Ingresos!$Q$8:$Q$38,"No")+SUMIFS(Ingresos!L$47:L$77,Ingresos!$P$47:$P$77,"Exento",Ingresos!$R$47:$R$77,"Sí",Ingresos!$Q$47:$Q$77,"No") -> 0 | N23: =SUMIFS(Ingresos!M$8:M$38,Ingresos!$P$8:$P$38,"Exento",Ingresos!$R$8:$R$38,"Sí",Ingresos!$Q$8:$Q$38,"No")+SUMIFS(Ingresos!M$47:M$77,Ingresos!$P$47:$P$77,"Exento",Ingresos!$R$47:$R$77,"Sí",Ingresos!$Q$47:$Q$77,"No") -> 0 | O23: =SUMIFS(Ingresos!N$8:N$38,Ingresos!$P$8:$P$38,"Exento",Ingresos!$R$8:$R$38,"Sí",Ingresos!$Q$8:$Q$38,"No")+SUMIFS(Ingresos!N$47:N$77,Ingresos!$P$47:$P$77,"Exento",Ingresos!$R$47:$R$77,"Sí",Ingresos!$Q$47:$Q$77,"No") -> 0 | P23: =SUM(D23:O23) -> 0
C24: Sueldo Rem. (prorrateo) | D24: =SUMIFS(Ingresos!C$8:C$38,Ingresos!$P$8:$P$38,"Exento",Ingresos!$R$8:$R$38,"Sí",Ingresos!$Q$8:$Q$38,"Sí")+SUMIFS(Ingresos!C$47:C$77,Ingresos!$P$47:$P$77,"Exento",Ingresos!$R$47:$R$77,"Sí",Ingresos!$Q$47:$Q$77,"Sí") -> 0 | E24: =SUMIFS(Ingresos!D$8:D$38,Ingresos!$P$8:$P$38,"Exento",Ingresos!$R$8:$R$38,"Sí",Ingresos!$Q$8:$Q$38,"Sí")+SUMIFS(Ingresos!D$47:D$77,Ingresos!$P$47:$P$77,"Exento",Ingresos!$R$47:$R$77,"Sí",Ingresos!$Q$47:$Q$77,"Sí") -> 0 | F24: =SUMIFS(Ingresos!E$8:E$38,Ingresos!$P$8:$P$38,"Exento",Ingresos!$R$8:$R$38,"Sí",Ingresos!$Q$8:$Q$38,"Sí")+SUMIFS(Ingresos!E$47:E$77,Ingresos!$P$47:$P$77,"Exento",Ingresos!$R$47:$R$77,"Sí",Ingresos!$Q$47:$Q$77,"Sí") -> 0 | G24: =SUMIFS(Ingresos!F$8:F$38,Ingresos!$P$8:$P$38,"Exento",Ingresos!$R$8:$R$38,"Sí",Ingresos!$Q$8:$Q$38,"Sí")+SUMIFS(Ingresos!F$47:F$77,Ingresos!$P$47:$P$77,"Exento",Ingresos!$R$47:$R$77,"Sí",Ingresos!$Q$47:$Q$77,"Sí") -> 0 | H24: =SUMIFS(Ingresos!G$8:G$38,Ingresos!$P$8:$P$38,"Exento",Ingresos!$R$8:$R$38,"Sí",Ingresos!$Q$8:$Q$38,"Sí")+SUMIFS(Ingresos!G$47:G$77,Ingresos!$P$47:$P$77,"Exento",Ingresos!$R$47:$R$77,"Sí",Ingresos!$Q$47:$Q$77,"Sí") -> 0 | I24: =SUMIFS(Ingresos!H$8:H$38,Ingresos!$P$8:$P$38,"Exento",Ingresos!$R$8:$R$38,"Sí",Ingresos!$Q$8:$Q$38,"Sí")+SUMIFS(Ingresos!H$47:H$77,Ingresos!$P$47:$P$77,"Exento",Ingresos!$R$47:$R$77,"Sí",Ingresos!$Q$47:$Q$77,"Sí") -> 0 | J24: =SUMIFS(Ingresos!I$8:I$38,Ingresos!$P$8:$P$38,"Exento",Ingresos!$R$8:$R$38,"Sí",Ingresos!$Q$8:$Q$38,"Sí")+SUMIFS(Ingresos!I$47:I$77,Ingresos!$P$47:$P$77,"Exento",Ingresos!$R$47:$R$77,"Sí",Ingresos!$Q$47:$Q$77,"Sí") -> 0 | K24: =SUMIFS(Ingresos!J$8:J$38,Ingresos!$P$8:$P$38,"Exento",Ingresos!$R$8:$R$38,"Sí",Ingresos!$Q$8:$Q$38,"Sí")+SUMIFS(Ingresos!J$47:J$77,Ingresos!$P$47:$P$77,"Exento",Ingresos!$R$47:$R$77,"Sí",Ingresos!$Q$47:$Q$77,"Sí") -> 0 | L24: =SUMIFS(Ingresos!K$8:K$38,Ingresos!$P$8:$P$38,"Exento",Ingresos!$R$8:$R$38,"Sí",Ingresos!$Q$8:$Q$38,"Sí")+SUMIFS(Ingresos!K$47:K$77,Ingresos!$P$47:$P$77,"Exento",Ingresos!$R$47:$R$77,"Sí",Ingresos!$Q$47:$Q$77,"Sí") -> 0 | M24: =SUMIFS(Ingresos!L$8:L$38,Ingresos!$P$8:$P$38,"Exento",Ingresos!$R$8:$R$38,"Sí",Ingresos!$Q$8:$Q$38,"Sí")+SUMIFS(Ingresos!L$47:L$77,Ingresos!$P$47:$P$77,"Exento",Ingresos!$R$47:$R$77,"Sí",Ingresos!$Q$47:$Q$77,"Sí") -> 0 | N24: =SUMIFS(Ingresos!M$8:M$38,Ingresos!$P$8:$P$38,"Exento",Ingresos!$R$8:$R$38,"Sí",Ingresos!$Q$8:$Q$38,"Sí")+SUMIFS(Ingresos!M$47:M$77,Ingresos!$P$47:$P$77,"Exento",Ingresos!$R$47:$R$77,"Sí",Ingresos!$Q$47:$Q$77,"Sí") -> 0 | O24: =SUMIFS(Ingresos!N$8:N$38,Ingresos!$P$8:$P$38,"Exento",Ingresos!$R$8:$R$38,"Sí",Ingresos!$Q$8:$Q$38,"Sí")+SUMIFS(Ingresos!N$47:N$77,Ingresos!$P$47:$P$77,"Exento",Ingresos!$R$47:$R$77,"Sí",Ingresos!$Q$47:$Q$77,"Sí") -> 0 | P24: 0
C25: Sueldo no Rem. (no prorrateo) | D25: =SUMIFS(Ingresos!C$8:C$38,Ingresos!$P$8:$P$38,"Exento",Ingresos!$R$8:$R$38,"No",Ingresos!$Q$8:$Q$38,"No")+SUMIFS(Ingresos!C$47:C$77,Ingresos!$P$47:$P$77,"Exento",Ingresos!$R$47:$R$77,"No",Ingresos!$Q$47:$Q$77,"No") -> 0 | E25: =SUMIFS(Ingresos!D$8:D$38,Ingresos!$P$8:$P$38,"Exento",Ingresos!$R$8:$R$38,"No",Ingresos!$Q$8:$Q$38,"No")+SUMIFS(Ingresos!D$47:D$77,Ingresos!$P$47:$P$77,"Exento",Ingresos!$R$47:$R$77,"No",Ingresos!$Q$47:$Q$77,"No") -> 0 | F25: =SUMIFS(Ingresos!E$8:E$38,Ingresos!$P$8:$P$38,"Exento",Ingresos!$R$8:$R$38,"No",Ingresos!$Q$8:$Q$38,"No")+SUMIFS(Ingresos!E$47:E$77,Ingresos!$P$47:$P$77,"Exento",Ingresos!$R$47:$R$77,"No",Ingresos!$Q$47:$Q$77,"No") -> 0 | G25: =SUMIFS(Ingresos!F$8:F$38,Ingresos!$P$8:$P$38,"Exento",Ingresos!$R$8:$R$38,"No",Ingresos!$Q$8:$Q$38,"No")+SUMIFS(Ingresos!F$47:F$77,Ingresos!$P$47:$P$77,"Exento",Ingresos!$R$47:$R$77,"No",Ingresos!$Q$47:$Q$77,"No") -> 0 | H25: =SUMIFS(Ingresos!G$8:G$38,Ingresos!$P$8:$P$38,"Exento",Ingresos!$R$8:$R$38,"No",Ingresos!$Q$8:$Q$38,"No")+SUMIFS(Ingresos!G$47:G$77,Ingresos!$P$47:$P$77,"Exento",Ingresos!$R$47:$R$77,"No",Ingresos!$Q$47:$Q$77,"No") -> 0 | I25: =SUMIFS(Ingresos!H$8:H$38,Ingresos!$P$8:$P$38,"Exento",Ingresos!$R$8:$R$38,"No",Ingresos!$Q$8:$Q$38,"No")+SUMIFS(Ingresos!H$47:H$77,Ingresos!$P$47:$P$77,"Exento",Ingresos!$R$47:$R$77,"No",Ingresos!$Q$47:$Q$77,"No") -> 0 | J25: =SUMIFS(Ingresos!I$8:I$38,Ingresos!$P$8:$P$38,"Exento",Ingresos!$R$8:$R$38,"No",Ingresos!$Q$8:$Q$38,"No")+SUMIFS(Ingresos!I$47:I$77,Ingresos!$P$47:$P$77,"Exento",Ingresos!$R$47:$R$77,"No",Ingresos!$Q$47:$Q$77,"No") -> 0 | K25: =SUMIFS(Ingresos!J$8:J$38,Ingresos!$P$8:$P$38,"Exento",Ingresos!$R$8:$R$38,"No",Ingresos!$Q$8:$Q$38,"No")+SUMIFS(Ingresos!J$47:J$77,Ingresos!$P$47:$P$77,"Exento",Ingresos!$R$47:$R$77,"No",Ingresos!$Q$47:$Q$77,"No") -> 0 | L25: =SUMIFS(Ingresos!K$8:K$38,Ingresos!$P$8:$P$38,"Exento",Ingresos!$R$8:$R$38,"No",Ingresos!$Q$8:$Q$38,"No")+SUMIFS(Ingresos!K$47:K$77,Ingresos!$P$47:$P$77,"Exento",Ingresos!$R$47:$R$77,"No",Ingresos!$Q$47:$Q$77,"No") -> 0 | M25: =SUMIFS(Ingresos!L$8:L$38,Ingresos!$P$8:$P$38,"Exento",Ingresos!$R$8:$R$38,"No",Ingresos!$Q$8:$Q$38,"No")+SUMIFS(Ingresos!L$47:L$77,Ingresos!$P$47:$P$77,"Exento",Ingresos!$R$47:$R$77,"No",Ingresos!$Q$47:$Q$77,"No") -> 0 | N25: =SUMIFS(Ingresos!M$8:M$38,Ingresos!$P$8:$P$38,"Exento",Ingresos!$R$8:$R$38,"No",Ingresos!$Q$8:$Q$38,"No")+SUMIFS(Ingresos!M$47:M$77,Ingresos!$P$47:$P$77,"Exento",Ingresos!$R$47:$R$77,"No",Ingresos!$Q$47:$Q$77,"No") -> 0 | O25: =SUMIFS(Ingresos!N$8:N$38,Ingresos!$P$8:$P$38,"Exento",Ingresos!$R$8:$R$38,"No",Ingresos!$Q$8:$Q$38,"No")+SUMIFS(Ingresos!N$47:N$77,Ingresos!$P$47:$P$77,"Exento",Ingresos!$R$47:$R$77,"No",Ingresos!$Q$47:$Q$77,"No") -> 0 | P25: 0
C26: Sueldo no Rem. (prorrateo) | D26: =SUMIFS(Ingresos!C$8:C$38,Ingresos!$P$8:$P$38,"Exento",Ingresos!$R$8:$R$38,"No",Ingresos!$Q$8:$Q$38,"Sí")+SUMIFS(Ingresos!C$47:C$77,Ingresos!$P$47:$P$77,"Exento",Ingresos!$R$47:$R$77,"No",Ingresos!$Q$47:$Q$77,"Sí") -> 0 | E26: =SUMIFS(Ingresos!D$8:D$38,Ingresos!$P$8:$P$38,"Exento",Ingresos!$R$8:$R$38,"No",Ingresos!$Q$8:$Q$38,"Sí")+SUMIFS(Ingresos!D$47:D$77,Ingresos!$P$47:$P$77,"Exento",Ingresos!$R$47:$R$77,"No",Ingresos!$Q$47:$Q$77,"Sí") -> 0 | F26: =SUMIFS(Ingresos!E$8:E$38,Ingresos!$P$8:$P$38,"Exento",Ingresos!$R$8:$R$38,"No",Ingresos!$Q$8:$Q$38,"Sí")+SUMIFS(Ingresos!E$47:E$77,Ingresos!$P$47:$P$77,"Exento",Ingresos!$R$47:$R$77,"No",Ingresos!$Q$47:$Q$77,"Sí") -> 0 | G26: =SUMIFS(Ingresos!F$8:F$38,Ingresos!$P$8:$P$38,"Exento",Ingresos!$R$8:$R$38,"No",Ingresos!$Q$8:$Q$38,"Sí")+SUMIFS(Ingresos!F$47:F$77,Ingresos!$P$47:$P$77,"Exento",Ingresos!$R$47:$R$77,"No",Ingresos!$Q$47:$Q$77,"Sí") -> 0 | H26: =SUMIFS(Ingresos!G$8:G$38,Ingresos!$P$8:$P$38,"Exento",Ingresos!$R$8:$R$38,"No",Ingresos!$Q$8:$Q$38,"Sí")+SUMIFS(Ingresos!G$47:G$77,Ingresos!$P$47:$P$77,"Exento",Ingresos!$R$47:$R$77,"No",Ingresos!$Q$47:$Q$77,"Sí") -> 0 | I26: =SUMIFS(Ingresos!H$8:H$38,Ingresos!$P$8:$P$38,"Exento",Ingresos!$R$8:$R$38,"No",Ingresos!$Q$8:$Q$38,"Sí")+SUMIFS(Ingresos!H$47:H$77,Ingresos!$P$47:$P$77,"Exento",Ingresos!$R$47:$R$77,"No",Ingresos!$Q$47:$Q$77,"Sí") -> 0 | J26: =SUMIFS(Ingresos!I$8:I$38,Ingresos!$P$8:$P$38,"Exento",Ingresos!$R$8:$R$38,"No",Ingresos!$Q$8:$Q$38,"Sí")+SUMIFS(Ingresos!I$47:I$77,Ingresos!$P$47:$P$77,"Exento",Ingresos!$R$47:$R$77,"No",Ingresos!$Q$47:$Q$77,"Sí") -> 0 | K26: =SUMIFS(Ingresos!J$8:J$38,Ingresos!$P$8:$P$38,"Exento",Ingresos!$R$8:$R$38,"No",Ingresos!$Q$8:$Q$38,"Sí")+SUMIFS(Ingresos!J$47:J$77,Ingresos!$P$47:$P$77,"Exento",Ingresos!$R$47:$R$77,"No",Ingresos!$Q$47:$Q$77,"Sí") -> 0 | L26: =SUMIFS(Ingresos!K$8:K$38,Ingresos!$P$8:$P$38,"Exento",Ingresos!$R$8:$R$38,"No",Ingresos!$Q$8:$Q$38,"Sí")+SUMIFS(Ingresos!K$47:K$77,Ingresos!$P$47:$P$77,"Exento",Ingresos!$R$47:$R$77,"No",Ingresos!$Q$47:$Q$77,"Sí") -> 0 | M26: =SUMIFS(Ingresos!L$8:L$38,Ingresos!$P$8:$P$38,"Exento",Ingresos!$R$8:$R$38,"No",Ingresos!$Q$8:$Q$38,"Sí")+SUMIFS(Ingresos!L$47:L$77,Ingresos!$P$47:$P$77,"Exento",Ingresos!$R$47:$R$77,"No",Ingresos!$Q$47:$Q$77,"Sí") -> 0 | N26: =SUMIFS(Ingresos!M$8:M$38,Ingresos!$P$8:$P$38,"Exento",Ingresos!$R$8:$R$38,"No",Ingresos!$Q$8:$Q$38,"Sí")+SUMIFS(Ingresos!M$47:M$77,Ingresos!$P$47:$P$77,"Exento",Ingresos!$R$47:$R$77,"No",Ingresos!$Q$47:$Q$77,"Sí") -> 0 | O26: =SUMIFS(Ingresos!N$8:N$38,Ingresos!$P$8:$P$38,"Exento",Ingresos!$R$8:$R$38,"No",Ingresos!$Q$8:$Q$38,"Sí")+SUMIFS(Ingresos!N$47:N$77,Ingresos!$P$47:$P$77,"Exento",Ingresos!$R$47:$R$77,"No",Ingresos!$Q$47:$Q$77,"Sí") -> 0 | P26: 0
C27: Exento total
C29: Deducciones | D29: 2017-01-01 | E29: 2017-02-01 | F29: 2017-03-01 | G29: 2017-04-01 | H29: 2017-05-01 | I29: 2017-06-01 | J29: 2017-07-01 | K29: 2017-08-01 | L29: 2017-09-01 | M29: 2017-10-01 | N29: 2017-11-01 | O29: 2017-12-01 | P29: Anual | R29: Aplica tope
C30: =Tablas!B8 -> Jubilación | D30: =retenciones(Check!$B$8,$R30,SUM(D$9:D$10,D$16:D$17,D$23:D$24),Tablas!C$7,Tablas!C8,D$9,DedGrales!D12+DedGrales!D23) -> 0 | E30: =retenciones(Check!$B$8,$R30,SUM(E$9:E$10,E$16:E$17,E$23:E$24),Tablas!D$7,Tablas!D8,E$9,DedGrales!E12+DedGrales!E23) -> 0 | F30: =retenciones(Check!$B$8,$R30,SUM(F$9:F$10,F$16:F$17,F$23:F$24),Tablas!E$7,Tablas!E8,F$9,DedGrales!F12+DedGrales!F23) -> 0 | G30: =retenciones(Check!$B$8,$R30,SUM(G$9:G$10,G$16:G$17,G$23:G$24),Tablas!F$7,Tablas!F8,G$9,DedGrales!G12+DedGrales!G23) -> 0 | H30: =retenciones(Check!$B$8,$R30,SUM(H$9:H$10,H$16:H$17,H$23:H$24),Tablas!G$7,Tablas!G8,H$9,DedGrales!H12+DedGrales!H23) -> 0 | I30: =retenciones(Check!$B$8,$R30,SUM(I$9:I$10,I$16:I$17,I$23:I$24),Tablas!H$7,Tablas!H8,I$9,DedGrales!I12+DedGrales!I23) -> 0 | J30: =retenciones(Check!$B$8,$R30,SUM(J$9:J$10,J$16:J$17,J$23:J$24),Tablas!I$7,Tablas!I8,J$9,DedGrales!J12+DedGrales!J23) -> 0 | K30: =retenciones(Check!$B$8,$R30,SUM(K$9:K$10,K$16:K$17,K$23:K$24),Tablas!J$7,Tablas!J8,K$9,DedGrales!K12+DedGrales!K23) -> 0 | L30: =retenciones(Check!$B$8,$R30,SUM(L$9:L$10,L$16:L$17,L$23:L$24),Tablas!K$7,Tablas!K8,L$9,DedGrales!L12+DedGrales!L23) -> 0 | M30: =retenciones(Check!$B$8,$R30,SUM(M$9:M$10,M$16:M$17,M$23:M$24),Tablas!L$7,Tablas!L8,M$9,DedGrales!M12+DedGrales!M23) -> 0 | N30: =retenciones(Check!$B$8,$R30,SUM(N$9:N$10,N$16:N$17,N$23:N$24),Tablas!M$7,Tablas!M8,N$9,DedGrales!N12+DedGrales!N23) -> 0 | O30: =retenciones(Check!$B$8,$R30,SUM(O$9:O$10,O$16:O$17,O$23:O$24),Tablas!N$7,Tablas!N8,O$9,DedGrales!O12+DedGrales!O23) -> 0 | P30: =SUM(D30:O30) -> 0 | R30: =Tablas!O8 -> Sí
C31: =Tablas!B9 -> Ley 19032 | D31: =retenciones(Check!$B$8,$R31,SUM(D$9:D$10,D$16:D$17,D$23:D$24),Tablas!C$7,Tablas!C9,D$9,DedGrales!D13+DedGrales!D24) -> 0 | E31: =retenciones(Check!$B$8,$R31,SUM(E$9:E$10,E$16:E$17,E$23:E$24),Tablas!D$7,Tablas!D9,E$9,DedGrales!E13+DedGrales!E24) -> 0 | F31: =retenciones(Check!$B$8,$R31,SUM(F$9:F$10,F$16:F$17,F$23:F$24),Tablas!E$7,Tablas!E9,F$9,DedGrales!F13+DedGrales!F24) -> 0 | G31: =retenciones(Check!$B$8,$R31,SUM(G$9:G$10,G$16:G$17,G$23:G$24),Tablas!F$7,Tablas!F9,G$9,DedGrales!G13+DedGrales!G24) -> 0 | H31: =retenciones(Check!$B$8,$R31,SUM(H$9:H$10,H$16:H$17,H$23:H$24),Tablas!G$7,Tablas!G9,H$9,DedGrales!H13+DedGrales!H24) -> 0 | I31: =retenciones(Check!$B$8,$R31,SUM(I$9:I$10,I$16:I$17,I$23:I$24),Tablas!H$7,Tablas!H9,I$9,DedGrales!I13+DedGrales!I24) -> 0 | J31: =retenciones(Check!$B$8,$R31,SUM(J$9:J$10,J$16:J$17,J$23:J$24),Tablas!I$7,Tablas!I9,J$9,DedGrales!J13+DedGrales!J24) -> 0 | K31: =retenciones(Check!$B$8,$R31,SUM(K$9:K$10,K$16:K$17,K$23:K$24),Tablas!J$7,Tablas!J9,K$9,DedGrales!K13+DedGrales!K24) -> 0 | L31: =retenciones(Check!$B$8,$R31,SUM(L$9:L$10,L$16:L$17,L$23:L$24),Tablas!K$7,Tablas!K9,L$9,DedGrales!L13+DedGrales!L24) -> 0 | M31: =retenciones(Check!$B$8,$R31,SUM(M$9:M$10,M$16:M$17,M$23:M$24),Tablas!L$7,Tablas!L9,M$9,DedGrales!M13+DedGrales!M24) -> 0 | N31: =retenciones(Check!$B$8,$R31,SUM(N$9:N$10,N$16:N$17,N$23:N$24),Tablas!M$7,Tablas!M9,N$9,DedGrales!N13+DedGrales!N24) -> 0 | O31: =retenciones(Check!$B$8,$R31,SUM(O$9:O$10,O$16:O$17,O$23:O$24),Tablas!N$7,Tablas!N9,O$9,DedGrales!O13+DedGrales!O24) -> 0 | P31: =SUM(D31:O31) -> 0 | R31: =Tablas!O9 -> Sí
C32: =Tablas!B10 -> Obra social | D32: =retenciones(Check!$B$8,$R32,SUM(D$9:D$10,D$16:D$17,D$23:D$24),Tablas!C$7,Tablas!C10,D$9,DedGrales!D14+DedGrales!D25) -> 0 | E32: =retenciones(Check!$B$8,$R32,SUM(E$9:E$10,E$16:E$17,E$23:E$24),Tablas!D$7,Tablas!D10,E$9,DedGrales!E14+DedGrales!E25) -> 0 | F32: =retenciones(Check!$B$8,$R32,SUM(F$9:F$10,F$16:F$17,F$23:F$24),Tablas!E$7,Tablas!E10,F$9,DedGrales!F14+DedGrales!F25) -> 0 | G32: =retenciones(Check!$B$8,$R32,SUM(G$9:G$10,G$16:G$17,G$23:G$24),Tablas!F$7,Tablas!F10,G$9,DedGrales!G14+DedGrales!G25) -> 0 | H32: =retenciones(Check!$B$8,$R32,SUM(H$9:H$10,H$16:H$17,H$23:H$24),Tablas!G$7,Tablas!G10,H$9,DedGrales!H14+DedGrales!H25) -> 0 | I32: =retenciones(Check!$B$8,$R32,SUM(I$9:I$10,I$16:I$17,I$23:I$24),Tablas!H$7,Tablas!H10,I$9,DedGrales!I14+DedGrales!I25) -> 0 | J32: =retenciones(Check!$B$8,$R32,SUM(J$9:J$10,J$16:J$17,J$23:J$24),Tablas!I$7,Tablas!I10,J$9,DedGrales!J14+DedGrales!J25) -> 0 | K32: =retenciones(Check!$B$8,$R32,SUM(K$9:K$10,K$16:K$17,K$23:K$24),Tablas!J$7,Tablas!J10,K$9,DedGrales!K14+DedGrales!K25) -> 0 | L32: =retenciones(Check!$B$8,$R32,SUM(L$9:L$10,L$16:L$17,L$23:L$24),Tablas!K$7,Tablas!K10,L$9,DedGrales!L14+DedGrales!L25) -> 0 | M32: =retenciones(Check!$B$8,$R32,SUM(M$9:M$10,M$16:M$17,M$23:M$24),Tablas!L$7,Tablas!L10,M$9,DedGrales!M14+DedGrales!M25) -> 0 | N32: =retenciones(Check!$B$8,$R32,SUM(N$9:N$10,N$16:N$17,N$23:N$24),Tablas!M$7,Tablas!M10,N$9,DedGrales!N14+DedGrales!N25) -> 0 | O32: =retenciones(Check!$B$8,$R32,SUM(O$9:O$10,O$16:O$17,O$23:O$24),Tablas!N$7,Tablas!N10,O$9,DedGrales!O14+DedGrales!O25) -> 0 | P32: 0 | R32: =Tablas!O10 -> Sí
C33: =Tablas!B11 -> Sindicato | D33: =retenciones(Check!$B$8,$R33,SUM(D$9:D$10,D$16:D$17,D$23:D$24),Tablas!C$7,Tablas!C11,D$9,DedGrales!D15+DedGrales!D26) -> 0 | E33: =retenciones(Check!$B$8,$R33,SUM(E$9:E$10,E$16:E$17,E$23:E$24),Tablas!D$7,Tablas!D11,E$9,DedGrales!E15+DedGrales!E26) -> 0 | F33: =retenciones(Check!$B$8,$R33,SUM(F$9:F$10,F$16:F$17,F$23:F$24),Tablas!E$7,Tablas!E11,F$9,DedGrales!F15+DedGrales!F26) -> 0 | G33: =retenciones(Check!$B$8,$R33,SUM(G$9:G$10,G$16:G$17,G$23:G$24),Tablas!F$7,Tablas!F11,G$9,DedGrales!G15+DedGrales!G26) -> 0 | H33: =retenciones(Check!$B$8,$R33,SUM(H$9:H$10,H$16:H$17,H$23:H$24),Tablas!G$7,Tablas!G11,H$9,DedGrales!H15+DedGrales!H26) -> 0 | I33: =retenciones(Check!$B$8,$R33,SUM(I$9:I$10,I$16:I$17,I$23:I$24),Tablas!H$7,Tablas!H11,I$9,DedGrales!I15+DedGrales!I26) -> 0 | J33: =retenciones(Check!$B$8,$R33,SUM(J$9:J$10,J$16:J$17,J$23:J$24),Tablas!I$7,Tablas!I11,J$9,DedGrales!J15+DedGrales!J26) -> 0 | K33: =retenciones(Check!$B$8,$R33,SUM(K$9:K$10,K$16:K$17,K$23:K$24),Tablas!J$7,Tablas!J11,K$9,DedGrales!K15+DedGrales!K26) -> 0 | L33: =retenciones(Check!$B$8,$R33,SUM(L$9:L$10,L$16:L$17,L$23:L$24),Tablas!K$7,Tablas!K11,L$9,DedGrales!L15+DedGrales!L26) -> 0 | M33: =retenciones(Check!$B$8,$R33,SUM(M$9:M$10,M$16:M$17,M$23:M$24),Tablas!L$7,Tablas!L11,M$9,DedGrales!M15+DedGrales!M26) -> 0 | N33: =retenciones(Check!$B$8,$R33,SUM(N$9:N$10,N$16:N$17,N$23:N$24),Tablas!M$7,Tablas!M11,N$9,DedGrales!N15+DedGrales!N26) -> 0 | O33: =retenciones(Check!$B$8,$R33,SUM(O$9:O$10,O$16:O$17,O$23:O$24),Tablas!N$7,Tablas!N11,O$9,DedGrales!O15+DedGrales!O26) -> 0 | P33: 0 | R33: =Tablas!O11 -> No
C34: =Tablas!B12 -> 0 | D34: =retenciones(Check!$B$8,$R34,SUM(D$9:D$10,D$16:D$17,D$23:D$24),Tablas!C$7,Tablas!C12,D$9,DedGrales!D16+DedGrales!D27) -> 0 | E34: =retenciones(Check!$B$8,$R34,SUM(E$9:E$10,E$16:E$17,E$23:E$24),Tablas!D$7,Tablas!D12,E$9,DedGrales!E16+DedGrales!E27) -> 0 | F34: =retenciones(Check!$B$8,$R34,SUM(F$9:F$10,F$16:F$17,F$23:F$24),Tablas!E$7,Tablas!E12,F$9,DedGrales!F16+DedGrales!F27) -> 0 | G34: =retenciones(Check!$B$8,$R34,SUM(G$9:G$10,G$16:G$17,G$23:G$24),Tablas!F$7,Tablas!F12,G$9,DedGrales!G16+DedGrales!G27) -> 0 | H34: =retenciones(Check!$B$8,$R34,SUM(H$9:H$10,H$16:H$17,H$23:H$24),Tablas!G$7,Tablas!G12,H$9,DedGrales!H16+DedGrales!H27) -> 0 | I34: =retenciones(Check!$B$8,$R34,SUM(I$9:I$10,I$16:I$17,I$23:I$24),Tablas!H$7,Tablas!H12,I$9,DedGrales!I16+DedGrales!I27) -> 0 | J34: =retenciones(Check!$B$8,$R34,SUM(J$9:J$10,J$16:J$17,J$23:J$24),Tablas!I$7,Tablas!I12,J$9,DedGrales!J16+DedGrales!J27) -> 0 | K34: =retenciones(Check!$B$8,$R34,SUM(K$9:K$10,K$16:K$17,K$23:K$24),Tablas!J$7,Tablas!J12,K$9,DedGrales!K16+DedGrales!K27) -> 0 | L34: =retenciones(Check!$B$8,$R34,SUM(L$9:L$10,L$16:L$17,L$23:L$24),Tablas!K$7,Tablas!K12,L$9,DedGrales!L16+DedGrales!L27) -> 0 | M34: =retenciones(Check!$B$8,$R34,SUM(M$9:M$10,M$16:M$17,M$23:M$24),Tablas!L$7,Tablas!L12,M$9,DedGrales!M16+DedGrales!M27) -> 0 | N34: =retenciones(Check!$B$8,$R34,SUM(N$9:N$10,N$16:N$17,N$23:N$24),Tablas!M$7,Tablas!M12,N$9,DedGrales!N16+DedGrales!N27) -> 0 | O34: =retenciones(Check!$B$8,$R34,SUM(O$9:O$10,O$16:O$17,O$23:O$24),Tablas!N$7,Tablas!N12,O$9,DedGrales!O16+DedGrales!O27) -> 0 | P34: 0 | R34: =Tablas!O12 -> No
C35: =Tablas!B13 -> 0 | D35: =retenciones(Check!$B$8,$R35,SUM(D$9:D$10,D$16:D$17,D$23:D$24),Tablas!C$7,Tablas!C13,D$9,DedGrales!D17+DedGrales!D28) -> 0 | E35: =retenciones(Check!$B$8,$R35,SUM(E$9:E$10,E$16:E$17,E$23:E$24),Tablas!D$7,Tablas!D13,E$9,DedGrales!E17+DedGrales!E28) -> 0 | F35: =retenciones(Check!$B$8,$R35,SUM(F$9:F$10,F$16:F$17,F$23:F$24),Tablas!E$7,Tablas!E13,F$9,DedGrales!F17+DedGrales!F28) -> 0 | G35: =retenciones(Check!$B$8,$R35,SUM(G$9:G$10,G$16:G$17,G$23:G$24),Tablas!F$7,Tablas!F13,G$9,DedGrales!G17+DedGrales!G28) -> 0 | H35: =retenciones(Check!$B$8,$R35,SUM(H$9:H$10,H$16:H$17,H$23:H$24),Tablas!G$7,Tablas!G13,H$9,DedGrales!H17+DedGrales!H28) -> 0 | I35: =retenciones(Check!$B$8,$R35,SUM(I$9:I$10,I$16:I$17,I$23:I$24),Tablas!H$7,Tablas!H13,I$9,DedGrales!I17+DedGrales!I28) -> 0 | J35: =retenciones(Check!$B$8,$R35,SUM(J$9:J$10,J$16:J$17,J$23:J$24),Tablas!I$7,Tablas!I13,J$9,DedGrales!J17+DedGrales!J28) -> 0 | K35: =retenciones(Check!$B$8,$R35,SUM(K$9:K$10,K$16:K$17,K$23:K$24),Tablas!J$7,Tablas!J13,K$9,DedGrales!K17+DedGrales!K28) -> 0 | L35: =retenciones(Check!$B$8,$R35,SUM(L$9:L$10,L$16:L$17,L$23:L$24),Tablas!K$7,Tablas!K13,L$9,DedGrales!L17+DedGrales!L28) -> 0 | M35: =retenciones(Check!$B$8,$R35,SUM(M$9:M$10,M$16:M$17,M$23:M$24),Tablas!L$7,Tablas!L13,M$9,DedGrales!M17+DedGrales!M28) -> 0 | N35: =retenciones(Check!$B$8,$R35,SUM(N$9:N$10,N$16:N$17,N$23:N$24),Tablas!M$7,Tablas!M13,N$9,DedGrales!N17+DedGrales!N28) -> 0 | O35: =retenciones(Check!$B$8,$R35,SUM(O$9:O$10,O$16:O$17,O$23:O$24),Tablas!N$7,Tablas!N13,O$9,DedGrales!O17+DedGrales!O28) -> 0 | P35: 0 | R35: =Tablas!O13 -> No
C36: Prorrateo | R36: Aplica tope
C37: =C30 -> Jubilación | D37: =retenciones(Check!$B$8,$R37,SUM(D$9:D$10,D$16:D$17,D$23:D$24),Tablas!C$7,Tablas!C8,D$10,0) -> 0 | E37: =retenciones(Check!$B$8,$R37,SUM(E$9:E$10,E$16:E$17,E$23:E$24),Tablas!D$7,Tablas!D8,E$10,0) -> 0 | F37: =retenciones(Check!$B$8,$R37,SUM(F$9:F$10,F$16:F$17,F$23:F$24),Tablas!E$7,Tablas!E8,F$10,0) -> 0 | G37: =retenciones(Check!$B$8,$R37,SUM(G$9:G$10,G$16:G$17,G$23:G$24),Tablas!F$7,Tablas!F8,G$10,0) -> 0 | H37: =retenciones(Check!$B$8,$R37,SUM(H$9:H$10,H$16:H$17,H$23:H$24),Tablas!G$7,Tablas!G8,H$10,0) -> 0 | I37: =retenciones(Check!$B$8,$R37,SUM(I$9:I$10,I$16:I$17,I$23:I$24),Tablas!H$7,Tablas!H8,I$10,0) -> 0 | J37: =retenciones(Check!$B$8,$R37,SUM(J$9:J$10,J$16:J$17,J$23:J$24),Tablas!I$7,Tablas!I8,J$10,0) -> 0 | K37: =retenciones(Check!$B$8,$R37,SUM(K$9:K$10,K$16:K$17,K$23:K$24),Tablas!J$7,Tablas!J8,K$10,0) -> 0 | L37: =retenciones(Check!$B$8,$R37,SUM(L$9:L$10,L$16:L$17,L$23:L$24),Tablas!K$7,Tablas!K8,L$10,0) -> 0 | M37: =retenciones(Check!$B$8,$R37,SUM(M$9:M$10,M$16:M$17,M$23:M$24),Tablas!L$7,Tablas!L8,M$10,0) -> 0 | N37: =retenciones(Check!$B$8,$R37,SUM(N$9:N$10,N$16:N$17,N$23:N$24),Tablas!M$7,Tablas!M8,N$10,0) -> 0 | O37: =retenciones(Check!$B$8,$R37,SUM(O$9:O$10,O$16:O$17,O$23:O$24),Tablas!N$7,Tablas!N8,O$10,0) -> 0 | P37: =SUM(D37:O37) -> 0 | R37: =R30 -> Sí
C38: =C31 -> Ley 19032 | D38: =retenciones(Check!$B$8,$R38,SUM(D$9:D$10,D$16:D$17,D$23:D$24),Tablas!C$7,Tablas!C9,D$10,0) -> 0 | E38: =retenciones(Check!$B$8,$R38,SUM(E$9:E$10,E$16:E$17,E$23:E$24),Tablas!D$7,Tablas!D9,E$10,0) -> 0 | F38: =retenciones(Check!$B$8,$R38,SUM(F$9:F$10,F$16:F$17,F$23:F$24),Tablas!E$7,Tablas!E9,F$10,0) -> 0 | G38: =retenciones(Check!$B$8,$R38,SUM(G$9:G$10,G$16:G$17,G$23:G$24),Tablas!F$7,Tablas!F9,G$10,0) -> 0 | H38: =retenciones(Check!$B$8,$R38,SUM(H$9:H$10,H$16:H$17,H$23:H$24),Tablas!G$7,Tablas!G9,H$10,0) -> 0 | I38: =retenciones(Check!$B$8,$R38,SUM(I$9:I$10,I$16:I$17,I$23:I$24),Tablas!H$7,Tablas!H9,I$10,0) -> 0 | J38: =retenciones(Check!$B$8,$R38,SUM(J$9:J$10,J$16:J$17,J$23:J$24),Tablas!I$7,Tablas!I9,J$10,0) -> 0 | K38: =retenciones(Check!$B$8,$R38,SUM(K$9:K$10,K$16:K$17,K$23:K$24),Tablas!J$7,Tablas!J9,K$10,0) -> 0 | L38: =retenciones(Check!$B$8,$R38,SUM(L$9:L$10,L$16:L$17,L$23:L$24),Tablas!K$7,Tablas!K9,L$10,0) -> 0 | M38: =retenciones(Check!$B$8,$R38,SUM(M$9:M$10,M$16:M$17,M$23:M$24),Tablas!L$7,Tablas!L9,M$10,0) -> 0 | N38: =retenciones(Check!$B$8,$R38,SUM(N$9:N$10,N$16:N$17,N$23:N$24),Tablas!M$7,Tablas!M9,N$10,0) -> 0 | O38: =retenciones(Check!$B$8,$R38,SUM(O$9:O$10,O$16:O$17,O$23:O$24),Tablas!N$7,Tablas!N9,O$10,0) -> 0 | P38: =SUM(D38:O38) -> 0 | R38: =R31 -> Sí
C39: =C32 -> Obra social | D39: =retenciones(Check!$B$8,$R39,SUM(D$9:D$10,D$16:D$17,D$23:D$24),Tablas!C$7,Tablas!C10,D$10,0) -> 0 | E39: =retenciones(Check!$B$8,$R39,SUM(E$9:E$10,E$16:E$17,E$23:E$24),Tablas!D$7,Tablas!D10,E$10,0) -> 0 | F39: =retenciones(Check!$B$8,$R39,SUM(F$9:F$10,F$16:F$17,F$23:F$24),Tablas!E$7,Tablas!E10,F$10,0) -> 0 | G39: =retenciones(Check!$B$8,$R39,SUM(G$9:G$10,G$16:G$17,G$23:G$24),Tablas!F$7,Tablas!F10,G$10,0) -> 0 | H39: =retenciones(Check!$B$8,$R39,SUM(H$9:H$10,H$16:H$17,H$23:H$24),Tablas!G$7,Tablas!G10,H$10,0) -> 0 | I39: =retenciones(Check!$B$8,$R39,SUM(I$9:I$10,I$16:I$17,I$23:I$24),Tablas!H$7,Tablas!H10,I$10,0) -> 0 | J39: =retenciones(Check!$B$8,$R39,SUM(J$9:J$10,J$16:J$17,J$23:J$24),Tablas!I$7,Tablas!I10,J$10,0) -> 0 | K39: =retenciones(Check!$B$8,$R39,SUM(K$9:K$10,K$16:K$17,K$23:K$24),Tablas!J$7,Tablas!J10,K$10,0) -> 0 | L39: =retenciones(Check!$B$8,$R39,SUM(L$9:L$10,L$16:L$17,L$23:L$24),Tablas!K$7,Tablas!K10,L$10,0) -> 0 | M39: =retenciones(Check!$B$8,$R39,SUM(M$9:M$10,M$16:M$17,M$23:M$24),Tablas!L$7,Tablas!L10,M$10,0) -> 0 | N39: =retenciones(Check!$B$8,$R39,SUM(N$9:N$10,N$16:N$17,N$23:N$24),Tablas!M$7,Tablas!M10,N$10,0) -> 0 | O39: =retenciones(Check!$B$8,$R39,SUM(O$9:O$10,O$16:O$17,O$23:O$24),Tablas!N$7,Tablas!N10,O$10,0) -> 0 | P39: 0 | R39: =R32 -> Sí
C40: =C33 -> Sindicato | D40: =retenciones(Check!$B$8,$R40,SUM(D$9:D$10,D$16:D$17,D$23:D$24),Tablas!C$7,Tablas!C11,D$10,0) -> 0 | E40: =retenciones(Check!$B$8,$R40,SUM(E$9:E$10,E$16:E$17,E$23:E$24),Tablas!D$7,Tablas!D11,E$10,0) -> 0 | F40: =retenciones(Check!$B$8,$R40,SUM(F$9:F$10,F$16:F$17,F$23:F$24),Tablas!E$7,Tablas!E11,F$10,0) -> 0 | G40: =retenciones(Check!$B$8,$R40,SUM(G$9:G$10,G$16:G$17,G$23:G$24),Tablas!F$7,Tablas!F11,G$10,0) -> 0 | H40: =retenciones(Check!$B$8,$R40,SUM(H$9:H$10,H$16:H$17,H$23:H$24),Tablas!G$7,Tablas!G11,H$10,0) -> 0 | I40: =retenciones(Check!$B$8,$R40,SUM(I$9:I$10,I$16:I$17,I$23:I$24),Tablas!H$7,Tablas!H11,I$10,0) -> 0 | J40: =retenciones(Check!$B$8,$R40,SUM(J$9:J$10,J$16:J$17,J$23:J$24),Tablas!I$7,Tablas!I11,J$10,0) -> 0 | K40: =retenciones(Check!$B$8,$R40,SUM(K$9:K$10,K$16:K$17,K$23:K$24),Tablas!J$7,Tablas!J11,K$10,0) -> 0 | L40: =retenciones(Check!$B$8,$R40,SUM(L$9:L$10,L$16:L$17,L$23:L$24),Tablas!K$7,Tablas!K11,L$10,0) -> 0 | M40: =retenciones(Check!$B$8,$R40,SUM(M$9:M$10,M$16:M$17,M$23:M$24),Tablas!L$7,Tablas!L11,M$10,0) -> 0 | N40: =retenciones(Check!$B$8,$R40,SUM(N$9:N$10,N$16:N$17,N$23:N$24),Tablas!M$7,Tablas!M11,N$10,0) -> 0 | O40: =retenciones(Check!$B$8,$R40,SUM(O$9:O$10,O$16:O$17,O$23:O$24),Tablas!N$7,Tablas!N11,O$10,0) -> 0 | P40: 0 | R40: =R33 -> No
C41: =C34 -> 0 | D41: =retenciones(Check!$B$8,$R41,SUM(D$9:D$10,D$16:D$17,D$23:D$24),Tablas!C$7,Tablas!C12,D$10,0) -> 0 | E41: =retenciones(Check!$B$8,$R41,SUM(E$9:E$10,E$16:E$17,E$23:E$24),Tablas!D$7,Tablas!D12,E$10,0) -> 0 | F41: =retenciones(Check!$B$8,$R41,SUM(F$9:F$10,F$16:F$17,F$23:F$24),Tablas!E$7,Tablas!E12,F$10,0) -> 0 | G41: =retenciones(Check!$B$8,$R41,SUM(G$9:G$10,G$16:G$17,G$23:G$24),Tablas!F$7,Tablas!F12,G$10,0) -> 0 | H41: =retenciones(Check!$B$8,$R41,SUM(H$9:H$10,H$16:H$17,H$23:H$24),Tablas!G$7,Tablas!G12,H$10,0) -> 0 | I41: =retenciones(Check!$B$8,$R41,SUM(I$9:I$10,I$16:I$17,I$23:I$24),Tablas!H$7,Tablas!H12,I$10,0) -> 0 | J41: =retenciones(Check!$B$8,$R41,SUM(J$9:J$10,J$16:J$17,J$23:J$24),Tablas!I$7,Tablas!I12,J$10,0) -> 0 | K41: =retenciones(Check!$B$8,$R41,SUM(K$9:K$10,K$16:K$17,K$23:K$24),Tablas!J$7,Tablas!J12,K$10,0) -> 0 | L41: =retenciones(Check!$B$8,$R41,SUM(L$9:L$10,L$16:L$17,L$23:L$24),Tablas!K$7,Tablas!K12,L$10,0) -> 0 | M41: =retenciones(Check!$B$8,$R41,SUM(M$9:M$10,M$16:M$17,M$23:M$24),Tablas!L$7,Tablas!L12,M$10,0) -> 0 | N41: =retenciones(Check!$B$8,$R41,SUM(N$9:N$10,N$16:N$17,N$23:N$24),Tablas!M$7,Tablas!M12,N$10,0) -> 0 | O41: =retenciones(Check!$B$8,$R41,SUM(O$9:O$10,O$16:O$17,O$23:O$24),Tablas!N$7,Tablas!N12,O$10,0) -> 0 | P41: 0 | R41: =R34 -> No
C42: 0 | D42: =retenciones(Check!$B$8,$R42,SUM(D$9:D$10,D$16:D$17,D$23:D$24),Tablas!C$7,Tablas!C13,D$10,0) -> 0 | E42: =retenciones(Check!$B$8,$R42,SUM(E$9:E$10,E$16:E$17,E$23:E$24),Tablas!D$7,Tablas!D13,E$10,0) -> 0 | F42: =retenciones(Check!$B$8,$R42,SUM(F$9:F$10,F$16:F$17,F$23:F$24),Tablas!E$7,Tablas!E13,F$10,0) -> 0 | G42: =retenciones(Check!$B$8,$R42,SUM(G$9:G$10,G$16:G$17,G$23:G$24),Tablas!F$7,Tablas!F13,G$10,0) -> 0 | H42: =retenciones(Check!$B$8,$R42,SUM(H$9:H$10,H$16:H$17,H$23:H$24),Tablas!G$7,Tablas!G13,H$10,0) -> 0 | I42: =retenciones(Check!$B$8,$R42,SUM(I$9:I$10,I$16:I$17,I$23:I$24),Tablas!H$7,Tablas!H13,I$10,0) -> 0 | J42: =retenciones(Check!$B$8,$R42,SUM(J$9:J$10,J$16:J$17,J$23:J$24),Tablas!I$7,Tablas!I13,J$10,0) -> 0 | K42: =retenciones(Check!$B$8,$R42,SUM(K$9:K$10,K$16:K$17,K$23:K$24),Tablas!J$7,Tablas!J13,K$10,0) -> 0 | L42: =retenciones(Check!$B$8,$R42,SUM(L$9:L$10,L$16:L$17,L$23:L$24),Tablas!K$7,Tablas!K13,L$10,0) -> 0 | M42: =retenciones(Check!$B$8,$R42,SUM(M$9:M$10,M$16:M$17,M$23:M$24),Tablas!L$7,Tablas!L13,M$10,0) -> 0 | N42: =retenciones(Check!$B$8,$R42,SUM(N$9:N$10,N$16:N$17,N$23:N$24),Tablas!M$7,Tablas!M13,N$10,0) -> 0 | O42: =retenciones(Check!$B$8,$R42,SUM(O$9:O$10,O$16:O$17,O$23:O$24),Tablas!N$7,Tablas!N13,O$10,0) -> 0 | P42: 0 | R42: No
C45: Total deducciones | D45: =SUM(D30:D35) -> 0 | E45: =SUM(E30:E35) -> 0 | F45: 0 | G45: 0 | H45: 0 | I45: 0 | J45: 0 | K45: 0 | L45: 0 | M45: 0 | N45: 0 | O45: 0 | P45: 0
C47: Ingresos gravados (prorrateo) acumulados
C48: Gravado
C49: Sueldo Rem. (prorrateo) | D49: =SUM(D50:D61) -> 0 | E49: =SUM(E50:E61) -> 0 | F49: 0 | G49: 0 | H49: 0 | I49: 0 | J49: 0 | K49: 0 | L49: 0 | M49: 0 | N49: 0 | O49: 0 | P49: =SUM(D49:O49) -> 0
B50: 1 | C50: Sueldo Rem. (prorrateo) | D50: =(D10+D12)/12 -> 0 | E50: =+D50 -> 0 | F50: =+E50 -> 0 | G50: 0 | H50: 0 | I50: 0 | J50: 0 | K50: 0 | L50: 0 | M50: 0 | N50: 0 | O50: 0 | P50: =SUM(D50:O50) -> 0
B51: =+B50+1 -> 2 | C51: Sueldo Rem. (prorrateo) | E51: =(+$E10+E12)/11 -> 0 | F51: =+E51 -> 0 | G51: 0 | H51: 0 | I51: 0 | J51: 0 | K51: 0 | L51: 0 | M51: 0 | N51: 0 | O51: 0 | P51: 0
B52: =+B51+1 -> 3 | C52: Sueldo Rem. (prorrateo) | F52: =(+$F10+F12)/10 -> 0 | G52: =+F52 -> 0 | H52: 0 | I52: 0 | J52: 0 | K52: 0 | L52: 0 | M52: 0 | N52: 0 | O52: 0 | P52: 0
B53: 4 | C53: Sueldo Rem. (prorrateo) | G53: =(G10+G12)/9 -> 0 | H53: =+G53 -> 0 | I53: 0 | J53: 0 | K53: 0 | L53: 0 | M53: 0 | N53: 0 | O53: 0 | P53: 0
B54: 5 | C54: Sueldo Rem. (prorrateo) | H54: =(H10+H12)/8 -> 0 | I54: =+H54 -> 0 | J54: 0 | K54: 0 | L54: 0 | M54: 0 | N54: 0 | O54: 0 | P54: 0
B55: 6 | C55: Sueldo Rem. (prorrateo) | I55: =(+I10+I12)/7 -> 0 | J55: =+I55 -> 0 | K55: 0 | L55: 0 | M55: 0 | N55: 0 | O55: 0 | P55: 0
B56: 7 | C56: Sueldo Rem. (prorrateo) | J56: =(+J10+J12)/6 -> 0 | K56: =+J56 -> 0 | L56: 0 | M56: 0 | N56: 0 | O56: 0 | P56: 0
B57: 8 | C57: Sueldo Rem. (prorrateo) | K57: =(+K10+K12)/5 -> 0 | L57: =+K57 -> 0 | M57: 0 | N57: 0 | O57: 0 | P57: 0
B58: 9 | C58: Sueldo Rem. (prorrateo) | L58: =(+L10+L12)/4 -> 0 | M58: =+L58 -> 0 | N58: 0 | O58: 0 | P58: 0
B59: 10 | C59: Sueldo Rem. (prorrateo) | M59: =(M10+M12)/3 -> 0 | N59: =+M59 -> 0 | O59: =+N59 -> 0 | P59: 0
B60: 11 | C60: Sueldo Rem. (prorrateo) | N60: =(+N10+N12)/2 -> 0 | O60: =+N60 -> 0 | P60: 0
B61: 12 | C61: Sueldo Rem. (prorrateo) | O61: =(+O10+O12)/1 -> 0 | P61: 0
C63: Deducciones Prorrateo | D63: =SUM(D64:D75) -> 0 | E63: =SUM(E64:E75) -> 0 | F63: 0 | G63: 0 | H63: 0 | I63: 0 | J63: 0 | K63: 0 | L63: 0 | M63: 0 | N63: 0 | O63: 0 | P63: =SUM(D63:O63) -> 0
B64: 1 | C64: Deducciones Prorrateo | D64: =+SUM(D$37:D$42)/12 -> 0 | E64: =+D64 -> 0 | F64: =+E64 -> 0 | G64: 0 | H64: 0 | I64: 0 | J64: 0 | K64: 0 | L64: 0 | M64: 0 | N64: 0 | O64: 0 | P64: 0
B65: =+B64+1 -> 2 | C65: Deducciones Prorrateo | E65: =+SUM(E$37:E$42)/11 -> 0 | F65: =+E65 -> 0 | G65: =+F65 -> 0 | H65: 0 | I65: 0 | J65: 0 | K65: 0 | L65: 0 | M65: 0 | N65: 0 | O65: 0 | P65: 0
B66: =+B65+1 -> 3 | C66: Deducciones Prorrateo | F66: =+SUM(F$37:F$42)/10 -> 0 | G66: =+F66 -> 0 | H66: 0 | I66: 0 | J66: 0 | K66: 0 | L66: 0 | M66: 0 | N66: 0 | O66: 0 | P66: 0
B67: 4 | C67: Deducciones Prorrateo | G67: =+SUM(G$37:G$42)/9 -> 0 | H67: =+G67 -> 0 | I67: =+H67 -> 0 | J67: 0 | K67: 0 | L67: 0 | M67: 0 | N67: 0 | O67: 0 | P67: 0
B68: 5 | C68: Deducciones Prorrateo | H68: =+SUM(H$37:H$42)/8 -> 0 | I68: =+H68 -> 0 | J68: 0 | K68: 0 | L68: 0 | M68: 0 | N68: 0 | O68: 0 | P68: 0
B69: 6 | C69: Deducciones Prorrateo | I69: =+SUM(I$37:I$42)/7 -> 0 | J69: =+I69 -> 0 | K69: 0 | L69: 0 | M69: 0 | N69: 0 | O69: 0 | P69: 0
B70: 7 | C70: Deducciones Prorrateo | J70: =+SUM(J$37:J$42)/6 -> 0 | K70: =+J70 -> 0 | L70: 0 | M70: 0 | N70: 0 | O70: 0 | P70: 0
B71: 8 | C71: Deducciones Prorrateo | K71: =+SUM(K$37:K$42)/5 -> 0 | L71: =+K71 -> 0 | M71: 0 | N71: 0 | O71: 0 | P71: 0
B72: 9 | C72: Deducciones Prorrateo | L72: =+SUM(L$37:L$42)/4 -> 0 | M72: =+L72 -> 0 | N72: 0 | O72: 0 | P72: 0
B73: 10 | C73: Deducciones Prorrateo | M73: =+SUM(M$37:M$42)/3 -> 0 | N73: =+M73 -> 0 | O73: 0 | P73: 0
B74: =+B73+1 -> 11 | C74: Deducciones Prorrateo | N74: =+SUM(N$37:N$42)/2 -> 0 | O74: =+N74 -> 0 | P74: 0
B75: =+B74+1 -> 12 | C75: Deducciones Prorrateo | O75: =+SUM(O$37:O$42) -> 0 | P75: 0
C78: Deducciones generales | D78: 2017-01-01 | E78: 2017-02-01 | F78: 2017-03-01 | G78: 2017-04-01 | H78: 2017-05-01 | I78: 2017-06-01 | J78: 2017-07-01 | K78: 2017-08-01 | L78: 2017-09-01 | M78: 2017-10-01 | N78: 2017-11-01 | O78: 2017-12-01 | P78: Anual
C79: Seguro de Vida | D79: =SUMIF(DedGrales!$D$79:$O$79,MONTH(Auxiliares!D$5),DedGrales!$D$77:$O$77) -> 0 | E79: =SUMIF(DedGrales!$D$79:$O$79,MONTH(Auxiliares!E$5),DedGrales!$D$77:$O$77) -> 0 | F79: =SUMIF(DedGrales!$D$79:$O$79,MONTH(Auxiliares!F$5),DedGrales!$D$77:$O$77) -> 0 | G79: =SUMIF(DedGrales!$D$79:$O$79,MONTH(Auxiliares!G$5),DedGrales!$D$77:$O$77) -> 0 | H79: =SUMIF(DedGrales!$D$79:$O$79,MONTH(Auxiliares!H$5),DedGrales!$D$77:$O$77) -> 0 | I79: =SUMIF(DedGrales!$D$79:$O$79,MONTH(Auxiliares!I$5),DedGrales!$D$77:$O$77) -> 0 | J79: =SUMIF(DedGrales!$D$79:$O$79,MONTH(Auxiliares!J$5),DedGrales!$D$77:$O$77) -> 0 | K79: =SUMIF(DedGrales!$D$79:$O$79,MONTH(Auxiliares!K$5),DedGrales!$D$77:$O$77) -> 0 | L79: =SUMIF(DedGrales!$D$79:$O$79,MONTH(Auxiliares!L$5),DedGrales!$D$77:$O$77) -> 0 | M79: =SUMIF(DedGrales!$D$79:$O$79,MONTH(Auxiliares!M$5),DedGrales!$D$77:$O$77) -> 0 | N79: =SUMIF(DedGrales!$D$79:$O$79,MONTH(Auxiliares!N$5),DedGrales!$D$77:$O$77) -> 0 | O79: =SUMIF(DedGrales!$D$79:$O$79,MONTH(Auxiliares!O$5),DedGrales!$D$77:$O$77) -> 0 | P79: =SUM(D79:O79) -> 0
C80: Seguros mixtos | D80: =SUMIF(DedGrales!$D$188:$O$188,MONTH(Auxiliares!D$5),DedGrales!$D$186:$O$186) -> 0 | E80: =SUMIF(DedGrales!$D$188:$O$188,MONTH(Auxiliares!E$5),DedGrales!$D$186:$O$186) -> 0 | F80: =SUMIF(DedGrales!$D$188:$O$188,MONTH(Auxiliares!F$5),DedGrales!$D$186:$O$186) -> 0 | G80: =SUMIF(DedGrales!$D$188:$O$188,MONTH(Auxiliares!G$5),DedGrales!$D$186:$O$186) -> 0 | H80: =SUMIF(DedGrales!$D$188:$O$188,MONTH(Auxiliares!H$5),DedGrales!$D$186:$O$186) -> 0 | I80: =SUMIF(DedGrales!$D$188:$O$188,MONTH(Auxiliares!I$5),DedGrales!$D$186:$O$186) -> 0 | J80: =SUMIF(DedGrales!$D$188:$O$188,MONTH(Auxiliares!J$5),DedGrales!$D$186:$O$186) -> 0 | K80: =SUMIF(DedGrales!$D$188:$O$188,MONTH(Auxiliares!K$5),DedGrales!$D$186:$O$186) -> 0 | L80: =SUMIF(DedGrales!$D$188:$O$188,MONTH(Auxiliares!L$5),DedGrales!$D$186:$O$186) -> 0 | M80: =SUMIF(DedGrales!$D$188:$O$188,MONTH(Auxiliares!M$5),DedGrales!$D$186:$O$186) -> 0 | N80: =SUMIF(DedGrales!$D$188:$O$188,MONTH(Auxiliares!N$5),DedGrales!$D$186:$O$186) -> 0 | O80: =SUMIF(DedGrales!$D$188:$O$188,MONTH(Auxiliares!O$5),DedGrales!$D$186:$O$186) -> 0 | P80: =+O80 -> 0
C81: Fondo común de inversión | D81: =SUMIF(DedGrales!$D$196:$O$196,MONTH(Auxiliares!D$5),DedGrales!$D$194:$O$194) -> 0 | E81: =SUMIF(DedGrales!$D$196:$O$196,MONTH(Auxiliares!E$5),DedGrales!$D$194:$O$194) -> 0 | F81: =SUMIF(DedGrales!$D$196:$O$196,MONTH(Auxiliares!F$5),DedGrales!$D$194:$O$194) -> 0 | G81: =SUMIF(DedGrales!$D$196:$O$196,MONTH(Auxiliares!G$5),DedGrales!$D$194:$O$194) -> 0 | H81: =SUMIF(DedGrales!$D$196:$O$196,MONTH(Auxiliares!H$5),DedGrales!$D$194:$O$194) -> 0 | I81: =SUMIF(DedGrales!$D$196:$O$196,MONTH(Auxiliares!I$5),DedGrales!$D$194:$O$194) -> 0 | J81: =SUMIF(DedGrales!$D$196:$O$196,MONTH(Auxiliares!J$5),DedGrales!$D$194:$O$194) -> 0 | K81: =SUMIF(DedGrales!$D$196:$O$196,MONTH(Auxiliares!K$5),DedGrales!$D$194:$O$194) -> 0 | L81: =SUMIF(DedGrales!$D$196:$O$196,MONTH(Auxiliares!L$5),DedGrales!$D$194:$O$194) -> 0 | M81: =SUMIF(DedGrales!$D$196:$O$196,MONTH(Auxiliares!M$5),DedGrales!$D$194:$O$194) -> 0 | N81: =SUMIF(DedGrales!$D$196:$O$196,MONTH(Auxiliares!N$5),DedGrales!$D$194:$O$194) -> 0 | O81: =SUMIF(DedGrales!$D$196:$O$196,MONTH(Auxiliares!O$5),DedGrales!$D$194:$O$194) -> 0 | P81: =+O81 -> 0
C82: Gastos de Sepelio | D82: =SUMIF(DedGrales!$D$90:$O$90,MONTH(Auxiliares!D$5),DedGrales!$D$88:$O$88) -> 0 | E82: =SUMIF(DedGrales!$D$90:$O$90,MONTH(Auxiliares!E$5),DedGrales!$D$88:$O$88) -> 0 | F82: =SUMIF(DedGrales!$D$90:$O$90,MONTH(Auxiliares!F$5),DedGrales!$D$88:$O$88) -> 0 | G82: =SUMIF(DedGrales!$D$90:$O$90,MONTH(Auxiliares!G$5),DedGrales!$D$88:$O$88) -> 0 | H82: =SUMIF(DedGrales!$D$90:$O$90,MONTH(Auxiliares!H$5),DedGrales!$D$88:$O$88) -> 0 | I82: =SUMIF(DedGrales!$D$90:$O$90,MONTH(Auxiliares!I$5),DedGrales!$D$88:$O$88) -> 0 | J82: =SUMIF(DedGrales!$D$90:$O$90,MONTH(Auxiliares!J$5),DedGrales!$D$88:$O$88) -> 0 | K82: =SUMIF(DedGrales!$D$90:$O$90,MONTH(Auxiliares!K$5),DedGrales!$D$88:$O$88) -> 0 | L82: =SUMIF(DedGrales!$D$90:$O$90,MONTH(Auxiliares!L$5),DedGrales!$D$88:$O$88) -> 0 | M82: =SUMIF(DedGrales!$D$90:$O$90,MONTH(Auxiliares!M$5),DedGrales!$D$88:$O$88) -> 0 | N82: =SUMIF(DedGrales!$D$90:$O$90,MONTH(Auxiliares!N$5),DedGrales!$D$88:$O$88) -> 0 | O82: =SUMIF(DedGrales!$D$90:$O$90,MONTH(Auxiliares!O$5),DedGrales!$D$88:$O$88) -> 0 | P82: =SUM(D82:O82) -> 0
C83: Intereses Crédito Hipotecario | D83: =SUMIF(DedGrales!$D$107:$O$107,MONTH(Auxiliares!D$5),DedGrales!$D$105:$O$105) -> 0 | E83: =SUMIF(DedGrales!$D$107:$O$107,MONTH(Auxiliares!E$5),DedGrales!$D$105:$O$105) -> 0 | F83: =SUMIF(DedGrales!$D$107:$O$107,MONTH(Auxiliares!F$5),DedGrales!$D$105:$O$105) -> 0 | G83: =SUMIF(DedGrales!$D$107:$O$107,MONTH(Auxiliares!G$5),DedGrales!$D$105:$O$105) -> 0 | H83: =SUMIF(DedGrales!$D$107:$O$107,MONTH(Auxiliares!H$5),DedGrales!$D$105:$O$105) -> 0 | I83: =SUMIF(DedGrales!$D$107:$O$107,MONTH(Auxiliares!I$5),DedGrales!$D$105:$O$105) -> 0 | J83: =SUMIF(DedGrales!$D$107:$O$107,MONTH(Auxiliares!J$5),DedGrales!$D$105:$O$105) -> 0 | K83: =SUMIF(DedGrales!$D$107:$O$107,MONTH(Auxiliares!K$5),DedGrales!$D$105:$O$105) -> 0 | L83: =SUMIF(DedGrales!$D$107:$O$107,MONTH(Auxiliares!L$5),DedGrales!$D$105:$O$105) -> 0 | M83: =SUMIF(DedGrales!$D$107:$O$107,MONTH(Auxiliares!M$5),DedGrales!$D$105:$O$105) -> 0 | N83: =SUMIF(DedGrales!$D$107:$O$107,MONTH(Auxiliares!N$5),DedGrales!$D$105:$O$105) -> 0 | O83: =SUMIF(DedGrales!$D$107:$O$107,MONTH(Auxiliares!O$5),DedGrales!$D$105:$O$105) -> 0 | P83: 0
C84: Personal de Casas Particulares | D84: =SUMIF(DedGrales!$D$98:$O$98,MONTH(Auxiliares!D$5),DedGrales!$D$96:$O$96) -> 0 | E84: =SUMIF(DedGrales!$D$98:$O$98,MONTH(Auxiliares!E$5),DedGrales!$D$96:$O$96) -> 0 | F84: =SUMIF(DedGrales!$D$98:$O$98,MONTH(Auxiliares!F$5),DedGrales!$D$96:$O$96) -> 0 | G84: =SUMIF(DedGrales!$D$98:$O$98,MONTH(Auxiliares!G$5),DedGrales!$D$96:$O$96) -> 0 | H84: =SUMIF(DedGrales!$D$98:$O$98,MONTH(Auxiliares!H$5),DedGrales!$D$96:$O$96) -> 0 | I84: =SUMIF(DedGrales!$D$98:$O$98,MONTH(Auxiliares!I$5),DedGrales!$D$96:$O$96) -> 0 | J84: =SUMIF(DedGrales!$D$98:$O$98,MONTH(Auxiliares!J$5),DedGrales!$D$96:$O$96) -> 0 | K84: =SUMIF(DedGrales!$D$98:$O$98,MONTH(Auxiliares!K$5),DedGrales!$D$96:$O$96) -> 0 | L84: =SUMIF(DedGrales!$D$98:$O$98,MONTH(Auxiliares!L$5),DedGrales!$D$96:$O$96) -> 0 | M84: =SUMIF(DedGrales!$D$98:$O$98,MONTH(Auxiliares!M$5),DedGrales!$D$96:$O$96) -> 0 | N84: =SUMIF(DedGrales!$D$98:$O$98,MONTH(Auxiliares!N$5),DedGrales!$D$96:$O$96) -> 0 | O84: =SUMIF(DedGrales!$D$98:$O$98,MONTH(Auxiliares!O$5),DedGrales!$D$96:$O$96) -> 0 | P84: 0
C85: Aportes a fondos de jubilaciones | D85: =SUMIF(DedGrales!$D$45:$O$45,MONTH(Auxiliares!D$5),DedGrales!$D$43:$O$43) -> 0 | E85: =SUMIF(DedGrales!$D$45:$O$45,MONTH(Auxiliares!E$5),DedGrales!$D$43:$O$43) -> 0 | F85: =SUMIF(DedGrales!$D$45:$O$45,MONTH(Auxiliares!F$5),DedGrales!$D$43:$O$43) -> 0 | G85: =SUMIF(DedGrales!$D$45:$O$45,MONTH(Auxiliares!G$5),DedGrales!$D$43:$O$43) -> 0 | H85: =SUMIF(DedGrales!$D$45:$O$45,MONTH(Auxiliares!H$5),DedGrales!$D$43:$O$43) -> 0 | I85: =SUMIF(DedGrales!$D$45:$O$45,MONTH(Auxiliares!I$5),DedGrales!$D$43:$O$43) -> 0 | J85: =SUMIF(DedGrales!$D$45:$O$45,MONTH(Auxiliares!J$5),DedGrales!$D$43:$O$43) -> 0 | K85: =SUMIF(DedGrales!$D$45:$O$45,MONTH(Auxiliares!K$5),DedGrales!$D$43:$O$43) -> 0 | L85: =SUMIF(DedGrales!$D$45:$O$45,MONTH(Auxiliares!L$5),DedGrales!$D$43:$O$43) -> 0 | M85: =SUMIF(DedGrales!$D$45:$O$45,MONTH(Auxiliares!M$5),DedGrales!$D$43:$O$43) -> 0 | N85: =SUMIF(DedGrales!$D$45:$O$45,MONTH(Auxiliares!N$5),DedGrales!$D$43:$O$43) -> 0 | O85: =SUMIF(DedGrales!$D$45:$O$45,MONTH(Auxiliares!O$5),DedGrales!$D$43:$O$43) -> 0 | P85: 0
C86: Alquiler de casa habitación | D86: =SUMIF(DedGrales!$D$70:$O$70,MONTH(Auxiliares!D$5),DedGrales!$D$68:$O$68)*0.4 -> 0 | E86: =SUMIF(DedGrales!$D$70:$O$70,MONTH(Auxiliares!E$5),DedGrales!$D$68:$O$68)*0.4 -> 0 | F86: =SUMIF(DedGrales!$D$70:$O$70,MONTH(Auxiliares!F$5),DedGrales!$D$68:$O$68)*0.4 -> 0 | G86: =SUMIF(DedGrales!$D$70:$O$70,MONTH(Auxiliares!G$5),DedGrales!$D$68:$O$68)*0.4 -> 0 | H86: =SUMIF(DedGrales!$D$70:$O$70,MONTH(Auxiliares!H$5),DedGrales!$D$68:$O$68)*0.4 -> 0 | I86: =SUMIF(DedGrales!$D$70:$O$70,MONTH(Auxiliares!I$5),DedGrales!$D$68:$O$68)*0.4 -> 0 | J86: =SUMIF(DedGrales!$D$70:$O$70,MONTH(Auxiliares!J$5),DedGrales!$D$68:$O$68)*0.4 -> 0 | K86: =SUMIF(DedGrales!$D$70:$O$70,MONTH(Auxiliares!K$5),DedGrales!$D$68:$O$68)*0.4 -> 0 | L86: =SUMIF(DedGrales!$D$70:$O$70,MONTH(Auxiliares!L$5),DedGrales!$D$68:$O$68)*0.4 -> 0 | M86: =SUMIF(DedGrales!$D$70:$O$70,MONTH(Auxiliares!M$5),DedGrales!$D$68:$O$68)*0.4 -> 0 | N86: =SUMIF(DedGrales!$D$70:$O$70,MONTH(Auxiliares!N$5),DedGrales!$D$68:$O$68)*0.4 -> 0 | O86: =SUMIF(DedGrales!$D$70:$O$70,MONTH(Auxiliares!O$5),DedGrales!$D$68:$O$68)*0.4 -> 0 | P86: 0
C87: Viáticos | D87: =SUMIF(DedGrales!$D$150:$O$150,MONTH(Auxiliares!D$5),DedGrales!$D$148:$O$148) -> 0 | E87: =SUMIF(DedGrales!$D$150:$O$150,MONTH(Auxiliares!E$5),DedGrales!$D$148:$O$148) -> 0 | F87: =SUMIF(DedGrales!$D$150:$O$150,MONTH(Auxiliares!F$5),DedGrales!$D$148:$O$148) -> 0 | G87: =SUMIF(DedGrales!$D$150:$O$150,MONTH(Auxiliares!G$5),DedGrales!$D$148:$O$148) -> 0 | H87: =SUMIF(DedGrales!$D$150:$O$150,MONTH(Auxiliares!H$5),DedGrales!$D$148:$O$148) -> 0 | I87: =SUMIF(DedGrales!$D$150:$O$150,MONTH(Auxiliares!I$5),DedGrales!$D$148:$O$148) -> 0 | J87: =SUMIF(DedGrales!$D$150:$O$150,MONTH(Auxiliares!J$5),DedGrales!$D$148:$O$148) -> 0 | K87: =SUMIF(DedGrales!$D$150:$O$150,MONTH(Auxiliares!K$5),DedGrales!$D$148:$O$148) -> 0 | L87: =SUMIF(DedGrales!$D$150:$O$150,MONTH(Auxiliares!L$5),DedGrales!$D$148:$O$148) -> 0 | M87: =SUMIF(DedGrales!$D$150:$O$150,MONTH(Auxiliares!M$5),DedGrales!$D$148:$O$148) -> 0 | N87: =SUMIF(DedGrales!$D$150:$O$150,MONTH(Auxiliares!N$5),DedGrales!$D$148:$O$148) -> 0 | O87: =SUMIF(DedGrales!$D$150:$O$150,MONTH(Auxiliares!O$5),DedGrales!$D$148:$O$148) -> 0 | P87: 0
C88: Viáticos (larga distancia) | D88: =SUMIF(DedGrales!$D$179:$O$179,MONTH(Auxiliares!D$5),DedGrales!$D$177:$O$177) -> 0 | E88: =SUMIF(DedGrales!$D$179:$O$179,MONTH(Auxiliares!E$5),DedGrales!$D$177:$O$177) -> 0 | F88: =SUMIF(DedGrales!$D$179:$O$179,MONTH(Auxiliares!F$5),DedGrales!$D$177:$O$177) -> 0 | G88: =SUMIF(DedGrales!$D$179:$O$179,MONTH(Auxiliares!G$5),DedGrales!$D$177:$O$177) -> 0 | H88: =SUMIF(DedGrales!$D$179:$O$179,MONTH(Auxiliares!H$5),DedGrales!$D$177:$O$177) -> 0 | I88: =SUMIF(DedGrales!$D$179:$O$179,MONTH(Auxiliares!I$5),DedGrales!$D$177:$O$177) -> 0 | J88: =SUMIF(DedGrales!$D$179:$O$179,MONTH(Auxiliares!J$5),DedGrales!$D$177:$O$177) -> 0 | K88: =SUMIF(DedGrales!$D$179:$O$179,MONTH(Auxiliares!K$5),DedGrales!$D$177:$O$177) -> 0 | L88: =SUMIF(DedGrales!$D$179:$O$179,MONTH(Auxiliares!L$5),DedGrales!$D$177:$O$177) -> 0 | M88: =SUMIF(DedGrales!$D$179:$O$179,MONTH(Auxiliares!M$5),DedGrales!$D$177:$O$177) -> 0 | N88: =SUMIF(DedGrales!$D$179:$O$179,MONTH(Auxiliares!N$5),DedGrales!$D$177:$O$177) -> 0 | O88: =SUMIF(DedGrales!$D$179:$O$179,MONTH(Auxiliares!O$5),DedGrales!$D$177:$O$177) -> 0 | P88: 0
C89: Descuentos obligatorios | D89: =SUMIF(DedGrales!$D$37:$O$37,MONTH(Auxiliares!D$5),DedGrales!$D$35:$O$35) -> 0 | E89: =SUMIF(DedGrales!$D$37:$O$37,MONTH(Auxiliares!E$5),DedGrales!$D$35:$O$35) -> 0 | F89: =SUMIF(DedGrales!$D$37:$O$37,MONTH(Auxiliares!F$5),DedGrales!$D$35:$O$35) -> 0 | G89: =SUMIF(DedGrales!$D$37:$O$37,MONTH(Auxiliares!G$5),DedGrales!$D$35:$O$35) -> 0 | H89: =SUMIF(DedGrales!$D$37:$O$37,MONTH(Auxiliares!H$5),DedGrales!$D$35:$O$35) -> 0 | I89: =SUMIF(DedGrales!$D$37:$O$37,MONTH(Auxiliares!I$5),DedGrales!$D$35:$O$35) -> 0 | J89: =SUMIF(DedGrales!$D$37:$O$37,MONTH(Auxiliares!J$5),DedGrales!$D$35:$O$35) -> 0 | K89: =SUMIF(DedGrales!$D$37:$O$37,MONTH(Auxiliares!K$5),DedGrales!$D$35:$O$35) -> 0 | L89: =SUMIF(DedGrales!$D$37:$O$37,MONTH(Auxiliares!L$5),DedGrales!$D$35:$O$35) -> 0 | M89: =SUMIF(DedGrales!$D$37:$O$37,MONTH(Auxiliares!M$5),DedGrales!$D$35:$O$35) -> 0 | N89: =SUMIF(DedGrales!$D$37:$O$37,MONTH(Auxiliares!N$5),DedGrales!$D$35:$O$35) -> 0 | O89: =SUMIF(DedGrales!$D$37:$O$37,MONTH(Auxiliares!O$5),DedGrales!$D$35:$O$35) -> 0 | P89: 0
C90: SGR | D90: =SUMIF(DedGrales!$D$61:$O$61,MONTH(Auxiliares!D$5),DedGrales!$D$59:$O$59) -> 0 | E90: =SUMIF(DedGrales!$D$61:$O$61,MONTH(Auxiliares!E$5),DedGrales!$D$59:$O$59) -> 0 | F90: =SUMIF(DedGrales!$D$61:$O$61,MONTH(Auxiliares!F$5),DedGrales!$D$59:$O$59) -> 0 | G90: =SUMIF(DedGrales!$D$61:$O$61,MONTH(Auxiliares!G$5),DedGrales!$D$59:$O$59) -> 0 | H90: =SUMIF(DedGrales!$D$61:$O$61,MONTH(Auxiliares!H$5),DedGrales!$D$59:$O$59) -> 0 | I90: =SUMIF(DedGrales!$D$61:$O$61,MONTH(Auxiliares!I$5),DedGrales!$D$59:$O$59) -> 0 | J90: =SUMIF(DedGrales!$D$61:$O$61,MONTH(Auxiliares!J$5),DedGrales!$D$59:$O$59) -> 0 | K90: =SUMIF(DedGrales!$D$61:$O$61,MONTH(Auxiliares!K$5),DedGrales!$D$59:$O$59) -> 0 | L90: =SUMIF(DedGrales!$D$61:$O$61,MONTH(Auxiliares!L$5),DedGrales!$D$59:$O$59) -> 0 | M90: =SUMIF(DedGrales!$D$61:$O$61,MONTH(Auxiliares!M$5),DedGrales!$D$59:$O$59) -> 0 | N90: =SUMIF(DedGrales!$D$61:$O$61,MONTH(Auxiliares!N$5),DedGrales!$D$59:$O$59) -> 0 | O90: =SUMIF(DedGrales!$D$61:$O$61,MONTH(Auxiliares!O$5),DedGrales!$D$59:$O$59) -> 0 | P90: 0
C91: Cajas complementarias de previsión | D91: =SUMIF(DedGrales!$D$53:$O$53,MONTH(Auxiliares!D$5),DedGrales!$D$51:$O$51) -> 0 | E91: =SUMIF(DedGrales!$D$53:$O$53,MONTH(Auxiliares!E$5),DedGrales!$D$51:$O$51) -> 0 | F91: =SUMIF(DedGrales!$D$53:$O$53,MONTH(Auxiliares!F$5),DedGrales!$D$51:$O$51) -> 0 | G91: =SUMIF(DedGrales!$D$53:$O$53,MONTH(Auxiliares!G$5),DedGrales!$D$51:$O$51) -> 0 | H91: =SUMIF(DedGrales!$D$53:$O$53,MONTH(Auxiliares!H$5),DedGrales!$D$51:$O$51) -> 0 | I91: =SUMIF(DedGrales!$D$53:$O$53,MONTH(Auxiliares!I$5),DedGrales!$D$51:$O$51) -> 0 | J91: =SUMIF(DedGrales!$D$53:$O$53,MONTH(Auxiliares!J$5),DedGrales!$D$51:$O$51) -> 0 | K91: =SUMIF(DedGrales!$D$53:$O$53,MONTH(Auxiliares!K$5),DedGrales!$D$51:$O$51) -> 0 | L91: =SUMIF(DedGrales!$D$53:$O$53,MONTH(Auxiliares!L$5),DedGrales!$D$51:$O$51) -> 0 | M91: =SUMIF(DedGrales!$D$53:$O$53,MONTH(Auxiliares!M$5),DedGrales!$D$51:$O$51) -> 0 | N91: =SUMIF(DedGrales!$D$53:$O$53,MONTH(Auxiliares!N$5),DedGrales!$D$51:$O$51) -> 0 | O91: =SUMIF(DedGrales!$D$53:$O$53,MONTH(Auxiliares!O$5),DedGrales!$D$51:$O$51) -> 0 | P91: 0
C92: Viajantes | D92: =SUMIF(DedGrales!$D$141:$O$141,MONTH(Auxiliares!D$5),DedGrales!$D$139:$O$139) -> 0 | E92: =SUMIF(DedGrales!$D$141:$O$141,MONTH(Auxiliares!E$5),DedGrales!$D$139:$O$139) -> 0 | F92: =SUMIF(DedGrales!$D$141:$O$141,MONTH(Auxiliares!F$5),DedGrales!$D$139:$O$139) -> 0 | G92: =SUMIF(DedGrales!$D$141:$O$141,MONTH(Auxiliares!G$5),DedGrales!$D$139:$O$139) -> 0 | H92: =SUMIF(DedGrales!$D$141:$O$141,MONTH(Auxiliares!H$5),DedGrales!$D$139:$O$139) -> 0 | I92: =SUMIF(DedGrales!$D$141:$O$141,MONTH(Auxiliares!I$5),DedGrales!$D$139:$O$139) -> 0 | J92: =SUMIF(DedGrales!$D$141:$O$141,MONTH(Auxiliares!J$5),DedGrales!$D$139:$O$139) -> 0 | K92: =SUMIF(DedGrales!$D$141:$O$141,MONTH(Auxiliares!K$5),DedGrales!$D$139:$O$139) -> 0 | L92: =SUMIF(DedGrales!$D$141:$O$141,MONTH(Auxiliares!L$5),DedGrales!$D$139:$O$139) -> 0 | M92: =SUMIF(DedGrales!$D$141:$O$141,MONTH(Auxiliares!M$5),DedGrales!$D$139:$O$139) -> 0 | N92: =SUMIF(DedGrales!$D$141:$O$141,MONTH(Auxiliares!N$5),DedGrales!$D$139:$O$139) -> 0 | O92: =SUMIF(DedGrales!$D$141:$O$141,MONTH(Auxiliares!O$5),DedGrales!$D$139:$O$139) -> 0 | P92: 0
C93: Retiro privado | D93: =SUMIF(DedGrales!$D$160:$O$160,MONTH(Auxiliares!D$5),DedGrales!$D$158:$O$158) -> 0 | E93: =SUMIF(DedGrales!$D$160:$O$160,MONTH(Auxiliares!E$5),DedGrales!$D$158:$O$158) -> 0 | F93: =SUMIF(DedGrales!$D$160:$O$160,MONTH(Auxiliares!F$5),DedGrales!$D$158:$O$158) -> 0 | G93: =SUMIF(DedGrales!$D$160:$O$160,MONTH(Auxiliares!G$5),DedGrales!$D$158:$O$158) -> 0 | H93: =SUMIF(DedGrales!$D$160:$O$160,MONTH(Auxiliares!H$5),DedGrales!$D$158:$O$158) -> 0 | I93: =SUMIF(DedGrales!$D$160:$O$160,MONTH(Auxiliares!I$5),DedGrales!$D$158:$O$158) -> 0 | J93: =SUMIF(DedGrales!$D$160:$O$160,MONTH(Auxiliares!J$5),DedGrales!$D$158:$O$158) -> 0 | K93: =SUMIF(DedGrales!$D$160:$O$160,MONTH(Auxiliares!K$5),DedGrales!$D$158:$O$158) -> 0 | L93: =SUMIF(DedGrales!$D$160:$O$160,MONTH(Auxiliares!L$5),DedGrales!$D$158:$O$158) -> 0 | M93: =SUMIF(DedGrales!$D$160:$O$160,MONTH(Auxiliares!M$5),DedGrales!$D$158:$O$158) -> 0 | N93: =SUMIF(DedGrales!$D$160:$O$160,MONTH(Auxiliares!N$5),DedGrales!$D$158:$O$158) -> 0 | O93: =SUMIF(DedGrales!$D$160:$O$160,MONTH(Auxiliares!O$5),DedGrales!$D$158:$O$158) -> 0 | P93: 0
C94: Indumentaria | D94: =SUMIF(DedGrales!$D$170:$O$170,MONTH(Auxiliares!D$5),DedGrales!$D$168:$O$168) -> 0 | E94: =SUMIF(DedGrales!$D$170:$O$170,MONTH(Auxiliares!E$5),DedGrales!$D$168:$O$168) -> 0 | F94: =SUMIF(DedGrales!$D$170:$O$170,MONTH(Auxiliares!F$5),DedGrales!$D$168:$O$168) -> 0 | G94: =SUMIF(DedGrales!$D$170:$O$170,MONTH(Auxiliares!G$5),DedGrales!$D$168:$O$168) -> 0 | H94: =SUMIF(DedGrales!$D$170:$O$170,MONTH(Auxiliares!H$5),DedGrales!$D$168:$O$168) -> 0 | I94: =SUMIF(DedGrales!$D$170:$O$170,MONTH(Auxiliares!I$5),DedGrales!$D$168:$O$168) -> 0 | J94: =SUMIF(DedGrales!$D$170:$O$170,MONTH(Auxiliares!J$5),DedGrales!$D$168:$O$168) -> 0 | K94: =SUMIF(DedGrales!$D$170:$O$170,MONTH(Auxiliares!K$5),DedGrales!$D$168:$O$168) -> 0 | L94: =SUMIF(DedGrales!$D$170:$O$170,MONTH(Auxiliares!L$5),DedGrales!$D$168:$O$168) -> 0 | M94: =SUMIF(DedGrales!$D$170:$O$170,MONTH(Auxiliares!M$5),DedGrales!$D$168:$O$168) -> 0 | N94: =SUMIF(DedGrales!$D$170:$O$170,MONTH(Auxiliares!N$5),DedGrales!$D$168:$O$168) -> 0 | O94: =SUMIF(DedGrales!$D$170:$O$170,MONTH(Auxiliares!O$5),DedGrales!$D$168:$O$168) -> 0 | P94: =SUM(D94:O94) -> 0
C95: Tope (5% de la ganancia neta) | D95: =+Liquidacion!F122*0.05 -> 0 | E95: =+Liquidacion!G122*0.05 -> 0 | F95: =+Liquidacion!H122*0.05 -> 0 | G95: =+Liquidacion!I122*0.05 -> 0 | H95: =+Liquidacion!J122*0.05 -> 0 | I95: =+Liquidacion!K122*0.05 -> 0 | J95: =+Liquidacion!L122*0.05 -> 0 | K95: =+Liquidacion!M122*0.05 -> 0 | L95: =+Liquidacion!N122*0.05 -> 0 | M95: =+Liquidacion!O122*0.05 -> 0 | N95: =+Liquidacion!P122*0.05 -> 0 | O95: =+Liquidacion!Q122*0.05 -> 0 | P95: =+Liquidacion!S122*0.05 -> 0
C96: Cuota Médico Asistencial | D96: =SUMIF(DedGrales!$D$116:$O$116,MONTH(Auxiliares!D$5),DedGrales!$D$114:$O$114) -> 0 | E96: =SUMIF(DedGrales!$D$116:$O$116,MONTH(Auxiliares!E$5),DedGrales!$D$114:$O$114) -> 0 | F96: =SUMIF(DedGrales!$D$116:$O$116,MONTH(Auxiliares!F$5),DedGrales!$D$114:$O$114) -> 0 | G96: =SUMIF(DedGrales!$D$116:$O$116,MONTH(Auxiliares!G$5),DedGrales!$D$114:$O$114) -> 0 | H96: =SUMIF(DedGrales!$D$116:$O$116,MONTH(Auxiliares!H$5),DedGrales!$D$114:$O$114) -> 0 | I96: =SUMIF(DedGrales!$D$116:$O$116,MONTH(Auxiliares!I$5),DedGrales!$D$114:$O$114) -> 0 | J96: =SUMIF(DedGrales!$D$116:$O$116,MONTH(Auxiliares!J$5),DedGrales!$D$114:$O$114) -> 0 | K96: =SUMIF(DedGrales!$D$116:$O$116,MONTH(Auxiliares!K$5),DedGrales!$D$114:$O$114) -> 0 | L96: =SUMIF(DedGrales!$D$116:$O$116,MONTH(Auxiliares!L$5),DedGrales!$D$114:$O$114) -> 0 | M96: =SUMIF(DedGrales!$D$116:$O$116,MONTH(Auxiliares!M$5),DedGrales!$D$114:$O$114) -> 0 | N96: =SUMIF(DedGrales!$D$116:$O$116,MONTH(Auxiliares!N$5),DedGrales!$D$114:$O$114) -> 0 | O96: =SUMIF(DedGrales!$D$116:$O$116,MONTH(Auxiliares!O$5),DedGrales!$D$114:$O$114) -> 0 | P96: 0
C97: Donaciones | D97: =SUMIF(DedGrales!$D$125:$O$125,MONTH(Auxiliares!D$5),DedGrales!$D$123:$O$123) -> 0 | E97: =SUMIF(DedGrales!$D$125:$O$125,MONTH(Auxiliares!E$5),DedGrales!$D$123:$O$123) -> 0 | F97: =SUMIF(DedGrales!$D$125:$O$125,MONTH(Auxiliares!F$5),DedGrales!$D$123:$O$123) -> 0 | G97: =SUMIF(DedGrales!$D$125:$O$125,MONTH(Auxiliares!G$5),DedGrales!$D$123:$O$123) -> 0 | H97: =SUMIF(DedGrales!$D$125:$O$125,MONTH(Auxiliares!H$5),DedGrales!$D$123:$O$123) -> 0 | I97: =SUMIF(DedGrales!$D$125:$O$125,MONTH(Auxiliares!I$5),DedGrales!$D$123:$O$123) -> 0 | J97: =SUMIF(DedGrales!$D$125:$O$125,MONTH(Auxiliares!J$5),DedGrales!$D$123:$O$123) -> 0 | K97: =SUMIF(DedGrales!$D$125:$O$125,MONTH(Auxiliares!K$5),DedGrales!$D$123:$O$123) -> 0 | L97: =SUMIF(DedGrales!$D$125:$O$125,MONTH(Auxiliares!L$5),DedGrales!$D$123:$O$123) -> 0 | M97: =SUMIF(DedGrales!$D$125:$O$125,MONTH(Auxiliares!M$5),DedGrales!$D$123:$O$123) -> 0 | N97: =SUMIF(DedGrales!$D$125:$O$125,MONTH(Auxiliares!N$5),DedGrales!$D$123:$O$123) -> 0 | O97: =SUMIF(DedGrales!$D$125:$O$125,MONTH(Auxiliares!O$5),DedGrales!$D$123:$O$123) -> 0 | P97: 0
C98: Honorarios Médicos Profesionales | P98: =SUM(DedGrales!$D$131:$O$131)*0.4 -> 0
C101: Deducciones personales | D101: 2017-01-01 | E101: 2017-02-01 | F101: 2017-03-01 | G101: 2017-04-01 | H101: 2017-05-01 | I101: 2017-06-01 | J101: 2017-07-01 | K101: 2017-08-01 | L101: 2017-09-01 | M101: 2017-10-01 | N101: 2017-11-01 | O101: 2017-12-01 | P101: Anual
C102: Alta/baja
C103: Cónyuge | D103: =COUNTIF(DedPersonales!$E$8,"<="&MONTH(Auxiliares!D101))-COUNTIF(DedPersonales!$F$8,"<"&MONTH(Auxiliares!D101)) -> 0 | E103: =COUNTIF(DedPersonales!$E$8,"<="&MONTH(Auxiliares!E101))-COUNTIF(DedPersonales!$F$8,"<"&MONTH(Auxiliares!E101)) -> 0 | F103: =COUNTIF(DedPersonales!$E$8,"<="&MONTH(Auxiliares!F101))-COUNTIF(DedPersonales!$F$8,"<"&MONTH(Auxiliares!F101)) -> 0 | G103: =COUNTIF(DedPersonales!$E$8,"<="&MONTH(Auxiliares!G101))-COUNTIF(DedPersonales!$F$8,"<"&MONTH(Auxiliares!G101)) -> 0 | H103: =COUNTIF(DedPersonales!$E$8,"<="&MONTH(Auxiliares!H101))-COUNTIF(DedPersonales!$F$8,"<"&MONTH(Auxiliares!H101)) -> 0 | I103: =COUNTIF(DedPersonales!$E$8,"<="&MONTH(Auxiliares!I101))-COUNTIF(DedPersonales!$F$8,"<"&MONTH(Auxiliares!I101)) -> 0 | J103: =COUNTIF(DedPersonales!$E$8,"<="&MONTH(Auxiliares!J101))-COUNTIF(DedPersonales!$F$8,"<"&MONTH(Auxiliares!J101)) -> 0 | K103: =COUNTIF(DedPersonales!$E$8,"<="&MONTH(Auxiliares!K101))-COUNTIF(DedPersonales!$F$8,"<"&MONTH(Auxiliares!K101)) -> 0 | L103: =COUNTIF(DedPersonales!$E$8,"<="&MONTH(Auxiliares!L101))-COUNTIF(DedPersonales!$F$8,"<"&MONTH(Auxiliares!L101)) -> 0 | M103: =COUNTIF(DedPersonales!$E$8,"<="&MONTH(Auxiliares!M101))-COUNTIF(DedPersonales!$F$8,"<"&MONTH(Auxiliares!M101)) -> 0 | N103: =COUNTIF(DedPersonales!$E$8,"<="&MONTH(Auxiliares!N101))-COUNTIF(DedPersonales!$F$8,"<"&MONTH(Auxiliares!N101)) -> 0 | O103: =COUNTIF(DedPersonales!$E$8,"<="&MONTH(Auxiliares!O101))-COUNTIF(DedPersonales!$F$8,"<"&MONTH(Auxiliares!O101)) -> 0
C105: Hijo1 | D105: =COUNTIF(DedPersonales!$F14,"<="&MONTH(Auxiliares!D$101))-COUNTIF(DedPersonales!$G14,"<"&MONTH(Auxiliares!D$101)) -> 0 | E105: =COUNTIF(DedPersonales!$F14,"<="&MONTH(Auxiliares!E$101))-COUNTIF(DedPersonales!$G14,"<"&MONTH(Auxiliares!E$101)) -> 0 | F105: =COUNTIF(DedPersonales!$F14,"<="&MONTH(Auxiliares!F$101))-COUNTIF(DedPersonales!$G14,"<"&MONTH(Auxiliares!F$101)) -> 0 | G105: =COUNTIF(DedPersonales!$F14,"<="&MONTH(Auxiliares!G$101))-COUNTIF(DedPersonales!$G14,"<"&MONTH(Auxiliares!G$101)) -> 0 | H105: =COUNTIF(DedPersonales!$F14,"<="&MONTH(Auxiliares!H$101))-COUNTIF(DedPersonales!$G14,"<"&MONTH(Auxiliares!H$101)) -> 0 | I105: =COUNTIF(DedPersonales!$F14,"<="&MONTH(Auxiliares!I$101))-COUNTIF(DedPersonales!$G14,"<"&MONTH(Auxiliares!I$101)) -> 0 | J105: =COUNTIF(DedPersonales!$F14,"<="&MONTH(Auxiliares!J$101))-COUNTIF(DedPersonales!$G14,"<"&MONTH(Auxiliares!J$101)) -> 0 | K105: =COUNTIF(DedPersonales!$F14,"<="&MONTH(Auxiliares!K$101))-COUNTIF(DedPersonales!$G14,"<"&MONTH(Auxiliares!K$101)) -> 0 | L105: =COUNTIF(DedPersonales!$F14,"<="&MONTH(Auxiliares!L$101))-COUNTIF(DedPersonales!$G14,"<"&MONTH(Auxiliares!L$101)) -> 0 | M105: =COUNTIF(DedPersonales!$F14,"<="&MONTH(Auxiliares!M$101))-COUNTIF(DedPersonales!$G14,"<"&MONTH(Auxiliares!M$101)) -> 0 | N105: =COUNTIF(DedPersonales!$F14,"<="&MONTH(Auxiliares!N$101))-COUNTIF(DedPersonales!$G14,"<"&MONTH(Auxiliares!N$101)) -> 0 | O105: =COUNTIF(DedPersonales!$F14,"<="&MONTH(Auxiliares!O$101))-COUNTIF(DedPersonales!$G14,"<"&MONTH(Auxiliares!O$101)) -> 0 | Q105: =IF(SUM(D105:O105)<>0,1,0) -> 0
C106: Hijo2 | D106: =COUNTIF(DedPersonales!$F15,"<="&MONTH(Auxiliares!D$101))-COUNTIF(DedPersonales!$G15,"<"&MONTH(Auxiliares!D$101)) -> 0 | E106: =COUNTIF(DedPersonales!$F15,"<="&MONTH(Auxiliares!E$101))-COUNTIF(DedPersonales!$G15,"<"&MONTH(Auxiliares!E$101)) -> 0 | F106: =COUNTIF(DedPersonales!$F15,"<="&MONTH(Auxiliares!F$101))-COUNTIF(DedPersonales!$G15,"<"&MONTH(Auxiliares!F$101)) -> 0 | G106: =COUNTIF(DedPersonales!$F15,"<="&MONTH(Auxiliares!G$101))-COUNTIF(DedPersonales!$G15,"<"&MONTH(Auxiliares!G$101)) -> 0 | H106: =COUNTIF(DedPersonales!$F15,"<="&MONTH(Auxiliares!H$101))-COUNTIF(DedPersonales!$G15,"<"&MONTH(Auxiliares!H$101)) -> 0 | I106: =COUNTIF(DedPersonales!$F15,"<="&MONTH(Auxiliares!I$101))-COUNTIF(DedPersonales!$G15,"<"&MONTH(Auxiliares!I$101)) -> 0 | J106: =COUNTIF(DedPersonales!$F15,"<="&MONTH(Auxiliares!J$101))-COUNTIF(DedPersonales!$G15,"<"&MONTH(Auxiliares!J$101)) -> 0 | K106: =COUNTIF(DedPersonales!$F15,"<="&MONTH(Auxiliares!K$101))-COUNTIF(DedPersonales!$G15,"<"&MONTH(Auxiliares!K$101)) -> 0 | L106: =COUNTIF(DedPersonales!$F15,"<="&MONTH(Auxiliares!L$101))-COUNTIF(DedPersonales!$G15,"<"&MONTH(Auxiliares!L$101)) -> 0 | M106: =COUNTIF(DedPersonales!$F15,"<="&MONTH(Auxiliares!M$101))-COUNTIF(DedPersonales!$G15,"<"&MONTH(Auxiliares!M$101)) -> 0 | N106: =COUNTIF(DedPersonales!$F15,"<="&MONTH(Auxiliares!N$101))-COUNTIF(DedPersonales!$G15,"<"&MONTH(Auxiliares!N$101)) -> 0 | O106: =COUNTIF(DedPersonales!$F15,"<="&MONTH(Auxiliares!O$101))-COUNTIF(DedPersonales!$G15,"<"&MONTH(Auxiliares!O$101)) -> 0 | Q106: =IF(SUM(D106:O106)<>0,1,0) -> 0
C107: Hijo3 | D107: =COUNTIF(DedPersonales!$F16,"<="&MONTH(Auxiliares!D$101))-COUNTIF(DedPersonales!$G16,"<"&MONTH(Auxiliares!D$101)) -> 0 | E107: =COUNTIF(DedPersonales!$F16,"<="&MONTH(Auxiliares!E$101))-COUNTIF(DedPersonales!$G16,"<"&MONTH(Auxiliares!E$101)) -> 0 | F107: =COUNTIF(DedPersonales!$F16,"<="&MONTH(Auxiliares!F$101))-COUNTIF(DedPersonales!$G16,"<"&MONTH(Auxiliares!F$101)) -> 0 | G107: =COUNTIF(DedPersonales!$F16,"<="&MONTH(Auxiliares!G$101))-COUNTIF(DedPersonales!$G16,"<"&MONTH(Auxiliares!G$101)) -> 0 | H107: =COUNTIF(DedPersonales!$F16,"<="&MONTH(Auxiliares!H$101))-COUNTIF(DedPersonales!$G16,"<"&MONTH(Auxiliares!H$101)) -> 0 | I107: =COUNTIF(DedPersonales!$F16,"<="&MONTH(Auxiliares!I$101))-COUNTIF(DedPersonales!$G16,"<"&MONTH(Auxiliares!I$101)) -> 0 | J107: =COUNTIF(DedPersonales!$F16,"<="&MONTH(Auxiliares!J$101))-COUNTIF(DedPersonales!$G16,"<"&MONTH(Auxiliares!J$101)) -> 0 | K107: =COUNTIF(DedPersonales!$F16,"<="&MONTH(Auxiliares!K$101))-COUNTIF(DedPersonales!$G16,"<"&MONTH(Auxiliares!K$101)) -> 0 | L107: =COUNTIF(DedPersonales!$F16,"<="&MONTH(Auxiliares!L$101))-COUNTIF(DedPersonales!$G16,"<"&MONTH(Auxiliares!L$101)) -> 0 | M107: =COUNTIF(DedPersonales!$F16,"<="&MONTH(Auxiliares!M$101))-COUNTIF(DedPersonales!$G16,"<"&MONTH(Auxiliares!M$101)) -> 0 | N107: =COUNTIF(DedPersonales!$F16,"<="&MONTH(Auxiliares!N$101))-COUNTIF(DedPersonales!$G16,"<"&MONTH(Auxiliares!N$101)) -> 0 | O107: =COUNTIF(DedPersonales!$F16,"<="&MONTH(Auxiliares!O$101))-COUNTIF(DedPersonales!$G16,"<"&MONTH(Auxiliares!O$101)) -> 0 | Q107: 0
C108: Hijo4 | D108: =COUNTIF(DedPersonales!$F17,"<="&MONTH(Auxiliares!D$101))-COUNTIF(DedPersonales!$G17,"<"&MONTH(Auxiliares!D$101)) -> 0 | E108: =COUNTIF(DedPersonales!$F17,"<="&MONTH(Auxiliares!E$101))-COUNTIF(DedPersonales!$G17,"<"&MONTH(Auxiliares!E$101)) -> 0 | F108: =COUNTIF(DedPersonales!$F17,"<="&MONTH(Auxiliares!F$101))-COUNTIF(DedPersonales!$G17,"<"&MONTH(Auxiliares!F$101)) -> 0 | G108: =COUNTIF(DedPersonales!$F17,"<="&MONTH(Auxiliares!G$101))-COUNTIF(DedPersonales!$G17,"<"&MONTH(Auxiliares!G$101)) -> 0 | H108: =COUNTIF(DedPersonales!$F17,"<="&MONTH(Auxiliares!H$101))-COUNTIF(DedPersonales!$G17,"<"&MONTH(Auxiliares!H$101)) -> 0 | I108: =COUNTIF(DedPersonales!$F17,"<="&MONTH(Auxiliares!I$101))-COUNTIF(DedPersonales!$G17,"<"&MONTH(Auxiliares!I$101)) -> 0 | J108: =COUNTIF(DedPersonales!$F17,"<="&MONTH(Auxiliares!J$101))-COUNTIF(DedPersonales!$G17,"<"&MONTH(Auxiliares!J$101)) -> 0 | K108: =COUNTIF(DedPersonales!$F17,"<="&MONTH(Auxiliares!K$101))-COUNTIF(DedPersonales!$G17,"<"&MONTH(Auxiliares!K$101)) -> 0 | L108: =COUNTIF(DedPersonales!$F17,"<="&MONTH(Auxiliares!L$101))-COUNTIF(DedPersonales!$G17,"<"&MONTH(Auxiliares!L$101)) -> 0 | M108: =COUNTIF(DedPersonales!$F17,"<="&MONTH(Auxiliares!M$101))-COUNTIF(DedPersonales!$G17,"<"&MONTH(Auxiliares!M$101)) -> 0 | N108: =COUNTIF(DedPersonales!$F17,"<="&MONTH(Auxiliares!N$101))-COUNTIF(DedPersonales!$G17,"<"&MONTH(Auxiliares!N$101)) -> 0 | O108: =COUNTIF(DedPersonales!$F17,"<="&MONTH(Auxiliares!O$101))-COUNTIF(DedPersonales!$G17,"<"&MONTH(Auxiliares!O$101)) -> 0 | Q108: 0
C109: Hijo5 | D109: =COUNTIF(DedPersonales!$F18,"<="&MONTH(Auxiliares!D$101))-COUNTIF(DedPersonales!$G18,"<"&MONTH(Auxiliares!D$101)) -> 0 | E109: =COUNTIF(DedPersonales!$F18,"<="&MONTH(Auxiliares!E$101))-COUNTIF(DedPersonales!$G18,"<"&MONTH(Auxiliares!E$101)) -> 0 | F109: =COUNTIF(DedPersonales!$F18,"<="&MONTH(Auxiliares!F$101))-COUNTIF(DedPersonales!$G18,"<"&MONTH(Auxiliares!F$101)) -> 0 | G109: =COUNTIF(DedPersonales!$F18,"<="&MONTH(Auxiliares!G$101))-COUNTIF(DedPersonales!$G18,"<"&MONTH(Auxiliares!G$101)) -> 0 | H109: =COUNTIF(DedPersonales!$F18,"<="&MONTH(Auxiliares!H$101))-COUNTIF(DedPersonales!$G18,"<"&MONTH(Auxiliares!H$101)) -> 0 | I109: =COUNTIF(DedPersonales!$F18,"<="&MONTH(Auxiliares!I$101))-COUNTIF(DedPersonales!$G18,"<"&MONTH(Auxiliares!I$101)) -> 0 | J109: =COUNTIF(DedPersonales!$F18,"<="&MONTH(Auxiliares!J$101))-COUNTIF(DedPersonales!$G18,"<"&MONTH(Auxiliares!J$101)) -> 0 | K109: =COUNTIF(DedPersonales!$F18,"<="&MONTH(Auxiliares!K$101))-COUNTIF(DedPersonales!$G18,"<"&MONTH(Auxiliares!K$101)) -> 0 | L109: =COUNTIF(DedPersonales!$F18,"<="&MONTH(Auxiliares!L$101))-COUNTIF(DedPersonales!$G18,"<"&MONTH(Auxiliares!L$101)) -> 0 | M109: =COUNTIF(DedPersonales!$F18,"<="&MONTH(Auxiliares!M$101))-COUNTIF(DedPersonales!$G18,"<"&MONTH(Auxiliares!M$101)) -> 0 | N109: =COUNTIF(DedPersonales!$F18,"<="&MONTH(Auxiliares!N$101))-COUNTIF(DedPersonales!$G18,"<"&MONTH(Auxiliares!N$101)) -> 0 | O109: =COUNTIF(DedPersonales!$F18,"<="&MONTH(Auxiliares!O$101))-COUNTIF(DedPersonales!$G18,"<"&MONTH(Auxiliares!O$101)) -> 0 | Q109: 0
C110: Hijo6 | D110: =COUNTIF(DedPersonales!$F19,"<="&MONTH(Auxiliares!D$101))-COUNTIF(DedPersonales!$G19,"<"&MONTH(Auxiliares!D$101)) -> 0 | E110: =COUNTIF(DedPersonales!$F19,"<="&MONTH(Auxiliares!E$101))-COUNTIF(DedPersonales!$G19,"<"&MONTH(Auxiliares!E$101)) -> 0 | F110: =COUNTIF(DedPersonales!$F19,"<="&MONTH(Auxiliares!F$101))-COUNTIF(DedPersonales!$G19,"<"&MONTH(Auxiliares!F$101)) -> 0 | G110: =COUNTIF(DedPersonales!$F19,"<="&MONTH(Auxiliares!G$101))-COUNTIF(DedPersonales!$G19,"<"&MONTH(Auxiliares!G$101)) -> 0 | H110: =COUNTIF(DedPersonales!$F19,"<="&MONTH(Auxiliares!H$101))-COUNTIF(DedPersonales!$G19,"<"&MONTH(Auxiliares!H$101)) -> 0 | I110: =COUNTIF(DedPersonales!$F19,"<="&MONTH(Auxiliares!I$101))-COUNTIF(DedPersonales!$G19,"<"&MONTH(Auxiliares!I$101)) -> 0 | J110: =COUNTIF(DedPersonales!$F19,"<="&MONTH(Auxiliares!J$101))-COUNTIF(DedPersonales!$G19,"<"&MONTH(Auxiliares!J$101)) -> 0 | K110: =COUNTIF(DedPersonales!$F19,"<="&MONTH(Auxiliares!K$101))-COUNTIF(DedPersonales!$G19,"<"&MONTH(Auxiliares!K$101)) -> 0 | L110: =COUNTIF(DedPersonales!$F19,"<="&MONTH(Auxiliares!L$101))-COUNTIF(DedPersonales!$G19,"<"&MONTH(Auxiliares!L$101)) -> 0 | M110: =COUNTIF(DedPersonales!$F19,"<="&MONTH(Auxiliares!M$101))-COUNTIF(DedPersonales!$G19,"<"&MONTH(Auxiliares!M$101)) -> 0 | N110: =COUNTIF(DedPersonales!$F19,"<="&MONTH(Auxiliares!N$101))-COUNTIF(DedPersonales!$G19,"<"&MONTH(Auxiliares!N$101)) -> 0 | O110: =COUNTIF(DedPersonales!$F19,"<="&MONTH(Auxiliares!O$101))-COUNTIF(DedPersonales!$G19,"<"&MONTH(Auxiliares!O$101)) -> 0 | Q110: 0
C111: Hijo7 | D111: =COUNTIF(DedPersonales!$F20,"<="&MONTH(Auxiliares!D$101))-COUNTIF(DedPersonales!$G20,"<"&MONTH(Auxiliares!D$101)) -> 0 | E111: =COUNTIF(DedPersonales!$F20,"<="&MONTH(Auxiliares!E$101))-COUNTIF(DedPersonales!$G20,"<"&MONTH(Auxiliares!E$101)) -> 0 | F111: =COUNTIF(DedPersonales!$F20,"<="&MONTH(Auxiliares!F$101))-COUNTIF(DedPersonales!$G20,"<"&MONTH(Auxiliares!F$101)) -> 0 | G111: =COUNTIF(DedPersonales!$F20,"<="&MONTH(Auxiliares!G$101))-COUNTIF(DedPersonales!$G20,"<"&MONTH(Auxiliares!G$101)) -> 0 | H111: =COUNTIF(DedPersonales!$F20,"<="&MONTH(Auxiliares!H$101))-COUNTIF(DedPersonales!$G20,"<"&MONTH(Auxiliares!H$101)) -> 0 | I111: =COUNTIF(DedPersonales!$F20,"<="&MONTH(Auxiliares!I$101))-COUNTIF(DedPersonales!$G20,"<"&MONTH(Auxiliares!I$101)) -> 0 | J111: =COUNTIF(DedPersonales!$F20,"<="&MONTH(Auxiliares!J$101))-COUNTIF(DedPersonales!$G20,"<"&MONTH(Auxiliares!J$101)) -> 0 | K111: =COUNTIF(DedPersonales!$F20,"<="&MONTH(Auxiliares!K$101))-COUNTIF(DedPersonales!$G20,"<"&MONTH(Auxiliares!K$101)) -> 0 | L111: =COUNTIF(DedPersonales!$F20,"<="&MONTH(Auxiliares!L$101))-COUNTIF(DedPersonales!$G20,"<"&MONTH(Auxiliares!L$101)) -> 0 | M111: =COUNTIF(DedPersonales!$F20,"<="&MONTH(Auxiliares!M$101))-COUNTIF(DedPersonales!$G20,"<"&MONTH(Auxiliares!M$101)) -> 0 | N111: =COUNTIF(DedPersonales!$F20,"<="&MONTH(Auxiliares!N$101))-COUNTIF(DedPersonales!$G20,"<"&MONTH(Auxiliares!N$101)) -> 0 | O111: =COUNTIF(DedPersonales!$F20,"<="&MONTH(Auxiliares!O$101))-COUNTIF(DedPersonales!$G20,"<"&MONTH(Auxiliares!O$101)) -> 0 | Q111: 0
C112: Hijo8 | D112: =COUNTIF(DedPersonales!$F21,"<="&MONTH(Auxiliares!D$101))-COUNTIF(DedPersonales!$G21,"<"&MONTH(Auxiliares!D$101)) -> 0 | E112: =COUNTIF(DedPersonales!$F21,"<="&MONTH(Auxiliares!E$101))-COUNTIF(DedPersonales!$G21,"<"&MONTH(Auxiliares!E$101)) -> 0 | F112: =COUNTIF(DedPersonales!$F21,"<="&MONTH(Auxiliares!F$101))-COUNTIF(DedPersonales!$G21,"<"&MONTH(Auxiliares!F$101)) -> 0 | G112: =COUNTIF(DedPersonales!$F21,"<="&MONTH(Auxiliares!G$101))-COUNTIF(DedPersonales!$G21,"<"&MONTH(Auxiliares!G$101)) -> 0 | H112: =COUNTIF(DedPersonales!$F21,"<="&MONTH(Auxiliares!H$101))-COUNTIF(DedPersonales!$G21,"<"&MONTH(Auxiliares!H$101)) -> 0 | I112: =COUNTIF(DedPersonales!$F21,"<="&MONTH(Auxiliares!I$101))-COUNTIF(DedPersonales!$G21,"<"&MONTH(Auxiliares!I$101)) -> 0 | J112: =COUNTIF(DedPersonales!$F21,"<="&MONTH(Auxiliares!J$101))-COUNTIF(DedPersonales!$G21,"<"&MONTH(Auxiliares!J$101)) -> 0 | K112: =COUNTIF(DedPersonales!$F21,"<="&MONTH(Auxiliares!K$101))-COUNTIF(DedPersonales!$G21,"<"&MONTH(Auxiliares!K$101)) -> 0 | L112: =COUNTIF(DedPersonales!$F21,"<="&MONTH(Auxiliares!L$101))-COUNTIF(DedPersonales!$G21,"<"&MONTH(Auxiliares!L$101)) -> 0 | M112: =COUNTIF(DedPersonales!$F21,"<="&MONTH(Auxiliares!M$101))-COUNTIF(DedPersonales!$G21,"<"&MONTH(Auxiliares!M$101)) -> 0 | N112: =COUNTIF(DedPersonales!$F21,"<="&MONTH(Auxiliares!N$101))-COUNTIF(DedPersonales!$G21,"<"&MONTH(Auxiliares!N$101)) -> 0 | O112: =COUNTIF(DedPersonales!$F21,"<="&MONTH(Auxiliares!O$101))-COUNTIF(DedPersonales!$G21,"<"&MONTH(Auxiliares!O$101)) -> 0 | Q112: 0
C113: Hijo9 | D113: =COUNTIF(DedPersonales!$F22,"<="&MONTH(Auxiliares!D$101))-COUNTIF(DedPersonales!$G22,"<"&MONTH(Auxiliares!D$101)) -> 0 | E113: =COUNTIF(DedPersonales!$F22,"<="&MONTH(Auxiliares!E$101))-COUNTIF(DedPersonales!$G22,"<"&MONTH(Auxiliares!E$101)) -> 0 | F113: =COUNTIF(DedPersonales!$F22,"<="&MONTH(Auxiliares!F$101))-COUNTIF(DedPersonales!$G22,"<"&MONTH(Auxiliares!F$101)) -> 0 | G113: =COUNTIF(DedPersonales!$F22,"<="&MONTH(Auxiliares!G$101))-COUNTIF(DedPersonales!$G22,"<"&MONTH(Auxiliares!G$101)) -> 0 | H113: =COUNTIF(DedPersonales!$F22,"<="&MONTH(Auxiliares!H$101))-COUNTIF(DedPersonales!$G22,"<"&MONTH(Auxiliares!H$101)) -> 0 | I113: =COUNTIF(DedPersonales!$F22,"<="&MONTH(Auxiliares!I$101))-COUNTIF(DedPersonales!$G22,"<"&MONTH(Auxiliares!I$101)) -> 0 | J113: =COUNTIF(DedPersonales!$F22,"<="&MONTH(Auxiliares!J$101))-COUNTIF(DedPersonales!$G22,"<"&MONTH(Auxiliares!J$101)) -> 0 | K113: =COUNTIF(DedPersonales!$F22,"<="&MONTH(Auxiliares!K$101))-COUNTIF(DedPersonales!$G22,"<"&MONTH(Auxiliares!K$101)) -> 0 | L113: =COUNTIF(DedPersonales!$F22,"<="&MONTH(Auxiliares!L$101))-COUNTIF(DedPersonales!$G22,"<"&MONTH(Auxiliares!L$101)) -> 0 | M113: =COUNTIF(DedPersonales!$F22,"<="&MONTH(Auxiliares!M$101))-COUNTIF(DedPersonales!$G22,"<"&MONTH(Auxiliares!M$101)) -> 0 | N113: =COUNTIF(DedPersonales!$F22,"<="&MONTH(Auxiliares!N$101))-COUNTIF(DedPersonales!$G22,"<"&MONTH(Auxiliares!N$101)) -> 0 | O113: =COUNTIF(DedPersonales!$F22,"<="&MONTH(Auxiliares!O$101))-COUNTIF(DedPersonales!$G22,"<"&MONTH(Auxiliares!O$101)) -> 0 | Q113: 0
C114: Hijo10 | D114: =COUNTIF(DedPersonales!$F23,"<="&MONTH(Auxiliares!D$101))-COUNTIF(DedPersonales!$G23,"<"&MONTH(Auxiliares!D$101)) -> 0 | E114: =COUNTIF(DedPersonales!$F23,"<="&MONTH(Auxiliares!E$101))-COUNTIF(DedPersonales!$G23,"<"&MONTH(Auxiliares!E$101)) -> 0 | F114: =COUNTIF(DedPersonales!$F23,"<="&MONTH(Auxiliares!F$101))-COUNTIF(DedPersonales!$G23,"<"&MONTH(Auxiliares!F$101)) -> 0 | G114: =COUNTIF(DedPersonales!$F23,"<="&MONTH(Auxiliares!G$101))-COUNTIF(DedPersonales!$G23,"<"&MONTH(Auxiliares!G$101)) -> 0 | H114: =COUNTIF(DedPersonales!$F23,"<="&MONTH(Auxiliares!H$101))-COUNTIF(DedPersonales!$G23,"<"&MONTH(Auxiliares!H$101)) -> 0 | I114: =COUNTIF(DedPersonales!$F23,"<="&MONTH(Auxiliares!I$101))-COUNTIF(DedPersonales!$G23,"<"&MONTH(Auxiliares!I$101)) -> 0 | J114: =COUNTIF(DedPersonales!$F23,"<="&MONTH(Auxiliares!J$101))-COUNTIF(DedPersonales!$G23,"<"&MONTH(Auxiliares!J$101)) -> 0 | K114: =COUNTIF(DedPersonales!$F23,"<="&MONTH(Auxiliares!K$101))-COUNTIF(DedPersonales!$G23,"<"&MONTH(Auxiliares!K$101)) -> 0 | L114: =COUNTIF(DedPersonales!$F23,"<="&MONTH(Auxiliares!L$101))-COUNTIF(DedPersonales!$G23,"<"&MONTH(Auxiliares!L$101)) -> 0 | M114: =COUNTIF(DedPersonales!$F23,"<="&MONTH(Auxiliares!M$101))-COUNTIF(DedPersonales!$G23,"<"&MONTH(Auxiliares!M$101)) -> 0 | N114: =COUNTIF(DedPersonales!$F23,"<="&MONTH(Auxiliares!N$101))-COUNTIF(DedPersonales!$G23,"<"&MONTH(Auxiliares!N$101)) -> 0 | O114: =COUNTIF(DedPersonales!$F23,"<="&MONTH(Auxiliares!O$101))-COUNTIF(DedPersonales!$G23,"<"&MONTH(Auxiliares!O$101)) -> 0 | Q114: 0
C115: Hijo11 | D115: =COUNTIF(DedPersonales!$F24,"<="&MONTH(Auxiliares!D$101))-COUNTIF(DedPersonales!$G24,"<"&MONTH(Auxiliares!D$101)) -> 0 | E115: =COUNTIF(DedPersonales!$F24,"<="&MONTH(Auxiliares!E$101))-COUNTIF(DedPersonales!$G24,"<"&MONTH(Auxiliares!E$101)) -> 0 | F115: =COUNTIF(DedPersonales!$F24,"<="&MONTH(Auxiliares!F$101))-COUNTIF(DedPersonales!$G24,"<"&MONTH(Auxiliares!F$101)) -> 0 | G115: =COUNTIF(DedPersonales!$F24,"<="&MONTH(Auxiliares!G$101))-COUNTIF(DedPersonales!$G24,"<"&MONTH(Auxiliares!G$101)) -> 0 | H115: =COUNTIF(DedPersonales!$F24,"<="&MONTH(Auxiliares!H$101))-COUNTIF(DedPersonales!$G24,"<"&MONTH(Auxiliares!H$101)) -> 0 | I115: =COUNTIF(DedPersonales!$F24,"<="&MONTH(Auxiliares!I$101))-COUNTIF(DedPersonales!$G24,"<"&MONTH(Auxiliares!I$101)) -> 0 | J115: =COUNTIF(DedPersonales!$F24,"<="&MONTH(Auxiliares!J$101))-COUNTIF(DedPersonales!$G24,"<"&MONTH(Auxiliares!J$101)) -> 0 | K115: =COUNTIF(DedPersonales!$F24,"<="&MONTH(Auxiliares!K$101))-COUNTIF(DedPersonales!$G24,"<"&MONTH(Auxiliares!K$101)) -> 0 | L115: =COUNTIF(DedPersonales!$F24,"<="&MONTH(Auxiliares!L$101))-COUNTIF(DedPersonales!$G24,"<"&MONTH(Auxiliares!L$101)) -> 0 | M115: =COUNTIF(DedPersonales!$F24,"<="&MONTH(Auxiliares!M$101))-COUNTIF(DedPersonales!$G24,"<"&MONTH(Auxiliares!M$101)) -> 0 | N115: =COUNTIF(DedPersonales!$F24,"<="&MONTH(Auxiliares!N$101))-COUNTIF(DedPersonales!$G24,"<"&MONTH(Auxiliares!N$101)) -> 0 | O115: =COUNTIF(DedPersonales!$F24,"<="&MONTH(Auxiliares!O$101))-COUNTIF(DedPersonales!$G24,"<"&MONTH(Auxiliares!O$101)) -> 0 | Q115: 0
C116: Hijo12 | D116: =COUNTIF(DedPersonales!$F25,"<="&MONTH(Auxiliares!D$101))-COUNTIF(DedPersonales!$G25,"<"&MONTH(Auxiliares!D$101)) -> 0 | E116: =COUNTIF(DedPersonales!$F25,"<="&MONTH(Auxiliares!E$101))-COUNTIF(DedPersonales!$G25,"<"&MONTH(Auxiliares!E$101)) -> 0 | F116: =COUNTIF(DedPersonales!$F25,"<="&MONTH(Auxiliares!F$101))-COUNTIF(DedPersonales!$G25,"<"&MONTH(Auxiliares!F$101)) -> 0 | G116: =COUNTIF(DedPersonales!$F25,"<="&MONTH(Auxiliares!G$101))-COUNTIF(DedPersonales!$G25,"<"&MONTH(Auxiliares!G$101)) -> 0 | H116: =COUNTIF(DedPersonales!$F25,"<="&MONTH(Auxiliares!H$101))-COUNTIF(DedPersonales!$G25,"<"&MONTH(Auxiliares!H$101)) -> 0 | I116: =COUNTIF(DedPersonales!$F25,"<="&MONTH(Auxiliares!I$101))-COUNTIF(DedPersonales!$G25,"<"&MONTH(Auxiliares!I$101)) -> 0 | J116: =COUNTIF(DedPersonales!$F25,"<="&MONTH(Auxiliares!J$101))-COUNTIF(DedPersonales!$G25,"<"&MONTH(Auxiliares!J$101)) -> 0 | K116: =COUNTIF(DedPersonales!$F25,"<="&MONTH(Auxiliares!K$101))-COUNTIF(DedPersonales!$G25,"<"&MONTH(Auxiliares!K$101)) -> 0 | L116: =COUNTIF(DedPersonales!$F25,"<="&MONTH(Auxiliares!L$101))-COUNTIF(DedPersonales!$G25,"<"&MONTH(Auxiliares!L$101)) -> 0 | M116: =COUNTIF(DedPersonales!$F25,"<="&MONTH(Auxiliares!M$101))-COUNTIF(DedPersonales!$G25,"<"&MONTH(Auxiliares!M$101)) -> 0 | N116: =COUNTIF(DedPersonales!$F25,"<="&MONTH(Auxiliares!N$101))-COUNTIF(DedPersonales!$G25,"<"&MONTH(Auxiliares!N$101)) -> 0 | O116: =COUNTIF(DedPersonales!$F25,"<="&MONTH(Auxiliares!O$101))-COUNTIF(DedPersonales!$G25,"<"&MONTH(Auxiliares!O$101)) -> 0 | Q116: 0
C117: Hijo13 | D117: =COUNTIF(DedPersonales!$F26,"<="&MONTH(Auxiliares!D$101))-COUNTIF(DedPersonales!$G26,"<"&MONTH(Auxiliares!D$101)) -> 0 | E117: =COUNTIF(DedPersonales!$F26,"<="&MONTH(Auxiliares!E$101))-COUNTIF(DedPersonales!$G26,"<"&MONTH(Auxiliares!E$101)) -> 0 | F117: =COUNTIF(DedPersonales!$F26,"<="&MONTH(Auxiliares!F$101))-COUNTIF(DedPersonales!$G26,"<"&MONTH(Auxiliares!F$101)) -> 0 | G117: =COUNTIF(DedPersonales!$F26,"<="&MONTH(Auxiliares!G$101))-COUNTIF(DedPersonales!$G26,"<"&MONTH(Auxiliares!G$101)) -> 0 | H117: =COUNTIF(DedPersonales!$F26,"<="&MONTH(Auxiliares!H$101))-COUNTIF(DedPersonales!$G26,"<"&MONTH(Auxiliares!H$101)) -> 0 | I117: =COUNTIF(DedPersonales!$F26,"<="&MONTH(Auxiliares!I$101))-COUNTIF(DedPersonales!$G26,"<"&MONTH(Auxiliares!I$101)) -> 0 | J117: =COUNTIF(DedPersonales!$F26,"<="&MONTH(Auxiliares!J$101))-COUNTIF(DedPersonales!$G26,"<"&MONTH(Auxiliares!J$101)) -> 0 | K117: =COUNTIF(DedPersonales!$F26,"<="&MONTH(Auxiliares!K$101))-COUNTIF(DedPersonales!$G26,"<"&MONTH(Auxiliares!K$101)) -> 0 | L117: =COUNTIF(DedPersonales!$F26,"<="&MONTH(Auxiliares!L$101))-COUNTIF(DedPersonales!$G26,"<"&MONTH(Auxiliares!L$101)) -> 0 | M117: =COUNTIF(DedPersonales!$F26,"<="&MONTH(Auxiliares!M$101))-COUNTIF(DedPersonales!$G26,"<"&MONTH(Auxiliares!M$101)) -> 0 | N117: =COUNTIF(DedPersonales!$F26,"<="&MONTH(Auxiliares!N$101))-COUNTIF(DedPersonales!$G26,"<"&MONTH(Auxiliares!N$101)) -> 0 | O117: =COUNTIF(DedPersonales!$F26,"<="&MONTH(Auxiliares!O$101))-COUNTIF(DedPersonales!$G26,"<"&MONTH(Auxiliares!O$101)) -> 0 | Q117: 0
C118: Hijo14 | D118: =COUNTIF(DedPersonales!$F27,"<="&MONTH(Auxiliares!D$101))-COUNTIF(DedPersonales!$G27,"<"&MONTH(Auxiliares!D$101)) -> 0 | E118: =COUNTIF(DedPersonales!$F27,"<="&MONTH(Auxiliares!E$101))-COUNTIF(DedPersonales!$G27,"<"&MONTH(Auxiliares!E$101)) -> 0 | F118: =COUNTIF(DedPersonales!$F27,"<="&MONTH(Auxiliares!F$101))-COUNTIF(DedPersonales!$G27,"<"&MONTH(Auxiliares!F$101)) -> 0 | G118: =COUNTIF(DedPersonales!$F27,"<="&MONTH(Auxiliares!G$101))-COUNTIF(DedPersonales!$G27,"<"&MONTH(Auxiliares!G$101)) -> 0 | H118: =COUNTIF(DedPersonales!$F27,"<="&MONTH(Auxiliares!H$101))-COUNTIF(DedPersonales!$G27,"<"&MONTH(Auxiliares!H$101)) -> 0 | I118: =COUNTIF(DedPersonales!$F27,"<="&MONTH(Auxiliares!I$101))-COUNTIF(DedPersonales!$G27,"<"&MONTH(Auxiliares!I$101)) -> 0 | J118: =COUNTIF(DedPersonales!$F27,"<="&MONTH(Auxiliares!J$101))-COUNTIF(DedPersonales!$G27,"<"&MONTH(Auxiliares!J$101)) -> 0 | K118: =COUNTIF(DedPersonales!$F27,"<="&MONTH(Auxiliares!K$101))-COUNTIF(DedPersonales!$G27,"<"&MONTH(Auxiliares!K$101)) -> 0 | L118: =COUNTIF(DedPersonales!$F27,"<="&MONTH(Auxiliares!L$101))-COUNTIF(DedPersonales!$G27,"<"&MONTH(Auxiliares!L$101)) -> 0 | M118: =COUNTIF(DedPersonales!$F27,"<="&MONTH(Auxiliares!M$101))-COUNTIF(DedPersonales!$G27,"<"&MONTH(Auxiliares!M$101)) -> 0 | N118: =COUNTIF(DedPersonales!$F27,"<="&MONTH(Auxiliares!N$101))-COUNTIF(DedPersonales!$G27,"<"&MONTH(Auxiliares!N$101)) -> 0 | O118: =COUNTIF(DedPersonales!$F27,"<="&MONTH(Auxiliares!O$101))-COUNTIF(DedPersonales!$G27,"<"&MONTH(Auxiliares!O$101)) -> 0 | Q118: 0
C119: Hijo15 | D119: =COUNTIF(DedPersonales!$F28,"<="&MONTH(Auxiliares!D$101))-COUNTIF(DedPersonales!$G28,"<"&MONTH(Auxiliares!D$101)) -> 0 | E119: =COUNTIF(DedPersonales!$F28,"<="&MONTH(Auxiliares!E$101))-COUNTIF(DedPersonales!$G28,"<"&MONTH(Auxiliares!E$101)) -> 0 | F119: =COUNTIF(DedPersonales!$F28,"<="&MONTH(Auxiliares!F$101))-COUNTIF(DedPersonales!$G28,"<"&MONTH(Auxiliares!F$101)) -> 0 | G119: =COUNTIF(DedPersonales!$F28,"<="&MONTH(Auxiliares!G$101))-COUNTIF(DedPersonales!$G28,"<"&MONTH(Auxiliares!G$101)) -> 0 | H119: =COUNTIF(DedPersonales!$F28,"<="&MONTH(Auxiliares!H$101))-COUNTIF(DedPersonales!$G28,"<"&MONTH(Auxiliares!H$101)) -> 0 | I119: =COUNTIF(DedPersonales!$F28,"<="&MONTH(Auxiliares!I$101))-COUNTIF(DedPersonales!$G28,"<"&MONTH(Auxiliares!I$101)) -> 0 | J119: =COUNTIF(DedPersonales!$F28,"<="&MONTH(Auxiliares!J$101))-COUNTIF(DedPersonales!$G28,"<"&MONTH(Auxiliares!J$101)) -> 0 | K119: =COUNTIF(DedPersonales!$F28,"<="&MONTH(Auxiliares!K$101))-COUNTIF(DedPersonales!$G28,"<"&MONTH(Auxiliares!K$101)) -> 0 | L119: =COUNTIF(DedPersonales!$F28,"<="&MONTH(Auxiliares!L$101))-COUNTIF(DedPersonales!$G28,"<"&MONTH(Auxiliares!L$101)) -> 0 | M119: =COUNTIF(DedPersonales!$F28,"<="&MONTH(Auxiliares!M$101))-COUNTIF(DedPersonales!$G28,"<"&MONTH(Auxiliares!M$101)) -> 0 | N119: =COUNTIF(DedPersonales!$F28,"<="&MONTH(Auxiliares!N$101))-COUNTIF(DedPersonales!$G28,"<"&MONTH(Auxiliares!N$101)) -> 0 | O119: =COUNTIF(DedPersonales!$F28,"<="&MONTH(Auxiliares!O$101))-COUNTIF(DedPersonales!$G28,"<"&MONTH(Auxiliares!O$101)) -> 0 | Q119: 0
C120: Hijo16 | D120: =COUNTIF(DedPersonales!$F29,"<="&MONTH(Auxiliares!D$101))-COUNTIF(DedPersonales!$G29,"<"&MONTH(Auxiliares!D$101)) -> 0 | E120: =COUNTIF(DedPersonales!$F29,"<="&MONTH(Auxiliares!E$101))-COUNTIF(DedPersonales!$G29,"<"&MONTH(Auxiliares!E$101)) -> 0 | F120: =COUNTIF(DedPersonales!$F29,"<="&MONTH(Auxiliares!F$101))-COUNTIF(DedPersonales!$G29,"<"&MONTH(Auxiliares!F$101)) -> 0 | G120: =COUNTIF(DedPersonales!$F29,"<="&MONTH(Auxiliares!G$101))-COUNTIF(DedPersonales!$G29,"<"&MONTH(Auxiliares!G$101)) -> 0 | H120: =COUNTIF(DedPersonales!$F29,"<="&MONTH(Auxiliares!H$101))-COUNTIF(DedPersonales!$G29,"<"&MONTH(Auxiliares!H$101)) -> 0 | I120: =COUNTIF(DedPersonales!$F29,"<="&MONTH(Auxiliares!I$101))-COUNTIF(DedPersonales!$G29,"<"&MONTH(Auxiliares!I$101)) -> 0 | J120: =COUNTIF(DedPersonales!$F29,"<="&MONTH(Auxiliares!J$101))-COUNTIF(DedPersonales!$G29,"<"&MONTH(Auxiliares!J$101)) -> 0 | K120: =COUNTIF(DedPersonales!$F29,"<="&MONTH(Auxiliares!K$101))-COUNTIF(DedPersonales!$G29,"<"&MONTH(Auxiliares!K$101)) -> 0 | L120: =COUNTIF(DedPersonales!$F29,"<="&MONTH(Auxiliares!L$101))-COUNTIF(DedPersonales!$G29,"<"&MONTH(Auxiliares!L$101)) -> 0 | M120: =COUNTIF(DedPersonales!$F29,"<="&MONTH(Auxiliares!M$101))-COUNTIF(DedPersonales!$G29,"<"&MONTH(Auxiliares!M$101)) -> 0 | N120: =COUNTIF(DedPersonales!$F29,"<="&MONTH(Auxiliares!N$101))-COUNTIF(DedPersonales!$G29,"<"&MONTH(Auxiliares!N$101)) -> 0 | O120: =COUNTIF(DedPersonales!$F29,"<="&MONTH(Auxiliares!O$101))-COUNTIF(DedPersonales!$G29,"<"&MONTH(Auxiliares!O$101)) -> 0 | Q120: 0
C122: Mes de información
C123: Cónyuge | D123: =IF(DedPersonales!$G$8=MONTH(D$101),1,0) -> 0 | E123: =IF(DedPersonales!$G$8=MONTH(E$101),1,0) -> 0 | F123: =IF(DedPersonales!$G$8=MONTH(F$101),1,0) -> 0 | G123: =IF(DedPersonales!$G$8=MONTH(G$101),1,0) -> 0 | H123: =IF(DedPersonales!$G$8=MONTH(H$101),1,0) -> 0 | I123: =IF(DedPersonales!$G$8=MONTH(I$101),1,0) -> 0 | J123: =IF(DedPersonales!$G$8=MONTH(J$101),1,0) -> 0 | K123: =IF(DedPersonales!$G$8=MONTH(K$101),1,0) -> 0 | L123: =IF(DedPersonales!$G$8=MONTH(L$101),1,0) -> 0 | M123: =IF(DedPersonales!$G$8=MONTH(M$101),1,0) -> 0 | N123: =IF(DedPersonales!$G$8=MONTH(N$101),1,0) -> 0 | O123: =IF(DedPersonales!$G$8=MONTH(O$101),1,0) -> 0
C125: Hijo1 | D125: =IF(DedPersonales!$H14=MONTH(D$101),1,0) -> 0 | E125: =IF(DedPersonales!$H14=MONTH(E$101),1,0) -> 0 | F125: =IF(DedPersonales!$H14=MONTH(F$101),1,0) -> 0 | G125: =IF(DedPersonales!$H14=MONTH(G$101),1,0) -> 0 | H125: =IF(DedPersonales!$H14=MONTH(H$101),1,0) -> 0 | I125: =IF(DedPersonales!$H14=MONTH(I$101),1,0) -> 0 | J125: =IF(DedPersonales!$H14=MONTH(J$101),1,0) -> 0 | K125: =IF(DedPersonales!$H14=MONTH(K$101),1,0) -> 0 | L125: =IF(DedPersonales!$H14=MONTH(L$101),1,0) -> 0 | M125: =IF(DedPersonales!$H14=MONTH(M$101),1,0) -> 0 | N125: =IF(DedPersonales!$H14=MONTH(N$101),1,0) -> 0 | O125: =IF(DedPersonales!$H14=MONTH(O$101),1,0) -> 0
C126: Hijo2 | D126: =IF(DedPersonales!$H15=MONTH(D$101),1,0) -> 0 | E126: =IF(DedPersonales!$H15=MONTH(E$101),1,0) -> 0 | F126: =IF(DedPersonales!$H15=MONTH(F$101),1,0) -> 0 | G126: =IF(DedPersonales!$H15=MONTH(G$101),1,0) -> 0 | H126: =IF(DedPersonales!$H15=MONTH(H$101),1,0) -> 0 | I126: =IF(DedPersonales!$H15=MONTH(I$101),1,0) -> 0 | J126: =IF(DedPersonales!$H15=MONTH(J$101),1,0) -> 0 | K126: =IF(DedPersonales!$H15=MONTH(K$101),1,0) -> 0 | L126: =IF(DedPersonales!$H15=MONTH(L$101),1,0) -> 0 | M126: =IF(DedPersonales!$H15=MONTH(M$101),1,0) -> 0 | N126: =IF(DedPersonales!$H15=MONTH(N$101),1,0) -> 0 | O126: =IF(DedPersonales!$H15=MONTH(O$101),1,0) -> 0
C127: Hijo3 | D127: =IF(DedPersonales!$H16=MONTH(D$101),1,0) -> 0 | E127: =IF(DedPersonales!$H16=MONTH(E$101),1,0) -> 0 | F127: =IF(DedPersonales!$H16=MONTH(F$101),1,0) -> 0 | G127: =IF(DedPersonales!$H16=MONTH(G$101),1,0) -> 0 | H127: =IF(DedPersonales!$H16=MONTH(H$101),1,0) -> 0 | I127: =IF(DedPersonales!$H16=MONTH(I$101),1,0) -> 0 | J127: =IF(DedPersonales!$H16=MONTH(J$101),1,0) -> 0 | K127: =IF(DedPersonales!$H16=MONTH(K$101),1,0) -> 0 | L127: =IF(DedPersonales!$H16=MONTH(L$101),1,0) -> 0 | M127: =IF(DedPersonales!$H16=MONTH(M$101),1,0) -> 0 | N127: =IF(DedPersonales!$H16=MONTH(N$101),1,0) -> 0 | O127: =IF(DedPersonales!$H16=MONTH(O$101),1,0) -> 0
C128: Hijo4 | D128: =IF(DedPersonales!$H17=MONTH(D$101),1,0) -> 0 | E128: =IF(DedPersonales!$H17=MONTH(E$101),1,0) -> 0 | F128: =IF(DedPersonales!$H17=MONTH(F$101),1,0) -> 0 | G128: =IF(DedPersonales!$H17=MONTH(G$101),1,0) -> 0 | H128: =IF(DedPersonales!$H17=MONTH(H$101),1,0) -> 0 | I128: =IF(DedPersonales!$H17=MONTH(I$101),1,0) -> 0 | J128: =IF(DedPersonales!$H17=MONTH(J$101),1,0) -> 0 | K128: =IF(DedPersonales!$H17=MONTH(K$101),1,0) -> 0 | L128: =IF(DedPersonales!$H17=MONTH(L$101),1,0) -> 0 | M128: =IF(DedPersonales!$H17=MONTH(M$101),1,0) -> 0 | N128: =IF(DedPersonales!$H17=MONTH(N$101),1,0) -> 0 | O128: =IF(DedPersonales!$H17=MONTH(O$101),1,0) -> 0
C129: Hijo5 | D129: =IF(DedPersonales!$H18=MONTH(D$101),1,0) -> 0 | E129: =IF(DedPersonales!$H18=MONTH(E$101),1,0) -> 0 | F129: =IF(DedPersonales!$H18=MONTH(F$101),1,0) -> 0 | G129: =IF(DedPersonales!$H18=MONTH(G$101),1,0) -> 0 | H129: =IF(DedPersonales!$H18=MONTH(H$101),1,0) -> 0 | I129: =IF(DedPersonales!$H18=MONTH(I$101),1,0) -> 0 | J129: =IF(DedPersonales!$H18=MONTH(J$101),1,0) -> 0 | K129: =IF(DedPersonales!$H18=MONTH(K$101),1,0) -> 0 | L129: =IF(DedPersonales!$H18=MONTH(L$101),1,0) -> 0 | M129: =IF(DedPersonales!$H18=MONTH(M$101),1,0) -> 0 | N129: =IF(DedPersonales!$H18=MONTH(N$101),1,0) -> 0 | O129: =IF(DedPersonales!$H18=MONTH(O$101),1,0) -> 0
C130: Hijo6 | D130: =IF(DedPersonales!$H19=MONTH(D$101),1,0) -> 0 | E130: =IF(DedPersonales!$H19=MONTH(E$101),1,0) -> 0 | F130: =IF(DedPersonales!$H19=MONTH(F$101),1,0) -> 0 | G130: =IF(DedPersonales!$H19=MONTH(G$101),1,0) -> 0 | H130: =IF(DedPersonales!$H19=MONTH(H$101),1,0) -> 0 | I130: =IF(DedPersonales!$H19=MONTH(I$101),1,0) -> 0 | J130: =IF(DedPersonales!$H19=MONTH(J$101),1,0) -> 0 | K130: =IF(DedPersonales!$H19=MONTH(K$101),1,0) -> 0 | L130: =IF(DedPersonales!$H19=MONTH(L$101),1,0) -> 0 | M130: =IF(DedPersonales!$H19=MONTH(M$101),1,0) -> 0 | N130: =IF(DedPersonales!$H19=MONTH(N$101),1,0) -> 0 | O130: =IF(DedPersonales!$H19=MONTH(O$101),1,0) -> 0
C131: Hijo7 | D131: =IF(DedPersonales!$H20=MONTH(D$101),1,0) -> 0 | E131: =IF(DedPersonales!$H20=MONTH(E$101),1,0) -> 0 | F131: =IF(DedPersonales!$H20=MONTH(F$101),1,0) -> 0 | G131: =IF(DedPersonales!$H20=MONTH(G$101),1,0) -> 0 | H131: =IF(DedPersonales!$H20=MONTH(H$101),1,0) -> 0 | I131: =IF(DedPersonales!$H20=MONTH(I$101),1,0) -> 0 | J131: =IF(DedPersonales!$H20=MONTH(J$101),1,0) -> 0 | K131: =IF(DedPersonales!$H20=MONTH(K$101),1,0) -> 0 | L131: =IF(DedPersonales!$H20=MONTH(L$101),1,0) -> 0 | M131: =IF(DedPersonales!$H20=MONTH(M$101),1,0) -> 0 | N131: =IF(DedPersonales!$H20=MONTH(N$101),1,0) -> 0 | O131: =IF(DedPersonales!$H20=MONTH(O$101),1,0) -> 0
C132: Hijo8 | D132: =IF(DedPersonales!$H21=MONTH(D$101),1,0) -> 0 | E132: =IF(DedPersonales!$H21=MONTH(E$101),1,0) -> 0 | F132: =IF(DedPersonales!$H21=MONTH(F$101),1,0) -> 0 | G132: =IF(DedPersonales!$H21=MONTH(G$101),1,0) -> 0 | H132: =IF(DedPersonales!$H21=MONTH(H$101),1,0) -> 0 | I132: =IF(DedPersonales!$H21=MONTH(I$101),1,0) -> 0 | J132: =IF(DedPersonales!$H21=MONTH(J$101),1,0) -> 0 | K132: =IF(DedPersonales!$H21=MONTH(K$101),1,0) -> 0 | L132: =IF(DedPersonales!$H21=MONTH(L$101),1,0) -> 0 | M132: =IF(DedPersonales!$H21=MONTH(M$101),1,0) -> 0 | N132: =IF(DedPersonales!$H21=MONTH(N$101),1,0) -> 0 | O132: =IF(DedPersonales!$H21=MONTH(O$101),1,0) -> 0
C133: Hijo9 | D133: =IF(DedPersonales!$H22=MONTH(D$101),1,0) -> 0 | E133: =IF(DedPersonales!$H22=MONTH(E$101),1,0) -> 0 | F133: =IF(DedPersonales!$H22=MONTH(F$101),1,0) -> 0 | G133: =IF(DedPersonales!$H22=MONTH(G$101),1,0) -> 0 | H133: =IF(DedPersonales!$H22=MONTH(H$101),1,0) -> 0 | I133: =IF(DedPersonales!$H22=MONTH(I$101),1,0) -> 0 | J133: =IF(DedPersonales!$H22=MONTH(J$101),1,0) -> 0 | K133: =IF(DedPersonales!$H22=MONTH(K$101),1,0) -> 0 | L133: =IF(DedPersonales!$H22=MONTH(L$101),1,0) -> 0 | M133: =IF(DedPersonales!$H22=MONTH(M$101),1,0) -> 0 | N133: =IF(DedPersonales!$H22=MONTH(N$101),1,0) -> 0 | O133: =IF(DedPersonales!$H22=MONTH(O$101),1,0) -> 0
C134: Hijo10 | D134: =IF(DedPersonales!$H23=MONTH(D$101),1,0) -> 0 | E134: =IF(DedPersonales!$H23=MONTH(E$101),1,0) -> 0 | F134: =IF(DedPersonales!$H23=MONTH(F$101),1,0) -> 0 | G134: =IF(DedPersonales!$H23=MONTH(G$101),1,0) -> 0 | H134: =IF(DedPersonales!$H23=MONTH(H$101),1,0) -> 0 | I134: =IF(DedPersonales!$H23=MONTH(I$101),1,0) -> 0 | J134: =IF(DedPersonales!$H23=MONTH(J$101),1,0) -> 0 | K134: =IF(DedPersonales!$H23=MONTH(K$101),1,0) -> 0 | L134: =IF(DedPersonales!$H23=MONTH(L$101),1,0) -> 0 | M134: =IF(DedPersonales!$H23=MONTH(M$101),1,0) -> 0 | N134: =IF(DedPersonales!$H23=MONTH(N$101),1,0) -> 0 | O134: =IF(DedPersonales!$H23=MONTH(O$101),1,0) -> 0
C135: Hijo11 | D135: =IF(DedPersonales!$H24=MONTH(D$101),1,0) -> 0 | E135: =IF(DedPersonales!$H24=MONTH(E$101),1,0) -> 0 | F135: =IF(DedPersonales!$H24=MONTH(F$101),1,0) -> 0 | G135: =IF(DedPersonales!$H24=MONTH(G$101),1,0) -> 0 | H135: =IF(DedPersonales!$H24=MONTH(H$101),1,0) -> 0 | I135: =IF(DedPersonales!$H24=MONTH(I$101),1,0) -> 0 | J135: =IF(DedPersonales!$H24=MONTH(J$101),1,0) -> 0 | K135: =IF(DedPersonales!$H24=MONTH(K$101),1,0) -> 0 | L135: =IF(DedPersonales!$H24=MONTH(L$101),1,0) -> 0 | M135: =IF(DedPersonales!$H24=MONTH(M$101),1,0) -> 0 | N135: =IF(DedPersonales!$H24=MONTH(N$101),1,0) -> 0 | O135: =IF(DedPersonales!$H24=MONTH(O$101),1,0) -> 0
C136: Hijo12 | D136: =IF(DedPersonales!$H25=MONTH(D$101),1,0) -> 0 | E136: =IF(DedPersonales!$H25=MONTH(E$101),1,0) -> 0 | F136: =IF(DedPersonales!$H25=MONTH(F$101),1,0) -> 0 | G136: =IF(DedPersonales!$H25=MONTH(G$101),1,0) -> 0 | H136: =IF(DedPersonales!$H25=MONTH(H$101),1,0) -> 0 | I136: =IF(DedPersonales!$H25=MONTH(I$101),1,0) -> 0 | J136: =IF(DedPersonales!$H25=MONTH(J$101),1,0) -> 0 | K136: =IF(DedPersonales!$H25=MONTH(K$101),1,0) -> 0 | L136: =IF(DedPersonales!$H25=MONTH(L$101),1,0) -> 0 | M136: =IF(DedPersonales!$H25=MONTH(M$101),1,0) -> 0 | N136: =IF(DedPersonales!$H25=MONTH(N$101),1,0) -> 0 | O136: =IF(DedPersonales!$H25=MONTH(O$101),1,0) -> 0
C137: Hijo13 | D137: =IF(DedPersonales!$H26=MONTH(D$101),1,0) -> 0 | E137: =IF(DedPersonales!$H26=MONTH(E$101),1,0) -> 0 | F137: =IF(DedPersonales!$H26=MONTH(F$101),1,0) -> 0 | G137: =IF(DedPersonales!$H26=MONTH(G$101),1,0) -> 0 | H137: =IF(DedPersonales!$H26=MONTH(H$101),1,0) -> 0 | I137: =IF(DedPersonales!$H26=MONTH(I$101),1,0) -> 0 | J137: =IF(DedPersonales!$H26=MONTH(J$101),1,0) -> 0 | K137: =IF(DedPersonales!$H26=MONTH(K$101),1,0) -> 0 | L137: =IF(DedPersonales!$H26=MONTH(L$101),1,0) -> 0 | M137: =IF(DedPersonales!$H26=MONTH(M$101),1,0) -> 0 | N137: =IF(DedPersonales!$H26=MONTH(N$101),1,0) -> 0 | O137: =IF(DedPersonales!$H26=MONTH(O$101),1,0) -> 0
C138: Hijo14 | D138: =IF(DedPersonales!$H27=MONTH(D$101),1,0) -> 0 | E138: =IF(DedPersonales!$H27=MONTH(E$101),1,0) -> 0 | F138: =IF(DedPersonales!$H27=MONTH(F$101),1,0) -> 0 | G138: =IF(DedPersonales!$H27=MONTH(G$101),1,0) -> 0 | H138: =IF(DedPersonales!$H27=MONTH(H$101),1,0) -> 0 | I138: =IF(DedPersonales!$H27=MONTH(I$101),1,0) -> 0 | J138: =IF(DedPersonales!$H27=MONTH(J$101),1,0) -> 0 | K138: =IF(DedPersonales!$H27=MONTH(K$101),1,0) -> 0 | L138: =IF(DedPersonales!$H27=MONTH(L$101),1,0) -> 0 | M138: =IF(DedPersonales!$H27=MONTH(M$101),1,0) -> 0 | N138: =IF(DedPersonales!$H27=MONTH(N$101),1,0) -> 0 | O138: =IF(DedPersonales!$H27=MONTH(O$101),1,0) -> 0
C139: Hijo15 | D139: =IF(DedPersonales!$H28=MONTH(D$101),1,0) -> 0 | E139: =IF(DedPersonales!$H28=MONTH(E$101),1,0) -> 0 | F139: =IF(DedPersonales!$H28=MONTH(F$101),1,0) -> 0 | G139: =IF(DedPersonales!$H28=MONTH(G$101),1,0) -> 0 | H139: =IF(DedPersonales!$H28=MONTH(H$101),1,0) -> 0 | I139: =IF(DedPersonales!$H28=MONTH(I$101),1,0) -> 0 | J139: =IF(DedPersonales!$H28=MONTH(J$101),1,0) -> 0 | K139: =IF(DedPersonales!$H28=MONTH(K$101),1,0) -> 0 | L139: =IF(DedPersonales!$H28=MONTH(L$101),1,0) -> 0 | M139: =IF(DedPersonales!$H28=MONTH(M$101),1,0) -> 0 | N139: =IF(DedPersonales!$H28=MONTH(N$101),1,0) -> 0 | O139: =IF(DedPersonales!$H28=MONTH(O$101),1,0) -> 0
C140: Hijo16 | D140: =IF(DedPersonales!$H29=MONTH(D$101),1,0) -> 0 | E140: =IF(DedPersonales!$H29=MONTH(E$101),1,0) -> 0 | F140: =IF(DedPersonales!$H29=MONTH(F$101),1,0) -> 0 | G140: =IF(DedPersonales!$H29=MONTH(G$101),1,0) -> 0 | H140: =IF(DedPersonales!$H29=MONTH(H$101),1,0) -> 0 | I140: =IF(DedPersonales!$H29=MONTH(I$101),1,0) -> 0 | J140: =IF(DedPersonales!$H29=MONTH(J$101),1,0) -> 0 | K140: =IF(DedPersonales!$H29=MONTH(K$101),1,0) -> 0 | L140: =IF(DedPersonales!$H29=MONTH(L$101),1,0) -> 0 | M140: =IF(DedPersonales!$H29=MONTH(M$101),1,0) -> 0 | N140: =IF(DedPersonales!$H29=MONTH(N$101),1,0) -> 0 | O140: =IF(DedPersonales!$H29=MONTH(O$101),1,0) -> 0
C142: Imputación
C143: Cónyuge | D143: =IF(D123=1,SUM($D103:D103),0) -> 0 | E143: =IF(OR(E123=1,D143<>0),SUM($D103:E103),0) -> 0 | F143: =IF(OR(F123=1,E143<>0),SUM($D103:F103),0) -> 0 | G143: =IF(OR(G123=1,F143<>0),SUM($D103:G103),0) -> 0 | H143: =IF(OR(H123=1,G143<>0),SUM($D103:H103),0) -> 0 | I143: =IF(OR(I123=1,H143<>0),SUM($D103:I103),0) -> 0 | J143: =IF(OR(J123=1,I143<>0),SUM($D103:J103),0) -> 0 | K143: =IF(OR(K123=1,J143<>0),SUM($D103:K103),0) -> 0 | L143: =IF(OR(L123=1,K143<>0),SUM($D103:L103),0) -> 0 | M143: =IF(OR(M123=1,L143<>0),SUM($D103:M103),0) -> 0 | N143: =IF(OR(N123=1,M143<>0),SUM($D103:N103),0) -> 0 | O143: =IF(OR(O123=1,N143<>0),SUM($D103:O103),0) -> 0 | P143: =O143 -> 0
C145: Hijo1 | D145: =IF(D125=1,SUM($D105:D105),0) -> 0 | E145: =IF(OR(E125=1,D145<>0),SUM($D105:E105),0) -> 0 | F145: =IF(OR(F125=1,E145<>0),SUM($D105:F105),0) -> 0 | G145: =IF(OR(G125=1,F145<>0),SUM($D105:G105),0) -> 0 | H145: =IF(OR(H125=1,G145<>0),SUM($D105:H105),0) -> 0 | I145: =IF(OR(I125=1,H145<>0),SUM($D105:I105),0) -> 0 | J145: =IF(OR(J125=1,I145<>0),SUM($D105:J105),0) -> 0 | K145: =IF(OR(K125=1,J145<>0),SUM($D105:K105),0) -> 0 | L145: =IF(OR(L125=1,K145<>0),SUM($D105:L105),0) -> 0 | M145: =IF(OR(M125=1,L145<>0),SUM($D105:M105),0) -> 0 | N145: =IF(OR(N125=1,M145<>0),SUM($D105:N105),0) -> 0 | O145: =IF(OR(O125=1,N145<>0),SUM($D105:O105),0) -> 0 | P145: =O145 -> 0
C146: Hijo2 | D146: =IF(D126=1,SUM($D106:D106),0) -> 0 | E146: =IF(OR(E126=1,D146<>0),SUM($D106:E106),0) -> 0 | F146: =IF(OR(F126=1,E146<>0),SUM($D106:F106),0) -> 0 | G146: =IF(OR(G126=1,F146<>0),SUM($D106:G106),0) -> 0 | H146: =IF(OR(H126=1,G146<>0),SUM($D106:H106),0) -> 0 | I146: =IF(OR(I126=1,H146<>0),SUM($D106:I106),0) -> 0 | J146: =IF(OR(J126=1,I146<>0),SUM($D106:J106),0) -> 0 | K146: =IF(OR(K126=1,J146<>0),SUM($D106:K106),0) -> 0 | L146: =IF(OR(L126=1,K146<>0),SUM($D106:L106),0) -> 0 | M146: =IF(OR(M126=1,L146<>0),SUM($D106:M106),0) -> 0 | N146: =IF(OR(N126=1,M146<>0),SUM($D106:N106),0) -> 0 | O146: =IF(OR(O126=1,N146<>0),SUM($D106:O106),0) -> 0 | P146: 0
C147: Hijo3 | D147: =IF(D127=1,SUM($D107:D107),0) -> 0 | E147: =IF(OR(E127=1,D147<>0),SUM($D107:E107),0) -> 0 | F147: =IF(OR(F127=1,E147<>0),SUM($D107:F107),0) -> 0 | G147: =IF(OR(G127=1,F147<>0),SUM($D107:G107),0) -> 0 | H147: =IF(OR(H127=1,G147<>0),SUM($D107:H107),0) -> 0 | I147: =IF(OR(I127=1,H147<>0),SUM($D107:I107),0) -> 0 | J147: =IF(OR(J127=1,I147<>0),SUM($D107:J107),0) -> 0 | K147: =IF(OR(K127=1,J147<>0),SUM($D107:K107),0) -> 0 | L147: =IF(OR(L127=1,K147<>0),SUM($D107:L107),0) -> 0 | M147: =IF(OR(M127=1,L147<>0),SUM($D107:M107),0) -> 0 | N147: =IF(OR(N127=1,M147<>0),SUM($D107:N107),0) -> 0 | O147: =IF(OR(O127=1,N147<>0),SUM($D107:O107),0) -> 0 | P147: 0
C148: Hijo4 | D148: =IF(D128=1,SUM($D108:D108),0) -> 0 | E148: =IF(OR(E128=1,D148<>0),SUM($D108:E108),0) -> 0 | F148: =IF(OR(F128=1,E148<>0),SUM($D108:F108),0) -> 0 | G148: =IF(OR(G128=1,F148<>0),SUM($D108:G108),0) -> 0 | H148: =IF(OR(H128=1,G148<>0),SUM($D108:H108),0) -> 0 | I148: =IF(OR(I128=1,H148<>0),SUM($D108:I108),0) -> 0 | J148: =IF(OR(J128=1,I148<>0),SUM($D108:J108),0) -> 0 | K148: =IF(OR(K128=1,J148<>0),SUM($D108:K108),0) -> 0 | L148: =IF(OR(L128=1,K148<>0),SUM($D108:L108),0) -> 0 | M148: =IF(OR(M128=1,L148<>0),SUM($D108:M108),0) -> 0 | N148: =IF(OR(N128=1,M148<>0),SUM($D108:N108),0) -> 0 | O148: =IF(OR(O128=1,N148<>0),SUM($D108:O108),0) -> 0 | P148: 0
C149: Hijo5 | D149: =IF(D129=1,SUM($D109:D109),0) -> 0 | E149: =IF(OR(E129=1,D149<>0),SUM($D109:E109),0) -> 0 | F149: =IF(OR(F129=1,E149<>0),SUM($D109:F109),0) -> 0 | G149: =IF(OR(G129=1,F149<>0),SUM($D109:G109),0) -> 0 | H149: =IF(OR(H129=1,G149<>0),SUM($D109:H109),0) -> 0 | I149: =IF(OR(I129=1,H149<>0),SUM($D109:I109),0) -> 0 | J149: =IF(OR(J129=1,I149<>0),SUM($D109:J109),0) -> 0 | K149: =IF(OR(K129=1,J149<>0),SUM($D109:K109),0) -> 0 | L149: =IF(OR(L129=1,K149<>0),SUM($D109:L109),0) -> 0 | M149: =IF(OR(M129=1,L149<>0),SUM($D109:M109),0) -> 0 | N149: =IF(OR(N129=1,M149<>0),SUM($D109:N109),0) -> 0 | O149: =IF(OR(O129=1,N149<>0),SUM($D109:O109),0) -> 0 | P149: 0
C150: Hijo6 | D150: =IF(D130=1,SUM($D110:D110),0) -> 0 | E150: =IF(OR(E130=1,D150<>0),SUM($D110:E110),0) -> 0 | F150: =IF(OR(F130=1,E150<>0),SUM($D110:F110),0) -> 0 | G150: =IF(OR(G130=1,F150<>0),SUM($D110:G110),0) -> 0 | H150: =IF(OR(H130=1,G150<>0),SUM($D110:H110),0) -> 0 | I150: =IF(OR(I130=1,H150<>0),SUM($D110:I110),0) -> 0 | J150: =IF(OR(J130=1,I150<>0),SUM($D110:J110),0) -> 0 | K150: =IF(OR(K130=1,J150<>0),SUM($D110:K110),0) -> 0 | L150: =IF(OR(L130=1,K150<>0),SUM($D110:L110),0) -> 0 | M150: =IF(OR(M130=1,L150<>0),SUM($D110:M110),0) -> 0 | N150: =IF(OR(N130=1,M150<>0),SUM($D110:N110),0) -> 0 | O150: =IF(OR(O130=1,N150<>0),SUM($D110:O110),0) -> 0 | P150: 0
C151: Hijo7 | D151: =IF(D131=1,SUM($D111:D111),0) -> 0 | E151: =IF(OR(E131=1,D151<>0),SUM($D111:E111),0) -> 0 | F151: =IF(OR(F131=1,E151<>0),SUM($D111:F111),0) -> 0 | G151: =IF(OR(G131=1,F151<>0),SUM($D111:G111),0) -> 0 | H151: =IF(OR(H131=1,G151<>0),SUM($D111:H111),0) -> 0 | I151: =IF(OR(I131=1,H151<>0),SUM($D111:I111),0) -> 0 | J151: =IF(OR(J131=1,I151<>0),SUM($D111:J111),0) -> 0 | K151: =IF(OR(K131=1,J151<>0),SUM($D111:K111),0) -> 0 | L151: =IF(OR(L131=1,K151<>0),SUM($D111:L111),0) -> 0 | M151: =IF(OR(M131=1,L151<>0),SUM($D111:M111),0) -> 0 | N151: =IF(OR(N131=1,M151<>0),SUM($D111:N111),0) -> 0 | O151: =IF(OR(O131=1,N151<>0),SUM($D111:O111),0) -> 0 | P151: 0
C152: Hijo8 | D152: =IF(D132=1,SUM($D112:D112),0) -> 0 | E152: =IF(OR(E132=1,D152<>0),SUM($D112:E112),0) -> 0 | F152: =IF(OR(F132=1,E152<>0),SUM($D112:F112),0) -> 0 | G152: =IF(OR(G132=1,F152<>0),SUM($D112:G112),0) -> 0 | H152: =IF(OR(H132=1,G152<>0),SUM($D112:H112),0) -> 0 | I152: =IF(OR(I132=1,H152<>0),SUM($D112:I112),0) -> 0 | J152: =IF(OR(J132=1,I152<>0),SUM($D112:J112),0) -> 0 | K152: =IF(OR(K132=1,J152<>0),SUM($D112:K112),0) -> 0 | L152: =IF(OR(L132=1,K152<>0),SUM($D112:L112),0) -> 0 | M152: =IF(OR(M132=1,L152<>0),SUM($D112:M112),0) -> 0 | N152: =IF(OR(N132=1,M152<>0),SUM($D112:N112),0) -> 0 | O152: =IF(OR(O132=1,N152<>0),SUM($D112:O112),0) -> 0 | P152: 0
C153: Hijo9 | D153: =IF(D133=1,SUM($D113:D113),0) -> 0 | E153: =IF(OR(E133=1,D153<>0),SUM($D113:E113),0) -> 0 | F153: =IF(OR(F133=1,E153<>0),SUM($D113:F113),0) -> 0 | G153: =IF(OR(G133=1,F153<>0),SUM($D113:G113),0) -> 0 | H153: =IF(OR(H133=1,G153<>0),SUM($D113:H113),0) -> 0 | I153: =IF(OR(I133=1,H153<>0),SUM($D113:I113),0) -> 0 | J153: =IF(OR(J133=1,I153<>0),SUM($D113:J113),0) -> 0 | K153: =IF(OR(K133=1,J153<>0),SUM($D113:K113),0) -> 0 | L153: =IF(OR(L133=1,K153<>0),SUM($D113:L113),0) -> 0 | M153: =IF(OR(M133=1,L153<>0),SUM($D113:M113),0) -> 0 | N153: =IF(OR(N133=1,M153<>0),SUM($D113:N113),0) -> 0 | O153: =IF(OR(O133=1,N153<>0),SUM($D113:O113),0) -> 0 | P153: 0
C154: Hijo10 | D154: =IF(D134=1,SUM($D114:D114),0) -> 0 | E154: =IF(OR(E134=1,D154<>0),SUM($D114:E114),0) -> 0 | F154: =IF(OR(F134=1,E154<>0),SUM($D114:F114),0) -> 0 | G154: =IF(OR(G134=1,F154<>0),SUM($D114:G114),0) -> 0 | H154: =IF(OR(H134=1,G154<>0),SUM($D114:H114),0) -> 0 | I154: =IF(OR(I134=1,H154<>0),SUM($D114:I114),0) -> 0 | J154: =IF(OR(J134=1,I154<>0),SUM($D114:J114),0) -> 0 | K154: =IF(OR(K134=1,J154<>0),SUM($D114:K114),0) -> 0 | L154: =IF(OR(L134=1,K154<>0),SUM($D114:L114),0) -> 0 | M154: =IF(OR(M134=1,L154<>0),SUM($D114:M114),0) -> 0 | N154: =IF(OR(N134=1,M154<>0),SUM($D114:N114),0) -> 0 | O154: =IF(OR(O134=1,N154<>0),SUM($D114:O114),0) -> 0 | P154: 0
C155: Hijo11 | D155: =IF(D135=1,SUM($D115:D115),0) -> 0 | E155: =IF(OR(E135=1,D155<>0),SUM($D115:E115),0) -> 0 | F155: =IF(OR(F135=1,E155<>0),SUM($D115:F115),0) -> 0 | G155: =IF(OR(G135=1,F155<>0),SUM($D115:G115),0) -> 0 | H155: =IF(OR(H135=1,G155<>0),SUM($D115:H115),0) -> 0 | I155: =IF(OR(I135=1,H155<>0),SUM($D115:I115),0) -> 0 | J155: =IF(OR(J135=1,I155<>0),SUM($D115:J115),0) -> 0 | K155: =IF(OR(K135=1,J155<>0),SUM($D115:K115),0) -> 0 | L155: =IF(OR(L135=1,K155<>0),SUM($D115:L115),0) -> 0 | M155: =IF(OR(M135=1,L155<>0),SUM($D115:M115),0) -> 0 | N155: =IF(OR(N135=1,M155<>0),SUM($D115:N115),0) -> 0 | O155: =IF(OR(O135=1,N155<>0),SUM($D115:O115),0) -> 0 | P155: 0
C156: Hijo12 | D156: =IF(D136=1,SUM($D116:D116),0) -> 0 | E156: =IF(OR(E136=1,D156<>0),SUM($D116:E116),0) -> 0 | F156: =IF(OR(F136=1,E156<>0),SUM($D116:F116),0) -> 0 | G156: =IF(OR(G136=1,F156<>0),SUM($D116:G116),0) -> 0 | H156: =IF(OR(H136=1,G156<>0),SUM($D116:H116),0) -> 0 | I156: =IF(OR(I136=1,H156<>0),SUM($D116:I116),0) -> 0 | J156: =IF(OR(J136=1,I156<>0),SUM($D116:J116),0) -> 0 | K156: =IF(OR(K136=1,J156<>0),SUM($D116:K116),0) -> 0 | L156: =IF(OR(L136=1,K156<>0),SUM($D116:L116),0) -> 0 | M156: =IF(OR(M136=1,L156<>0),SUM($D116:M116),0) -> 0 | N156: =IF(OR(N136=1,M156<>0),SUM($D116:N116),0) -> 0 | O156: =IF(OR(O136=1,N156<>0),SUM($D116:O116),0) -> 0 | P156: 0
C157: Hijo13 | D157: =IF(D137=1,SUM($D117:D117),0) -> 0 | E157: =IF(OR(E137=1,D157<>0),SUM($D117:E117),0) -> 0 | F157: =IF(OR(F137=1,E157<>0),SUM($D117:F117),0) -> 0 | G157: =IF(OR(G137=1,F157<>0),SUM($D117:G117),0) -> 0 | H157: =IF(OR(H137=1,G157<>0),SUM($D117:H117),0) -> 0 | I157: =IF(OR(I137=1,H157<>0),SUM($D117:I117),0) -> 0 | J157: =IF(OR(J137=1,I157<>0),SUM($D117:J117),0) -> 0 | K157: =IF(OR(K137=1,J157<>0),SUM($D117:K117),0) -> 0 | L157: =IF(OR(L137=1,K157<>0),SUM($D117:L117),0) -> 0 | M157: =IF(OR(M137=1,L157<>0),SUM($D117:M117),0) -> 0 | N157: =IF(OR(N137=1,M157<>0),SUM($D117:N117),0) -> 0 | O157: =IF(OR(O137=1,N157<>0),SUM($D117:O117),0) -> 0 | P157: 0
C158: Hijo14 | D158: =IF(D138=1,SUM($D118:D118),0) -> 0 | E158: =IF(OR(E138=1,D158<>0),SUM($D118:E118),0) -> 0 | F158: =IF(OR(F138=1,E158<>0),SUM($D118:F118),0) -> 0 | G158: =IF(OR(G138=1,F158<>0),SUM($D118:G118),0) -> 0 | H158: =IF(OR(H138=1,G158<>0),SUM($D118:H118),0) -> 0 | I158: =IF(OR(I138=1,H158<>0),SUM($D118:I118),0) -> 0 | J158: =IF(OR(J138=1,I158<>0),SUM($D118:J118),0) -> 0 | K158: =IF(OR(K138=1,J158<>0),SUM($D118:K118),0) -> 0 | L158: =IF(OR(L138=1,K158<>0),SUM($D118:L118),0) -> 0 | M158: =IF(OR(M138=1,L158<>0),SUM($D118:M118),0) -> 0 | N158: =IF(OR(N138=1,M158<>0),SUM($D118:N118),0) -> 0 | O158: =IF(OR(O138=1,N158<>0),SUM($D118:O118),0) -> 0 | P158: 0
C159: Hijo15 | D159: =IF(D139=1,SUM($D119:D119),0) -> 0 | E159: =IF(OR(E139=1,D159<>0),SUM($D119:E119),0) -> 0 | F159: =IF(OR(F139=1,E159<>0),SUM($D119:F119),0) -> 0 | G159: =IF(OR(G139=1,F159<>0),SUM($D119:G119),0) -> 0 | H159: =IF(OR(H139=1,G159<>0),SUM($D119:H119),0) -> 0 | I159: =IF(OR(I139=1,H159<>0),SUM($D119:I119),0) -> 0 | J159: =IF(OR(J139=1,I159<>0),SUM($D119:J119),0) -> 0 | K159: =IF(OR(K139=1,J159<>0),SUM($D119:K119),0) -> 0 | L159: =IF(OR(L139=1,K159<>0),SUM($D119:L119),0) -> 0 | M159: =IF(OR(M139=1,L159<>0),SUM($D119:M119),0) -> 0 | N159: =IF(OR(N139=1,M159<>0),SUM($D119:N119),0) -> 0 | O159: =IF(OR(O139=1,N159<>0),SUM($D119:O119),0) -> 0 | P159: 0
C160: Hijo16 | D160: =IF(D140=1,SUM($D120:D120),0) -> 0 | E160: =IF(OR(E140=1,D160<>0),SUM($D120:E120),0) -> 0 | F160: =IF(OR(F140=1,E160<>0),SUM($D120:F120),0) -> 0 | G160: =IF(OR(G140=1,F160<>0),SUM($D120:G120),0) -> 0 | H160: =IF(OR(H140=1,G160<>0),SUM($D120:H120),0) -> 0 | I160: =IF(OR(I140=1,H160<>0),SUM($D120:I120),0) -> 0 | J160: =IF(OR(J140=1,I160<>0),SUM($D120:J120),0) -> 0 | K160: =IF(OR(K140=1,J160<>0),SUM($D120:K120),0) -> 0 | L160: =IF(OR(L140=1,K160<>0),SUM($D120:L120),0) -> 0 | M160: =IF(OR(M140=1,L160<>0),SUM($D120:M120),0) -> 0 | N160: =IF(OR(N140=1,M160<>0),SUM($D120:N120),0) -> 0 | O160: =IF(OR(O140=1,N160<>0),SUM($D120:O120),0) -> 0 | P160: 0
C162: Retenciones al SAC | D162: 2017-01-01 | E162: 2017-02-01 | F162: 2017-03-01 | G162: 2017-04-01 | H162: 2017-05-01 | I162: 2017-06-01 | J162: 2017-07-01 | K162: 2017-08-01 | L162: 2017-09-01 | M162: 2017-10-01 | N162: 2017-11-01 | O162: 2017-12-01 | P162: Anual
C163: SAC Importe | D163: =+Ingresos!C12+Ingresos!C51 -> 0 | E163: =+Ingresos!D12+Ingresos!D51 -> 0 | F163: =+Ingresos!E12+Ingresos!E51 -> 0 | G163: =+Ingresos!F12+Ingresos!F51 -> 0 | H163: =+Ingresos!G12+Ingresos!G51 -> 0 | I163: =+Ingresos!H12+Ingresos!H51 -> 0 | J163: =+Ingresos!I12+Ingresos!I51 -> 0 | K163: =+Ingresos!J12+Ingresos!J51 -> 0 | L163: =+Ingresos!K12+Ingresos!K51 -> 0 | M163: =+Ingresos!L12+Ingresos!L51 -> 0 | N163: =+Ingresos!M12+Ingresos!M51 -> 0 | O163: =+Ingresos!N12+Ingresos!N51 -> 0 | P163: =SUM(D163:O163) -> 0
C164: SUMA Remunerativo | D164: =+D10+D9 -> 0 | E164: 0 | F164: 0 | G164: 0 | H164: 0 | I164: 0 | J164: 0 | K164: 0 | L164: 0 | M164: 0 | N164: 0 | O164: 0 | P164: =SUM(D164:O164) -> 0
C165: Empleo + Pluriempleo | I165: 1 | O165: 1
C166: =+C30 -> Jubilación | D166: =IF(D$163<>0,retenciones(Check!$B$8,$R166,SUM(D$163:D$164),Tablas!C$7*1.5,Tablas!C8,D$163,0),0) -> 0 | E166: =IF(E$163<>0,retenciones(Check!$B$8,$R166,SUM(E$163:E$164),Tablas!D$7*1.5,Tablas!D8,E$163,0),0) -> 0 | F166: =IF(F$163<>0,retenciones(Check!$B$8,$R166,SUM(F$163:F$164),Tablas!E$7*1.5,Tablas!E8,F$163,0),0) -> 0 | G166: =IF(G$163<>0,retenciones(Check!$B$8,$R166,SUM(G$163:G$164),Tablas!F$7*1.5,Tablas!F8,G$163,0),0) -> 0 | H166: =IF(H$163<>0,retenciones(Check!$B$8,$R166,SUM(H$163:H$164),Tablas!G$7*1.5,Tablas!G8,H$163,0),0) -> 0 | I166: =IF(I$163<>0,retenciones(Check!$B$8,$R166,SUM(I$163:I$164),Tablas!H$7*1.5,Tablas!H8,I$163,0),0)*I165 -> 0 | J166: =IF(J$163<>0,retenciones(Check!$B$8,$R166,SUM(J$163:J$164),Tablas!I$7*1.5,Tablas!I8,J$163,0),0) -> 0 | K166: =IF(K$163<>0,retenciones(Check!$B$8,$R166,SUM(K$163:K$164),Tablas!J$7*1.5,Tablas!J8,K$163,0),0) -> 0 | L166: =IF(L$163<>0,retenciones(Check!$B$8,$R166,SUM(L$163:L$164),Tablas!K$7*1.5,Tablas!K8,L$163,0),0) -> 0 | M166: =IF(M$163<>0,retenciones(Check!$B$8,$R166,SUM(M$163:M$164),Tablas!L$7*1.5,Tablas!L8,M$163,0),0) -> 0 | N166: =IF(N$163<>0,retenciones(Check!$B$8,$R166,SUM(N$163:N$164),Tablas!M$7*1.5,Tablas!M8,N$163,0),0) -> 0 | O166: =IF(O$163<>0,retenciones(Check!$B$8,$R166,SUM(O$163:O$164),Tablas!N$7*1.5,Tablas!N8,O$163,0),0)*O165 -> 0 | P166: =IF(Check!$B$8="Ok",SUM(D166:O166),DedGrales!P23) -> 0 | R166: =+R30 -> Sí
C167: Ley 19032 | D167: =IF(D$163<>0,retenciones(Check!$B$8,$R167,SUM(D$163:D$164),Tablas!C$7*1.5,Tablas!C9,D$163,0),0) -> 0 | E167: =IF(E$163<>0,retenciones(Check!$B$8,$R167,SUM(E$163:E$164),Tablas!D$7*1.5,Tablas!D9,E$163,0),0) -> 0 | F167: =IF(F$163<>0,retenciones(Check!$B$8,$R167,SUM(F$163:F$164),Tablas!E$7*1.5,Tablas!E9,F$163,0),0) -> 0 | G167: =IF(G$163<>0,retenciones(Check!$B$8,$R167,SUM(G$163:G$164),Tablas!F$7*1.5,Tablas!F9,G$163,0),0) -> 0 | H167: =IF(H$163<>0,retenciones(Check!$B$8,$R167,SUM(H$163:H$164),Tablas!G$7*1.5,Tablas!G9,H$163,0),0) -> 0 | I167: =IF(I$163<>0,retenciones(Check!$B$8,$R167,SUM(I$163:I$164),Tablas!H$7*1.5,Tablas!H9,I$163,0),0)*I165 -> 0 | J167: =IF(J$163<>0,retenciones(Check!$B$8,$R167,SUM(J$163:J$164),Tablas!I$7*1.5,Tablas!I9,J$163,0),0) -> 0 | K167: =IF(K$163<>0,retenciones(Check!$B$8,$R167,SUM(K$163:K$164),Tablas!J$7*1.5,Tablas!J9,K$163,0),0) -> 0 | L167: =IF(L$163<>0,retenciones(Check!$B$8,$R167,SUM(L$163:L$164),Tablas!K$7*1.5,Tablas!K9,L$163,0),0) -> 0 | M167: =IF(M$163<>0,retenciones(Check!$B$8,$R167,SUM(M$163:M$164),Tablas!L$7*1.5,Tablas!L9,M$163,0),0) -> 0 | N167: =IF(N$163<>0,retenciones(Check!$B$8,$R167,SUM(N$163:N$164),Tablas!M$7*1.5,Tablas!M9,N$163,0),0) -> 0 | O167: =IF(O$163<>0,retenciones(Check!$B$8,$R167,SUM(O$163:O$164),Tablas!N$7*1.5,Tablas!N9,O$163,0),0)*O165 -> 0 | P167: =IF(Check!$B$8="Ok",SUM(D167:O167),DedGrales!P24) -> 0 | R167: Sí
C168: Obra social | D168: =IF(D$163<>0,retenciones(Check!$B$8,$R168,SUM(D$163:D$164),Tablas!C$7*1.5,Tablas!C10,D$163,0),0) -> 0 | E168: =IF(E$163<>0,retenciones(Check!$B$8,$R168,SUM(E$163:E$164),Tablas!D$7*1.5,Tablas!D10,E$163,0),0) -> 0 | F168: =IF(F$163<>0,retenciones(Check!$B$8,$R168,SUM(F$163:F$164),Tablas!E$7*1.5,Tablas!E10,F$163,0),0) -> 0 | G168: =IF(G$163<>0,retenciones(Check!$B$8,$R168,SUM(G$163:G$164),Tablas!F$7*1.5,Tablas!F10,G$163,0),0) -> 0 | H168: =IF(H$163<>0,retenciones(Check!$B$8,$R168,SUM(H$163:H$164),Tablas!G$7*1.5,Tablas!G10,H$163,0),0) -> 0 | I168: =IF(I$163<>0,retenciones(Check!$B$8,$R168,SUM(I$163:I$164),Tablas!H$7*1.5,Tablas!H10,I$163,0),0)*I165 -> 0 | J168: =IF(J$163<>0,retenciones(Check!$B$8,$R168,SUM(J$163:J$164),Tablas!I$7*1.5,Tablas!I10,J$163,0),0) -> 0 | K168: =IF(K$163<>0,retenciones(Check!$B$8,$R168,SUM(K$163:K$164),Tablas!J$7*1.5,Tablas!J10,K$163,0),0) -> 0 | L168: =IF(L$163<>0,retenciones(Check!$B$8,$R168,SUM(L$163:L$164),Tablas!K$7*1.5,Tablas!K10,L$163,0),0) -> 0 | M168: =IF(M$163<>0,retenciones(Check!$B$8,$R168,SUM(M$163:M$164),Tablas!L$7*1.5,Tablas!L10,M$163,0),0) -> 0 | N168: =IF(N$163<>0,retenciones(Check!$B$8,$R168,SUM(N$163:N$164),Tablas!M$7*1.5,Tablas!M10,N$163,0),0) -> 0 | O168: =IF(O$163<>0,retenciones(Check!$B$8,$R168,SUM(O$163:O$164),Tablas!N$7*1.5,Tablas!N10,O$163,0),0)*O165 -> 0 | P168: =IF(Check!$B$8="Ok",SUM(D168:O168),DedGrales!P25) -> 0 | R168: Sí
C169: Sindicato | D169: =IF(D$163<>0,retenciones(Check!$B$8,$R169,SUM(D$163:D$164),Tablas!C$7*1.5,Tablas!C11,D$163,0),0) -> 0 | E169: =IF(E$163<>0,retenciones(Check!$B$8,$R169,SUM(E$163:E$164),Tablas!D$7*1.5,Tablas!D11,E$163,0),0) -> 0 | F169: =IF(F$163<>0,retenciones(Check!$B$8,$R169,SUM(F$163:F$164),Tablas!E$7*1.5,Tablas!E11,F$163,0),0) -> 0 | G169: =IF(G$163<>0,retenciones(Check!$B$8,$R169,SUM(G$163:G$164),Tablas!F$7*1.5,Tablas!F11,G$163,0),0) -> 0 | H169: =IF(H$163<>0,retenciones(Check!$B$8,$R169,SUM(H$163:H$164),Tablas!G$7*1.5,Tablas!G11,H$163,0),0) -> 0 | I169: =IF(I$163<>0,retenciones(Check!$B$8,$R169,SUM(I$163:I$164),Tablas!H$7*1.5,Tablas!H11,I$163,0),0)*I165 -> 0 | J169: =IF(J$163<>0,retenciones(Check!$B$8,$R169,SUM(J$163:J$164),Tablas!I$7*1.5,Tablas!I11,J$163,0),0) -> 0 | K169: =IF(K$163<>0,retenciones(Check!$B$8,$R169,SUM(K$163:K$164),Tablas!J$7*1.5,Tablas!J11,K$163,0),0) -> 0 | L169: =IF(L$163<>0,retenciones(Check!$B$8,$R169,SUM(L$163:L$164),Tablas!K$7*1.5,Tablas!K11,L$163,0),0) -> 0 | M169: =IF(M$163<>0,retenciones(Check!$B$8,$R169,SUM(M$163:M$164),Tablas!L$7*1.5,Tablas!L11,M$163,0),0) -> 0 | N169: =IF(N$163<>0,retenciones(Check!$B$8,$R169,SUM(N$163:N$164),Tablas!M$7*1.5,Tablas!M11,N$163,0),0) -> 0 | O169: =IF(O$163<>0,retenciones(Check!$B$8,$R169,SUM(O$163:O$164),Tablas!N$7*1.5,Tablas!N11,O$163,0),0)*O165 -> 0 | P169: =IF(Check!$B$8="Ok",SUM(D169:O169),DedGrales!P26) -> 0 | R169: No
C170: 0 | D170: =IF(D$163<>0,retenciones(Check!$B$8,$R170,SUM(D$163:D$164),Tablas!C$7*1.5,Tablas!C12,D$163,0),0) -> 0 | E170: =IF(E$163<>0,retenciones(Check!$B$8,$R170,SUM(E$163:E$164),Tablas!D$7*1.5,Tablas!D12,E$163,0),0) -> 0 | F170: =IF(F$163<>0,retenciones(Check!$B$8,$R170,SUM(F$163:F$164),Tablas!E$7*1.5,Tablas!E12,F$163,0),0) -> 0 | G170: =IF(G$163<>0,retenciones(Check!$B$8,$R170,SUM(G$163:G$164),Tablas!F$7*1.5,Tablas!F12,G$163,0),0) -> 0 | H170: =IF(H$163<>0,retenciones(Check!$B$8,$R170,SUM(H$163:H$164),Tablas!G$7*1.5,Tablas!G12,H$163,0),0) -> 0 | I170: =IF(I$163<>0,retenciones(Check!$B$8,$R170,SUM(I$163:I$164),Tablas!H$7*1.5,Tablas!H12,I$163,0),0)*I165 -> 0 | J170: =IF(J$163<>0,retenciones(Check!$B$8,$R170,SUM(J$163:J$164),Tablas!I$7*1.5,Tablas!I12,J$163,0),0) -> 0 | K170: =IF(K$163<>0,retenciones(Check!$B$8,$R170,SUM(K$163:K$164),Tablas!J$7*1.5,Tablas!J12,K$163,0),0) -> 0 | L170: =IF(L$163<>0,retenciones(Check!$B$8,$R170,SUM(L$163:L$164),Tablas!K$7*1.5,Tablas!K12,L$163,0),0) -> 0 | M170: =IF(M$163<>0,retenciones(Check!$B$8,$R170,SUM(M$163:M$164),Tablas!L$7*1.5,Tablas!L12,M$163,0),0) -> 0 | N170: =IF(N$163<>0,retenciones(Check!$B$8,$R170,SUM(N$163:N$164),Tablas!M$7*1.5,Tablas!M12,N$163,0),0) -> 0 | O170: =IF(O$163<>0,retenciones(Check!$B$8,$R170,SUM(O$163:O$164),Tablas!N$7*1.5,Tablas!N12,O$163,0),0)*O165 -> 0 | P170: =IF(Check!$B$8="Ok",SUM(D170:O170),DedGrales!P27) -> 0 | R170: No
C171: 0 | D171: =IF(D$163<>0,retenciones(Check!$B$8,$R171,SUM(D$163:D$164),Tablas!C$7*1.5,Tablas!C13,D$163,0),0) -> 0 | E171: =IF(E$163<>0,retenciones(Check!$B$8,$R171,SUM(E$163:E$164),Tablas!D$7*1.5,Tablas!D13,E$163,0),0) -> 0 | F171: =IF(F$163<>0,retenciones(Check!$B$8,$R171,SUM(F$163:F$164),Tablas!E$7*1.5,Tablas!E13,F$163,0),0) -> 0 | G171: =IF(G$163<>0,retenciones(Check!$B$8,$R171,SUM(G$163:G$164),Tablas!F$7*1.5,Tablas!F13,G$163,0),0) -> 0 | H171: =IF(H$163<>0,retenciones(Check!$B$8,$R171,SUM(H$163:H$164),Tablas!G$7*1.5,Tablas!G13,H$163,0),0) -> 0 | I171: =IF(I$163<>0,retenciones(Check!$B$8,$R171,SUM(I$163:I$164),Tablas!H$7*1.5,Tablas!H13,I$163,0),0)*I165 -> 0 | J171: =IF(J$163<>0,retenciones(Check!$B$8,$R171,SUM(J$163:J$164),Tablas!I$7*1.5,Tablas!I13,J$163,0),0) -> 0 | K171: =IF(K$163<>0,retenciones(Check!$B$8,$R171,SUM(K$163:K$164),Tablas!J$7*1.5,Tablas!J13,K$163,0),0) -> 0 | L171: =IF(L$163<>0,retenciones(Check!$B$8,$R171,SUM(L$163:L$164),Tablas!K$7*1.5,Tablas!K13,L$163,0),0) -> 0 | M171: =IF(M$163<>0,retenciones(Check!$B$8,$R171,SUM(M$163:M$164),Tablas!L$7*1.5,Tablas!L13,M$163,0),0) -> 0 | N171: =IF(N$163<>0,retenciones(Check!$B$8,$R171,SUM(N$163:N$164),Tablas!M$7*1.5,Tablas!M13,N$163,0),0) -> 0 | O171: =IF(O$163<>0,retenciones(Check!$B$8,$R171,SUM(O$163:O$164),Tablas!N$7*1.5,Tablas!N13,O$163,0),0)*O165 -> 0 | P171: =IF(Check!$B$8="Ok",SUM(D171:O171),DedGrales!P28) -> 0 | R171: No
C172: Total | D172: =+SUM(D166:D171) -> 0 | E172: 0 | F172: 0 | G172: 0 | H172: 0 | I172: 0 | J172: 0 | K172: 0 | L172: 0 | M172: 0 | N172: 0 | O172: 0 | P172: =+SUM(P166:P171) -> 0
C173: Filtro | D173: =IF(MONTH('F1357'!$D$11)>=MONTH(Auxiliares!D174),1,0) -> 1 | E173: =IF(MONTH('F1357'!$D$11)>=MONTH(Auxiliares!E174),1,0) -> 1 | F173: =IF(MONTH('F1357'!$D$11)>=MONTH(Auxiliares!F174),1,0) -> 1 | G173: =IF(MONTH('F1357'!$D$11)>=MONTH(Auxiliares!G174),1,0) -> 1 | H173: =IF(MONTH('F1357'!$D$11)>=MONTH(Auxiliares!H174),1,0) -> 1 | I173: =IF(MONTH('F1357'!$D$11)>=MONTH(Auxiliares!I174),1,0) -> 1 | J173: =IF(MONTH('F1357'!$D$11)>=MONTH(Auxiliares!J174),1,0) -> 1 | K173: =IF(MONTH('F1357'!$D$11)>=MONTH(Auxiliares!K174),1,0) -> 1 | L173: =IF(MONTH('F1357'!$D$11)>=MONTH(Auxiliares!L174),1,0) -> 1 | M173: =IF(MONTH('F1357'!$D$11)>=MONTH(Auxiliares!M174),1,0) -> 1 | N173: =IF(MONTH('F1357'!$D$11)>=MONTH(Auxiliares!N174),1,0) -> 1 | O173: =IF(MONTH('F1357'!$D$11)>=MONTH(Auxiliares!O174),1,0) -> 1
C174: Retenciones estimadas | D174: 2017-01-01 | E174: 2017-02-01 | F174: 2017-03-01 | G174: 2017-04-01 | H174: 2017-05-01 | I174: 2017-06-01 | J174: 2017-07-01 | K174: 2017-08-01 | L174: 2017-09-01 | M174: 2017-10-01 | N174: 2017-11-01 | O174: 2017-12-01 | P174: Anual
C175: SAC Importe estimado bruto 1 | D175: =+D196 -> 0 | E175: =+E196 -> 0 | F175: 0 | G175: 0 | H175: 0 | I175: 0 | J175: 0 | K175: 0 | L175: 0 | M175: 0 | N175: 0 | O175: 0
C176: =+C166 -> Jubilación | D176: =maximo(D$175,Tablas!C$7/12)*Tablas!C8 -> 0 | E176: =maximo(E$175,Tablas!D$7/12)*Tablas!D8 -> 0 | F176: =maximo(F$175,Tablas!E$7/12)*Tablas!E8 -> 0 | G176: =maximo(G$175,Tablas!F$7/12)*Tablas!F8 -> 0 | H176: =maximo(H$175,Tablas!G$7/12)*Tablas!G8 -> 0 | I176: =maximo(I$175,Tablas!H$7/12)*Tablas!H8 -> 0 | J176: =maximo(J$175,Tablas!I$7/12)*Tablas!I8 -> 0 | K176: =maximo(K$175,Tablas!J$7/12)*Tablas!J8 -> 0 | L176: =maximo(L$175,Tablas!K$7/12)*Tablas!K8 -> 0 | M176: =maximo(M$175,Tablas!L$7/12)*Tablas!L8 -> 0 | N176: =maximo(N$175,Tablas!M$7/12)*Tablas!M8 -> 0 | O176: =maximo(O$175,Tablas!N$7/12)*Tablas!N8 -> 0 | P176: =IF(Check!$B$8="Ok",SUM(D176:O176),DedGrales!P161) -> 0 | R176: =+R30 -> Sí
C177: =+C167 -> Ley 19032 | D177: =maximo(D$175,Tablas!C$7/12)*Tablas!C9 -> 0 | E177: =maximo(E$175,Tablas!D$7/12)*Tablas!D9 -> 0 | F177: =maximo(F$175,Tablas!E$7/12)*Tablas!E9 -> 0 | G177: =maximo(G$175,Tablas!F$7/12)*Tablas!F9 -> 0 | H177: =maximo(H$175,Tablas!G$7/12)*Tablas!G9 -> 0 | I177: =maximo(I$175,Tablas!H$7/12)*Tablas!H9 -> 0 | J177: =maximo(J$175,Tablas!I$7/12)*Tablas!I9 -> 0 | K177: =maximo(K$175,Tablas!J$7/12)*Tablas!J9 -> 0 | L177: =maximo(L$175,Tablas!K$7/12)*Tablas!K9 -> 0 | M177: =maximo(M$175,Tablas!L$7/12)*Tablas!L9 -> 0 | N177: =maximo(N$175,Tablas!M$7/12)*Tablas!M9 -> 0 | O177: =maximo(O$175,Tablas!N$7/12)*Tablas!N9 -> 0 | P177: =IF(Check!$B$8="Ok",SUM(D177:O177),DedGrales!P162) -> 0 | R177: Sí
C178: Obra social | D178: =maximo(D$175,Tablas!C$7/12)*Tablas!C10 -> 0 | E178: =maximo(E$175,Tablas!D$7/12)*Tablas!D10 -> 0 | F178: =maximo(F$175,Tablas!E$7/12)*Tablas!E10 -> 0 | G178: =maximo(G$175,Tablas!F$7/12)*Tablas!F10 -> 0 | H178: =maximo(H$175,Tablas!G$7/12)*Tablas!G10 -> 0 | I178: =maximo(I$175,Tablas!H$7/12)*Tablas!H10 -> 0 | J178: =maximo(J$175,Tablas!I$7/12)*Tablas!I10 -> 0 | K178: =maximo(K$175,Tablas!J$7/12)*Tablas!J10 -> 0 | L178: =maximo(L$175,Tablas!K$7/12)*Tablas!K10 -> 0 | M178: =maximo(M$175,Tablas!L$7/12)*Tablas!L10 -> 0 | N178: =maximo(N$175,Tablas!M$7/12)*Tablas!M10 -> 0 | O178: =maximo(O$175,Tablas!N$7/12)*Tablas!N10 -> 0 | P178: =IF(Check!$B$8="Ok",SUM(D178:O178),DedGrales!P163) -> 0 | R178: Sí
C179: Sindicato | D179: =maximo(D$175,Tablas!C$7/12)*Tablas!C11 -> 0 | E179: =maximo(E$175,Tablas!D$7/12)*Tablas!D11 -> 0 | F179: =maximo(F$175,Tablas!E$7/12)*Tablas!E11 -> 0 | G179: =maximo(G$175,Tablas!F$7/12)*Tablas!F11 -> 0 | H179: =maximo(H$175,Tablas!G$7/12)*Tablas!G11 -> 0 | I179: =maximo(I$175,Tablas!H$7/12)*Tablas!H11 -> 0 | J179: =maximo(J$175,Tablas!I$7/12)*Tablas!I11 -> 0 | K179: =maximo(K$175,Tablas!J$7/12)*Tablas!J11 -> 0 | L179: =maximo(L$175,Tablas!K$7/12)*Tablas!K11 -> 0 | M179: =maximo(M$175,Tablas!L$7/12)*Tablas!L11 -> 0 | N179: =maximo(N$175,Tablas!M$7/12)*Tablas!M11 -> 0 | O179: =maximo(O$175,Tablas!N$7/12)*Tablas!N11 -> 0 | P179: =IF(Check!$B$8="Ok",SUM(D179:O179),DedGrales!P164) -> 0 | R179: No
C180: 0 | D180: =maximo(D$175,Tablas!C$7/12)*Tablas!C12 -> 0 | E180: =maximo(E$175,Tablas!D$7/12)*Tablas!D12 -> 0 | F180: =maximo(F$175,Tablas!E$7/12)*Tablas!E12 -> 0 | G180: =maximo(G$175,Tablas!F$7/12)*Tablas!F12 -> 0 | H180: =maximo(H$175,Tablas!G$7/12)*Tablas!G12 -> 0 | I180: =maximo(I$175,Tablas!H$7/12)*Tablas!H12 -> 0 | J180: =maximo(J$175,Tablas!I$7/12)*Tablas!I12 -> 0 | K180: =maximo(K$175,Tablas!J$7/12)*Tablas!J12 -> 0 | L180: =maximo(L$175,Tablas!K$7/12)*Tablas!K12 -> 0 | M180: =maximo(M$175,Tablas!L$7/12)*Tablas!L12 -> 0 | N180: =maximo(N$175,Tablas!M$7/12)*Tablas!M12 -> 0 | O180: =maximo(O$175,Tablas!N$7/12)*Tablas!N12 -> 0 | P180: =IF(Check!$B$8="Ok",SUM(D180:O180),DedGrales!P165) -> 0 | R180: No
C181: 0 | D181: =maximo(D$175,Tablas!C$7/12)*Tablas!C13 -> 0 | E181: =maximo(E$175,Tablas!D$7/12)*Tablas!D13 -> 0 | F181: =maximo(F$175,Tablas!E$7/12)*Tablas!E13 -> 0 | G181: =maximo(G$175,Tablas!F$7/12)*Tablas!F13 -> 0 | H181: =maximo(H$175,Tablas!G$7/12)*Tablas!G13 -> 0 | I181: =maximo(I$175,Tablas!H$7/12)*Tablas!H13 -> 0 | J181: =maximo(J$175,Tablas!I$7/12)*Tablas!I13 -> 0 | K181: =maximo(K$175,Tablas!J$7/12)*Tablas!J13 -> 0 | L181: =maximo(L$175,Tablas!K$7/12)*Tablas!K13 -> 0 | M181: =maximo(M$175,Tablas!L$7/12)*Tablas!L13 -> 0 | N181: =maximo(N$175,Tablas!M$7/12)*Tablas!M13 -> 0 | O181: =maximo(O$175,Tablas!N$7/12)*Tablas!N13 -> 0 | P181: =IF(Check!$B$8="Ok",SUM(D181:O181),DedGrales!P166) -> 0 | R181: No
C182: Total | D182: =+SUM(D176:D181) -> 0 | E182: 0 | F182: 0 | G182: 0 | H182: 0 | I182: 0 | J182: 0 | K182: 0 | L182: 0 | M182: 0 | N182: 0 | O182: 0 | P182: =+SUM(P176:P181) -> 0
C184: Retenciones estimadas | D184: 2017-01-01 | E184: 2017-02-01 | F184: 2017-03-01 | G184: 2017-04-01 | H184: 2017-05-01 | I184: 2017-06-01 | J184: 2017-07-01 | K184: 2017-08-01 | L184: 2017-09-01 | M184: 2017-10-01 | N184: 2017-11-01 | O184: 2017-12-01 | P184: Anual
C185: SAC Importe estimado bruto 2 | D185: =+D201 -> 0 | E185: =+E201 -> 0 | F185: 0 | G185: 0 | H185: 0 | I185: 0 | J185: 0 | K185: 0 | L185: 0 | M185: 0 | N185: 0 | O185: 0
C186: =+C176 -> Jubilación | D186: =maximo(D$185,Tablas!C$7/12)*Tablas!C8 -> 0 | E186: =maximo(E$185,Tablas!D$7/12)*Tablas!D8 -> 0 | F186: =maximo(F$185,Tablas!E$7/12)*Tablas!E8 -> 0 | G186: =maximo(G$185,Tablas!F$7/12)*Tablas!F8 -> 0 | H186: =maximo(H$185,Tablas!G$7/12)*Tablas!G8 -> 0 | I186: =maximo(I$185,Tablas!H$7/12)*Tablas!H8 -> 0 | J186: =maximo(J$185,Tablas!I$7/12)*Tablas!I8 -> 0 | K186: =maximo(K$185,Tablas!J$7/12)*Tablas!J8 -> 0 | L186: =maximo(L$185,Tablas!K$7/12)*Tablas!K8 -> 0 | M186: =maximo(M$185,Tablas!L$7/12)*Tablas!L8 -> 0 | N186: =maximo(N$185,Tablas!M$7/12)*Tablas!M8 -> 0 | O186: =maximo(O$185,Tablas!N$7/12)*Tablas!N8 -> 0 | P186: =IF(Check!$B$8="Ok",SUM(D186:O186),DedGrales!P171) -> 0 | R186: =+R40 -> No
C187: =+C177 -> Ley 19032 | D187: =maximo(D$185,Tablas!C$7/12)*Tablas!C9 -> 0 | E187: =maximo(E$185,Tablas!D$7/12)*Tablas!D9 -> 0 | F187: =maximo(F$185,Tablas!E$7/12)*Tablas!E9 -> 0 | G187: =maximo(G$185,Tablas!F$7/12)*Tablas!F9 -> 0 | H187: =maximo(H$185,Tablas!G$7/12)*Tablas!G9 -> 0 | I187: =maximo(I$185,Tablas!H$7/12)*Tablas!H9 -> 0 | J187: =maximo(J$185,Tablas!I$7/12)*Tablas!I9 -> 0 | K187: =maximo(K$185,Tablas!J$7/12)*Tablas!J9 -> 0 | L187: =maximo(L$185,Tablas!K$7/12)*Tablas!K9 -> 0 | M187: =maximo(M$185,Tablas!L$7/12)*Tablas!L9 -> 0 | N187: =maximo(N$185,Tablas!M$7/12)*Tablas!M9 -> 0 | O187: =maximo(O$185,Tablas!N$7/12)*Tablas!N9 -> 0 | P187: =IF(Check!$B$8="Ok",SUM(D187:O187),DedGrales!P172) -> 0 | R187: No
C188: Obra social | D188: =maximo(D$185,Tablas!C$7/12)*Tablas!C10 -> 0 | E188: =maximo(E$185,Tablas!D$7/12)*Tablas!D10 -> 0 | F188: =maximo(F$185,Tablas!E$7/12)*Tablas!E10 -> 0 | G188: =maximo(G$185,Tablas!F$7/12)*Tablas!F10 -> 0 | H188: =maximo(H$185,Tablas!G$7/12)*Tablas!G10 -> 0 | I188: =maximo(I$185,Tablas!H$7/12)*Tablas!H10 -> 0 | J188: =maximo(J$185,Tablas!I$7/12)*Tablas!I10 -> 0 | K188: =maximo(K$185,Tablas!J$7/12)*Tablas!J10 -> 0 | L188: =maximo(L$185,Tablas!K$7/12)*Tablas!K10 -> 0 | M188: =maximo(M$185,Tablas!L$7/12)*Tablas!L10 -> 0 | N188: =maximo(N$185,Tablas!M$7/12)*Tablas!M10 -> 0 | O188: =maximo(O$185,Tablas!N$7/12)*Tablas!N10 -> 0 | P188: =IF(Check!$B$8="Ok",SUM(D188:O188),DedGrales!P173) -> 0 | R188: No
C189: Sindicato | D189: =maximo(D$185,Tablas!C$7/12)*Tablas!C11 -> 0 | E189: =maximo(E$185,Tablas!D$7/12)*Tablas!D11 -> 0 | F189: =maximo(F$185,Tablas!E$7/12)*Tablas!E11 -> 0 | G189: =maximo(G$185,Tablas!F$7/12)*Tablas!F11 -> 0 | H189: =maximo(H$185,Tablas!G$7/12)*Tablas!G11 -> 0 | I189: =maximo(I$185,Tablas!H$7/12)*Tablas!H11 -> 0 | J189: =maximo(J$185,Tablas!I$7/12)*Tablas!I11 -> 0 | K189: =maximo(K$185,Tablas!J$7/12)*Tablas!J11 -> 0 | L189: =maximo(L$185,Tablas!K$7/12)*Tablas!K11 -> 0 | M189: =maximo(M$185,Tablas!L$7/12)*Tablas!L11 -> 0 | N189: =maximo(N$185,Tablas!M$7/12)*Tablas!M11 -> 0 | O189: =maximo(O$185,Tablas!N$7/12)*Tablas!N11 -> 0 | P189: =IF(Check!$B$8="Ok",SUM(D189:O189),DedGrales!P174) -> 0 | R189: 0
C190: 0 | D190: =maximo(D$185,Tablas!C$7/12)*Tablas!C12 -> 0 | E190: =maximo(E$185,Tablas!D$7/12)*Tablas!D12 -> 0 | F190: =maximo(F$185,Tablas!E$7/12)*Tablas!E12 -> 0 | G190: =maximo(G$185,Tablas!F$7/12)*Tablas!F12 -> 0 | H190: =maximo(H$185,Tablas!G$7/12)*Tablas!G12 -> 0 | I190: =maximo(I$185,Tablas!H$7/12)*Tablas!H12 -> 0 | J190: =maximo(J$185,Tablas!I$7/12)*Tablas!I12 -> 0 | K190: =maximo(K$185,Tablas!J$7/12)*Tablas!J12 -> 0 | L190: =maximo(L$185,Tablas!K$7/12)*Tablas!K12 -> 0 | M190: =maximo(M$185,Tablas!L$7/12)*Tablas!L12 -> 0 | N190: =maximo(N$185,Tablas!M$7/12)*Tablas!M12 -> 0 | O190: =maximo(O$185,Tablas!N$7/12)*Tablas!N12 -> 0 | P190: =IF(Check!$B$8="Ok",SUM(D190:O190),DedGrales!P175) -> 0 | R190: 0
C191: 0 | D191: =maximo(D$185,Tablas!C$7/12)*Tablas!C13 -> 0 | E191: =maximo(E$185,Tablas!D$7/12)*Tablas!D13 -> 0 | F191: =maximo(F$185,Tablas!E$7/12)*Tablas!E13 -> 0 | G191: =maximo(G$185,Tablas!F$7/12)*Tablas!F13 -> 0 | H191: =maximo(H$185,Tablas!G$7/12)*Tablas!G13 -> 0 | I191: =maximo(I$185,Tablas!H$7/12)*Tablas!H13 -> 0 | J191: =maximo(J$185,Tablas!I$7/12)*Tablas!I13 -> 0 | K191: =maximo(K$185,Tablas!J$7/12)*Tablas!J13 -> 0 | L191: =maximo(L$185,Tablas!K$7/12)*Tablas!K13 -> 0 | M191: =maximo(M$185,Tablas!L$7/12)*Tablas!L13 -> 0 | N191: =maximo(N$185,Tablas!M$7/12)*Tablas!M13 -> 0 | O191: =maximo(O$185,Tablas!N$7/12)*Tablas!N13 -> 0 | P191: =IF(Check!$B$8="Ok",SUM(D191:O191),DedGrales!P176) -> 0 | R191: 0
C192: Total | D192: =+SUM(D186:D191) -> 0 | E192: 0 | F192: 0 | G192: 0 | H192: 0 | I192: 0 | J192: 0 | K192: 0 | L192: 0 | M192: 0 | N192: 0 | O192: 0 | P192: =+SUM(P186:P191) -> 0
C194: Base estimada | D194: =SUMIF(Ingresos!$S8:$S38,"Sí",Ingresos!C$8:C$38) -> 0 | E194: =SUMIF(Ingresos!$S8:$S38,"Sí",Ingresos!D$8:D$38) -> 0 | F194: =SUMIF(Ingresos!$S8:$S38,"Sí",Ingresos!E$8:E$38) -> 0 | G194: =SUMIF(Ingresos!$S8:$S38,"Sí",Ingresos!F$8:F$38) -> 0 | H194: =SUMIF(Ingresos!$S8:$S38,"Sí",Ingresos!G$8:G$38) -> 0 | I194: =SUMIF(Ingresos!$S8:$S38,"Sí",Ingresos!H$8:H$38) -> 0 | J194: =SUMIF(Ingresos!$S8:$S38,"Sí",Ingresos!I$8:I$38) -> 0 | K194: =SUMIF(Ingresos!$S8:$S38,"Sí",Ingresos!J$8:J$38) -> 0 | L194: =SUMIF(Ingresos!$S8:$S38,"Sí",Ingresos!K$8:K$38) -> 0 | M194: =SUMIF(Ingresos!$S8:$S38,"Sí",Ingresos!L$8:L$38) -> 0 | N194: =SUMIF(Ingresos!$S8:$S38,"Sí",Ingresos!M$8:M$38) -> 0 | O194: =SUMIF(Ingresos!$S8:$S38,"Sí",Ingresos!N$8:N$38) -> 0
C195: Máx | D195: =MAX($D$194:D194) -> 0 | E195: =MAX($D$194:E194) -> 0 | F195: =MAX($D$194:F194) -> 0 | G195: =MAX($D$194:G194) -> 0 | H195: =MAX($D$194:H194) -> 0 | I195: =MAX($D$194:I194) -> 0 | J195: =MAX($J$194:J194) -> 0 | K195: =MAX($J$194:K194) -> 0 | L195: =MAX($J$194:L194) -> 0 | M195: =MAX($J$194:M194) -> 0 | N195: =MAX($J$194:N194) -> 0 | O195: =MAX($J$194:O194) -> 0
C196: SAC estimado bruto 1 | D196: =D194/12 -> 0 | E196: =E194/12 -> 0 | F196: 0 | G196: 0 | H196: 0 | I196: 0 | J196: 0 | K196: 0 | L196: 0 | M196: 0 | N196: 0 | O196: 0
C197: SAC estimado neto 1 | D197: =IF(Check!$B$8="Ok",D175-D182,Ingresos!C41) -> 0 | E197: =IF(Check!$B$8="Ok",E175-E182,Ingresos!D41) -> 0 | F197: =IF(Check!$B$8="Ok",F175-F182,Ingresos!E41) -> 0 | G197: =IF(Check!$B$8="Ok",G175-G182,Ingresos!F41) -> 0 | H197: =IF(Check!$B$8="Ok",H175-H182,Ingresos!G41) -> 0 | I197: =IF(Check!$B$8="Ok",I175-I182,Ingresos!H41) -> 0 | J197: =IF(Check!$B$8="Ok",J175-J182,Ingresos!I41) -> 0 | K197: =IF(Check!$B$8="Ok",K175-K182,Ingresos!J41) -> 0 | L197: =IF(Check!$B$8="Ok",L175-L182,Ingresos!K41) -> 0 | M197: =IF(Check!$B$8="Ok",M175-M182,Ingresos!L41) -> 0 | N197: =IF(Check!$B$8="Ok",N175-N182,Ingresos!M41) -> 0 | O197: =IF(Check!$B$8="Ok",O175-O182,Ingresos!N41) -> 0
C199: Base estimada | D199: =SUMIF(Ingresos!$S47:$S69,"Sí",Ingresos!C$47:C$77) -> 0 | E199: =SUMIF(Ingresos!$S47:$S69,"Sí",Ingresos!D$47:D$77) -> 0 | F199: =SUMIF(Ingresos!$S47:$S69,"Sí",Ingresos!E$47:E$77) -> 0 | G199: =SUMIF(Ingresos!$S47:$S69,"Sí",Ingresos!F$47:F$77) -> 0 | H199: =SUMIF(Ingresos!$S47:$S69,"Sí",Ingresos!G$47:G$77) -> 0 | I199: =SUMIF(Ingresos!$S47:$S69,"Sí",Ingresos!H$47:H$77) -> 0 | J199: =SUMIF(Ingresos!$S47:$S69,"Sí",Ingresos!I$47:I$77) -> 0 | K199: =SUMIF(Ingresos!$S47:$S69,"Sí",Ingresos!J$47:J$77) -> 0 | L199: =SUMIF(Ingresos!$S47:$S69,"Sí",Ingresos!K$47:K$77) -> 0 | M199: =SUMIF(Ingresos!$S47:$S69,"Sí",Ingresos!L$47:L$77) -> 0 | N199: =SUMIF(Ingresos!$S47:$S69,"Sí",Ingresos!M$47:M$77) -> 0 | O199: =SUMIF(Ingresos!$S47:$S69,"Sí",Ingresos!N$47:N$77) -> 0
C200: Máx | D200: =MAX($D$199:D199) -> 0 | E200: =MAX($D$199:E199) -> 0 | F200: =MAX($D$199:F199) -> 0 | G200: =MAX($D$199:G199) -> 0 | H200: =MAX($D$199:H199) -> 0 | I200: =MAX($D$199:I199) -> 0 | J200: =MAX($D$199:J199) -> 0 | K200: =MAX($D$199:K199) -> 0 | L200: =MAX($D$199:L199) -> 0 | M200: =MAX($D$199:M199) -> 0 | N200: =MAX($D$199:N199) -> 0 | O200: =MAX($D$199:O199) -> 0
C201: SAC estimado bruto 2 | D201: =D199/12 -> 0 | E201: =E199/12 -> 0 | F201: 0 | G201: 0 | H201: 0 | I201: 0 | J201: 0 | K201: 0 | L201: 0 | M201: 0 | N201: 0 | O201: 0
C202: SAC estimado neto 2 | D202: =IF(Check!$B$8="Ok",D185-D192,Ingresos!C80) -> 0 | E202: =IF(Check!$B$8="Ok",E185-E192,Ingresos!D80) -> 0 | F202: =IF(Check!$B$8="Ok",F185-F192,Ingresos!E80) -> 0 | G202: =IF(Check!$B$8="Ok",G185-G192,Ingresos!F80) -> 0 | H202: =IF(Check!$B$8="Ok",H185-H192,Ingresos!G80) -> 0 | I202: =IF(Check!$B$8="Ok",I185-I192,Ingresos!H80) -> 0 | J202: =IF(Check!$B$8="Ok",J185-J192,Ingresos!I80) -> 0 | K202: =IF(Check!$B$8="Ok",K185-K192,Ingresos!J80) -> 0 | L202: =IF(Check!$B$8="Ok",L185-L192,Ingresos!K80) -> 0 | M202: =IF(Check!$B$8="Ok",M185-M192,Ingresos!L80) -> 0 | N202: =IF(Check!$B$8="Ok",N185-N192,Ingresos!M80) -> 0 | O202: =IF(Check!$B$8="Ok",O185-O192,Ingresos!N80) -> 0
C205: Formulario
D206: 2017-01-01 | E206: 2017-02-01 | F206: 2017-03-01 | G206: 2017-04-01 | H206: 2017-05-01 | I206: 2017-06-01 | J206: 2017-07-01 | K206: 2017-08-01 | L206: 2017-09-01 | M206: 2017-10-01 | N206: 2017-11-01 | O206: 2017-12-01
C207: Remunerativo | D207: =SUMIFS(Ingresos!C8:C38,Ingresos!$R$8:$R$38,"Sí") -> 0 | E207: =SUMIFS(Ingresos!D8:D38,Ingresos!$R$8:$R$38,"Sí") -> 0 | F207: =SUMIFS(Ingresos!E8:E38,Ingresos!$R$8:$R$38,"Sí") -> 0 | G207: =SUMIFS(Ingresos!F8:F38,Ingresos!$R$8:$R$38,"Sí") -> 0 | H207: =SUMIFS(Ingresos!G8:G38,Ingresos!$R$8:$R$38,"Sí") -> 0 | I207: =SUMIFS(Ingresos!H8:H38,Ingresos!$R$8:$R$38,"Sí") -> 0 | J207: =SUMIFS(Ingresos!I8:I38,Ingresos!$R$8:$R$38,"Sí") -> 0 | K207: =SUMIFS(Ingresos!J8:J38,Ingresos!$R$8:$R$38,"Sí") -> 0 | L207: =SUMIFS(Ingresos!K8:K38,Ingresos!$R$8:$R$38,"Sí") -> 0 | M207: =SUMIFS(Ingresos!L8:L38,Ingresos!$R$8:$R$38,"Sí") -> 0 | N207: =SUMIFS(Ingresos!M8:M38,Ingresos!$R$8:$R$38,"Sí") -> 0 | O207: =SUMIFS(Ingresos!N8:N38,Ingresos!$R$8:$R$38,"Sí") -> 0
C208: Si hay SAC | D208: =IF(Ingresos!C12+Ingresos!C51>0,1.5,1) -> 1 | E208: =IF(Ingresos!D12+Ingresos!D51>0,1.5,1) -> 1 | F208: =IF(Ingresos!E12+Ingresos!E51>0,1.5,1) -> 1 | G208: =IF(Ingresos!F12+Ingresos!F51>0,1.5,1) -> 1 | H208: =IF(Ingresos!G12+Ingresos!G51>0,1.5,1) -> 1 | I208: =IF(Ingresos!H12+Ingresos!H51>0,1.5,1) -> 1 | J208: =IF(Ingresos!I12+Ingresos!I51>0,1.5,1) -> 1 | K208: =IF(Ingresos!J12+Ingresos!J51>0,1.5,1) -> 1 | L208: =IF(Ingresos!K12+Ingresos!K51>0,1.5,1) -> 1 | M208: =IF(Ingresos!L12+Ingresos!L51>0,1.5,1) -> 1 | N208: =IF(Ingresos!M12+Ingresos!M51>0,1.5,1) -> 1 | O208: =IF(Ingresos!N12+Ingresos!N51>0,1.5,1) -> 1 | S208: Proporción exento-nogravado/total | T208: Deducciones hs. Extras exentas
C209: Jubilaciones | D209: =(IF(Check!$B$8="Ok",IF($R$209="Sí",maximo(D$207,Tablas!C$7*Auxiliares!D$208)*Tablas!C8,D$207*Tablas!C8),DedGrales!D12)-D213)*D216 -> 0 | E209: =(IF(Check!$B$8="Ok",IF($R$209="Sí",maximo(E$207,Tablas!D$7*Auxiliares!E$208)*Tablas!D8,E$207*Tablas!D8),DedGrales!E12)-E213)*E216 -> 0 | F209: =(IF(Check!$B$8="Ok",IF($R$209="Sí",maximo(F$207,Tablas!E$7*Auxiliares!F$208)*Tablas!E8,F$207*Tablas!E8),DedGrales!F12)-F213)*F216 -> 0 | G209: =(IF(Check!$B$8="Ok",IF($R$209="Sí",maximo(G$207,Tablas!F$7*Auxiliares!G$208)*Tablas!F8,G$207*Tablas!F8),DedGrales!G12)-G213)*G216 -> 0 | H209: =(IF(Check!$B$8="Ok",IF($R$209="Sí",maximo(H$207,Tablas!G$7*Auxiliares!H$208)*Tablas!G8,H$207*Tablas!G8),DedGrales!H12)-H213)*H216 -> 0 | I209: =(IF(Check!$B$8="Ok",IF($R$209="Sí",maximo(I$207,Tablas!H$7*Auxiliares!I$208)*Tablas!H8,I$207*Tablas!H8),DedGrales!I12)-I213)*I216 -> 0 | J209: =(IF(Check!$B$8="Ok",IF($R$209="Sí",maximo(J$207,Tablas!I$7*Auxiliares!J$208)*Tablas!I8,J$207*Tablas!I8),DedGrales!J12)-J213)*J216 -> 0 | K209: =(IF(Check!$B$8="Ok",IF($R$209="Sí",maximo(K$207,Tablas!J$7*Auxiliares!K$208)*Tablas!J8,K$207*Tablas!J8),DedGrales!K12)-K213)*K216 -> 0 | L209: =(IF(Check!$B$8="Ok",IF($R$209="Sí",maximo(L$207,Tablas!K$7*Auxiliares!L$208)*Tablas!K8,L$207*Tablas!K8),DedGrales!L12)-L213)*L216 -> 0 | M209: =(IF(Check!$B$8="Ok",IF($R$209="Sí",maximo(M$207,Tablas!L$7*Auxiliares!M$208)*Tablas!L8,M$207*Tablas!L8),DedGrales!M12)-M213)*M216 -> 0 | N209: =(IF(Check!$B$8="Ok",IF($R$209="Sí",maximo(N$207,Tablas!M$7*Auxiliares!N$208)*Tablas!M8,N$207*Tablas!M8),DedGrales!N12)-N213)*N216 -> 0 | O209: =(IF(Check!$B$8="Ok",IF($R$209="Sí",maximo(O$207,Tablas!N$7*Auxiliares!O$208)*Tablas!N8,O$207*Tablas!N8),DedGrales!O12)-O213)*O216 -> 0 | P209: =SUM(D209:O209) -> 0 | R209: =+R30 -> Sí | S209: =SUM(P209:P215)-SUM(D217:O217) -> 0
C210: Obra social | D210: =(IF(Check!$B$8="Ok",IF($R$210="Sí",maximo(D$207,Tablas!C$7*D$208)*(Tablas!C9+Tablas!C10),D$207*(Tablas!C9+Tablas!C10)),DedGrales!D13+DedGrales!D14)-D214)*D216 -> 0 | E210: =(IF(Check!$B$8="Ok",IF($R$210="Sí",maximo(E$207,Tablas!D$7*E$208)*(Tablas!D9+Tablas!D10),E$207*(Tablas!D9+Tablas!D10)),DedGrales!E13+DedGrales!E14)-E214)*E216 -> 0 | F210: =(IF(Check!$B$8="Ok",IF($R$210="Sí",maximo(F$207,Tablas!E$7*F$208)*(Tablas!E9+Tablas!E10),F$207*(Tablas!E9+Tablas!E10)),DedGrales!F13+DedGrales!F14)-F214)*F216 -> 0 | G210: =(IF(Check!$B$8="Ok",IF($R$210="Sí",maximo(G$207,Tablas!F$7*G$208)*(Tablas!F9+Tablas!F10),G$207*(Tablas!F9+Tablas!F10)),DedGrales!G13+DedGrales!G14)-G214)*G216 -> 0 | H210: =(IF(Check!$B$8="Ok",IF($R$210="Sí",maximo(H$207,Tablas!G$7*H$208)*(Tablas!G9+Tablas!G10),H$207*(Tablas!G9+Tablas!G10)),DedGrales!H13+DedGrales!H14)-H214)*H216 -> 0 | I210: =(IF(Check!$B$8="Ok",IF($R$210="Sí",maximo(I$207,Tablas!H$7*I$208)*(Tablas!H9+Tablas!H10),I$207*(Tablas!H9+Tablas!H10)),DedGrales!I13+DedGrales!I14)-I214)*I216 -> 0 | J210: =(IF(Check!$B$8="Ok",IF($R$210="Sí",maximo(J$207,Tablas!I$7*J$208)*(Tablas!I9+Tablas!I10),J$207*(Tablas!I9+Tablas!I10)),DedGrales!J13+DedGrales!J14)-J214)*J216 -> 0 | K210: =(IF(Check!$B$8="Ok",IF($R$210="Sí",maximo(K$207,Tablas!J$7*K$208)*(Tablas!J9+Tablas!J10),K$207*(Tablas!J9+Tablas!J10)),DedGrales!K13+DedGrales!K14)-K214)*K216 -> 0 | L210: =(IF(Check!$B$8="Ok",IF($R$210="Sí",maximo(L$207,Tablas!K$7*L$208)*(Tablas!K9+Tablas!K10),L$207*(Tablas!K9+Tablas!K10)),DedGrales!L13+DedGrales!L14)-L214)*L216 -> 0 | M210: =(IF(Check!$B$8="Ok",IF($R$210="Sí",maximo(M$207,Tablas!L$7*M$208)*(Tablas!L9+Tablas!L10),M$207*(Tablas!L9+Tablas!L10)),DedGrales!M13+DedGrales!M14)-M214)*M216 -> 0 | N210: =(IF(Check!$B$8="Ok",IF($R$210="Sí",maximo(N$207,Tablas!M$7*N$208)*(Tablas!M9+Tablas!M10),N$207*(Tablas!M9+Tablas!M10)),DedGrales!N13+DedGrales!N14)-N214)*N216 -> 0 | O210: =(IF(Check!$B$8="Ok",IF($R$210="Sí",maximo(O$207,Tablas!N$7*O$208)*(Tablas!N9+Tablas!N10),O$207*(Tablas!N9+Tablas!N10)),DedGrales!O13+DedGrales!O14)-O214)*O216 -> 0 | P210: =SUM(D210:O210) -> 0 | R210: =+R31 -> Sí
C211: Cuota sindical | D211: =IF(D33=0,0,(IF(Check!$B$8="Ok",IF($R$211="Sí",maximo(D$207,Tablas!C$7*D$208)*Tablas!C11,D$207*Tablas!C11),DedGrales!D15)-D215)*D216) -> 0 | E211: =IF(E33=0,0,(IF(Check!$B$8="Ok",IF($R$211="Sí",maximo(E$207,Tablas!D$7*E$208)*Tablas!D11,E$207*Tablas!D11),DedGrales!E15)-E215)*E216) -> 0 | F211: =IF(F33=0,0,(IF(Check!$B$8="Ok",IF($R$211="Sí",maximo(F$207,Tablas!E$7*F$208)*Tablas!E11,F$207*Tablas!E11),DedGrales!F15)-F215)*F216) -> 0 | G211: =IF(G33=0,0,(IF(Check!$B$8="Ok",IF($R$211="Sí",maximo(G$207,Tablas!F$7*G$208)*Tablas!F11,G$207*Tablas!F11),DedGrales!G15)-G215)*G216) -> 0 | H211: =IF(H33=0,0,(IF(Check!$B$8="Ok",IF($R$211="Sí",maximo(H$207,Tablas!G$7*H$208)*Tablas!G11,H$207*Tablas!G11),DedGrales!H15)-H215)*H216) -> 0 | I211: =IF(I33=0,0,(IF(Check!$B$8="Ok",IF($R$211="Sí",maximo(I$207,Tablas!H$7*I$208)*Tablas!H11,I$207*Tablas!H11),DedGrales!I15)-I215)*I216) -> 0 | J211: =IF(J33=0,0,(IF(Check!$B$8="Ok",IF($R$211="Sí",maximo(J$207,Tablas!I$7*J$208)*Tablas!I11,J$207*Tablas!I11),DedGrales!J15)-J215)*J216) -> 0 | K211: =IF(K33=0,0,(IF(Check!$B$8="Ok",IF($R$211="Sí",maximo(K$207,Tablas!J$7*K$208)*Tablas!J11,K$207*Tablas!J11),DedGrales!K15)-K215)*K216) -> 0 | L211: =IF(L33=0,0,(IF(Check!$B$8="Ok",IF($R$211="Sí",maximo(L$207,Tablas!K$7*L$208)*Tablas!K11,L$207*Tablas!K11),DedGrales!L15)-L215)*L216) -> 0 | M211: =IF(M33=0,0,(IF(Check!$B$8="Ok",IF($R$211="Sí",maximo(M$207,Tablas!L$7*M$208)*Tablas!L11,M$207*Tablas!L11),DedGrales!M15)-M215)*M216) -> 0 | N211: =IF(N33=0,0,(IF(Check!$B$8="Ok",IF($R$211="Sí",maximo(N$207,Tablas!M$7*N$208)*Tablas!M11,N$207*Tablas!M11),DedGrales!N15)-N215)*N216) -> 0 | O211: =IF(O33=0,0,(IF(Check!$B$8="Ok",IF($R$211="Sí",maximo(O$207,Tablas!N$7*O$208)*Tablas!N11,O$207*Tablas!N11),DedGrales!O15)-O215)*O216) -> 0 | P211: =SUM(D211:O211) -> 0 | R211: =+R33 -> No
C212: Otros empleos (remunerativo) | D212: =SUMIFS(Ingresos!C47:C77,Ingresos!$R$47:$R$77,"Sí")+D207 -> 0 | E212: =SUMIFS(Ingresos!D47:D77,Ingresos!$R$47:$R$77,"Sí")+E207 -> 0 | F212: =SUMIFS(Ingresos!E47:E77,Ingresos!$R$47:$R$77,"Sí")+F207 -> 0 | G212: =SUMIFS(Ingresos!F47:F77,Ingresos!$R$47:$R$77,"Sí")+G207 -> 0 | H212: =SUMIFS(Ingresos!G47:G77,Ingresos!$R$47:$R$77,"Sí")+H207 -> 0 | I212: =SUMIFS(Ingresos!H47:H77,Ingresos!$R$47:$R$77,"Sí")+I207 -> 0 | J212: =SUMIFS(Ingresos!I47:I77,Ingresos!$R$47:$R$77,"Sí")+J207 -> 0 | K212: =SUMIFS(Ingresos!J47:J77,Ingresos!$R$47:$R$77,"Sí")+K207 -> 0 | L212: =SUMIFS(Ingresos!K47:K77,Ingresos!$R$47:$R$77,"Sí")+L207 -> 0 | M212: =SUMIFS(Ingresos!L47:L77,Ingresos!$R$47:$R$77,"Sí")+M207 -> 0 | N212: =SUMIFS(Ingresos!M47:M77,Ingresos!$R$47:$R$77,"Sí")+N207 -> 0 | O212: =SUMIFS(Ingresos!N47:N77,Ingresos!$R$47:$R$77,"Sí")+O207 -> 0
C213: Aportes jubilatorios otros empleos | D213: =(IF(Check!$B$8="Ok",IF(AND($R$213="Sí",D207<>0),(maximo(D$212,Tablas!C$7*D208)*Tablas!C8)*(D$212-D$207)/D$212,(D$212-D$207)*Tablas!C8),DedGrales!D23))*D216 -> 0 | E213: =(IF(Check!$B$8="Ok",IF(AND($R$213="Sí",E207<>0),(maximo(E$212,Tablas!D$7*E208)*Tablas!D8)*(E$212-E$207)/E$212,(E$212-E$207)*Tablas!D8),DedGrales!E23))*E216 -> 0 | F213: =(IF(Check!$B$8="Ok",IF(AND($R$213="Sí",F207<>0),(maximo(F$212,Tablas!E$7*F208)*Tablas!E8)*(F$212-F$207)/F$212,(F$212-F$207)*Tablas!E8),DedGrales!F23))*F216 -> 0 | G213: =(IF(Check!$B$8="Ok",IF(AND($R$213="Sí",G207<>0),(maximo(G$212,Tablas!F$7*G208)*Tablas!F8)*(G$212-G$207)/G$212,(G$212-G$207)*Tablas!F8),DedGrales!G23))*G216 -> 0 | H213: =(IF(Check!$B$8="Ok",IF(AND($R$213="Sí",H207<>0),(maximo(H$212,Tablas!G$7*H208)*Tablas!G8)*(H$212-H$207)/H$212,(H$212-H$207)*Tablas!G8),DedGrales!H23))*H216 -> 0 | I213: =(IF(Check!$B$8="Ok",IF(AND($R$213="Sí",I207<>0),(maximo(I$212,Tablas!H$7*I208)*Tablas!H8)*(I$212-I$207)/I$212,(I$212-I$207)*Tablas!H8),DedGrales!I23))*I216 -> 0 | J213: =(IF(Check!$B$8="Ok",IF(AND($R$213="Sí",J207<>0),(maximo(J$212,Tablas!I$7*J208)*Tablas!I8)*(J$212-J$207)/J$212,(J$212-J$207)*Tablas!I8),DedGrales!J23))*J216 -> 0 | K213: =(IF(Check!$B$8="Ok",IF(AND($R$213="Sí",K207<>0),(maximo(K$212,Tablas!J$7*K208)*Tablas!J8)*(K$212-K$207)/K$212,(K$212-K$207)*Tablas!J8),DedGrales!K23))*K216 -> 0 | L213: =(IF(Check!$B$8="Ok",IF(AND($R$213="Sí",L207<>0),(maximo(L$212,Tablas!K$7*L208)*Tablas!K8)*(L$212-L$207)/L$212,(L$212-L$207)*Tablas!K8),DedGrales!L23))*L216 -> 0 | M213: =(IF(Check!$B$8="Ok",IF(AND($R$213="Sí",M207<>0),(maximo(M$212,Tablas!L$7*M208)*Tablas!L8)*(M$212-M$207)/M$212,(M$212-M$207)*Tablas!L8),DedGrales!M23))*M216 -> 0 | N213: =(IF(Check!$B$8="Ok",IF(AND($R$213="Sí",N207<>0),(maximo(N$212,Tablas!M$7*N208)*Tablas!M8)*(N$212-N$207)/N$212,(N$212-N$207)*Tablas!M8),DedGrales!N23))*N216 -> 0 | O213: =(IF(Check!$B$8="Ok",IF(AND($R$213="Sí",O207<>0),(maximo(O$212,Tablas!N$7*O208)*Tablas!N8)*(O$212-O$207)/O$212,(O$212-O$207)*Tablas!N8),DedGrales!O23))*O216 -> 0 | P213: =SUM(D213:O213) -> 0 | R213: =+R209 -> Sí
C214: Aportes obra social otros empleos | D214: =(IF(Check!$B$8="Ok",IF(AND($R$214="Sí",D207<>0),(maximo(D$212,Tablas!C$7*D208)*Tablas!C9)*(D$212-D$207)/D$212,(D$212-D$207)*Tablas!C9),DedGrales!D24+DedGrales!D25))*D216 -> 0 | E214: =(IF(Check!$B$8="Ok",IF(AND($R$214="Sí",E207<>0),(maximo(E$212,Tablas!D$7*E208)*Tablas!D9)*(E$212-E$207)/E$212,(E$212-E$207)*Tablas!D9),DedGrales!E24+DedGrales!E25))*E216 -> 0 | F214: =(IF(Check!$B$8="Ok",IF(AND($R$214="Sí",F207<>0),(maximo(F$212,Tablas!E$7*F208)*Tablas!E9)*(F$212-F$207)/F$212,(F$212-F$207)*Tablas!E9),DedGrales!F24+DedGrales!F25))*F216 -> 0 | G214: =(IF(Check!$B$8="Ok",IF(AND($R$214="Sí",G207<>0),(maximo(G$212,Tablas!F$7*G208)*Tablas!F9)*(G$212-G$207)/G$212,(G$212-G$207)*Tablas!F9),DedGrales!G24+DedGrales!G25))*G216 -> 0 | H214: =(IF(Check!$B$8="Ok",IF(AND($R$214="Sí",H207<>0),(maximo(H$212,Tablas!G$7*H208)*Tablas!G9)*(H$212-H$207)/H$212,(H$212-H$207)*Tablas!G9),DedGrales!H24+DedGrales!H25))*H216 -> 0 | I214: =(IF(Check!$B$8="Ok",IF(AND($R$214="Sí",I207<>0),(maximo(I$212,Tablas!H$7*I208)*Tablas!H9)*(I$212-I$207)/I$212,(I$212-I$207)*Tablas!H9),DedGrales!I24+DedGrales!I25))*I216 -> 0 | J214: =(IF(Check!$B$8="Ok",IF(AND($R$214="Sí",J207<>0),(maximo(J$212,Tablas!I$7*J208)*Tablas!I9)*(J$212-J$207)/J$212,(J$212-J$207)*Tablas!I9),DedGrales!J24+DedGrales!J25))*J216 -> 0 | K214: =(IF(Check!$B$8="Ok",IF(AND($R$214="Sí",K207<>0),(maximo(K$212,Tablas!J$7*K208)*Tablas!J9)*(K$212-K$207)/K$212,(K$212-K$207)*Tablas!J9),DedGrales!K24+DedGrales!K25))*K216 -> 0 | L214: =(IF(Check!$B$8="Ok",IF(AND($R$214="Sí",L207<>0),(maximo(L$212,Tablas!K$7*L208)*Tablas!K9)*(L$212-L$207)/L$212,(L$212-L$207)*Tablas!K9),DedGrales!L24+DedGrales!L25))*L216 -> 0 | M214: =(IF(Check!$B$8="Ok",IF(AND($R$214="Sí",M207<>0),(maximo(M$212,Tablas!L$7*M208)*Tablas!L9)*(M$212-M$207)/M$212,(M$212-M$207)*Tablas!L9),DedGrales!M24+DedGrales!M25))*M216 -> 0 | N214: =(IF(Check!$B$8="Ok",IF(AND($R$214="Sí",N207<>0),(maximo(N$212,Tablas!M$7*N208)*Tablas!M9)*(N$212-N$207)/N$212,(N$212-N$207)*Tablas!M9),DedGrales!N24+DedGrales!N25))*N216 -> 0 | O214: =(IF(Check!$B$8="Ok",IF(AND($R$214="Sí",O207<>0),(maximo(O$212,Tablas!N$7*O208)*Tablas!N9)*(O$212-O$207)/O$212,(O$212-O$207)*Tablas!N9),DedGrales!O24+DedGrales!O25))*O216 -> 0 | P214: =SUM(D214:O214) -> 0 | R214: =+R210 -> Sí
C215: Cuota sindical otros empleos | D215: =IF(D40=0,0,(IF(Check!$B$8="Ok",IF($R$215="Sí",(maximo(D$212,Tablas!C$7*D208)*Tablas!C10)*(D$212-D$207)/D$212,(D$212-D$207)*Tablas!C10),DedGrales!D26))*D216) -> 0 | E215: =IF(E40=0,0,(IF(Check!$B$8="Ok",IF($R$215="Sí",(maximo(E$212,Tablas!D$7*E208)*Tablas!D10)*(E$212-E$207)/E$212,(E$212-E$207)*Tablas!D10),DedGrales!E26))*E216) -> 0 | F215: =IF(F40=0,0,(IF(Check!$B$8="Ok",IF($R$215="Sí",(maximo(F$212,Tablas!E$7*F208)*Tablas!E10)*(F$212-F$207)/F$212,(F$212-F$207)*Tablas!E10),DedGrales!F26))*F216) -> 0 | G215: =IF(G40=0,0,(IF(Check!$B$8="Ok",IF($R$215="Sí",(maximo(G$212,Tablas!F$7*G208)*Tablas!F10)*(G$212-G$207)/G$212,(G$212-G$207)*Tablas!F10),DedGrales!G26))*G216) -> 0 | H215: =IF(H40=0,0,(IF(Check!$B$8="Ok",IF($R$215="Sí",(maximo(H$212,Tablas!G$7*H208)*Tablas!G10)*(H$212-H$207)/H$212,(H$212-H$207)*Tablas!G10),DedGrales!H26))*H216) -> 0 | I215: =IF(I40=0,0,(IF(Check!$B$8="Ok",IF($R$215="Sí",(maximo(I$212,Tablas!H$7*I208)*Tablas!H10)*(I$212-I$207)/I$212,(I$212-I$207)*Tablas!H10),DedGrales!I26))*I216) -> 0 | J215: =IF(J40=0,0,(IF(Check!$B$8="Ok",IF($R$215="Sí",(maximo(J$212,Tablas!I$7*J208)*Tablas!I10)*(J$212-J$207)/J$212,(J$212-J$207)*Tablas!I10),DedGrales!J26))*J216) -> 0 | K215: =IF(K40=0,0,(IF(Check!$B$8="Ok",IF($R$215="Sí",(maximo(K$212,Tablas!J$7*K208)*Tablas!J10)*(K$212-K$207)/K$212,(K$212-K$207)*Tablas!J10),DedGrales!K26))*K216) -> 0 | L215: =IF(L40=0,0,(IF(Check!$B$8="Ok",IF($R$215="Sí",(maximo(L$212,Tablas!K$7*L208)*Tablas!K10)*(L$212-L$207)/L$212,(L$212-L$207)*Tablas!K10),DedGrales!L26))*L216) -> 0 | M215: =IF(M40=0,0,(IF(Check!$B$8="Ok",IF($R$215="Sí",(maximo(M$212,Tablas!L$7*M208)*Tablas!L10)*(M$212-M$207)/M$212,(M$212-M$207)*Tablas!L10),DedGrales!M26))*M216) -> 0 | N215: =IF(N40=0,0,(IF(Check!$B$8="Ok",IF($R$215="Sí",(maximo(N$212,Tablas!M$7*N208)*Tablas!M10)*(N$212-N$207)/N$212,(N$212-N$207)*Tablas!M10),DedGrales!N26))*N216) -> 0 | O215: =IF(O40=0,0,(IF(Check!$B$8="Ok",IF($R$215="Sí",(maximo(O$212,Tablas!N$7*O208)*Tablas!N10)*(O$212-O$207)/O$212,(O$212-O$207)*Tablas!N10),DedGrales!O26))*O216) -> 0 | P215: =SUM(D215:O215) -> 0 | R215: =+R211 -> No
C216: Proporción Gravado/Total | D216: =proporcionGravado(SUM(D9:D10),SUM(D9:D10,D16:D17,D23:D24)) -> 0 | E216: 0 | F216: 0 | G216: 0 | H216: 0 | I216: 0 | J216: 0 | K216: 0 | L216: 0 | M216: 0 | N216: 0 | O216: 0 | P216: =+SUM(D216:O216)/12 -> 0
C217: Para restar horas extras exentas | D217: =IF(OR(TYPE(+D209/D216)=16,TYPE(+D210/D216)=16,TYPE(+D211/D216)=16,TYPE(+D213/D216)=16,TYPE(+D213/D216)=16,TYPE(+D214/D216)=16,TYPE(+D215/D216)=16),0,+D209/D216+D210/D216+D211/D216+D213/D216+D214/D216+D215/D216) -> 0 | E217: =IF(OR(TYPE(+E209/E216)=16,TYPE(+E210/E216)=16,TYPE(+E211/E216)=16,TYPE(+E213/E216)=16,TYPE(+E213/E216)=16,TYPE(+E214/E216)=16,TYPE(+E215/E216)=16),0,+E209/E216+E210/E216+E211/E216+E213/E216+E214/E216+E215/E216) -> 0 | F217: 0 | G217: 0 | H217: 0 | I217: 0 | J217: 0 | K217: 0 | L217: 0 | M217: 0 | N217: 0 | O217: 0
C218: Retenciones Hs Extras
C219: HsExtras1 | D219: =+Ingresos!C9+Ingresos!C11 -> 0 | E219: =+Ingresos!D9+Ingresos!D11 -> 0 | F219: =+Ingresos!E9+Ingresos!E11 -> 0 | G219: =+Ingresos!F9+Ingresos!F11 -> 0 | H219: =+Ingresos!G9+Ingresos!G11 -> 0 | I219: =+Ingresos!H9+Ingresos!H11 -> 0 | J219: =+Ingresos!I9+Ingresos!I11 -> 0 | K219: =+Ingresos!J9+Ingresos!J11 -> 0 | L219: =+Ingresos!K9+Ingresos!K11 -> 0 | M219: =+Ingresos!L9+Ingresos!L11 -> 0 | N219: =+Ingresos!M9+Ingresos!M11 -> 0 | O219: =+Ingresos!N9+Ingresos!N11 -> 0
C220: HsExtras2 | D220: =+Ingresos!C48+Ingresos!C50 -> 0 | E220: =+Ingresos!D48+Ingresos!D50 -> 0 | F220: =+Ingresos!E48+Ingresos!E50 -> 0 | G220: =+Ingresos!F48+Ingresos!F50 -> 0 | H220: =+Ingresos!G48+Ingresos!G50 -> 0 | I220: =+Ingresos!H48+Ingresos!H50 -> 0 | J220: =+Ingresos!I48+Ingresos!I50 -> 0 | K220: =+Ingresos!J48+Ingresos!J50 -> 0 | L220: =+Ingresos!K48+Ingresos!K50 -> 0 | M220: =+Ingresos!L48+Ingresos!L50 -> 0 | N220: =+Ingresos!M48+Ingresos!M50 -> 0 | O220: =+Ingresos!N48+Ingresos!N50 -> 0
C221: =+C166 -> Jubilación | D221: =retenciones(Check!$B$8,Auxiliares!$R$221,SUM(D$9:D$10,D$16:D$17,D$23:D$24),Tablas!C$7,Tablas!C8,D$219,0) -> 0 | E221: =retenciones(Check!$B$8,Auxiliares!$R$221,SUM(E$9:E$10,E$16:E$17,E$23:E$24),Tablas!D$7,Tablas!D8,E$219,0) -> 0 | F221: =retenciones(Check!$B$8,Auxiliares!$R$221,SUM(F$9:F$10,F$16:F$17,F$23:F$24),Tablas!E$7,Tablas!E8,F$219,0) -> 0 | G221: =retenciones(Check!$B$8,Auxiliares!$R$221,SUM(G$9:G$10,G$16:G$17,G$23:G$24),Tablas!F$7,Tablas!F8,G$219,0) -> 0 | H221: =retenciones(Check!$B$8,Auxiliares!$R$221,SUM(H$9:H$10,H$16:H$17,H$23:H$24),Tablas!G$7,Tablas!G8,H$219,0) -> 0 | I221: =retenciones(Check!$B$8,Auxiliares!$R$221,SUM(I$9:I$10,I$16:I$17,I$23:I$24),Tablas!H$7,Tablas!H8,I$219,0) -> 0 | J221: =retenciones(Check!$B$8,Auxiliares!$R$221,SUM(J$9:J$10,J$16:J$17,J$23:J$24),Tablas!I$7,Tablas!I8,J$219,0) -> 0 | K221: =retenciones(Check!$B$8,Auxiliares!$R$221,SUM(K$9:K$10,K$16:K$17,K$23:K$24),Tablas!J$7,Tablas!J8,K$219,0) -> 0 | L221: =retenciones(Check!$B$8,Auxiliares!$R$221,SUM(L$9:L$10,L$16:L$17,L$23:L$24),Tablas!K$7,Tablas!K8,L$219,0) -> 0 | M221: =retenciones(Check!$B$8,Auxiliares!$R$221,SUM(M$9:M$10,M$16:M$17,M$23:M$24),Tablas!L$7,Tablas!L8,M$219,0) -> 0 | N221: =retenciones(Check!$B$8,Auxiliares!$R$221,SUM(N$9:N$10,N$16:N$17,N$23:N$24),Tablas!M$7,Tablas!M8,N$219,0) -> 0 | O221: =retenciones(Check!$B$8,Auxiliares!$R$221,SUM(O$9:O$10,O$16:O$17,O$23:O$24),Tablas!N$7,Tablas!N8,O$219,0) -> 0 | R221: =+R166 -> Sí
C222: Ley 19032 | D222: =retenciones(Check!$B$8,Auxiliares!$R$222,SUM(D$9:D$10,D$16:D$17,D$23:D$24),Tablas!C$7,Tablas!C9,D$219,0) -> 0 | E222: =retenciones(Check!$B$8,Auxiliares!$R$222,SUM(E$9:E$10,E$16:E$17,E$23:E$24),Tablas!D$7,Tablas!D9,E$219,0) -> 0 | F222: =retenciones(Check!$B$8,Auxiliares!$R$222,SUM(F$9:F$10,F$16:F$17,F$23:F$24),Tablas!E$7,Tablas!E9,F$219,0) -> 0 | G222: =retenciones(Check!$B$8,Auxiliares!$R$222,SUM(G$9:G$10,G$16:G$17,G$23:G$24),Tablas!F$7,Tablas!F9,G$219,0) -> 0 | H222: =retenciones(Check!$B$8,Auxiliares!$R$222,SUM(H$9:H$10,H$16:H$17,H$23:H$24),Tablas!G$7,Tablas!G9,H$219,0) -> 0 | I222: =retenciones(Check!$B$8,Auxiliares!$R$222,SUM(I$9:I$10,I$16:I$17,I$23:I$24),Tablas!H$7,Tablas!H9,I$219,0) -> 0 | J222: =retenciones(Check!$B$8,Auxiliares!$R$222,SUM(J$9:J$10,J$16:J$17,J$23:J$24),Tablas!I$7,Tablas!I9,J$219,0) -> 0 | K222: =retenciones(Check!$B$8,Auxiliares!$R$222,SUM(K$9:K$10,K$16:K$17,K$23:K$24),Tablas!J$7,Tablas!J9,K$219,0) -> 0 | L222: =retenciones(Check!$B$8,Auxiliares!$R$222,SUM(L$9:L$10,L$16:L$17,L$23:L$24),Tablas!K$7,Tablas!K9,L$219,0) -> 0 | M222: =retenciones(Check!$B$8,Auxiliares!$R$222,SUM(M$9:M$10,M$16:M$17,M$23:M$24),Tablas!L$7,Tablas!L9,M$219,0) -> 0 | N222: =retenciones(Check!$B$8,Auxiliares!$R$222,SUM(N$9:N$10,N$16:N$17,N$23:N$24),Tablas!M$7,Tablas!M9,N$219,0) -> 0 | O222: =retenciones(Check!$B$8,Auxiliares!$R$222,SUM(O$9:O$10,O$16:O$17,O$23:O$24),Tablas!N$7,Tablas!N9,O$219,0) -> 0 | R222: Sí
C223: Obra social | D223: =retenciones(Check!$B$8,Auxiliares!$R$223,SUM(D$9:D$10,D$16:D$17,D$23:D$24),Tablas!C$7,Tablas!C10,D$219,0) -> 0 | E223: =retenciones(Check!$B$8,Auxiliares!$R$223,SUM(E$9:E$10,E$16:E$17,E$23:E$24),Tablas!D$7,Tablas!D10,E$219,0) -> 0 | F223: =retenciones(Check!$B$8,Auxiliares!$R$223,SUM(F$9:F$10,F$16:F$17,F$23:F$24),Tablas!E$7,Tablas!E10,F$219,0) -> 0 | G223: =retenciones(Check!$B$8,Auxiliares!$R$223,SUM(G$9:G$10,G$16:G$17,G$23:G$24),Tablas!F$7,Tablas!F10,G$219,0) -> 0 | H223: =retenciones(Check!$B$8,Auxiliares!$R$223,SUM(H$9:H$10,H$16:H$17,H$23:H$24),Tablas!G$7,Tablas!G10,H$219,0) -> 0 | I223: =retenciones(Check!$B$8,Auxiliares!$R$223,SUM(I$9:I$10,I$16:I$17,I$23:I$24),Tablas!H$7,Tablas!H10,I$219,0) -> 0 | J223: =retenciones(Check!$B$8,Auxiliares!$R$223,SUM(J$9:J$10,J$16:J$17,J$23:J$24),Tablas!I$7,Tablas!I10,J$219,0) -> 0 | K223: =retenciones(Check!$B$8,Auxiliares!$R$223,SUM(K$9:K$10,K$16:K$17,K$23:K$24),Tablas!J$7,Tablas!J10,K$219,0) -> 0 | L223: =retenciones(Check!$B$8,Auxiliares!$R$223,SUM(L$9:L$10,L$16:L$17,L$23:L$24),Tablas!K$7,Tablas!K10,L$219,0) -> 0 | M223: =retenciones(Check!$B$8,Auxiliares!$R$223,SUM(M$9:M$10,M$16:M$17,M$23:M$24),Tablas!L$7,Tablas!L10,M$219,0) -> 0 | N223: =retenciones(Check!$B$8,Auxiliares!$R$223,SUM(N$9:N$10,N$16:N$17,N$23:N$24),Tablas!M$7,Tablas!M10,N$219,0) -> 0 | O223: =retenciones(Check!$B$8,Auxiliares!$R$223,SUM(O$9:O$10,O$16:O$17,O$23:O$24),Tablas!N$7,Tablas!N10,O$219,0) -> 0 | R223: Sí
C224: Sindicato | D224: =retenciones(Check!$B$8,Auxiliares!$R$224,SUM(D$9:D$10,D$16:D$17,D$23:D$24),Tablas!C$7,Tablas!C11,D$219,0) -> 0 | E224: =retenciones(Check!$B$8,Auxiliares!$R$224,SUM(E$9:E$10,E$16:E$17,E$23:E$24),Tablas!D$7,Tablas!D11,E$219,0) -> 0 | F224: =retenciones(Check!$B$8,Auxiliares!$R$224,SUM(F$9:F$10,F$16:F$17,F$23:F$24),Tablas!E$7,Tablas!E11,F$219,0) -> 0 | G224: =retenciones(Check!$B$8,Auxiliares!$R$224,SUM(G$9:G$10,G$16:G$17,G$23:G$24),Tablas!F$7,Tablas!F11,G$219,0) -> 0 | H224: =retenciones(Check!$B$8,Auxiliares!$R$224,SUM(H$9:H$10,H$16:H$17,H$23:H$24),Tablas!G$7,Tablas!G11,H$219,0) -> 0 | I224: =retenciones(Check!$B$8,Auxiliares!$R$224,SUM(I$9:I$10,I$16:I$17,I$23:I$24),Tablas!H$7,Tablas!H11,I$219,0) -> 0 | J224: =retenciones(Check!$B$8,Auxiliares!$R$224,SUM(J$9:J$10,J$16:J$17,J$23:J$24),Tablas!I$7,Tablas!I11,J$219,0) -> 0 | K224: =retenciones(Check!$B$8,Auxiliares!$R$224,SUM(K$9:K$10,K$16:K$17,K$23:K$24),Tablas!J$7,Tablas!J11,K$219,0) -> 0 | L224: =retenciones(Check!$B$8,Auxiliares!$R$224,SUM(L$9:L$10,L$16:L$17,L$23:L$24),Tablas!K$7,Tablas!K11,L$219,0) -> 0 | M224: =retenciones(Check!$B$8,Auxiliares!$R$224,SUM(M$9:M$10,M$16:M$17,M$23:M$24),Tablas!L$7,Tablas!L11,M$219,0) -> 0 | N224: =retenciones(Check!$B$8,Auxiliares!$R$224,SUM(N$9:N$10,N$16:N$17,N$23:N$24),Tablas!M$7,Tablas!M11,N$219,0) -> 0 | O224: =retenciones(Check!$B$8,Auxiliares!$R$224,SUM(O$9:O$10,O$16:O$17,O$23:O$24),Tablas!N$7,Tablas!N11,O$219,0) -> 0 | R224: No
C225: 0 | D225: =retenciones(Check!$B$8,Auxiliares!$R$225,SUM(D$9:D$10,D$16:D$17,D$23:D$24),Tablas!C$7,Tablas!C12,D$219,0) -> 0 | E225: =retenciones(Check!$B$8,Auxiliares!$R$225,SUM(E$9:E$10,E$16:E$17,E$23:E$24),Tablas!D$7,Tablas!D12,E$219,0) -> 0 | F225: =retenciones(Check!$B$8,Auxiliares!$R$225,SUM(F$9:F$10,F$16:F$17,F$23:F$24),Tablas!E$7,Tablas!E12,F$219,0) -> 0 | G225: =retenciones(Check!$B$8,Auxiliares!$R$225,SUM(G$9:G$10,G$16:G$17,G$23:G$24),Tablas!F$7,Tablas!F12,G$219,0) -> 0 | H225: =retenciones(Check!$B$8,Auxiliares!$R$225,SUM(H$9:H$10,H$16:H$17,H$23:H$24),Tablas!G$7,Tablas!G12,H$219,0) -> 0 | I225: =retenciones(Check!$B$8,Auxiliares!$R$225,SUM(I$9:I$10,I$16:I$17,I$23:I$24),Tablas!H$7,Tablas!H12,I$219,0) -> 0 | J225: =retenciones(Check!$B$8,Auxiliares!$R$225,SUM(J$9:J$10,J$16:J$17,J$23:J$24),Tablas!I$7,Tablas!I12,J$219,0) -> 0 | K225: =retenciones(Check!$B$8,Auxiliares!$R$225,SUM(K$9:K$10,K$16:K$17,K$23:K$24),Tablas!J$7,Tablas!J12,K$219,0) -> 0 | L225: =retenciones(Check!$B$8,Auxiliares!$R$225,SUM(L$9:L$10,L$16:L$17,L$23:L$24),Tablas!K$7,Tablas!K12,L$219,0) -> 0 | M225: =retenciones(Check!$B$8,Auxiliares!$R$225,SUM(M$9:M$10,M$16:M$17,M$23:M$24),Tablas!L$7,Tablas!L12,M$219,0) -> 0 | N225: =retenciones(Check!$B$8,Auxiliares!$R$225,SUM(N$9:N$10,N$16:N$17,N$23:N$24),Tablas!M$7,Tablas!M12,N$219,0) -> 0 | O225: =retenciones(Check!$B$8,Auxiliares!$R$225,SUM(O$9:O$10,O$16:O$17,O$23:O$24),Tablas!N$7,Tablas!N12,O$219,0) -> 0 | R225: No
C226: 0 | D226: =retenciones(Check!$B$8,Auxiliares!$R$226,SUM(D$9:D$10,D$16:D$17,D$23:D$24),Tablas!C$7,Tablas!C13,D$219,0) -> 0 | E226: =retenciones(Check!$B$8,Auxiliares!$R$226,SUM(E$9:E$10,E$16:E$17,E$23:E$24),Tablas!D$7,Tablas!D13,E$219,0) -> 0 | F226: =retenciones(Check!$B$8,Auxiliares!$R$226,SUM(F$9:F$10,F$16:F$17,F$23:F$24),Tablas!E$7,Tablas!E13,F$219,0) -> 0 | G226: =retenciones(Check!$B$8,Auxiliares!$R$226,SUM(G$9:G$10,G$16:G$17,G$23:G$24),Tablas!F$7,Tablas!F13,G$219,0) -> 0 | H226: =retenciones(Check!$B$8,Auxiliares!$R$226,SUM(H$9:H$10,H$16:H$17,H$23:H$24),Tablas!G$7,Tablas!G13,H$219,0) -> 0 | I226: =retenciones(Check!$B$8,Auxiliares!$R$226,SUM(I$9:I$10,I$16:I$17,I$23:I$24),Tablas!H$7,Tablas!H13,I$219,0) -> 0 | J226: =retenciones(Check!$B$8,Auxiliares!$R$226,SUM(J$9:J$10,J$16:J$17,J$23:J$24),Tablas!I$7,Tablas!I13,J$219,0) -> 0 | K226: =retenciones(Check!$B$8,Auxiliares!$R$226,SUM(K$9:K$10,K$16:K$17,K$23:K$24),Tablas!J$7,Tablas!J13,K$219,0) -> 0 | L226: =retenciones(Check!$B$8,Auxiliares!$R$226,SUM(L$9:L$10,L$16:L$17,L$23:L$24),Tablas!K$7,Tablas!K13,L$219,0) -> 0 | M226: =retenciones(Check!$B$8,Auxiliares!$R$226,SUM(M$9:M$10,M$16:M$17,M$23:M$24),Tablas!L$7,Tablas!L13,M$219,0) -> 0 | N226: =retenciones(Check!$B$8,Auxiliares!$R$226,SUM(N$9:N$10,N$16:N$17,N$23:N$24),Tablas!M$7,Tablas!M13,N$219,0) -> 0 | O226: =retenciones(Check!$B$8,Auxiliares!$R$226,SUM(O$9:O$10,O$16:O$17,O$23:O$24),Tablas!N$7,Tablas!N13,O$219,0) -> 0 | R226: No
... 160 more rows

Sheet Tablas
B2: TABLAS
B4: RETENCIONES DE LA SEGURIDAD SOCIAL
B6: Concepto | C6: enero | D6: febrero | E6: marzo | F6: abril | G6: mayo | H6: junio | I6: julio | J6: agosto | K6: septiembre | L6: octubre | M6: noviembre | N6: diciembre | O6: Aplica tope?
B7: BI Máx | C7: 208357.3 | D7: =+C7 -> 208357.3 | E7: =IF(Check!$B$1="Ok",Tablas!D7,225171.69) -> 225171.69 | F7: 225171.69 | G7: =+F7 -> 225171.69 | H7: =IF(Check!$B$1="Ok",Tablas!G7,252462.5) -> 252462.5 | I7: =+H7 -> 252462.5 | J7: 252462.5 | K7: =IF(Check!$B$1="Ok",Tablas!G7,283742.6) -> 283742.6 | L7: 283742.6 | M7: 283742.6 | N7: 318103.83
B8: Jubilación | C8: 0.11 | D8: 0.11 | E8: 0.11 | F8: 0.11 | G8: 0.11 | H8: 0.11 | I8: 0.11 | J8: 0.11 | K8: 0.11 | L8: 0.11 | M8: 0.11 | N8: 0.11 | O8: Sí
B9: Ley 19032 | C9: 0.03 | D9: 0.03 | E9: 0.03 | F9: 0.03 | G9: 0.03 | H9: 0.03 | I9: 0.03 | J9: 0.03 | K9: 0.03 | L9: 0.03 | M9: 0.03 | N9: 0.03 | O9: Sí
B10: Obra social | C10: 0.03 | D10: 0.03 | E10: 0.03 | F10: 0.03 | G10: 0.03 | H10: 0.03 | I10: 0.03 | J10: 0.03 | K10: 0.03 | L10: 0.03 | M10: 0.03 | N10: 0.03 | O10: Sí
B11: Sindicato | C11: 0 | D11: 0 | E11: 0 | F11: 0 | G11: 0 | H11: 0 | I11: 0 | J11: 0 | K11: 0 | L11: 0 | M11: 0 | N11: 0 | O11: No
C12: 0 | D12: 0 | E12: 0 | F12: 0 | G12: 0 | H12: 0 | I12: 0 | J12: 0 | K12: 0 | L12: 0 | M12: 0 | N12: 0 | O12: No
C13: 0 | D13: 0 | E13: 0 | F13: 0 | G13: 0 | H13: 0 | I13: 0 | J13: 0 | K13: 0 | L13: 0 | M13: 0 | N13: 0 | O13: No
B15: DEDUCCIONES GENERALES
B17: Concepto | C17: 2017-01-01 | D17: 2017-02-01 | E17: 2017-03-01 | F17: 2017-04-01 | G17: 2017-05-01 | H17: 2017-06-01 | I17: 2017-07-01 | J17: 2017-08-01 | K17: 2017-09-01 | L17: 2017-10-01 | M17: 2017-11-01 | N17: 2017-12-01 | O17: Anual
B18: Seguro de vida | C18: =+$N$18 -> 24000 | D18: =+$N$18 -> 24000 | E18: 24000 | F18: 24000 | G18: 24000 | H18: 24000 | I18: 24000 | J18: 24000 | K18: 24000 | L18: 24000 | M18: 24000 | N18: 24000 | O18: =+N18 -> 24000
B19: Seguro mixto | C19: =+$N$19 -> 24000 | D19: =+$N$19 -> 24000 | E19: 24000 | F19: 24000 | G19: 24000 | H19: 24000 | I19: 24000 | J19: 24000 | K19: 24000 | L19: 24000 | M19: 24000 | N19: 24000 | O19: =+N19 -> 24000
B20: Fondo común de inversión | C20: =+$N$20 -> 24000 | D20: =+$N$20 -> 24000 | E20: 24000 | F20: 24000 | G20: 24000 | H20: 24000 | I20: 24000 | J20: 24000 | K20: 24000 | L20: 24000 | M20: 24000 | N20: 24000 | O20: 24000
B21: Seguro de retiro privado | C21: =+$N$19 -> 24000 | D21: 24000 | E21: 24000 | F21: 24000 | G21: 24000 | H21: 24000 | I21: 24000 | J21: 24000 | K21: 24000 | L21: 24000 | M21: 24000 | N21: 24000 | O21: =+N21 -> 24000
B22: Gastos de sepelio | C22: =+$N$22/12*DedGrales!$D$85 -> 83.01916667 | D22: =(+$N$22/12+C22)*DedGrales!$D$85 -> 166.0383333 | E22: =(+$N$22/12+D22)*DedGrales!$D$85 -> 249.0575 | F22: =(+$N$22/12+E22)*DedGrales!$D$85 -> 332.0766667 | G22: =(+$N$22/12+F22)*DedGrales!$D$85 -> 415.0958333 | H22: =(+$N$22/12+G22)*DedGrales!$D$85 -> 498.115 | I22: =(+$N$22/12+H22)*DedGrales!$D$85 -> 581.1341667 | J22: =(+$N$22/12+I22)*DedGrales!$D$85 -> 664.1533333 | K22: =(+$N$22/12+J22)*DedGrales!$D$85 -> 747.1725 | L22: =(+$N$22/12+K22)*DedGrales!$D$85 -> 830.1916667 | M22: =(+$N$22/12+L22)*DedGrales!$D$85 -> 913.2108333 | N22: 996.23 | O22: =+N22 -> 996.23
B23: Intereses créditos hipotecarios | C23: 20000 | D23: 20000 | E23: 20000 | F23: 20000 | G23: 20000 | H23: 20000 | I23: 20000 | J23: 20000 | K23: 20000 | L23: 20000 | M23: 20000 | N23: 20000 | O23: 20000 | Q23: Base de cálculo
B24: Personal de Casas Particulares | C24: =+$N$24 -> 167678.4 | D24: =+$N$24 -> 167678.4 | E24: 167678.4 | F24: 167678.4 | G24: 167678.4 | H24: 167678.4 | I24: 167678.4 | J24: 167678.4 | K24: 167678.4 | L24: 167678.4 | M24: 167678.4 | N24: =+Q24 -> 167678.4 | O24: =+N24 -> 167678.4 | Q24: 167678.4
B25: Alquiler de casa habitación | C25: =$O$25/12*MONTH(C17) -> 13973.2 | D25: =$O$25/12*MONTH(D17) -> 27946.4 | E25: 41919.6 | F25: 55892.8 | G25: 69866 | H25: 83839.2 | I25: 97812.4 | J25: 111785.6 | K25: 125758.8 | L25: 139732 | M25: 153705.2 | N25: 167678.4 | O25: =+Q24 -> 167678.4
B26: Viáticos | C26: =$Q$24*0.4 -> 67071.36 | D26: =$Q$24*0.4 -> 67071.36 | E26: 67071.36 | F26: 67071.36 | G26: 67071.36 | H26: 67071.36 | I26: 67071.36 | J26: 67071.36 | K26: 67071.36 | L26: 67071.36 | M26: 67071.36 | N26: 67071.36 | O26: =$Q$24*0.4 -> 67071.36
B27: Viáticos (larga distancia) | C27: =+$O$27 -> 167678.4 | D27: =+$O$27 -> 167678.4 | E27: 167678.4 | F27: 167678.4 | G27: 167678.4 | H27: 167678.4 | I27: 167678.4 | J27: 167678.4 | K27: 167678.4 | L27: 167678.4 | M27: 167678.4 | N27: 167678.4 | O27: =+Q24 -> 167678.4
B28: Viajantes de comercio (sin tope)
B29: Tope 5% ganancia neta | C29: =Liquidacion!F122*0.05 -> 0 | D29: =Liquidacion!G122*0.05 -> 0 | E29: =Liquidacion!H122*0.05 -> 0 | F29: =Liquidacion!I122*0.05 -> 0 | G29: =Liquidacion!J122*0.05 -> 0 | H29: =Liquidacion!K122*0.05 -> 0 | I29: =Liquidacion!L122*0.05 -> 0 | J29: =Liquidacion!M122*0.05 -> 0 | K29: =Liquidacion!N122*0.05 -> 0 | L29: =Liquidacion!O122*0.05 -> 0 | M29: =Liquidacion!P122*0.05 -> 0 | N29: =Liquidacion!Q122*0.05 -> 0 | O29: =+Liquidacion!S122*0.05 -> 0
B31: DEDUCCIONES PERSONALES
B33: Concepto | C33: enero | D33: febrero | E33: marzo | F33: abril | G33: mayo | H33: junio | I33: julio | J33: agosto | K33: septiembre | L33: octubre | M33: noviembre | N33: diciembre | O33: Anual
B34: GNI | C34: =+$O$34/12 -> 13973.2 | D34: =+$O$34/12 -> 13973.2 | E34: 13973.2 | F34: 13973.2 | G34: 13973.2 | H34: 13973.2 | I34: 13973.2 | J34: 13973.2 | K34: 13973.2 | L34: 13973.2 | M34: 13973.2 | N34: 13973.2 | O34: =IF(Datos!$F$21="Zona patagónica",167678.4*1.22,167678.4) -> 167678.4
B35: Deducción especial | C35: =+$O$35/12 -> 67071.36167 | D35: =+$O$35/12 -> 67071.36167 | E35: 67071.36167 | F35: 67071.36167 | G35: 67071.36167 | H35: 67071.36167 | I35: 67071.36167 | J35: 67071.36167 | K35: 67071.36167 | L35: 67071.36167 | M35: 67071.36167 | N35: 67071.36167 | O35: =IF(Datos!$F$21="Zona patagónica",804856.34*1.22,804856.34) -> 804856.34
B36: Cónyuge | C36: =+$O$36/12 -> 13026.71917 | D36: =+$O$36/12 -> 13026.71917 | E36: 13026.71917 | F36: 13026.71917 | G36: 13026.71917 | H36: 13026.71917 | I36: 13026.71917 | J36: 13026.71917 | K36: 13026.71917 | L36: 13026.71917 | M36: 13026.71917 | N36: 13026.71917 | O36: =IF(Datos!$F$21="Zona patagónica",156320.63*1.22,156320.63) -> 156320.63
B37: Hijo | C37: =+$O$37/12 -> 6569.423333 | D37: =+$O$37/12 -> 6569.423333 | E37: 6569.423333 | F37: 6569.423333 | G37: 6569.423333 | H37: 6569.423333 | I37: 6569.423333 | J37: 6569.423333 | K37: 6569.423333 | L37: 6569.423333 | M37: 6569.423333 | N37: 6569.423333 | O37: =IF(Datos!$F$21="Zona patagónica",78833.08*1.22,78833.08) -> 78833.08
C40: 2017-01-01 | D40: 2017-02-01 | E40: 2017-03-01 | F40: 2017-04-01 | G40: 2017-05-01 | H40: 2017-06-01 | I40: 2017-07-01 | J40: 2017-08-01 | K40: 2017-09-01 | L40: 2017-10-01 | M40: 2017-11-01 | N40: 2017-12-01
B41: Remuneración bruta | C41: =SUMIF(Ingresos!$T$8:$T$38,"Sí",Ingresos!C8:C38)+SUMIF(Ingresos!$T$47:$T$77,"Sí",Ingresos!C47:C77) -> 0 | D41: =SUMIF(Ingresos!$T$8:$T$38,"Sí",Ingresos!D8:D38)+SUMIF(Ingresos!$T$47:$T$77,"Sí",Ingresos!D47:D77) -> 0 | E41: =SUMIF(Ingresos!$T$8:$T$38,"Sí",Ingresos!E8:E38)+SUMIF(Ingresos!$T$47:$T$77,"Sí",Ingresos!E47:E77) -> 0 | F41: =SUMIF(Ingresos!$T$8:$T$38,"Sí",Ingresos!F8:F38)+SUMIF(Ingresos!$T$47:$T$77,"Sí",Ingresos!F47:F77) -> 0 | G41: =SUMIF(Ingresos!$T$8:$T$38,"Sí",Ingresos!G8:G38)+SUMIF(Ingresos!$T$47:$T$77,"Sí",Ingresos!G47:G77) -> 0 | H41: =SUMIF(Ingresos!$T$8:$T$38,"Sí",Ingresos!H8:H38)+SUMIF(Ingresos!$T$47:$T$77,"Sí",Ingresos!H47:H77) -> 0 | I41: =SUMIF(Ingresos!$T$8:$T$38,"Sí",Ingresos!I8:I38)+SUMIF(Ingresos!$T$47:$T$77,"Sí",Ingresos!I47:I77) -> 0 | J41: =SUMIF(Ingresos!$T$8:$T$38,"Sí",Ingresos!J8:J38)+SUMIF(Ingresos!$T$47:$T$77,"Sí",Ingresos!J47:J77) -> 0 | K41: =SUMIF(Ingresos!$T$8:$T$38,"Sí",Ingresos!K8:K38)+SUMIF(Ingresos!$T$47:$T$77,"Sí",Ingresos!K47:K77) -> 0 | L41: =SUMIF(Ingresos!$T$8:$T$38,"Sí",Ingresos!L8:L38)+SUMIF(Ingresos!$T$47:$T$77,"Sí",Ingresos!L47:L77) -> 0 | M41: =SUMIF(Ingresos!$T$8:$T$38,"Sí",Ingresos!M8:M38)+SUMIF(Ingresos!$T$47:$T$77,"Sí",Ingresos!M47:M77) -> 0 | N41: =SUMIF(Ingresos!$T$8:$T$38,"Sí",Ingresos!N8:N38)+SUMIF(Ingresos!$T$47:$T$77,"Sí",Ingresos!N47:N77) -> 0
B42: Remuneración Promedio | C42: =SUM(Tablas!$C$41:C41) -> 0 | D42: =SUM(Tablas!$C$41:D41)/MONTH(D40) -> 0 | E42: =SUM(Tablas!$C$41:E41)/MONTH(E40) -> 0 | F42: =SUM(Tablas!$C$41:F41)/MONTH(F40) -> 0 | G42: =SUM(Tablas!$C$41:G41)/MONTH(G40) -> 0 | H42: =SUM(Tablas!$C$41:H41)/MONTH(H40) -> 0 | I42: =SUM(Tablas!$C$41:I41)/MONTH(I40) -> 0 | J42: =SUM(Tablas!$C$41:J41)/MONTH(J40) -> 0 | K42: =IF(Check!$B$1="",SUM(Tablas!$K$41:K41)/(MONTH(K40)-8),SUM(Tablas!$C$41:K41)/9) -> 0 | L42: =IF(Check!$B$1="",SUM(Tablas!$K$41:L41)/(MONTH(L40)-8),SUM(Tablas!$L$41:L41)/(MONTH(L40)-9)) -> 0 | M42: =IF(Check!$B$1="",SUM(Tablas!$K$41:M41)/(MONTH(M40)-8),SUM(Tablas!$L$41:M41)/(MONTH(M40)-9)) -> 0 | N42: =IF(Check!$B$1="",SUM(Tablas!$K$41:N41)/(MONTH(N40)-8),SUM(Tablas!$L$41:N41)/(MONTH(N40)-9)) -> 0
B43: SAC: Remuneración promedio | C43: =SUM(Tablas!$C$41:C41) -> 0 | D43: =SUM(Tablas!$C$41:D41)/MONTH(D40) -> 0 | E43: =SUM(Tablas!$C$41:E41)/MONTH(E40) -> 0 | F43: =SUM(Tablas!$C$41:F41)/MONTH(F40) -> 0 | G43: =SUM(Tablas!$C$41:G41)/MONTH(G40) -> 0 | H43: =SUM(Tablas!$C$41:H41)/MONTH(H40) -> 0 | I43: =SUM(Tablas!$I$41:I41)/(MONTH(I40)-6) -> 0 | J43: =SUM(Tablas!$I$41:J41)/(MONTH(J40)-6) -> 0 | K43: =SUM(Tablas!$I$41:K41)/(MONTH(K40)-6) -> 0 | L43: =SUM(Tablas!$I$41:L41)/(MONTH(L40)-6) -> 0 | M43: =SUM(Tablas!$I$41:M41)/(MONTH(M40)-6) -> 0 | N43: =SUM(Tablas!$I$41:N41)/(MONTH(N40)-6) -> 0
B44: Tramo | C44: =IF(MIN(C41:C42)<=150000,"<150000",IF(MIN(C41:C42)<=173000,"<173000",">173000")) -> <150000 | D44: =IF(MIN(D41:D42)<=150000,"<150000",IF(MIN(D41:D42)<=173000,"<173000",">173000")) -> <150000 | E44: <150000 | F44: <150000 | G44: <150000 | H44: <150000 | I44: <150000 | J44: <150000 | K44: =IF(Check!$B$1="Ok",IF(MIN(J41:J42)<=150000,"<150000",IF(MIN(J41:J42)<=173000,"<173000",">173000")),IF(MIN(K41:K42)<=175000,"<175000",IF(MIN(K41:K42)<=203000,"<203000",">203000"))) -> <175000 | L44: =IF(MIN(L41:L42)<=175000,"<175000",IF(MIN(L41:L42)<=203000,"<203000",">203000")) -> <175000 | M44: <175000 | N44: <175000
B45: Deducción especial (incremento, primera parte) SAC | H45: =IF(IF(Check!$B$1="",IF(AND(H42>150000,H41<=150000,Check!$B$23=0),-Auxiliares!I350,Auxiliares!I350),0),0,0) -> 0 | I45: =IF(IF(Check!$B$1<>"",IF(AND(I42>150000,I41<=150000,Check!$B$23=0),-Auxiliares!J350,B575),0),0,0) -> 0 | J45: =IF(AND(J42>150000,J41<=150000,Check!$B$23=0),-Auxiliares!K350,-Auxiliares!K350) -> 0 | K45: =IF(AND(K42>175000,K41<=175000,Check!$B$23=0),-Auxiliares!L350,-Auxiliares!L350) -> 0 | L45: =IF(AND(L42>175000,L41<=175000,Check!$B$23=0),-Auxiliares!M350,-Auxiliares!M350) -> 0 | M45: =IF(AND(M42>175000,M41<=175000,Check!$B$23=0),-Auxiliares!N350,-Auxiliares!N350) -> 0 | N45: =IF(AND(N42>175000,N41<=175000,Check!$B$23=0),-Auxiliares!O350,-Auxiliares!O350) -> 0
B46: Deducción especial (incremento, primera parte) | C46: =+Auxiliares!D373 -> 0 | D46: =+Auxiliares!E373 -> 0 | E46: =+Auxiliares!F373 -> 0 | F46: =+Auxiliares!G373 -> 0 | G46: =+Auxiliares!H373 -> 0 | H46: =+Auxiliares!I373 -> 0 | I46: =+Auxiliares!J373 -> 0 | J46: =+Auxiliares!K373 -> 0 | K46: =+Auxiliares!L373 -> 0 | L46: =+Auxiliares!M373 -> 0 | M46: =+Auxiliares!N373 -> 0 | N46: =+Auxiliares!O373 -> 0
B47: Deducción especial (acumulada, primera parte) | C47: =+C46 -> 0 | D47: =+C47+D46 -> 0 | E47: =+D47+E46 -> 0 | F47: 0 | G47: 0 | H47: =IF(H46<0,0,+H46+G47) -> 0 | I47: =IF(+H47+I46<0,0,+H47+I46) -> 0 | J47: =IF(+I47+J46<0,0,+I47+J46) -> 0 | K47: 0 | L47: 0 | M47: 0 | N47: 0
B48: Deducción especial (incremento, segunda parte) | C48: =IF(C44="<173000",VLOOKUP(MIN(C41:C42),$B$53:$D$283,3,TRUE),0) -> 0 | D48: 0 | E48: 0 | F48: 0 | G48: 0 | H48: 0 | I48: 0 | J48: 0 | K48: =IF(Check!$B$1="Ok",IF(K44="<173000",VLOOKUP(MIN(K41:K42),$B$53:$D$283,3,TRUE),0),IF(K44="<203000",VLOOKUP(MIN(K41:K42),$H$53:$J$333,3,TRUE),0)) -> 0 | L48: =IF(L44="<203000",VLOOKUP(MIN(L41:L42),$H$53:$J$333,3,TRUE),0) -> 0 | M48: =IF(M44="<203000",VLOOKUP(MIN(M41:M42),$H$53:$J$333,3,TRUE),0) -> 0 | N48: =IF(N44="<203000",VLOOKUP(MIN(N41:N42),$H$53:$J$333,3,TRUE),0) -> 0
B49: Deducción especial (acumulada, segunda parte) | C49: =+C48 -> 0 | D49: =+C49+D48 -> 0 | E49: 0 | F49: 0 | G49: 0 | H49: 0 | I49: 0 | J49: 0 | K49: 0 | L49: 0 | M49: 0 | N49: 0
B50: Deducción especial incrementada (acumulada) | H50: =+H47+H49 -> 0 | I50: 0 | J50: 0 | K50: 0 | L50: 0 | M50: 0 | N50: 0
B52: INCREMENTO DE LA DEDUCCIÓN ESPECIAL (de $ 150.000 a $ 173.000) | H52: INCREMENTO DE LA DEDUCCIÓN ESPECIAL (de $ 175.000 a $ 203.000)
B53: Sueldo bruto mensual desde | C53: Sueldo bruto hasta | D53: Incremento de la deducción | H53: Sueldo bruto mensual o promedio (septiembre) - DESDE | I53: Sueldo bruto mensual o promedio (septiembre) - HASTA | J53: DEI | M53: Enero a septiembre | N53: Importe
B54: 150000.01 | C54: =+B55-0.01 -> 150100 | D54: 42979 | H54: 175000.01 | I54: 175100 | J54: 63608 | M54: Grupo 1 | N54: 150000
B55: =+B54+100 -> 150100.01 | C55: =+B56-0.01 -> 150200 | D55: 42609 | H55: 175100.01 | I55: 175200 | J55: 63143 | M55: Grupo 2 | N55: 173000
B56: =+B55+100 -> 150200.01 | C56: 150300 | D56: 42270 | H56: 175200.01 | I56: 175300 | J56: 62718 | M56: Grupo 3
B57: =+B56+100 -> 150300.01 | C57: 150400 | D57: 41950 | H57: 175300.01 | I57: 175400 | J57: 62317
B58: 150400.01 | C58: 150500 | D58: 41644 | H58: 175400.01 | I58: 175500 | J58: 61933 | M58: Septiembre a diciembre | N58: Importe
B59: 150500.01 | C59: 150600 | D59: 41348 | H59: 175500.01 | I59: 175600 | J59: 61561 | M59: Grupo 1 | N59: 175000
B60: 150600.01 | C60: 150700 | D60: 41061 | H60: 175600.01 | I60: 175700 | J60: 61200 | M60: Grupo 2 | N60: 203000
B61: 150700.01 | C61: 150800 | D61: 40780 | H61: 175700.01 | I61: 175800 | J61: 60848 | M61: Grupo 3
B62: 150800.01 | C62: 150900 | D62: 40505 | H62: 175800.01 | I62: 175900 | J62: 60503
B63: 150900.01 | C63: 151000 | D63: 40236 | H63: 175900.01 | I63: 176000 | J63: 60165
B64: 151000.01 | C64: 151100 | D64: 39971 | H64: 176000.01 | I64: 176100 | J64: 59832
B65: 151100.01 | C65: 151200 | D65: 39710 | H65: 176100.01 | I65: 176200 | J65: 59505
B66: 151200.01 | C66: 151300 | D66: 39452 | H66: 176200.01 | I66: 176300 | J66: 59182
B67: 151300.01 | C67: 151400 | D67: 39199 | H67: 176300.01 | I67: 176400 | J67: 58863
B68: 151400.01 | C68: 151500 | D68: 38948 | H68: 176400.01 | I68: 176500 | J68: 58548
B69: 151500.01 | C69: 151600 | D69: 38700 | H69: 176500.01 | I69: 176600 | J69: 58237
B70: 151600.01 | C70: 151700 | D70: 38454 | H70: 176600.01 | I70: 176700 | J70: 57929
B71: 151700.01 | C71: 151800 | D71: 38211 | H71: 176700.01 | I71: 176800 | J71: 57624
B72: 151800.01 | C72: 151900 | D72: 37970 | H72: 176800.01 | I72: 176900 | J72: 57322
B73: 151900.01 | C73: 152000 | D73: 37732 | H73: 176900.01 | I73: 177000 | J73: 57023
B74: 152000.01 | C74: 152100 | D74: 37495 | H74: 177000.01 | I74: 177100 | J74: 56726
B75: 152100.01 | C75: 152200 | D75: 37261 | H75: 177100.01 | I75: 177200 | J75: 56431
B76: 152200.01 | C76: 152300 | D76: 37028 | H76: 177200.01 | I76: 177300 | J76: 56139
B77: 152300.01 | C77: 152400 | D77: 36797 | H77: 177300.01 | I77: 177400 | J77: 55849
B78: 152400.01 | C78: 152500 | D78: 36567 | H78: 177400.01 | I78: 177500 | J78: 55561
B79: 152500.01 | C79: 152600 | D79: 36339 | H79: 177500.01 | I79: 177600 | J79: 55275
B80: 152600.01 | C80: 152700 | D80: 36113 | H80: 177600.01 | I80: 177700 | J80: 54991
B81: 152700.01 | C81: 152800 | D81: 35888 | H81: 177700.01 | I81: 177800 | J81: 54709
B82: 152800.01 | C82: 152900 | D82: 35664 | H82: 177800.01 | I82: 177900 | J82: 54428
B83: 152900.01 | C83: 153000 | D83: 35442 | H83: 177900.01 | I83: 178000 | J83: 54149
B84: 153000.01 | C84: 153100 | D84: 35221 | H84: 178000.01 | I84: 178100 | J84: 53872
B85: 153100.01 | C85: 153200 | D85: 35001 | H85: 178100.01 | I85: 178200 | J85: 53596
B86: 153200.01 | C86: 153300 | D86: 34782 | H86: 178200.01 | I86: 178300 | J86: 53321
B87: 153300.01 | C87: 153400 | D87: 34565 | H87: 178300.01 | I87: 178400 | J87: 53048
B88: 153400.01 | C88: 153500 | D88: 34348 | H88: 178400.01 | I88: 178500 | J88: 52776
B89: 153500.01 | C89: 153600 | D89: 34133 | H89: 178500.01 | I89: 178600 | J89: 52506
B90: 153600.01 | C90: 153700 | D90: 33918 | H90: 178600.01 | I90: 178700 | J90: 52237
B91: 153700.01 | C91: 153800 | D91: 33705 | H91: 178700.01 | I91: 178800 | J91: 51969
B92: 153800.01 | C92: 153900 | D92: 33492 | H92: 178800.01 | I92: 178900 | J92: 51702
B93: 153900.01 | C93: 154000 | D93: 33281 | H93: 178900.01 | I93: 179000 | J93: 51437
B94: 154000.01 | C94: 154100 | D94: 33070 | H94: 179000.01 | I94: 179100 | J94: 51173
B95: 154100.01 | C95: 154200 | D95: 32860 | H95: 179100.01 | I95: 179200 | J95: 50909
B96: 154200.01 | C96: 154300 | D96: 32651 | H96: 179200.01 | I96: 179300 | J96: 50647
B97: 154300.01 | C97: 154400 | D97: 32443 | H97: 179300.01 | I97: 179400 | J97: 50386
B98: 154400.01 | C98: 154500 | D98: 32236 | H98: 179400.01 | I98: 179500 | J98: 50126
B99: 154500.01 | C99: 154600 | D99: 32029 | H99: 179500.01 | I99: 179600 | J99: 49866
B100: 154600.01 | C100: 154700 | D100: 31824 | H100: 179600.01 | I100: 179700 | J100: 49608
B101: 154700.01 | C101: 154800 | D101: 31618 | H101: 179700.01 | I101: 179800 | J101: 49351
B102: 154800.01 | C102: 154900 | D102: 31414 | H102: 179800.01 | I102: 179900 | J102: 49094
B103: 154900.01 | C103: 155000 | D103: 31211 | H103: 179900.01 | I103: 180000 | J103: 48839
B104: 155000.01 | C104: 155100 | D104: 31008 | H104: 180000.01 | I104: 180100 | J104: 48584
B105: 155100.01 | C105: 155200 | D105: 30805 | H105: 180100.01 | I105: 180200 | J105: 48330
B106: 155200.01 | C106: 155300 | D106: 30604 | H106: 180200.01 | I106: 180300 | J106: 48077
B107: 155300.01 | C107: 155400 | D107: 30403 | H107: 180300.01 | I107: 180400 | J107: 47825
B108: 155400.01 | C108: 155500 | D108: 30203 | H108: 180400.01 | I108: 180500 | J108: 47574
B109: 155500.01 | C109: 155600 | D109: 30003 | H109: 180500.01 | I109: 180600 | J109: 47323
B110: 155600.01 | C110: 155700 | D110: 29804 | H110: 180600.01 | I110: 180700 | J110: 47073
B111: 155700.01 | C111: 155800 | D111: 29605 | H111: 180700.01 | I111: 180800 | J111: 46824
B112: 155800.01 | C112: 155900 | D112: 29407 | H112: 180800.01 | I112: 180900 | J112: 46576
B113: 155900.01 | C113: 156000 | D113: 29210 | H113: 180900.01 | I113: 181000 | J113: 46328
B114: 156000.01 | C114: 156100 | D114: 29013 | H114: 181000.01 | I114: 181100 | J114: 46081
B115: 156100.01 | C115: 156200 | D115: 28817 | H115: 181100.01 | I115: 181200 | J115: 45835
B116: 156200.01 | C116: 156300 | D116: 28621 | H116: 181200.01 | I116: 181300 | J116: 45590
B117: 156300.01 | C117: 156400 | D117: 28426 | H117: 181300.01 | I117: 181400 | J117: 45345
B118: 156400.01 | C118: 156500 | D118: 28231 | H118: 181400.01 | I118: 181500 | J118: 45100
B119: 156500.01 | C119: =+B120-0.01 -> 156600 | D119: 28037 | H119: 181500.01 | I119: 181600 | J119: 44857
B120: 156600.01 | C120: 156700 | D120: 27844 | H120: 181600.01 | I120: 181700 | J120: 44614
B121: =+B120+100 -> 156700.01 | C121: 156800 | D121: 27651 | H121: 181700.01 | I121: 181800 | J121: 44371
B122: 156800.01 | C122: 156900 | D122: 27458 | H122: 181800.01 | I122: 181900 | J122: 44130
B123: 156900.01 | C123: 157000 | D123: 27266 | H123: 181900.01 | I123: 182000 | J123: 43888
B124: 157000.01 | C124: 157100 | D124: 27074 | H124: 182000.01 | I124: 182100 | J124: 43648
B125: 157100.01 | C125: 157200 | D125: 26883 | H125: 182100.01 | I125: 182200 | J125: 43408
B126: 157200.01 | C126: 157300 | D126: 26692 | H126: 182200.01 | I126: 182300 | J126: 43168
B127: 157300.01 | C127: 157400 | D127: 26501 | H127: 182300.01 | I127: 182400 | J127: 42929
B128: 157400.01 | C128: 157500 | D128: 26311 | H128: 182400.01 | I128: 182500 | J128: 42691
B129: 157500.01 | C129: 157600 | D129: 26122 | H129: 182500.01 | I129: 182600 | J129: 42453
B130: 157600.01 | C130: 157700 | D130: 25933 | H130: 182600.01 | I130: 182700 | J130: 42216
B131: 157700.01 | C131: 157800 | D131: 25744 | H131: 182700.01 | I131: 182800 | J131: 41979
B132: 157800.01 | C132: 157900 | D132: 25556 | H132: 182800.01 | I132: 182900 | J132: 41743
B133: 157900.01 | C133: 158000 | D133: 25368 | H133: 182900.01 | I133: 183000 | J133: 41507
B134: 158000.01 | C134: 158100 | D134: 25181 | H134: 183000.01 | I134: 183100 | J134: 41272
B135: 158100.01 | C135: 158200 | D135: 24994 | H135: 183100.01 | I135: 183200 | J135: 41037
B136: 158200.01 | C136: 158300 | D136: 24807 | H136: 183200.01 | I136: 183300 | J136: 40803
B137: 158300.01 | C137: 158400 | D137: 24621 | H137: 183300.01 | I137: 183400 | J137: 40569
B138: 158400.01 | C138: 158500 | D138: 24435 | H138: 183400.01 | I138: 183500 | J138: 40336
B139: 158500.01 | C139: 158600 | D139: 24249 | H139: 183500.01 | I139: 183600 | J139: 40103
B140: 158600.01 | C140: 158700 | D140: 24064 | H140: 183600.01 | I140: 183700 | J140: 39870
B141: 158700.01 | C141: 158800 | D141: 23879 | H141: 183700.01 | I141: 183800 | J141: 39638
B142: 158800.01 | C142: 158900 | D142: 23695 | H142: 183800.01 | I142: 183900 | J142: 39407
B143: 158900.01 | C143: 159000 | D143: 23511 | H143: 183900.01 | I143: 184000 | J143: 39176
B144: 159000.01 | C144: 159100 | D144: 23327 | H144: 184000.01 | I144: 184100 | J144: 38945
B145: 159100.01 | C145: 159200 | D145: 23143 | H145: 184100.01 | I145: 184200 | J145: 38715
B146: 159200.01 | C146: 159300 | D146: 22960 | H146: 184200.01 | I146: 184300 | J146: 38485
B147: 159300.01 | C147: 159400 | D147: 22778 | H147: 184300.01 | I147: 184400 | J147: 38256
B148: 159400.01 | C148: 159500 | D148: 22595 | H148: 184400.01 | I148: 184500 | J148: 38027
B149: 159500.01 | C149: 159600 | D149: 22413 | H149: 184500.01 | I149: 184600 | J149: 37799
B150: 159600.01 | C150: 159700 | D150: 22231 | H150: 184600.01 | I150: 184700 | J150: 37571
B151: 159700.01 | C151: 159800 | D151: 22050 | H151: 184700.01 | I151: 184800 | J151: 37343
B152: 159800.01 | C152: 159900 | D152: 21869 | H152: 184800.01 | I152: 184900 | J152: 37116
B153: 159900.01 | C153: 160000 | D153: 21688 | H153: 184900.01 | I153: 185000 | J153: 36889
B154: 160000.01 | C154: 160100 | D154: 21507 | H154: 185000.01 | I154: 185100 | J154: 36662
B155: 160100.01 | C155: 160200 | D155: 21327 | H155: 185100.01 | I155: 185200 | J155: 36436
B156: 160200.01 | C156: 160300 | D156: 21147 | H156: 185200.01 | I156: 185300 | J156: 36210
B157: 160300.01 | C157: 160400 | D157: 20968 | H157: 185300.01 | I157: 185400 | J157: 35985
B158: 160400.01 | C158: 160500 | D158: 20788 | H158: 185400.01 | I158: 185500 | J158: 35760
B159: 160500.01 | C159: 160600 | D159: 20609 | H159: 185500.01 | I159: 185600 | J159: 35535
B160: 160600.01 | C160: 160700 | D160: 20430 | H160: 185600.01 | I160: 185700 | J160: 35311
B161: 160700.01 | C161: 160800 | D161: 20252 | H161: 185700.01 | I161: 185800 | J161: 35087
B162: 160800.01 | C162: 160900 | D162: 20074 | H162: 185800.01 | I162: 185900 | J162: 34863
B163: 160900.01 | C163: 161000 | D163: 19896 | H163: 185900.01 | I163: 186000 | J163: 34640
B164: 161000.01 | C164: 161100 | D164: 19718 | H164: 186000.01 | I164: 186100 | J164: 34417
B165: 161100.01 | C165: 161200 | D165: 19541 | H165: 186100.01 | I165: 186200 | J165: 34194
B166: 161200.01 | C166: 161300 | D166: 19364 | H166: 186200.01 | I166: 186300 | J166: 33972
B167: 161300.01 | C167: 161400 | D167: 19187 | H167: 186300.01 | I167: 186400 | J167: 33750
B168: 161400.01 | C168: 161500 | D168: 19010 | H168: 186400.01 | I168: 186500 | J168: 33529
B169: 161500.01 | C169: 161600 | D169: 18834 | H169: 186500.01 | I169: 186600 | J169: 33307
B170: 161600.01 | C170: 161700 | D170: 18658 | H170: 186600.01 | I170: 186700 | J170: 33086
B171: 161700.01 | C171: 161800 | D171: 18482 | H171: 186700.01 | I171: 186800 | J171: 32866
B172: 161800.01 | C172: 161900 | D172: 18307 | H172: 186800.01 | I172: 186900 | J172: 32646
B173: 161900.01 | C173: 162000 | D173: 18132 | H173: 186900.01 | I173: 187000 | J173: 32426
B174: 162000.01 | C174: 162100 | D174: 17957 | H174: 187000.01 | I174: 187100 | J174: 32206
B175: 162100.01 | C175: 162200 | D175: 17782 | H175: 187100.01 | I175: 187200 | J175: 31987
B176: 162200.01 | C176: 162300 | D176: 17607 | H176: 187200.01 | I176: 187300 | J176: 31768
B177: 162300.01 | C177: 162400 | D177: 17433 | H177: 187300.01 | I177: 187400 | J177: 31549
B178: 162400.01 | C178: 162500 | D178: 17259 | H178: 187400.01 | I178: 187500 | J178: 31330
B179: 162500.01 | C179: 162600 | D179: 17085 | H179: 187500.01 | I179: 187600 | J179: 31112
B180: 162600.01 | C180: 162700 | D180: 16911 | H180: 187600.01 | I180: 187700 | J180: 30894
B181: 162700.01 | C181: 162800 | D181: 16738 | H181: 187700.01 | I181: 187800 | J181: 30677
B182: 162800.01 | C182: 162900 | D182: 16565 | H182: 187800.01 | I182: 187900 | J182: 30460
B183: 162900.01 | C183: =+B184-0.01 -> 163000 | D183: 16392 | H183: 187900.01 | I183: 188000 | J183: 30243
B184: 163000.01 | C184: 163100 | D184: 16219 | H184: 188000.01 | I184: 188100 | J184: 30026
B185: =+B184+100 -> 163100.01 | C185: 163200 | D185: 16047 | H185: 188100.01 | I185: 188200 | J185: 29810
B186: 163200.01 | C186: 163300 | D186: 15875 | H186: 188200.01 | I186: 188300 | J186: 29593
B187: 163300.01 | C187: 163400 | D187: 15703 | H187: 188300.01 | I187: 188400 | J187: 29378
B188: 163400.01 | C188: 163500 | D188: 15531 | H188: 188400.01 | I188: 188500 | J188: 29162
B189: 163500.01 | C189: 163600 | D189: 15359 | H189: 188500.01 | I189: 188600 | J189: 28947
B190: 163600.01 | C190: 163700 | D190: 15188 | H190: 188600.01 | I190: 188700 | J190: 28732
B191: 163700.01 | C191: 163800 | D191: 15017 | H191: 188700.01 | I191: 188800 | J191: 28517
B192: 163800.01 | C192: 163900 | D192: 14846 | H192: 188800.01 | I192: 188900 | J192: 28302
B193: 163900.01 | C193: 164000 | D193: 14675 | H193: 188900.01 | I193: 189000 | J193: 28088
B194: 164000.01 | C194: 164100 | D194: 14505 | H194: 189000.01 | I194: 189100 | J194: 27874
B195: 164100.01 | C195: 164200 | D195: 14334 | H195: 189100.01 | I195: 189200 | J195: 27660
B196: 164200.01 | C196: 164300 | D196: 14164 | H196: 189200.01 | I196: 189300 | J196: 27447
B197: 164300.01 | C197: 164400 | D197: 13994 | H197: 189300.01 | I197: 189400 | J197: 27234
B198: 164400.01 | C198: 164500 | D198: 13824 | H198: 189400.01 | I198: 189500 | J198: 27021
B199: 164500.01 | C199: 164600 | D199: 13655 | H199: 189500.01 | I199: 189600 | J199: 26808
B200: 164600.01 | C200: 164700 | D200: 13486 | H200: 189600.01 | I200: 189700 | J200: 26595
B201: 164700.01 | C201: 164800 | D201: 13317 | H201: 189700.01 | I201: 189800 | J201: 26383
B202: 164800.01 | C202: 164900 | D202: 13148 | H202: 189800.01 | I202: 189900 | J202: 26171
B203: 164900.01 | C203: 165000 | D203: 12979 | H203: 189900.01 | I203: 190000 | J203: 25959
B204: 165000.01 | C204: 165100 | D204: 12810 | H204: 190000.01 | I204: 190100 | J204: 25748
B205: 165100.01 | C205: 165200 | D205: 12642 | H205: 190100.01 | I205: 190200 | J205: 25537
B206: 165200.01 | C206: 165300 | D206: 12474 | H206: 190200.01 | I206: 190300 | J206: 25326
B207: 165300.01 | C207: 165400 | D207: 12306 | H207: 190300.01 | I207: 190400 | J207: 25115
B208: 165400.01 | C208: 165500 | D208: 12138 | H208: 190400.01 | I208: 190500 | J208: 24904
B209: 165500.01 | C209: 165600 | D209: 11970 | H209: 190500.01 | I209: 190600 | J209: 24694
B210: 165600.01 | C210: 165700 | D210: 11803 | H210: 190600.01 | I210: 190700 | J210: 24484
... 123 more rows

Sheet Liquidacion
F2: =IF(MONTH(F7)<=#REF!,1,0) ->  | G2: =IF(MONTH(G7)<=#REF!,1,0) ->  | H2: =IF(MONTH(H7)<=#REF!,1,0) ->  | I2: =IF(MONTH(I7)<=#REF!,1,0) ->  | J2: =IF(MONTH(J7)<=#REF!,1,0) ->  | K2: =IF(MONTH(K7)<=#REF!,1,0) ->  | L2: =IF(MONTH(L7)<=#REF!,1,0) ->  | M2: =IF(MONTH(M7)<=#REF!,1,0) ->  | N2: =IF(MONTH(N7)<=#REF!,1,0) ->  | O2: =IF(MONTH(O7)<=#REF!,1,0) ->  | P2: =IF(MONTH(P7)<=#REF!,1,0) ->  | Q2: =IF(MONTH(Q7)<=#REF!,1,0) -> 
F3: =IF(MONTH(F7)=#REF!,1,0) ->  | G3: =IF(MONTH(G7)=#REF!,1,0) ->  | H3: =IF(MONTH(H7)=#REF!,1,0) ->  | I3: =IF(MONTH(I7)=#REF!,1,0) ->  | J3: =IF(MONTH(J7)=#REF!,1,0) ->  | K3: =IF(MONTH(K7)=#REF!,1,0) ->  | L3: =IF(MONTH(L7)=#REF!,1,0) ->  | M3: =IF(MONTH(M7)=#REF!,1,0) ->  | N3: =IF(MONTH(N7)=#REF!,1,0) ->  | O3: =IF(MONTH(O7)=#REF!,1,0) ->  | P3: =IF(MONTH(P7)=#REF!,1,0) ->  | Q3: =IF(MONTH(Q7)=#REF!,1,0) -> 
F4: 1 | G4: 2 | H4: 3 | I4: 4 | J4: 5 | K4: 6 | L4: 7 | M4: 8 | N4: 9 | O4: 10 | P4: 11 | Q4: 12
D5: Período fiscal 2021 | F5: ="Trabajador:"&Datos!F16&" "&Datos!F17 -> Trabajador: | K5: Legajo: | L5: =Datos!F18 -> 0 | O5: CUIL: | P5: =Datos!F19 -> 0
B7: Datos Mensuales | D7: Conceptos | F7: 2016-01-31 | G7: 2016-02-28 | H7: 2016-03-31 | I7: 2016-04-30 | J7: 2016-05-31 | K7: 2016-06-30 | L7: 2016-07-31 | M7: 2016-08-31 | N7: 2016-09-30 | O7: 2016-10-31 | P7: 2016-11-30 | Q7: 2016-12-31 | S7: Anual | U7: F. 1357
D8: Ingresos
D9: =Ingresos!B8 -> Sueldo bruto | F9: =Ingresos!C8 -> 0 | G9: =Ingresos!D8 -> 0 | H9: =Ingresos!E8 -> 0 | I9: =Ingresos!F8 -> 0 | J9: =Ingresos!G8 -> 0 | K9: =Ingresos!H8 -> 0 | L9: =Ingresos!I8 -> 0 | M9: =Ingresos!J8 -> 0 | N9: =Ingresos!K8 -> 0 | O9: =Ingresos!L8 -> 0 | P9: =Ingresos!M8 -> 0 | Q9: =Ingresos!N8 -> 0 | S9: =SUM(F9:Q9) -> 0 | U9: =Ingresos!U8 -> Remuneración bruta gravada | V9: =+S9 -> 0
D10: =Ingresos!B9 -> Horas extras (días inhábiles) | F10: =Ingresos!C9 -> 0 | G10: =Ingresos!D9 -> 0 | H10: =Ingresos!E9 -> 0 | I10: =Ingresos!F9 -> 0 | J10: =Ingresos!G9 -> 0 | K10: =Ingresos!H9 -> 0 | L10: =Ingresos!I9 -> 0 | M10: =Ingresos!J9 -> 0 | N10: =Ingresos!K9 -> 0 | O10: =Ingresos!L9 -> 0 | P10: =Ingresos!M9 -> 0 | Q10: =Ingresos!N9 -> 0 | S10: 0 | U10: =Ingresos!U9 -> Horas extras remuneración gravada | V10: =+S10 -> 0
D11: =Ingresos!B10 -> Plus horas extras (días inhábiles) | F11: =Ingresos!C10 -> 0 | G11: =Ingresos!D10 -> 0 | H11: =Ingresos!E10 -> 0 | I11: =Ingresos!F10 -> 0 | J11: =Ingresos!G10 -> 0 | K11: =Ingresos!H10 -> 0 | L11: =Ingresos!I10 -> 0 | M11: =Ingresos!J10 -> 0 | N11: =Ingresos!K10 -> 0 | O11: =Ingresos!L10 -> 0 | P11: =Ingresos!M10 -> 0 | Q11: =Ingresos!N10 -> 0 | S11: 0 | U11: =Ingresos!U10 -> Horas extras remuneración exenta | V11: 0
D12: =Ingresos!B11 -> Horas extras (días hábiles) | F12: =Ingresos!C11 -> 0 | G12: =Ingresos!D11 -> 0 | H12: =Ingresos!E11 -> 0 | I12: =Ingresos!F11 -> 0 | J12: =Ingresos!G11 -> 0 | K12: =Ingresos!H11 -> 0 | L12: =Ingresos!I11 -> 0 | M12: =Ingresos!J11 -> 0 | N12: =Ingresos!K11 -> 0 | O12: =Ingresos!L11 -> 0 | P12: =Ingresos!M11 -> 0 | Q12: =Ingresos!N11 -> 0 | S12: 0 | U12: =Ingresos!U11 -> Horas extras remuneración gravada | V12: 0
D13: =Ingresos!B12 -> SAC gravado | F13: =Ingresos!C12 -> 0 | G13: =Ingresos!D12 -> 0 | H13: =Ingresos!E12 -> 0 | I13: =Ingresos!F12 -> 0 | J13: =Ingresos!G12 -> 0 | K13: =Ingresos!H12 -> 0 | L13: =Ingresos!I12 -> 0 | M13: =Ingresos!J12 -> 0 | N13: =Ingresos!K12 -> 0 | O13: =Ingresos!L12 -> 0 | P13: =Ingresos!M12 -> 0 | Q13: =Ingresos!N12 -> 0 | S13: 0 | U13: =Ingresos!U12 -> SAC | V13: 0
D14: =Ingresos!B13 -> SAC no gravado o exento | F14: =Ingresos!C13 -> 0 | G14: =Ingresos!D13 -> 0 | H14: =Ingresos!E13 -> 0 | I14: =Ingresos!F13 -> 0 | J14: =Ingresos!G13 -> 0 | K14: =Ingresos!H13 -> 0 | L14: =Ingresos!I13 -> 0 | M14: =Ingresos!J13 -> 0 | N14: =Ingresos!K13 -> 0 | O14: =Ingresos!L13 -> 0 | P14: =Ingresos!M13 -> 0 | Q14: =Ingresos!N13 -> 0 | S14: =SUM(F14:Q14) -> 0 | U14: =Ingresos!U13 -> SAC | V14: 0
D15: =Ingresos!B14 -> Plus Vacacional | F15: =Ingresos!C14 -> 0 | G15: =Ingresos!D14 -> 0 | H15: =Ingresos!E14 -> 0 | I15: =Ingresos!F14 -> 0 | J15: =Ingresos!G14 -> 0 | K15: =Ingresos!H14 -> 0 | L15: =Ingresos!I14 -> 0 | M15: =Ingresos!J14 -> 0 | N15: =Ingresos!K14 -> 0 | O15: =Ingresos!L14 -> 0 | P15: =Ingresos!M14 -> 0 | Q15: =Ingresos!N14 -> 0 | S15: 0 | U15: =Ingresos!U14 -> Remuneración bruta gravada | V15: 0
D16: =Ingresos!B15 -> Plus Feriado | F16: =Ingresos!C15 -> 0 | G16: =Ingresos!D15 -> 0 | H16: =Ingresos!E15 -> 0 | I16: =Ingresos!F15 -> 0 | J16: =Ingresos!G15 -> 0 | K16: =Ingresos!H15 -> 0 | L16: =Ingresos!I15 -> 0 | M16: =Ingresos!J15 -> 0 | N16: =Ingresos!K15 -> 0 | O16: =Ingresos!L15 -> 0 | P16: =Ingresos!M15 -> 0 | Q16: =Ingresos!N15 -> 0 | S16: 0 | U16: =Ingresos!U15 -> Remuneración bruta gravada | V16: 0
D17: =Ingresos!B16 -> Movilidad y viáticos (gravado) | F17: =Ingresos!C16 -> 0 | G17: =Ingresos!D16 -> 0 | H17: =Ingresos!E16 -> 0 | I17: =Ingresos!F16 -> 0 | J17: =Ingresos!G16 -> 0 | K17: =Ingresos!H16 -> 0 | L17: =Ingresos!I16 -> 0 | M17: =Ingresos!J16 -> 0 | N17: =Ingresos!K16 -> 0 | O17: =Ingresos!L16 -> 0 | P17: =Ingresos!M16 -> 0 | Q17: =Ingresos!N16 -> 0 | S17: 0 | U17: =Ingresos!U16 -> Movilidad y viáticos remuneración gravada | V17: 0
D18: =Ingresos!B17 -> Movilidad y viáticos (exento) | F18: =Ingresos!C17 -> 0 | G18: =Ingresos!D17 -> 0 | H18: =Ingresos!E17 -> 0 | I18: =Ingresos!F17 -> 0 | J18: =Ingresos!G17 -> 0 | K18: =Ingresos!H17 -> 0 | L18: =Ingresos!I17 -> 0 | M18: =Ingresos!J17 -> 0 | N18: =Ingresos!K17 -> 0 | O18: =Ingresos!L17 -> 0 | P18: =Ingresos!M17 -> 0 | Q18: =Ingresos!N17 -> 0 | S18: 0 | U18: =Ingresos!U17 -> Movilidad y viáticos remuneración exenta | V18: 0
D19: =Ingresos!B18 -> Compensación de gastos por teletrabajo | F19: =Ingresos!C18 -> 0 | G19: =Ingresos!D18 -> 0 | H19: =Ingresos!E18 -> 0 | I19: =Ingresos!F18 -> 0 | J19: =Ingresos!G18 -> 0 | K19: =Ingresos!H18 -> 0 | L19: =Ingresos!I18 -> 0 | M19: =Ingresos!J18 -> 0 | N19: =Ingresos!K18 -> 0 | O19: =Ingresos!L18 -> 0 | P19: =Ingresos!M18 -> 0 | Q19: =Ingresos!N18 -> 0 | S19: =SUM(F19:Q19) -> 0 | U19: =Ingresos!U18 -> Compensación gastos teletrabajo exentos | V19: 0
D20: =Ingresos!B19 -> Bono por productividad (gravado) | F20: =Ingresos!C19 -> 0 | G20: =Ingresos!D19 -> 0 | H20: =Ingresos!E19 -> 0 | I20: =Ingresos!F19 -> 0 | J20: =Ingresos!G19 -> 0 | K20: =Ingresos!H19 -> 0 | L20: =Ingresos!I19 -> 0 | M20: =Ingresos!J19 -> 0 | N20: =Ingresos!K19 -> 0 | O20: =Ingresos!L19 -> 0 | P20: =Ingresos!M19 -> 0 | Q20: =Ingresos!N19 -> 0 | S20: 0 | U20: =Ingresos!U19 -> Bonos de productividad gravados | V20: 0
D21: =Ingresos!B20 -> Bono por productividad (exento) | F21: =Ingresos!C20 -> 0 | G21: =Ingresos!D20 -> 0 | H21: =Ingresos!E20 -> 0 | I21: =Ingresos!F20 -> 0 | J21: =Ingresos!G20 -> 0 | K21: =Ingresos!H20 -> 0 | L21: =Ingresos!I20 -> 0 | M21: =Ingresos!J20 -> 0 | N21: =Ingresos!K20 -> 0 | O21: =Ingresos!L20 -> 0 | P21: =Ingresos!M20 -> 0 | Q21: =Ingresos!N20 -> 0 | S21: 0 | U21: =Ingresos!U20 -> Bonos de productividad exentos | V21: 0
D22: =Ingresos!B21 -> Fallo de caja (gravado) | F22: =Ingresos!C21 -> 0 | G22: =Ingresos!D21 -> 0 | H22: =Ingresos!E21 -> 0 | I22: =Ingresos!F21 -> 0 | J22: =Ingresos!G21 -> 0 | K22: =Ingresos!H21 -> 0 | L22: =Ingresos!I21 -> 0 | M22: =Ingresos!J21 -> 0 | N22: =Ingresos!K21 -> 0 | O22: =Ingresos!L21 -> 0 | P22: =Ingresos!M21 -> 0 | Q22: =Ingresos!N21 -> 0 | S22: 0 | U22: =Ingresos!U21 -> Fallos de caja gravados | V22: 0
D23: =Ingresos!B22 -> Fallo de caja (exento) | F23: =Ingresos!C22 -> 0 | G23: =Ingresos!D22 -> 0 | H23: =Ingresos!E22 -> 0 | I23: =Ingresos!F22 -> 0 | J23: =Ingresos!G22 -> 0 | K23: =Ingresos!H22 -> 0 | L23: =Ingresos!I22 -> 0 | M23: =Ingresos!J22 -> 0 | N23: =Ingresos!K22 -> 0 | O23: =Ingresos!L22 -> 0 | P23: =Ingresos!M22 -> 0 | Q23: =Ingresos!N22 -> 0 | S23: 0 | U23: =Ingresos!U22 -> Fallos de caja exentos | V23: 0
D24: =Ingresos!B23 -> Suplementos particulares por actividad militar | F24: =Ingresos!C23 -> 0 | G24: =Ingresos!D23 -> 0 | H24: =Ingresos!E23 -> 0 | I24: =Ingresos!F23 -> 0 | J24: =Ingresos!G23 -> 0 | K24: =Ingresos!H23 -> 0 | L24: =Ingresos!I23 -> 0 | M24: =Ingresos!J23 -> 0 | N24: =Ingresos!K23 -> 0 | O24: =Ingresos!L23 -> 0 | P24: =Ingresos!M23 -> 0 | Q24: =Ingresos!N23 -> 0 | S24: 0 | U24: =Ingresos!U23 -> Remuneración no alcanzada o exenta | V24: 0
D25: =Ingresos!B24 -> Cursos o seminarios de capacitación | F25: =Ingresos!C24 -> 0 | G25: =Ingresos!D24 -> 0 | H25: =Ingresos!E24 -> 0 | I25: =Ingresos!F24 -> 0 | J25: =Ingresos!G24 -> 0 | K25: =Ingresos!H24 -> 0 | L25: =Ingresos!I24 -> 0 | M25: =Ingresos!J24 -> 0 | N25: =Ingresos!K24 -> 0 | O25: =Ingresos!L24 -> 0 | P25: =Ingresos!M24 -> 0 | Q25: =Ingresos!N24 -> 0 | S25: 0 | U25: =Ingresos!U24 -> Remuneración no alcanzada o exenta | V25: 0
D26: =Ingresos!B25 -> Reintegro de gastos de guardería y/o jardín materno-infantil | F26: =Ingresos!C25 -> 0 | G26: =Ingresos!D25 -> 0 | H26: =Ingresos!E25 -> 0 | I26: =Ingresos!F25 -> 0 | J26: =Ingresos!G25 -> 0 | K26: =Ingresos!H25 -> 0 | L26: =Ingresos!I25 -> 0 | M26: =Ingresos!J25 -> 0 | N26: =Ingresos!K25 -> 0 | O26: =Ingresos!L25 -> 0 | P26: =Ingresos!M25 -> 0 | Q26: =Ingresos!N25 -> 0 | S26: 0 | U26: =Ingresos!U25 -> Remuneración no alcanzada o exenta | V26: 0
D27: =Ingresos!B26 -> Provisión de herramientas educativas (gravado) | F27: =Ingresos!C26 -> 0 | G27: =Ingresos!D26 -> 0 | H27: =Ingresos!E26 -> 0 | I27: =Ingresos!F26 -> 0 | J27: =Ingresos!G26 -> 0 | K27: =Ingresos!H26 -> 0 | L27: =Ingresos!I26 -> 0 | M27: =Ingresos!J26 -> 0 | N27: =Ingresos!K26 -> 0 | O27: =Ingresos!L26 -> 0 | P27: =Ingresos!M26 -> 0 | Q27: =Ingresos!N26 -> 0 | S27: 0 | U27: =Ingresos!U26 -> Remuneración bruta gravada | V27: 0
D28: =Ingresos!B27 -> Cursos o seminarios de capacitación para hijos/as y hijastros/as (gravado) | F28: =Ingresos!C27 -> 0 | G28: =Ingresos!D27 -> 0 | H28: =Ingresos!E27 -> 0 | I28: =Ingresos!F27 -> 0 | J28: =Ingresos!G27 -> 0 | K28: =Ingresos!H27 -> 0 | L28: =Ingresos!I27 -> 0 | M28: =Ingresos!J27 -> 0 | N28: =Ingresos!K27 -> 0 | O28: =Ingresos!L27 -> 0 | P28: =Ingresos!M27 -> 0 | Q28: =Ingresos!N27 -> 0 | S28: 0 | U28: =Ingresos!U27 -> Remuneración bruta gravada | V28: 0
D29: =Ingresos!B28 -> Cursos o seminarios de capacitación para hijos/as y hijastros/as (exento) | F29: =Ingresos!C28 -> 0 | G29: =Ingresos!D28 -> 0 | H29: =Ingresos!E28 -> 0 | I29: =Ingresos!F28 -> 0 | J29: =Ingresos!G28 -> 0 | K29: =Ingresos!H28 -> 0 | L29: =Ingresos!I28 -> 0 | M29: =Ingresos!J28 -> 0 | N29: =Ingresos!K28 -> 0 | O29: =Ingresos!L28 -> 0 | P29: =Ingresos!M28 -> 0 | Q29: =Ingresos!N28 -> 0 | S29: 0 | U29: =Ingresos!U28 -> Conceptos de similar naturaleza exentos | V29: 0
D30: =Ingresos!B29 -> Licencias varias | F30: =Ingresos!C29 -> 0 | G30: =Ingresos!D29 -> 0 | H30: =Ingresos!E29 -> 0 | I30: =Ingresos!F29 -> 0 | J30: =Ingresos!G29 -> 0 | K30: =Ingresos!H29 -> 0 | L30: =Ingresos!I29 -> 0 | M30: =Ingresos!J29 -> 0 | N30: =Ingresos!K29 -> 0 | O30: =Ingresos!L29 -> 0 | P30: =Ingresos!M29 -> 0 | Q30: =Ingresos!N29 -> 0 | S30: 0 | U30: =Ingresos!U29 -> Remuneración bruta gravada | V30: 0
D31: =Ingresos!B30 -> Benef. Soc. (no rem.) | F31: =Ingresos!C30 -> 0 | G31: =Ingresos!D30 -> 0 | H31: =Ingresos!E30 -> 0 | I31: =Ingresos!F30 -> 0 | J31: =Ingresos!G30 -> 0 | K31: =Ingresos!H30 -> 0 | L31: =Ingresos!I30 -> 0 | M31: =Ingresos!J30 -> 0 | N31: =Ingresos!K30 -> 0 | O31: =Ingresos!L30 -> 0 | P31: =Ingresos!M30 -> 0 | Q31: =Ingresos!N30 -> 0 | S31: 0 | U31: =Ingresos!U30 -> Remuneración bruta gravada | V31: 0
D32: =Ingresos!B31 -> Indemnización art. 245 | F32: =Ingresos!C31 -> 0 | G32: =Ingresos!D31 -> 0 | H32: =Ingresos!E31 -> 0 | I32: =Ingresos!F31 -> 0 | J32: =Ingresos!G31 -> 0 | K32: =Ingresos!H31 -> 0 | L32: =Ingresos!I31 -> 0 | M32: =Ingresos!J31 -> 0 | N32: =Ingresos!K31 -> 0 | O32: =Ingresos!L31 -> 0 | P32: =Ingresos!M31 -> 0 | Q32: =Ingresos!N31 -> 0 | S32: 0 | U32: =Ingresos!U31 -> Remuneración no alcanzada o exenta | V32: 0
D33: =Ingresos!B32 -> Preaviso | F33: =Ingresos!C32 -> 0 | G33: =Ingresos!D32 -> 0 | H33: =Ingresos!E32 -> 0 | I33: =Ingresos!F32 -> 0 | J33: =Ingresos!G32 -> 0 | K33: =Ingresos!H32 -> 0 | L33: =Ingresos!I32 -> 0 | M33: =Ingresos!J32 -> 0 | N33: =Ingresos!K32 -> 0 | O33: =Ingresos!L32 -> 0 | P33: =Ingresos!M32 -> 0 | Q33: =Ingresos!N32 -> 0 | S33: 0 | U33: =Ingresos!U32 -> Remuneración bruta gravada | V33: 0
D34: =Ingresos!B33 -> SAC s/preaviso | F34: =Ingresos!C33 -> 0 | G34: =Ingresos!D33 -> 0 | H34: =Ingresos!E33 -> 0 | I34: =Ingresos!F33 -> 0 | J34: =Ingresos!G33 -> 0 | K34: =Ingresos!H33 -> 0 | L34: =Ingresos!I33 -> 0 | M34: =Ingresos!J33 -> 0 | N34: =Ingresos!K33 -> 0 | O34: =Ingresos!L33 -> 0 | P34: =Ingresos!M33 -> 0 | Q34: =Ingresos!N33 -> 0 | S34: 0 | U34: =Ingresos!U33 -> Remuneración bruta gravada | V34: 0
D35: =Ingresos!B34 -> Vacaciones no gozadas | F35: =Ingresos!C34 -> 0 | G35: =Ingresos!D34 -> 0 | H35: =Ingresos!E34 -> 0 | I35: =Ingresos!F34 -> 0 | J35: =Ingresos!G34 -> 0 | K35: =Ingresos!H34 -> 0 | L35: =Ingresos!I34 -> 0 | M35: =Ingresos!J34 -> 0 | N35: =Ingresos!K34 -> 0 | O35: =Ingresos!L34 -> 0 | P35: =Ingresos!M34 -> 0 | Q35: =Ingresos!N34 -> 0 | S35: 0 | U35: =Ingresos!U34 -> Remuneración bruta gravada | V35: 0
D36: =Ingresos!B35 -> SAC s/vacaciones no gozadas | F36: =Ingresos!C35 -> 0 | G36: =Ingresos!D35 -> 0 | H36: =Ingresos!E35 -> 0 | I36: =Ingresos!F35 -> 0 | J36: =Ingresos!G35 -> 0 | K36: =Ingresos!H35 -> 0 | L36: =Ingresos!I35 -> 0 | M36: =Ingresos!J35 -> 0 | N36: =Ingresos!K35 -> 0 | O36: =Ingresos!L35 -> 0 | P36: =Ingresos!M35 -> 0 | Q36: =Ingresos!N35 -> 0 | S36: 0 | U36: =Ingresos!U35 -> Remuneración bruta gravada | V36: 0
D37: =Ingresos!B36 -> Integración mes de despido | F37: =Ingresos!C36 -> 0 | G37: =Ingresos!D36 -> 0 | H37: =Ingresos!E36 -> 0 | I37: =Ingresos!F36 -> 0 | J37: =Ingresos!G36 -> 0 | K37: =Ingresos!H36 -> 0 | L37: =Ingresos!I36 -> 0 | M37: =Ingresos!J36 -> 0 | N37: =Ingresos!K36 -> 0 | O37: =Ingresos!L36 -> 0 | P37: =Ingresos!M36 -> 0 | Q37: =Ingresos!N36 -> 0 | S37: 0 | U37: =Ingresos!U36 -> Remuneración bruta gravada | V37: 0
D38: =Ingresos!B37 -> SAC s/integración mes de despido | F38: =Ingresos!C37 -> 0 | G38: =Ingresos!D37 -> 0 | H38: =Ingresos!E37 -> 0 | I38: =Ingresos!F37 -> 0 | J38: =Ingresos!G37 -> 0 | K38: =Ingresos!H37 -> 0 | L38: =Ingresos!I37 -> 0 | M38: =Ingresos!J37 -> 0 | N38: =Ingresos!K37 -> 0 | O38: =Ingresos!L37 -> 0 | P38: =Ingresos!M37 -> 0 | Q38: =Ingresos!N37 -> 0 | S38: 0 | U38: =Ingresos!U37 -> Remuneración bruta gravada | V38: 0
D39: =Ingresos!B38 -> Gratificación por cese | F39: =Ingresos!C38 -> 0 | G39: =Ingresos!D38 -> 0 | H39: =Ingresos!E38 -> 0 | I39: =Ingresos!F38 -> 0 | J39: =Ingresos!G38 -> 0 | K39: =Ingresos!H38 -> 0 | L39: =Ingresos!I38 -> 0 | M39: =Ingresos!J38 -> 0 | N39: =Ingresos!K38 -> 0 | O39: =Ingresos!L38 -> 0 | P39: =Ingresos!M38 -> 0 | Q39: =Ingresos!N38 -> 0 | S39: 0 | U39: =Ingresos!U38 -> Remuneración no alcanzada o exenta | V39: 0
D40: Pluriempleo
D41: =Ingresos!B47 -> Sueldo bruto | F41: =+Ingresos!C47 -> 0 | G41: =+Ingresos!D47 -> 0 | H41: =+Ingresos!E47 -> 0 | I41: =+Ingresos!F47 -> 0 | J41: =+Ingresos!G47 -> 0 | K41: =+Ingresos!H47 -> 0 | L41: =+Ingresos!I47 -> 0 | M41: =+Ingresos!J47 -> 0 | N41: =+Ingresos!K47 -> 0 | O41: =+Ingresos!L47 -> 0 | P41: =+Ingresos!M47 -> 0 | Q41: =+Ingresos!N47 -> 0 | S41: 0 | U41: =Ingresos!U47 -> Remuneración bruta gravada | V41: =+S41 -> 0
D42: =Ingresos!B48 -> Horas extras (días inhábiles) | F42: =+Ingresos!C48 -> 0 | G42: =+Ingresos!D48 -> 0 | H42: =+Ingresos!E48 -> 0 | I42: =+Ingresos!F48 -> 0 | J42: =+Ingresos!G48 -> 0 | K42: =+Ingresos!H48 -> 0 | L42: =+Ingresos!I48 -> 0 | M42: =+Ingresos!J48 -> 0 | N42: =+Ingresos!K48 -> 0 | O42: =+Ingresos!L48 -> 0 | P42: =+Ingresos!M48 -> 0 | Q42: =+Ingresos!N48 -> 0 | S42: 0 | U42: =Ingresos!U48 -> Horas extras remuneración gravada | V42: =+S42 -> 0
D43: =Ingresos!B49 -> Plus horas extras (días inhábiles) | F43: =+Ingresos!C49 -> 0 | G43: =+Ingresos!D49 -> 0 | H43: =+Ingresos!E49 -> 0 | I43: =+Ingresos!F49 -> 0 | J43: =+Ingresos!G49 -> 0 | K43: =+Ingresos!H49 -> 0 | L43: =+Ingresos!I49 -> 0 | M43: =+Ingresos!J49 -> 0 | N43: =+Ingresos!K49 -> 0 | O43: =+Ingresos!L49 -> 0 | P43: =+Ingresos!M49 -> 0 | Q43: =+Ingresos!N49 -> 0 | S43: 0 | U43: =Ingresos!U49 -> Horas extras remuneración exenta | V43: 0
D44: =Ingresos!B50 -> Horas extras (días hábiles) | F44: =+Ingresos!C50 -> 0 | G44: =+Ingresos!D50 -> 0 | H44: =+Ingresos!E50 -> 0 | I44: =+Ingresos!F50 -> 0 | J44: =+Ingresos!G50 -> 0 | K44: =+Ingresos!H50 -> 0 | L44: =+Ingresos!I50 -> 0 | M44: =+Ingresos!J50 -> 0 | N44: =+Ingresos!K50 -> 0 | O44: =+Ingresos!L50 -> 0 | P44: =+Ingresos!M50 -> 0 | Q44: =+Ingresos!N50 -> 0 | S44: 0 | U44: =Ingresos!U50 -> Horas extras remuneración gravada | V44: 0
D45: =Ingresos!B51 -> SAC gravado | F45: =+Ingresos!C51 -> 0 | G45: =+Ingresos!D51 -> 0 | H45: =+Ingresos!E51 -> 0 | I45: =+Ingresos!F51 -> 0 | J45: =+Ingresos!G51 -> 0 | K45: =+Ingresos!H51 -> 0 | L45: =+Ingresos!I51 -> 0 | M45: =+Ingresos!J51 -> 0 | N45: =+Ingresos!K51 -> 0 | O45: =+Ingresos!L51 -> 0 | P45: =+Ingresos!M51 -> 0 | Q45: =+Ingresos!N51 -> 0 | S45: 0 | U45: =Ingresos!U51 -> SAC | V45: 0
D46: =Ingresos!B52 -> SAC no gravado o exento | F46: =+Ingresos!C52 -> 0 | G46: =+Ingresos!D52 -> 0 | H46: =+Ingresos!E52 -> 0 | I46: =+Ingresos!F52 -> 0 | J46: =+Ingresos!G52 -> 0 | K46: =+Ingresos!H52 -> 0 | L46: =+Ingresos!I52 -> 0 | M46: =+Ingresos!J52 -> 0 | N46: =+Ingresos!K52 -> 0 | O46: =+Ingresos!L52 -> 0 | P46: =+Ingresos!M52 -> 0 | Q46: =+Ingresos!N52 -> 0 | S46: =SUM(F46:Q46) -> 0 | U46: =Ingresos!U52 -> SAC | V46: 0
D47: =Ingresos!B53 -> Plus Vacacional | F47: =+Ingresos!C53 -> 0 | G47: =+Ingresos!D53 -> 0 | H47: =+Ingresos!E53 -> 0 | I47: =+Ingresos!F53 -> 0 | J47: =+Ingresos!G53 -> 0 | K47: =+Ingresos!H53 -> 0 | L47: =+Ingresos!I53 -> 0 | M47: =+Ingresos!J53 -> 0 | N47: =+Ingresos!K53 -> 0 | O47: =+Ingresos!L53 -> 0 | P47: =+Ingresos!M53 -> 0 | Q47: =+Ingresos!N53 -> 0 | S47: 0 | U47: =Ingresos!U53 -> Remuneración bruta gravada | V47: 0
D48: =Ingresos!B54 -> Plus Feriado | F48: =+Ingresos!C54 -> 0 | G48: =+Ingresos!D54 -> 0 | H48: =+Ingresos!E54 -> 0 | I48: =+Ingresos!F54 -> 0 | J48: =+Ingresos!G54 -> 0 | K48: =+Ingresos!H54 -> 0 | L48: =+Ingresos!I54 -> 0 | M48: =+Ingresos!J54 -> 0 | N48: =+Ingresos!K54 -> 0 | O48: =+Ingresos!L54 -> 0 | P48: =+Ingresos!M54 -> 0 | Q48: =+Ingresos!N54 -> 0 | S48: 0 | U48: =Ingresos!U54 -> Remuneración bruta gravada | V48: 0
D49: =Ingresos!B55 -> Movilidad y viáticos (gravado) | F49: =+Ingresos!C55 -> 0 | G49: =+Ingresos!D55 -> 0 | H49: =+Ingresos!E55 -> 0 | I49: =+Ingresos!F55 -> 0 | J49: =+Ingresos!G55 -> 0 | K49: =+Ingresos!H55 -> 0 | L49: =+Ingresos!I55 -> 0 | M49: =+Ingresos!J55 -> 0 | N49: =+Ingresos!K55 -> 0 | O49: =+Ingresos!L55 -> 0 | P49: =+Ingresos!M55 -> 0 | Q49: =+Ingresos!N55 -> 0 | S49: 0 | U49: =Ingresos!U55 -> Movilidad y viáticos remuneración gravada | V49: 0
D50: =Ingresos!B56 -> Movilidad y viáticos (exento) | F50: =+Ingresos!C56 -> 0 | G50: =+Ingresos!D56 -> 0 | H50: =+Ingresos!E56 -> 0 | I50: =+Ingresos!F56 -> 0 | J50: =+Ingresos!G56 -> 0 | K50: =+Ingresos!H56 -> 0 | L50: =+Ingresos!I56 -> 0 | M50: =+Ingresos!J56 -> 0 | N50: =+Ingresos!K56 -> 0 | O50: =+Ingresos!L56 -> 0 | P50: =+Ingresos!M56 -> 0 | Q50: =+Ingresos!N56 -> 0 | S50: 0 | U50: =Ingresos!U56 -> Movilidad y viáticos remuneración exenta | V50: 0
D51: =Ingresos!B57 -> Compensación de gastos por teletrabajo | F51: =+Ingresos!C57 -> 0 | G51: =+Ingresos!D57 -> 0 | H51: =+Ingresos!E57 -> 0 | I51: =+Ingresos!F57 -> 0 | J51: =+Ingresos!G57 -> 0 | K51: =+Ingresos!H57 -> 0 | L51: =+Ingresos!I57 -> 0 | M51: =+Ingresos!J57 -> 0 | N51: =+Ingresos!K57 -> 0 | O51: =+Ingresos!L57 -> 0 | P51: =+Ingresos!M57 -> 0 | Q51: =+Ingresos!N57 -> 0 | S51: =SUM(F51:Q51) -> 0 | U51: =Ingresos!U57 -> Compensación gastos teletrabajo exentos | V51: 0
D52: =Ingresos!B58 -> Bono por productividad (gravado) | F52: =+Ingresos!C58 -> 0 | G52: =+Ingresos!D58 -> 0 | H52: =+Ingresos!E58 -> 0 | I52: =+Ingresos!F58 -> 0 | J52: =+Ingresos!G58 -> 0 | K52: =+Ingresos!H58 -> 0 | L52: =+Ingresos!I58 -> 0 | M52: =+Ingresos!J58 -> 0 | N52: =+Ingresos!K58 -> 0 | O52: =+Ingresos!L58 -> 0 | P52: =+Ingresos!M58 -> 0 | Q52: =+Ingresos!N58 -> 0 | S52: 0 | U52: =Ingresos!U58 -> Bonos de productividad gravados | V52: 0
D53: =Ingresos!B59 -> Bono por productividad (exento) | F53: =+Ingresos!C59 -> 0 | G53: =+Ingresos!D59 -> 0 | H53: =+Ingresos!E59 -> 0 | I53: =+Ingresos!F59 -> 0 | J53: =+Ingresos!G59 -> 0 | K53: =+Ingresos!H59 -> 0 | L53: =+Ingresos!I59 -> 0 | M53: =+Ingresos!J59 -> 0 | N53: =+Ingresos!K59 -> 0 | O53: =+Ingresos!L59 -> 0 | P53: =+Ingresos!M59 -> 0 | Q53: =+Ingresos!N59 -> 0 | S53: 0 | U53: =Ingresos!U59 -> Bonos de productividad exentos | V53: 0
D54: =Ingresos!B60 -> Fallo de caja (gravado) | F54: =+Ingresos!C60 -> 0 | G54: =+Ingresos!D60 -> 0 | H54: =+Ingresos!E60 -> 0 | I54: =+Ingresos!F60 -> 0 | J54: =+Ingresos!G60 -> 0 | K54: =+Ingresos!H60 -> 0 | L54: =+Ingresos!I60 -> 0 | M54: =+Ingresos!J60 -> 0 | N54: =+Ingresos!K60 -> 0 | O54: =+Ingresos!L60 -> 0 | P54: =+Ingresos!M60 -> 0 | Q54: =+Ingresos!N60 -> 0 | S54: 0 | U54: =Ingresos!U60 -> Fallos de caja gravados | V54: 0
D55: =Ingresos!B61 -> Fallo de caja (exento) | F55: =+Ingresos!C61 -> 0 | G55: =+Ingresos!D61 -> 0 | H55: =+Ingresos!E61 -> 0 | I55: =+Ingresos!F61 -> 0 | J55: =+Ingresos!G61 -> 0 | K55: =+Ingresos!H61 -> 0 | L55: =+Ingresos!I61 -> 0 | M55: =+Ingresos!J61 -> 0 | N55: =+Ingresos!K61 -> 0 | O55: =+Ingresos!L61 -> 0 | P55: =+Ingresos!M61 -> 0 | Q55: =+Ingresos!N61 -> 0 | S55: 0 | U55: =Ingresos!U61 -> Fallos de caja exentos | V55: 0
D56: =Ingresos!B62 -> Suplementos particulares por actividad militar | F56: =+Ingresos!C62 -> 0 | G56: =+Ingresos!D62 -> 0 | H56: =+Ingresos!E62 -> 0 | I56: =+Ingresos!F62 -> 0 | J56: =+Ingresos!G62 -> 0 | K56: =+Ingresos!H62 -> 0 | L56: =+Ingresos!I62 -> 0 | M56: =+Ingresos!J62 -> 0 | N56: =+Ingresos!K62 -> 0 | O56: =+Ingresos!L62 -> 0 | P56: =+Ingresos!M62 -> 0 | Q56: =+Ingresos!N62 -> 0 | S56: 0 | U56: =Ingresos!U62 -> Suplementos particulares artículo 57 de la Ley 19.101 exentos | V56: 0
D57: =Ingresos!B63 -> Cursos o seminarios de capacitación | F57: =+Ingresos!C63 -> 0 | G57: =+Ingresos!D63 -> 0 | H57: =+Ingresos!E63 -> 0 | I57: =+Ingresos!F63 -> 0 | J57: =+Ingresos!G63 -> 0 | K57: =+Ingresos!H63 -> 0 | L57: =+Ingresos!I63 -> 0 | M57: =+Ingresos!J63 -> 0 | N57: =+Ingresos!K63 -> 0 | O57: =+Ingresos!L63 -> 0 | P57: =+Ingresos!M63 -> 0 | Q57: =+Ingresos!N63 -> 0 | S57: 0 | U57: =Ingresos!U63 -> Remuneración no alcanzada o exenta | V57: 0
D58: =Ingresos!B64 -> Reintegro de gastos de guardería y/o jardín materno-infantil | F58: =+Ingresos!C64 -> 0 | G58: =+Ingresos!D64 -> 0 | H58: =+Ingresos!E64 -> 0 | I58: =+Ingresos!F64 -> 0 | J58: =+Ingresos!G64 -> 0 | K58: =+Ingresos!H64 -> 0 | L58: =+Ingresos!I64 -> 0 | M58: =+Ingresos!J64 -> 0 | N58: =+Ingresos!K64 -> 0 | O58: =+Ingresos!L64 -> 0 | P58: =+Ingresos!M64 -> 0 | Q58: =+Ingresos!N64 -> 0 | S58: 0 | U58: =Ingresos!U64 -> Remuneración no alcanzada o exenta | V58: 0
D59: =Ingresos!B65 -> Provisión de herramientas educativas (gravado) | F59: =+Ingresos!C65 -> 0 | G59: =+Ingresos!D65 -> 0 | H59: =+Ingresos!E65 -> 0 | I59: =+Ingresos!F65 -> 0 | J59: =+Ingresos!G65 -> 0 | K59: =+Ingresos!H65 -> 0 | L59: =+Ingresos!I65 -> 0 | M59: =+Ingresos!J65 -> 0 | N59: =+Ingresos!K65 -> 0 | O59: =+Ingresos!L65 -> 0 | P59: =+Ingresos!M65 -> 0 | Q59: =+Ingresos!N65 -> 0 | S59: 0 | U59: =Ingresos!U65 -> Remuneración bruta gravada | V59: 0
D60: =Ingresos!B66 -> Cursos o seminarios de capacitación para hijos/as y hijastros/as (gravado) | F60: =+Ingresos!C66 -> 0 | G60: =+Ingresos!D66 -> 0 | H60: =+Ingresos!E66 -> 0 | I60: =+Ingresos!F66 -> 0 | J60: =+Ingresos!G66 -> 0 | K60: =+Ingresos!H66 -> 0 | L60: =+Ingresos!I66 -> 0 | M60: =+Ingresos!J66 -> 0 | N60: =+Ingresos!K66 -> 0 | O60: =+Ingresos!L66 -> 0 | P60: =+Ingresos!M66 -> 0 | Q60: =+Ingresos!N66 -> 0 | S60: 0 | U60: =Ingresos!U66 -> Remuneración bruta gravada | V60: 0
D61: =Ingresos!B67 -> Cursos o seminarios de capacitación para hijos/as y hijastros/as (exento) | F61: =+Ingresos!C67 -> 0 | G61: =+Ingresos!D67 -> 0 | H61: =+Ingresos!E67 -> 0 | I61: =+Ingresos!F67 -> 0 | J61: =+Ingresos!G67 -> 0 | K61: =+Ingresos!H67 -> 0 | L61: =+Ingresos!I67 -> 0 | M61: =+Ingresos!J67 -> 0 | N61: =+Ingresos!K67 -> 0 | O61: =+Ingresos!L67 -> 0 | P61: =+Ingresos!M67 -> 0 | Q61: =+Ingresos!N67 -> 0 | S61: 0 | U61: =Ingresos!U67 -> Conceptos de similar naturaleza exentos | V61: 0
D62: =Ingresos!B68 -> Licencias varias | F62: =+Ingresos!C68 -> 0 | G62: =+Ingresos!D68 -> 0 | H62: =+Ingresos!E68 -> 0 | I62: =+Ingresos!F68 -> 0 | J62: =+Ingresos!G68 -> 0 | K62: =+Ingresos!H68 -> 0 | L62: =+Ingresos!I68 -> 0 | M62: =+Ingresos!J68 -> 0 | N62: =+Ingresos!K68 -> 0 | O62: =+Ingresos!L68 -> 0 | P62: =+Ingresos!M68 -> 0 | Q62: =+Ingresos!N68 -> 0 | S62: 0 | U62: =Ingresos!U68 -> Remuneración bruta gravada | V62: 0
D63: =Ingresos!B69 -> Benef. Soc. (no rem.) | F63: =+Ingresos!C69 -> 0 | G63: =+Ingresos!D69 -> 0 | H63: =+Ingresos!E69 -> 0 | I63: =+Ingresos!F69 -> 0 | J63: =+Ingresos!G69 -> 0 | K63: =+Ingresos!H69 -> 0 | L63: =+Ingresos!I69 -> 0 | M63: =+Ingresos!J69 -> 0 | N63: =+Ingresos!K69 -> 0 | O63: =+Ingresos!L69 -> 0 | P63: =+Ingresos!M69 -> 0 | Q63: =+Ingresos!N69 -> 0 | S63: 0 | U63: =Ingresos!U69 -> Remuneración bruta gravada | V63: 0
D64: =Ingresos!B70 -> Indemnización art. 245 | F64: =+Ingresos!C70 -> 0 | G64: =+Ingresos!D70 -> 0 | H64: =+Ingresos!E70 -> 0 | I64: =+Ingresos!F70 -> 0 | J64: =+Ingresos!G70 -> 0 | K64: =+Ingresos!H70 -> 0 | L64: =+Ingresos!I70 -> 0 | M64: =+Ingresos!J70 -> 0 | N64: =+Ingresos!K70 -> 0 | O64: =+Ingresos!L70 -> 0 | P64: =+Ingresos!M70 -> 0 | Q64: =+Ingresos!N70 -> 0 | S64: 0 | U64: =Ingresos!U70 -> Remuneración no alcanzada o exenta | V64: 0
D65: =Ingresos!B71 -> Preaviso | F65: =+Ingresos!C71 -> 0 | G65: =+Ingresos!D71 -> 0 | H65: =+Ingresos!E71 -> 0 | I65: =+Ingresos!F71 -> 0 | J65: =+Ingresos!G71 -> 0 | K65: =+Ingresos!H71 -> 0 | L65: =+Ingresos!I71 -> 0 | M65: =+Ingresos!J71 -> 0 | N65: =+Ingresos!K71 -> 0 | O65: =+Ingresos!L71 -> 0 | P65: =+Ingresos!M71 -> 0 | Q65: =+Ingresos!N71 -> 0 | S65: 0 | U65: =Ingresos!U71 -> Remuneración bruta gravada | V65: 0
D66: =Ingresos!B72 -> SAC s/preaviso | F66: =+Ingresos!C72 -> 0 | G66: =+Ingresos!D72 -> 0 | H66: =+Ingresos!E72 -> 0 | I66: =+Ingresos!F72 -> 0 | J66: =+Ingresos!G72 -> 0 | K66: =+Ingresos!H72 -> 0 | L66: =+Ingresos!I72 -> 0 | M66: =+Ingresos!J72 -> 0 | N66: =+Ingresos!K72 -> 0 | O66: =+Ingresos!L72 -> 0 | P66: =+Ingresos!M72 -> 0 | Q66: =+Ingresos!N72 -> 0 | S66: 0 | U66: =Ingresos!U72 -> Remuneración bruta gravada | V66: 0
D67: =Ingresos!B73 -> Vacaciones no gozadas | F67: =+Ingresos!C73 -> 0 | G67: =+Ingresos!D73 -> 0 | H67: =+Ingresos!E73 -> 0 | I67: =+Ingresos!F73 -> 0 | J67: =+Ingresos!G73 -> 0 | K67: =+Ingresos!H73 -> 0 | L67: =+Ingresos!I73 -> 0 | M67: =+Ingresos!J73 -> 0 | N67: =+Ingresos!K73 -> 0 | O67: =+Ingresos!L73 -> 0 | P67: =+Ingresos!M73 -> 0 | Q67: =+Ingresos!N73 -> 0 | S67: 0 | U67: =Ingresos!U73 -> Remuneración bruta gravada | V67: 0
D68: =Ingresos!B74 -> SAC s/vacaciones no gozadas | F68: =+Ingresos!C74 -> 0 | G68: =+Ingresos!D74 -> 0 | H68: =+Ingresos!E74 -> 0 | I68: =+Ingresos!F74 -> 0 | J68: =+Ingresos!G74 -> 0 | K68: =+Ingresos!H74 -> 0 | L68: =+Ingresos!I74 -> 0 | M68: =+Ingresos!J74 -> 0 | N68: =+Ingresos!K74 -> 0 | O68: =+Ingresos!L74 -> 0 | P68: =+Ingresos!M74 -> 0 | Q68: =+Ingresos!N74 -> 0 | S68: 0 | U68: =Ingresos!U74 -> Remuneración bruta gravada | V68: 0
D69: =Ingresos!B75 -> Integración mes de despido | F69: =+Ingresos!C75 -> 0 | G69: =+Ingresos!D75 -> 0 | H69: =+Ingresos!E75 -> 0 | I69: =+Ingresos!F75 -> 0 | J69: =+Ingresos!G75 -> 0 | K69: =+Ingresos!H75 -> 0 | L69: =+Ingresos!I75 -> 0 | M69: =+Ingresos!J75 -> 0 | N69: =+Ingresos!K75 -> 0 | O69: =+Ingresos!L75 -> 0 | P69: =+Ingresos!M75 -> 0 | Q69: =+Ingresos!N75 -> 0 | S69: 0 | U69: =Ingresos!U75 -> Remuneración bruta gravada | V69: 0
D70: =Ingresos!B76 -> SAC s/integración mes de despido | F70: =+Ingresos!C76 -> 0 | G70: =+Ingresos!D76 -> 0 | H70: =+Ingresos!E76 -> 0 | I70: =+Ingresos!F76 -> 0 | J70: =+Ingresos!G76 -> 0 | K70: =+Ingresos!H76 -> 0 | L70: =+Ingresos!I76 -> 0 | M70: =+Ingresos!J76 -> 0 | N70: =+Ingresos!K76 -> 0 | O70: =+Ingresos!L76 -> 0 | P70: =+Ingresos!M76 -> 0 | Q70: =+Ingresos!N76 -> 0 | S70: 0 | U70: =Ingresos!U76 -> Remuneración bruta gravada | V70: 0
D71: =Ingresos!B77 -> Gratificación por cese | F71: =+Ingresos!C77 -> 0 | G71: =+Ingresos!D77 -> 0 | H71: =+Ingresos!E77 -> 0 | I71: =+Ingresos!F77 -> 0 | J71: =+Ingresos!G77 -> 0 | K71: =+Ingresos!H77 -> 0 | L71: =+Ingresos!I77 -> 0 | M71: =+Ingresos!J77 -> 0 | N71: =+Ingresos!K77 -> 0 | O71: =+Ingresos!L77 -> 0 | P71: =+Ingresos!M77 -> 0 | Q71: =+Ingresos!N77 -> 0 | S71: 0 | U71: =Ingresos!U77 -> Remuneración no alcanzada o exenta | V71: 0
D72: Sub Total Ganancia Bruta | F72: =SUM(F9:F63) -> 0 | G72: 0 | H72: 0 | I72: 0 | J72: 0 | K72: 0 | L72: 0 | M72: 0 | N72: 0 | O72: 0 | P72: 0 | Q72: 0 | S72: =SUM(S9:S63) -> 0
D74: Retenciones computables | F74: 2016-01-31 | G74: 2016-02-28 | H74: 2016-03-31 | I74: 2016-04-30 | J74: 2016-05-31 | K74: 2016-06-30 | L74: 2016-07-31 | M74: 2016-08-31 | N74: 2016-09-30 | O74: 2016-10-31 | P74: 2016-11-30 | Q74: 2016-12-31 | S74: Anual
D75: =Tablas!B8 -> Jubilación | F75: =Auxiliares!D30+Auxiliares!D37+Auxiliares!D166 -> 0 | G75: =Auxiliares!E30+Auxiliares!E37+Auxiliares!E166 -> 0 | H75: =Auxiliares!F30+Auxiliares!F37+Auxiliares!F166 -> 0 | I75: =Auxiliares!G30+Auxiliares!G37+Auxiliares!G166 -> 0 | J75: =Auxiliares!H30+Auxiliares!H37+Auxiliares!H166 -> 0 | K75: =Auxiliares!I30+Auxiliares!I37+Auxiliares!I166 -> 0 | L75: =Auxiliares!J30+Auxiliares!J37+Auxiliares!J166 -> 0 | M75: =Auxiliares!K30+Auxiliares!K37+Auxiliares!K166 -> 0 | N75: =Auxiliares!L30+Auxiliares!L37+Auxiliares!L166 -> 0 | O75: =Auxiliares!M30+Auxiliares!M37+Auxiliares!M166 -> 0 | P75: =Auxiliares!N30+Auxiliares!N37+Auxiliares!N166 -> 0 | Q75: =Auxiliares!O30+Auxiliares!O37+Auxiliares!O166 -> 0 | S75: =SUM(F75:Q75) -> 0
D76: =Tablas!B9 -> Ley 19032 | F76: =Auxiliares!D31+Auxiliares!D38+Auxiliares!D167 -> 0 | G76: =Auxiliares!E31+Auxiliares!E38+Auxiliares!E167 -> 0 | H76: =Auxiliares!F31+Auxiliares!F38+Auxiliares!F167 -> 0 | I76: =Auxiliares!G31+Auxiliares!G38+Auxiliares!G167 -> 0 | J76: =Auxiliares!H31+Auxiliares!H38+Auxiliares!H167 -> 0 | K76: =Auxiliares!I31+Auxiliares!I38+Auxiliares!I167 -> 0 | L76: =Auxiliares!J31+Auxiliares!J38+Auxiliares!J167 -> 0 | M76: =Auxiliares!K31+Auxiliares!K38+Auxiliares!K167 -> 0 | N76: =Auxiliares!L31+Auxiliares!L38+Auxiliares!L167 -> 0 | O76: =Auxiliares!M31+Auxiliares!M38+Auxiliares!M167 -> 0 | P76: =Auxiliares!N31+Auxiliares!N38+Auxiliares!N167 -> 0 | Q76: =Auxiliares!O31+Auxiliares!O38+Auxiliares!O167 -> 0 | S76: =SUM(F76:Q76) -> 0
D77: =Tablas!B10 -> Obra social | F77: =Auxiliares!D32+Auxiliares!D39+Auxiliares!D168 -> 0 | G77: =Auxiliares!E32+Auxiliares!E39+Auxiliares!E168 -> 0 | H77: =Auxiliares!F32+Auxiliares!F39+Auxiliares!F168 -> 0 | I77: =Auxiliares!G32+Auxiliares!G39+Auxiliares!G168 -> 0 | J77: =Auxiliares!H32+Auxiliares!H39+Auxiliares!H168 -> 0 | K77: =Auxiliares!I32+Auxiliares!I39+Auxiliares!I168 -> 0 | L77: =Auxiliares!J32+Auxiliares!J39+Auxiliares!J168 -> 0 | M77: =Auxiliares!K32+Auxiliares!K39+Auxiliares!K168 -> 0 | N77: =Auxiliares!L32+Auxiliares!L39+Auxiliares!L168 -> 0 | O77: =Auxiliares!M32+Auxiliares!M39+Auxiliares!M168 -> 0 | P77: =Auxiliares!N32+Auxiliares!N39+Auxiliares!N168 -> 0 | Q77: =Auxiliares!O32+Auxiliares!O39+Auxiliares!O168 -> 0 | S77: =SUM(F77:Q77) -> 0
D78: =Tablas!B11 -> Sindicato | F78: =Auxiliares!D33+Auxiliares!D40+Auxiliares!D169 -> 0 | G78: =Auxiliares!E33+Auxiliares!E40+Auxiliares!E169 -> 0 | H78: =Auxiliares!F33+Auxiliares!F40+Auxiliares!F169 -> 0 | I78: =Auxiliares!G33+Auxiliares!G40+Auxiliares!G169 -> 0 | J78: =Auxiliares!H33+Auxiliares!H40+Auxiliares!H169 -> 0 | K78: =Auxiliares!I33+Auxiliares!I40+Auxiliares!I169 -> 0 | L78: =Auxiliares!J33+Auxiliares!J40+Auxiliares!J169 -> 0 | M78: =Auxiliares!K33+Auxiliares!K40+Auxiliares!K169 -> 0 | N78: =Auxiliares!L33+Auxiliares!L40+Auxiliares!L169 -> 0 | O78: =Auxiliares!M33+Auxiliares!M40+Auxiliares!M169 -> 0 | P78: =Auxiliares!N33+Auxiliares!N40+Auxiliares!N169 -> 0 | Q78: =Auxiliares!O33+Auxiliares!O40+Auxiliares!O169 -> 0 | S78: =SUM(F78:Q78) -> 0
D79: =Tablas!B12 -> 0 | F79: =Auxiliares!D34+Auxiliares!D41+Auxiliares!D170 -> 0 | G79: =Auxiliares!E34+Auxiliares!E41+Auxiliares!E170 -> 0 | H79: =Auxiliares!F34+Auxiliares!F41+Auxiliares!F170 -> 0 | I79: =Auxiliares!G34+Auxiliares!G41+Auxiliares!G170 -> 0 | J79: =Auxiliares!H34+Auxiliares!H41+Auxiliares!H170 -> 0 | K79: =Auxiliares!I34+Auxiliares!I41+Auxiliares!I170 -> 0 | L79: =Auxiliares!J34+Auxiliares!J41+Auxiliares!J170 -> 0 | M79: =Auxiliares!K34+Auxiliares!K41+Auxiliares!K170 -> 0 | N79: =Auxiliares!L34+Auxiliares!L41+Auxiliares!L170 -> 0 | O79: =Auxiliares!M34+Auxiliares!M41+Auxiliares!M170 -> 0 | P79: =Auxiliares!N34+Auxiliares!N41+Auxiliares!N170 -> 0 | Q79: =Auxiliares!O34+Auxiliares!O41+Auxiliares!O170 -> 0 | S79: 0
D80: =Tablas!B13 -> 0 | F80: =Auxiliares!D35+Auxiliares!D42+Auxiliares!D171 -> 0 | G80: =Auxiliares!E35+Auxiliares!E42+Auxiliares!E171 -> 0 | H80: =Auxiliares!F35+Auxiliares!F42+Auxiliares!F171 -> 0 | I80: =Auxiliares!G35+Auxiliares!G42+Auxiliares!G171 -> 0 | J80: =Auxiliares!H35+Auxiliares!H42+Auxiliares!H171 -> 0 | K80: =Auxiliares!I35+Auxiliares!I42+Auxiliares!I171 -> 0 | L80: =Auxiliares!J35+Auxiliares!J42+Auxiliares!J171 -> 0 | M80: =Auxiliares!K35+Auxiliares!K42+Auxiliares!K171 -> 0 | N80: =Auxiliares!L35+Auxiliares!L42+Auxiliares!L171 -> 0 | O80: =Auxiliares!M35+Auxiliares!M42+Auxiliares!M171 -> 0 | P80: =Auxiliares!N35+Auxiliares!N42+Auxiliares!N171 -> 0 | Q80: =Auxiliares!O35+Auxiliares!O42+Auxiliares!O171 -> 0 | S80: 0
B82: Datos Acumulados | D82: Ingresos Gravados Acumulados | F82: 2016-01-31 | G82: 2016-02-28 | H82: 2016-03-31 | I82: 2016-04-30 | J82: 2016-05-31 | K82: 2016-06-30 | L82: 2016-07-31 | M82: 2016-08-31 | N82: 2016-09-30 | O82: 2016-10-31 | P82: 2016-11-30 | Q82: 2016-12-31 | S82: Anual
D83: Ingresos gravados (menos SAC) | F83: =Auxiliares!D9+Auxiliares!D11 -> 0 | G83: =Auxiliares!E9+Auxiliares!E11+F83 -> 0 | H83: =Auxiliares!F9+Auxiliares!F11+G83 -> 0 | I83: =Auxiliares!G9+Auxiliares!G11+H83 -> 0 | J83: =Auxiliares!H9+Auxiliares!H11+I83 -> 0 | K83: =Auxiliares!I9+Auxiliares!I11+J83 -> 0 | L83: =Auxiliares!J9+Auxiliares!J11+K83 -> 0 | M83: =Auxiliares!K9+Auxiliares!K11+L83 -> 0 | N83: =Auxiliares!L9+Auxiliares!L11+M83 -> 0 | O83: =Auxiliares!M9+Auxiliares!M11+N83 -> 0 | P83: =Auxiliares!N9+Auxiliares!N11+O83 -> 0 | Q83: =Auxiliares!O9+Auxiliares!O11+P83 -> 0 | S83: =Q83 -> 0
D84: Ingresos prorrateados (menos SAC) | F84: =+Auxiliares!D49 -> 0 | G84: =+F84+Auxiliares!E49 -> 0 | H84: =+G84+Auxiliares!F49 -> 0 | I84: =+H84+Auxiliares!G49 -> 0 | J84: =+I84+Auxiliares!H49 -> 0 | K84: =+J84+Auxiliares!I49 -> 0 | L84: =+K84+Auxiliares!J49 -> 0 | M84: =+L84+Auxiliares!K49 -> 0 | N84: =+M84+Auxiliares!L49 -> 0 | O84: =+N84+Auxiliares!M49 -> 0 | P84: =+O84+Auxiliares!N49 -> 0 | Q84: =+P84+Auxiliares!O49 -> 0 | S84: =+Q84 -> 0
D85: Ajuste SAC Neto | F85: =IF(Check!$B$8="",Ingresos!C41+Ingresos!C80,Ingresos!C40+Ingresos!C79) -> 0 | G85: =IF(Check!$B$8="",Ingresos!D41+Ingresos!D80,Ingresos!D40+Ingresos!D79)+F85 -> 0 | H85: =IF(Check!$B$8="",Ingresos!E41+Ingresos!E80,Ingresos!E40+Ingresos!E79)+G85 -> 0 | I85: =IF(Check!$B$8="",Ingresos!F41+Ingresos!F80,Ingresos!F40+Ingresos!F79)+H85 -> 0 | J85: =IF(Check!$B$8="",Ingresos!G41+Ingresos!G80,Ingresos!G40+Ingresos!G79)+I85 -> 0 | K85: =IF(Check!$B$8="",Ingresos!H41+Ingresos!H80,Ingresos!H40+Ingresos!H79)+J85 -> 0 | L85: =IF(Check!$B$8="",Ingresos!I41+Ingresos!I80,Ingresos!I40+Ingresos!I79)+K85 -> 0 | M85: =IF(Check!$B$8="",Ingresos!J41+Ingresos!J80,Ingresos!J40+Ingresos!J79)+L85 -> 0 | N85: =IF(Check!$B$8="",Ingresos!K41+Ingresos!K80,Ingresos!K40+Ingresos!K79)+M85 -> 0 | O85: =IF(Check!$B$8="",Ingresos!L41+Ingresos!L80,Ingresos!L40+Ingresos!L79)+N85 -> 0 | P85: =IF(Check!$B$8="",Ingresos!M41+Ingresos!M80,Ingresos!M40+Ingresos!M79)+O85 -> 0 | Q85: =IF(Check!$B$8="",Ingresos!N41+Ingresos!N80,Ingresos!N40+Ingresos!N79)+P85 -> 0 | S85: 0
D86: SAC (bruto) | F86: 0 | G86: 0 | H86: 0 | I86: 0 | J86: 0 | K86: 0 | L86: 0 | M86: 0 | N86: 0 | O86: 0 | P86: 0 | Q86: 0 | S86: =SUM(Ingresos!$C$12:$N$12)+SUM(Ingresos!$C$51:$N$51) -> 0
D87: Sub Total Ganancia Bruta | F87: =SUM(F83:F84) -> 0 | G87: =SUM(G83:G84) -> 0 | H87: =SUM(H83:H84) -> 0 | I87: 0 | J87: 0 | K87: 0 | L87: 0 | M87: 0 | N87: 0 | O87: 0 | P87: 0 | Q87: 0 | S87: =SUM(S83:S84) -> 0
D89: Ajuste SAC Neto | F89: 2016-01-31 | G89: 2016-02-28 | H89: 2016-03-31 | I89: 2016-04-30 | J89: 2016-05-31 | K89: 2016-06-30 | L89: 2016-07-31 | M89: 2016-08-31 | N89: 2016-09-30 | O89: 2016-10-31 | P89: 2016-11-30 | Q89: 2016-12-31 | S89: Anual
D90: Remuneración bruta | K90: =+Tablas!H41 -> 0 | L90: =+Tablas!I41 -> 0 | M90: =+Tablas!J41 -> 0 | N90: =+Tablas!K41 -> 0 | O90: =+Tablas!L41 -> 0 | P90: =+Tablas!M41 -> 0 | Q90: =+Tablas!N41 -> 0
D91: Remuneración bruta (promedio) | K91: =+Tablas!H42 -> 0 | L91: =+Tablas!I42 -> 0 | M91: =+Tablas!J42 -> 0 | N91: =+SUM($L$90:N90)/(MONTH(N89)-6) -> 0 | O91: =+SUM($L$90:O90)/(MONTH(O89)-6) -> 0 | P91: =+SUM($L$90:P90)/(MONTH(P89)-6) -> 0 | Q91: =+SUM($L$90:Q90)/(MONTH(Q89)-6) -> 0
D92: SAC Neto (doceava parte) | F92: =IF(Check!$B$8<>"",+Ingresos!C40+Ingresos!C79,+Ingresos!C41+Ingresos!C80) -> 0 | G92: =IF(Check!$B$8<>"",+Ingresos!D40+Ingresos!D79,+Ingresos!D41+Ingresos!D80) -> 0 | H92: =IF(Check!$B$8<>"",+Ingresos!E40+Ingresos!E79,+Ingresos!E41+Ingresos!E80) -> 0 | I92: =IF(Check!$B$8<>"",+Ingresos!F40+Ingresos!F79,+Ingresos!F41+Ingresos!F80) -> 0 | J92: =IF(Check!$B$8<>"",+Ingresos!G40+Ingresos!G79,+Ingresos!G41+Ingresos!G80) -> 0 | K92: =IF(Check!$B$8<>"",+Ingresos!H40+Ingresos!H79,+Ingresos!H41+Ingresos!H80) -> 0 | L92: =IF(Check!$B$8<>"",+Ingresos!I40+Ingresos!I79,+Ingresos!I41+Ingresos!I80) -> 0 | M92: =IF(Check!$B$8<>"",+Ingresos!J40+Ingresos!J79,+Ingresos!J41+Ingresos!J80) -> 0 | N92: =IF(Check!$B$8<>"",+Ingresos!K40+Ingresos!K79,+Ingresos!K41+Ingresos!K80) -> 0 | O92: =IF(Check!$B$8<>"",+Ingresos!L40+Ingresos!L79,+Ingresos!L41+Ingresos!L80) -> 0 | P92: =IF(Check!$B$8<>"",+Ingresos!M40+Ingresos!M79,+Ingresos!M41+Ingresos!M80) -> 0 | Q92: =IF(Check!$B$8<>"",+Ingresos!N40+Ingresos!N79,+Ingresos!N41+Ingresos!N80) -> 0
D93: Ajuste | K93: =ajusteGravadoSAC(K90,K91,SUM($F$92:J92),SUM($F$92:K92),K92,J93,Check!$B$23,IF(Check!B8<>"",SUM(Tablas!H8:H13),Auxiliares!I358),MONTH(K89),Check!$B$1) -> 0 | L93: =ajusteGravadoSAC(L90,L91,SUM($F$92:K92),SUM($F$92:L92),L92,K93,Check!$B$23,IF(Check!C8<>"",SUM(Tablas!I8:I13),Auxiliares!J358),MONTH(L89),Check!$B$1) -> 0 | M93: =ajusteGravadoSAC(M90,M91,SUM($F$92:L92),SUM($F$92:M92),M92,L93,Check!$B$23,IF(Check!D8<>"",SUM(Tablas!J8:J13),Auxiliares!K358),MONTH(M89),Check!$B$1) -> 0 | N93: =ajusteGravadoSAC(N90,N91,SUM($L$92:M92),SUM($F$92:N92),N92,M93,0,IF(Check!E8<>"",SUM(Tablas!K8:K13),Auxiliares!L358),MONTH(N89),Check!$B$1) -> 0 | O93: =ajusteGravadoSAC(O90,O91,SUM($L$92:N92),SUM($F$92:O92),O92,N93,0,IF(Check!F8<>"",SUM(Tablas!L8:L13),Auxiliares!M358),MONTH(O89),Check!$B$1) -> 0 | P93: =ajusteGravadoSAC(P90,P91,SUM($L$92:O92),SUM($F$92:P92),P92,O93,0,IF(Check!G8<>"",SUM(Tablas!M8:M13),Auxiliares!N358),MONTH(P89),Check!$B$1) -> 0 | Q93: =ajusteGravadoSAC(Q90,Q91,SUM($L$92:P92),SUM($F$92:Q92),Q92,P93,0,IF(Check!H8<>"",SUM(Tablas!N8:N13),Auxiliares!O358),MONTH(Q89),Check!$B$1) -> 0
D94: SAC Neto (gravado) | F94: =+F92 -> 0 | G94: =+F94+G92 -> 0 | H94: =+G94+H92 -> 0 | I94: =+H94+I92 -> 0 | J94: =+I94+J92 -> 0 | K94: =ROUND(+K93+J94+K92,2) -> 0 | L94: 0 | M94: 0 | N94: 0 | O94: 0 | P94: 0 | Q94: 0
D95: SAC Bruto exento (anual) | S95: =+SUM(Ingresos!C13:N13) -> 0
D96: SAC Bruto gravado (anual) | S96: =SUM(Ingresos!C12:N12) -> 0
